Workbook

Sheet Select unit
A4: National Paediatric Diabetes Audit 2020-21
A5: Unit posters
A7: This Excel workbook contains two posters relating to the NPDA 2018-19 annual report. Please select your unit from the dropdown below to view your posters:
A10: Your posters:
A11: ◊ UNIT RESULTS poster Click on the 'UNITS RESULTS' sheet to view. This poster shows summary results for HbA1c and key health check completion for your unit.
A12: ◊ FEEDBACK poster Click on the 'FEEDBACK' sheet to view and add comments. This poster has been designed to be displayed alongside your unit results poster, giving you an opportunity to let patients and families know how you're acting on your results as a unit. You can type directly onto this Excel sheet in the pale blue space before saving, or you can save, print and add your comments by hand.
A14: Saving your posters:
A15: Once you have viewed your posters and added any comments to your FEEDBACK poster, click on the 'Instructions' sheet to return to this page. Then, click the buttons below to save your posters.
A19: You can share these posters with your patients and families via email or in your waiting areas. Both posters have been sized for print in A3.
A54: View:

Sheet UNIT RESULTS
B4: Our diabetes care
B5: 2020-21
B6: =""&'Unit list'!C1&" takes part in the National Paediatric Diabetes Audit (NPDA). The NPDA monitors the care provided by paediatric diabetes clinics in England and Wales to children and young people with diabetes."&"" -> Addenbrooke's Hospital takes part in the National Paediatric Diabetes Audit (NPDA). The NPDA monitors the care provided by paediatric diabetes clinics in England and Wales to children and young people with diabetes.
B7: The National Institute for Health and Care Excellence (NICE) recommends that several health checks should be performed for children and young people with Type 1 diabetes, depending on their age. The NPDA calls some of these 'key' yearly checks because it is important that they happen at least once a year.
B8: ="This poster shows you the percentage of children and young people with Type 1 diabetes - receiving care from "&'Unit list'!C1&" - who completed these key checks in 2020-21. You can also see the average (median) HbA1c level, or average blood glucose level, for children and young people with Type 1 diabetes receiving care from "&'Unit list'!C1&". NICE recommends aiming for an HbA1c level of 48 mmol/mol (6.5%) to reduce the risk of diabetes-related complications. Children and young people with diabetes should have their HbA1c checked at least four times a year." -> This poster shows you the percentage of children and young people with Type 1 diabetes - receiving care from Addenbrooke's Hospital - who completed these key checks in 2020-21. You can also see the average (median) HbA1c level, or average blood glucose level, for children and young people with Type 1 diabetes receiving care from Addenbrooke's Hospital. NICE recommends aiming for an HbA1c level of 48 mmol/mol (6.5%) to reduce the risk of diabetes-related complications. Children and young people with diabetes should have their HbA1c checked at least four times a year.
B9: Regional and national results are included on this poster, so you can see how the clinic you attend compares with the rest of the country.
B10: To find out more about the other aspects of care the NPDA looks at, please visit: www.rcpch.ac.uk/npda
B77: To learn more about the NPDA, compare clinic results, read the privacy notice and understand how your child's data is being used to drive national improvements in diabetes care, please visit www.rcpch.ac.uk/npda or NPDA Results Online - www.npda-results.rcpch.ac.uk

Sheet FEEDBACK
B4: Our diabetes care
B5: What are we doing in response to our NPDA results?
B58: How can you help make sure your child gets their checks?
B59: • Ask the diabetes team about your child's completion of the key health checks as part of an annual assessment. Finding any problems early can reduce the risk of further complications later. If your child misses any key health checks at annual review, discuss this with your diabetes team at their next appointment. • Make sure to attend all booked appointments. If you can no longer attend, make sure to let your team know in advance so another appointment can be arranged.
B60: To learn more about the NPDA, compare clinic results, read the privacy notice and understand how your child's data is being used to drive national improvements in diabetes care, please visit www.rcpch.ac.uk/npda or NPDA Results Online - www.npda-results.rcpch.ac.uk

Sheet Unit list (hidden)
A1: ="*"&B1&"*" -> *PZ041* | B1: =VLOOKUP(B2,A4:B178,2,0) -> PZ041 | C1: =VLOOKUP($B$1,$B$4:$D$178,2,0) -> Addenbrooke's Hospital | D1: =VLOOKUP($B$1,$B$4:$D$178,3,0) -> East of England | E1: ="Units in "&D1 -> Units in East of England | H1: HbA1c | K1: Region
B2: 1 | H2: 2020-21 | I2: =VLOOKUP(B1,'HbA1c-2021'!$A$1:$S$189,9,FALSE) -> 59 mmol/mol (7.5%) | J2: 2020-21 | K2: =VLOOKUP('Unit list'!D1,'HbA1c-2021'!$C$174:$I$189,7, FALSE) -> 61 mmol/mol (7.7%)
B3: Unit code | C3: Unit name | D3: Region | H3: 2019-20 | I3: =VLOOKUP(B1,'HbA1c-1920'!$A$1:$S$189,9,FALSE) ->  | J3: 2019-20 | K3: =VLOOKUP(D1,'HbA1c-1920'!$C$169:$I$189,7,FALSE) -> 62 mmol/mol (7.8%)
A4: 1 | B4: PZ041 | C4: Addenbrooke's Hospital | D4: East of England
A5: 2 | B5: PZ047 | C5: Airedale General Hospital, Keighley | D5: Yorkshire and Humber
A6: 3 | B6: PZ074 | C6: Alder Hey Childrens Hospital | D6: North West
A7: 4 | B7: PZ073 | C7: Alexandra Hospital | D7: West Midlands
A8: 5 | B8: PZ170 | C8: Arrowe Park Hospital | D8: North West
A9: 6 | B9: PZ012 | C9: Barnet General Hospital | D9: London and South East
A10: 7 | B10: PZ149 | C10: Barnsley Hospital | D10: Yorkshire and Humber
A11: 8 | B11: PZ019 | C11: Basildon University Hospital | D11: East of England
A12: 9 | B12: PZ159 | C12: Basingstoke and North Hampshire Hospital | D12: South Central
A13: 10 | B13: PZ016 | C13: Bassetlaw District General Hospital | D13: Yorkshire and Humber
A14: 11 | B14: PZ220 | C14: Bedford Hospital | D14: East of England
A15: 12 | B15: PZ232 | C15: BHR University Hospitals NHS Trust | D15: London and South East
A16: 13 | B16: PZ108 | C16: Birmingham Children's Hospital | D16: West Midlands
A17: 14 | B17: PZ040 | C17: Birmingham Heartlands Hospital | D17: West Midlands
A18: 15 | B18: PZ160 | C18: Bishop Auckland Hospital | D18: North East and North Cumbria
A19: 16 | B19: PZ139 | C19: Bristol Royal Hospital for Children | D19: South West
A20: 17 | B20: PZ171 | C20: Broomfield Hospital | D20: East of England
A21: 18 | B21: PZ186 | C21: Calderdale & Huddersfield NHS Foundation Trust | D21: Yorkshire and Humber
A22: 19 | B22: PZ136 | C22: Central Manchester University Hospitals NHS Foundation Trust | D22: North West
A23: 20 | B23: PZ014 | C23: Chase Farm Hospital | D23: London and South East
A24: 21 | B24: PZ130 | C24: Chelsea and Westminster Hospital | D24: London and South East
A25: 22 | B25: PZ064 | C25: Chesterfield Royal Hospital | D25: East Midlands
A26: 23 | B26: PZ097 | C26: City Hospital, Birmingham | D26: West Midlands
A27: 24 | B27: PZ076 | C27: Colchester General Hospital | D27: East of England
A28: 25 | B28: PZ179 | C28: Countess of Chester Hospital NHS Trust | D28: North West
A29: 26 | B29: PZ065 | C29: County Hospital Stafford | D29: West Midlands
A30: 27 | B30: PZ062 | C30: Croydon University Hospital | D30: London and South East
A31: 28 | B31: PZ150 | C31: Cumberland Infirmary | D31: North East and North Cumbria
A32: 29 | B32: PZ119 | C32: Darent Valley Hospital, Dartford | D32: London and South East
A33: 30 | B33: PZ161 | C33: Darlington Memorial Hospital | D33: North East and North Cumbria
A34: 31 | B34: PZ005 | C34: Derbyshire Children's Hospital | D34: East Midlands
A35: 32 | B35: PZ096 | C35: Derriford Hospital | D35: South West
A36: 33 | B36: PZ226 | C36: Dewsbury & District Hospital | D36: Yorkshire and Humber
A37: 34 | B37: PZ020 | C37: Diana, Princess of Wales Hospital, Grimsby | D37: Yorkshire and Humber
A38: 35 | B38: PZ006 | C38: Doncaster Royal Infirmary | D38: Yorkshire and Humber
A39: 36 | B39: PZ017 | C39: Dorset County Hospital | D39: South Central
A40: 37 | B40: PZ191 | C40: Ealing Hospital | D40: London and South East
A41: 38 | B41: PZ099 | C41: East and North Hertfordshire NHS Trust | D41: East of England
A42: 39 | B42: PZ024 | C42: East Kent Hospitals University NHS Foundation Trust | D42: London and South East
A43: 40 | B43: PZ213 | C43: East Surrey Hospital | D43: London and South East
A44: 41 | B44: PZ230 | C44: East Sussex Healthcare NHS Trust/Conquest Hospital | D44: London and South East
A45: 42 | B45: PZ050 | C45: Epsom & St Helier University Hospitals NHS Trust | D45: London and South East
A46: 43 | B46: PZ082 | C46: Evelina Childrens Hospital | D46: London and South East
A47: 44 | B47: PZ027 | C47: Friarage Hospital | D47: North East and North Cumbria
A48: 45 | B48: PZ218 | C48: Frimley Park Hospital | D48: London and South East
A49: 46 | B49: PZ121 | C49: George Eliot Hospital | D49: West Midlands
A50: 47 | B50: PZ011 | C50: Glan Clwyd District General Hospital | D50: Wales
A51: 48 | B51: PZ242 | C51: Gloucestershire Royal Hospital | D51: South West
A52: 49 | B52: PZ144 | C52: Good Hope Hospital, Sutton Coldfield | D52: West Midlands
A53: 50 | B53: PZ168 | C53: Grantham and District Hospital | D53: East Midlands
A54: 51 | B54: PZ196 | C54: Great Ormond Street Hospital | D54: London and South East
A55: 52 | B55: PZ221 | C55: Great Western Hospital | D55: South West
A56: 53 | B56: PZ129 | C56: Harrogate District Hospital | D56: Yorkshire and Humber
A57: 54 | B57: PZ111 | C57: Hereford County Hospital | D57: West Midlands
A58: 55 | B58: PZ086 | C58: Hinchingbrooke Hospital | D58: East of England
A59: 56 | B59: PZ026 | C59: Hull Royal Infirmary | D59: Yorkshire and Humber
A60: 57 | B60: PZ244 | C60: Hywel Dda University Health Board | D60: Wales
A61: 58 | B61: PZ181 | C61: Ipswich Hospital | D61: East of England
A62: 59 | B62: PZ133 | C62: James Cook University Hospital | D62: North East and North Cumbria
A63: 60 | B63: PZ127 | C63: James Paget Hospital | D63: East of England
A64: 61 | B64: PZ007 | C64: John Radcliffe Hospital | D64: South Central
A65: 62 | B65: PZ174 | C65: Kettering General Hospital | D65: East Midlands
A66: 63 | B66: PZ084 | C66: Kidderminster Hospital | D66: West Midlands
A67: 64 | B67: PZ215 | C67: Kings College Hospital, London | D67: London and South East
A68: 65 | B68: PZ180 | C68: Kings Mill Hospital | D68: East Midlands
A69: 66 | B69: PZ057 | C69: Kingston Hospital | D69: London and South East
A70: 67 | B70: PZ101 | C70: Leeds Childrens' Hospital | D70: Yorkshire and Humber
A71: 68 | B71: PZ055 | C71: Leicester Royal Infirmary | D71: East Midlands
A72: 69 | B72: PZ030 | C72: Leighton Hospital | D72: North West
A73: 70 | B73: PZ048 | C73: Lincoln County Hospital | D73: East Midlands
A74: 71 | B74: PZ010 | C74: Luton and Dunstable Hospital | D74: East of England
A75: 72 | B75: PZ009 | C75: Macclesfield District General Hospital | D75: North West
A76: 73 | B76: PZ125 | C76: Maidstone Hospital | D76: London and South East
A77: 74 | B77: PZ178 | C77: Manor Hospital, Walsall | D77: West Midlands
A78: 75 | B78: PZ126 | C78: Medway Maritime Hospital | D78: London and South East
A79: 76 | B79: PZ145 | C79: Milton Keynes Hospital | D79: South Central
A80: 77 | B80: PZ001 | C80: Morriston Hospital | D80: Wales
A81: 78 | B81: PZ137 | C81: Musgrove Park Hospital | D81: South West
A82: 79 | B82: PZ193 | C82: Neath Port Talbot Hospital | D82: Wales
A83: 80 | B83: PZ222 | C83: New Cross Hospital, Wolverhampton | D83: West Midlands
A84: 81 | B84: PZ058 | C84: Newham University Hospital | D84: London and South East
A85: 82 | B85: PZ002 | C85: Norfolk and Norwich University Hospital | D85: East of England
A86: 83 | B86: PZ100 | C86: North Devon District Hospital | D86: South West
A87: 84 | B87: PZ199 | C87: North Middlesex University Hospital | D87: London and South East
A88: 85 | B88: PZ120 | C88: North Tyneside General Hospital | D88: North East and North Cumbria
A89: 86 | B89: PZ004 | C89: Northampton General Hospital | D89: East Midlands
A90: 87 | B90: PZ089 | C90: Northwick Park Hospital | D90: London and South East
A91: 88 | B91: PZ042 | C91: Nottingham Children's Hospital | D91: East Midlands
A92: 89 | B92: PZ110 | C92: Ormskirk & District General Hospital | D92: North West
A93: 90 | B93: PZ131 | C93: Peterborough City Hospital | D93: East of England
A94: 91 | B94: PZ128 | C94: Pilgrim Hospital | D94: East Midlands
A95: 92 | B95: PZ003 | C95: Pinderfields General Hospital and Pontefract General Infirmary | D95: Yorkshire and Humber
A96: 93 | B96: PZ054 | C96: Poole General Hospital | D96: South Central
A97: 94 | B97: PZ228 | C97: Prince Charles Hospital | D97: Wales
A98: 95 | B98: PZ200 | C98: Princess Alexandra Hospital, Harlow (inc Rectory Lane Health Center, Essex) | D98: East of England
A99: 96 | B99: PZ092 | C99: Princess of Wales Hospital, Bridgend | D99: Wales
A100: 97 | B100: PZ094 | C100: Princess Royal Hospital | D100: West Midlands
A101: 98 | B101: PZ085 | C101: Princess Royal University Hospital | D101: London and South East
A102: 99 | B102: PZ238 | C102: Queen Alexandra Hospital, Portsmouth | D102: South Central
A103: 100 | B103: PZ107 | C103: Queen Elizabeth Hospital, Gateshead | D103: North East and North Cumbria
A104: 101 | B104: PZ156 | C104: Queen Elizabeth Hospital, Kings Lynn | D104: East of England
A105: 102 | B105: PZ151 | C105: Queen Elizabeth Hospital, Woolwich | D105: London and South East
A106: 103 | B106: PZ033 | C106: Queens Hospital, Burton on Trent | D106: West Midlands
A107: 104 | B107: PZ164 | C107: Rotherham Hospital | D107: Yorkshire and Humber
A108: 105 | B108: PZ104 | C108: Royal Albert Edward Infirmary | D108: North West
A109: 106 | B109: PZ135 | C109: Royal Alexandra Hospital, Brighton | D109: London and South East
A110: 107 | B110: PZ035 | C110: Royal Berkshire Hospital | D110: South Central
A111: 108 | B111: PZ091 | C111: Royal Blackburn Hospital | D111: North West
A112: 109 | B112: PZ177 | C112: Royal Bolton Hospital | D112: North West
A113: 110 | B113: PZ067 | C113: Royal Cornwall Hospital | D113: South West
A114: 111 | B114: PZ060 | C114: Royal Devon and Exeter Hospital | D114: South West
A115: 112 | B115: PZ157 | C115: Royal Free Hospital | D115: London and South East
A116: 113 | B116: PZ189 | C116: Royal Glamorgan Hospital | D116: Wales
A117: 114 | B117: PZ034 | C117: Royal Hampshire County Hospital | D117: South Central
A118: 115 | B118: PZ183 | C118: Royal Preston Hospital | D118: North West
A119: 116 | B119: PZ078 | C119: Royal Stoke University Hospital | D119: West Midlands
A120: 117 | B120: PZ088 | C120: Royal Surrey County Hospital | D120: London and South East
A121: 118 | B121: PZ068 | C121: Royal United Hospital | D121: South West
A122: 119 | B122: PZ032 | C122: Royal Victoria Infirmary, Newcastle Upon Tyne | D122: North East and North Cumbria
A123: 120 | B123: PZ240 | C123: Russells Hall Hospital | D123: West Midlands
A124: 121 | B124: PZ231 | C124: Salford Royal Foundation Trust | D124: North West
A125: 122 | B125: PZ169 | C125: Salisbury District Hospital | D125: South Central
A126: 123 | B126: PZ223 | C126: Sandwell General Hospital | D126: West Midlands
A127: 124 | B127: PZ112 | C127: Scarborough General Hospital | D127: Yorkshire and Humber
A128: 125 | B128: PZ053 | C128: Scunthorpe General Hospital | D128: Yorkshire and Humber
A129: 126 | B129: PZ219 | C129: Sheffield Childrens Hospital | D129: Yorkshire and Humber
A130: 127 | B130: PZ141 | C130: South Tyneside District Hospital | D130: North East and North Cumbria
A131: 128 | B131: PZ109 | C131: Southampton Children’s Hospital | D131: South Central
A132: 129 | B132: PZ146 | C132: Southend University Hospital | D132: East of England
A133: 130 | B133: PZ023 | C133: St George's Hospital, London | D133: London and South East
A134: 131 | B134: PZ105 | C134: St Luke's Hospital | D134: Yorkshire and Humber
A135: 132 | B135: PZ202 | C135: St Marys Hospital, Imperial College, London | D135: London and South East
A136: 133 | B136: PZ075 | C136: St Mary's Hospital, Isle of Wight | D136: South Central
A137: 134 | B137: PZ176 | C137: St Peter's Hospital | D137: London and South East
A138: 135 | B138: PZ031 | C138: St Richard's Hospital | D138: South Central
A139: 136 | B139: PZ069 | C139: Stepping Hill Hospital | D139: North West
A140: 137 | B140: PZ028 | C140: Stoke Mandeville Hospital | D140: South Central
A141: 138 | B141: PZ080 | C141: Sunderland Royal Hospital | D141: North East and North Cumbria
A142: 139 | B142: PZ140 | C142: Tameside General Hospital | D142: North West
A143: 140 | B143: PZ245 | C143: The Grange University Hospital | D143: Wales
A144: 141 | B144: PZ102 | C144: The Hillingdon Hospital | D144: London and South East
A145: 142 | B145: PZ206 | C145: The Pennine Acute Hospitals NHS Trust | D145: North West
A146: 143 | B146: PZ059 | C146: The Royal London Hospital | D146: London and South East
A147: 144 | B147: PZ114 | C147: The York Hospital | D147: Yorkshire and Humber
A148: 145 | B148: PZ152 | C148: Torbay Hospital | D148: South West
A149: 146 | B149: PZ216 | C149: Tunbridge Wells Hospital | D149: London and South East
A150: 147 | B150: PZ203 | C150: University College London Hospital | D150: London and South East
A151: 148 | B151: PZ118 | C151: University Hospital Lewisham | D151: London and South East
A152: 149 | B152: PZ162 | C152: University Hospital of North Durham | D152: North East and North Cumbria
A153: 150 | B153: PZ163 | C153: University Hospital of North Tees and University Hospital of Hartlepool | D153: North East and North Cumbria
A154: 151 | B154: PZ113 | C154: University Hospital of Wales | D154: Wales
A155: 152 | B155: PZ122 | C155: University Hospital, Coventry | D155: West Midlands
A156: 153 | B156: PZ167 | C156: University Hospitals of Morecambe Bay NHS Foundation Trust | D156: North West
A157: 154 | B157: PZ106 | C157: Victoria Hospital, Blackpool | D157: North West
A158: 155 | B158: PZ049 | C158: Warrington Hospital | D158: North West
A159: 156 | B159: PZ138 | C159: Warwick Hospital | D159: West Midlands
A160: 157 | B160: PZ022 | C160: West Cumberland Hospital | D160: North East and North Cumbria
A161: 158 | B161: PZ172 | C161: West Hertfordshire Hospitals NHS Trust | D161: East of England
A162: 159 | B162: PZ182 | C162: West Middlesex University Hospital | D162: London and South East
A163: 160 | B163: PZ072 | C163: West Suffolk Hospital, Bury St Edmunds | D163: East of England
A164: 161 | B164: PZ021 | C164: Wexham Park Hospital | D164: South Central
A165: 162 | B165: PZ036 | C165: Whipps Cross University Hospital | D165: London and South East
A166: 163 | B166: PZ153 | C166: Whiston Hospital | D166: North West
A167: 164 | B167: PZ045 | C167: Whittington Hospital, London | D167: London and South East
A168: 165 | B168: PZ225 | C168: Worcestershire Royal Hospital | D168: West Midlands
A169: 166 | B169: PZ018 | C169: Worthing Hospital | D169: South Central
A170: 167 | B170: PZ187 | C170: Wrexham Maelor Hospital | D170: Wales
A171: 168 | B171: PZ038 | C171: Wycombe General Hospital | D171: South Central
A172: 169 | B172: PZ015 | C172: Wythenshawe Hospital | D172: North West
A173: 170 | B173: PZ173 | C173: Yeovil District Hospital | D173: South West
A174: 171 | B174: PZ132 | C174: Ysbyty Gwynedd Hospital | D174: Wales
A175: 172 | B175: PZ038 | C175: Wycombe General Hospital | D175: South Central
A176: 173 | B176: PZ015 | C176: Wythenshawe Hospital | D176: North West
A177: 174 | B177: PZ173 | C177: Yeovil District Hospital | D177: South West
A178: 175 | B178: PZ132 | C178: Ysbyty Gwynedd | D178: Wales

Sheet Chart data (hidden)
A1: Link to data | I1: Graph data
A3: Radar plot | D3: =""&'Unit list'!$B$1&" - 2018/19" -> PZ041 - 2018/19
D4: ='Unit list'!$B$1 -> PZ041 | E4: ='Unit list'!$D$1 -> East of England | F4: England and Wales | G4: =""&'Unit list'!$B$1&" - 2017/18" -> PZ041 - 2017/18 | H4: Goal target
A5: 5 | C5: HbA1c health check (%) | D5: =D78 -> 0.8687782805 | E5: =E78 -> 0.8990548204 | F5: =F78 -> 0.9055845555 | G5: =IF(VLOOKUP(D$77,'Health checks 1718'!$A$3:$N$187,$A5,0)="*","<5",VLOOKUP(D$77,'Health checks 1718'!$A$3:$N$187,$A5,0)) -> 0.9367088608 | H5: 1
A6: 9 | C6: Unadjusted HbA1c <58 mmol/mol (%) | D6: =D122 -> 0.4365482234 | E6: =E122 -> 0.3730291848 | F6: =F122 -> 0.359506429 | G6: =VLOOKUP(D4,'HbA1c-1718'!A3:T175,A6,FALSE) -> 59 mmol/mol (7.5%) | H6: 1
A7: 14 | C7: Unadjusted HbA1c <80 mmol/mol (%) | D7: =VLOOKUP(D4,'HbA1c-1819'!A1:T177,'Chart data'!A7,0) -> 0.2121212121 | E7: =1-E125 -> 0.5182824556 | F7: =1-F125 -> 0.5004261311 | G7: =(VLOOKUP(D4,'HbA1c-1718'!A3:T175,A7,FALSE)) -> 0.2154471545 | H7: 1
A8: 14 | C8: Health check completion rate* (aged 12+) | D8: =IF(VLOOKUP(D$77,'Health checks'!$A$3:$N$187,$A8,0)="*",#N/A,VLOOKUP(D$77,'Health checks'!$A$3:$N$187,$A8,0)) -> 0.4889705777 | E8: =VLOOKUP(E$77,'Health checks'!$C$174:$N$189,$A8-2,0) -> 0.7376666665 | F8: =VLOOKUP(F$77,'Health checks'!$C$176:$N$189,$A8-2,0) -> 0.7015107274 | G8: =IF(VLOOKUP(D$77,'Health checks 1718'!$A$3:$N$187,$A8,0)="*","<5",VLOOKUP(D$77,'Health checks 1718'!$A$3:$N$187,$A8,0)) -> 0.7978836 | H8: 1
A9: 12 | C9: Foot exam health check (aged 12+) (%) | D9: =D84 -> 0.4926470588 | E9: =E84 -> 0.3981841764 | F9: =F84 -> 0.570696934 | G9: =IF(VLOOKUP(D$77,'Health checks 1718'!$A$3:$N$187,$A9,0)="*","<5",VLOOKUP(D$77,'Health checks 1718'!$A$3:$N$187,$A9,0)) -> 0.6814814815 | H9: 1
A10: 11 | C10: Eye screen health check (aged 12+) (%) | D10: =D83 -> 0.3014705882 | E10: =E83 -> 0.2308690013 | F10: =F83 -> 0.2432694304 | G10: =IF(VLOOKUP(D$77,'Health checks 1718'!$A$3:$N$187,$A10,0)="*","<5",VLOOKUP(D$77,'Health checks 1718'!$A$3:$N$187,$A10,0)) -> 0.762962963 | H10: 1
A11: 10 | C11: Albuminuria health check (aged 12+) (%) | D11: =D82 -> 0.08823529412 | E11: =E82 -> 0.509079118 | F11: =F82 -> 0.6435739498 | G11: =IF(VLOOKUP(D$77,'Health checks 1718'!$A$3:$N$187,$A11,0)="*","<5",VLOOKUP(D$77,'Health checks 1718'!$A$3:$N$187,$A11,0)) -> 0.6074074074 | H11: 1
A12: 9 | C12: BP health check (aged 12+) (%) | D12: =D81 -> 0.6617647059 | E12: =E81 -> 0.5823605707 | F12: =F81 -> 0.7037165202 | G12: =IF(VLOOKUP(D$77,'Health checks 1718'!$A$3:$N$187,$A12,0)="*","<5",VLOOKUP(D$77,'Health checks 1718'!$A$3:$N$187,$A12,0)) -> 0.8962962963 | H12: 1
A13: 7 | C13: BMI health check (%) | D13: =D79 -> 0.7918552036 | E13: 0.6843100189 | F13: 0.7864777529 | G13: =IF(VLOOKUP(D$77,'Health checks 1718'!$A$3:$N$187,$A13,0)="*","<5",VLOOKUP(D$77,'Health checks 1718'!$A$3:$N$187,$A13,0)) -> 0.9367088608 | H13: 1
A14: 6 | C14: Thyroid health check (%) | D14: 0.1447963801 | E14: 0.57731569 | F14: 0.7790620598 | G14: =IF(VLOOKUP(D$77,'Health checks 1718'!$A$3:$N$187,$A14,0)="*","<5",VLOOKUP(D$77,'Health checks 1718'!$A$3:$N$187,$A14,0)) -> 0.8438818565 | H14: 1
D16: =IF(D10<(E10-0.02),"the proportion of children and young people recorded as receiving an eye screen in your unit is lower than the overall regional result.",IF(D10>(E10+0.02),"the proportion of CYP recorded as receiving an eye screen in your unit is higher than the overall regional result.","the proportion of CYP recorded as receiving an eye screen in your unit is similar to the overall regional result.")) -> the proportion of CYP recorded as receiving an eye screen in your unit is higher than the overall regional result.
A19: Radar plot - additional health checks | D19: =D4 -> PZ041 | E19: =E4 -> East of England | F19: =F4 -> England and Wales | G19: Goal target
C20: 4+ HbA1c measurements (%) | D20: =D86 -> 0.05429864253 | E20: =E86 ->  | F20: =F86 -> 0.1490595741 | G20: 1
C21: Assessed for need of psychological support (%) | D21: =D91 ->  | G21: 1
C22: Flu vaccine recommended (%) | G22: 1
C23: 'Sick day rules' advice (%) | G23: 1
C24: Blood ketone testing training (%) | G24: 1
C25: Smoking status recorded (%) | G25: 1
A37: Characteristics
C38: Number in audit | D38: =VLOOKUP('Unit list'!$B$1,#REF!,4,0) ->  | E38: =IF(D38=0,0,IF(D38<5,"less than 5",D38)) -> 
A40: Age
D41: ='Unit list'!$B$1 -> PZ041 | E41: ='Unit list'!$D$1 -> East of England | F41: England and Wales
A42: 5 | C42: 0-4 years | D42: =IF(VLOOKUP(D$41,#REF!,A42,0)="*","< 5",VLOOKUP(D$41,#REF!,A42,0)) ->  | E42: =IF(VLOOKUP(E$41,#REF!,$A42-2,0)="*","< 5",VLOOKUP(E$41,#REF!,$A42-2,0)) ->  | F42: =VLOOKUP(F$41,#REF!,$A42-2,0) -> 
A43: 6 | C43: 5-9 years | D43: =IF(VLOOKUP(D$41,#REF!,A43,0)="*","< 5",VLOOKUP(D$41,#REF!,A43,0)) ->  | E43: =IF(VLOOKUP(E$41,#REF!,$A43-2,0)="*","< 5",VLOOKUP(E$41,#REF!,$A43-2,0)) ->  | F43: =VLOOKUP(F$41,#REF!,$A43-2,0) -> 
A44: 7 | C44: 10-14 years | D44: =IF(VLOOKUP(D$41,#REF!,A44,0)="*","< 5",VLOOKUP(D$41,#REF!,A44,0)) ->  | E44: =IF(VLOOKUP(E$41,#REF!,$A44-2,0)="*","< 5",VLOOKUP(E$41,#REF!,$A44-2,0)) ->  | F44: =VLOOKUP(F$41,#REF!,$A44-2,0) -> 
A45: 8 | C45: 15-19 years | D45: =IF(VLOOKUP(D$41,#REF!,A45,0)="*","< 5",VLOOKUP(D$41,#REF!,A45,0)) ->  | E45: =IF(VLOOKUP(E$41,#REF!,$A45-2,0)="*","< 5",VLOOKUP(E$41,#REF!,$A45-2,0)) ->  | F45: =VLOOKUP(F$41,#REF!,$A45-2,0) -> 
A48: Ethnicity
D49: ='Unit list'!$B$1 -> PZ041 | E49: ='Unit list'!$D$1 -> East of England | F49: England and Wales
A50: 9 | C50: White | D50: =IF(VLOOKUP(D$41,#REF!,A50,0)="*","< 5",VLOOKUP(D$41,#REF!,A50,0)) ->  | E50: =IF(VLOOKUP(E$41,#REF!,A50-2,0)="*","< 5",VLOOKUP(E$41,#REF!,A50-2,0)) ->  | F50: =VLOOKUP(F$41,#REF!,$A50-2,0) -> 
A51: 10 | C51: Asian | D51: =IF(VLOOKUP(D$41,#REF!,A51,0)="*","< 5",VLOOKUP(D$41,#REF!,A51,0)) ->  | E51: =IF(VLOOKUP(E$41,#REF!,A51-2,0)="*","< 5",VLOOKUP(E$41,#REF!,A51-2,0)) ->  | F51: =VLOOKUP(F$41,#REF!,$A51-2,0) -> 
A52: 11 | C52: Black | D52: =IF(VLOOKUP(D$41,#REF!,A52,0)="*","< 5",VLOOKUP(D$41,#REF!,A52,0)) ->  | E52: =IF(VLOOKUP(E$41,#REF!,A52-2,0)="*","< 5",VLOOKUP(E$41,#REF!,A52-2,0)) ->  | F52: =VLOOKUP(F$41,#REF!,$A52-2,0) -> 
A53: 12 | C53: Mixed | D53: =IF(VLOOKUP(D$41,#REF!,A53,0)="*","< 5",VLOOKUP(D$41,#REF!,A53,0)) ->  | E53: =IF(VLOOKUP(E$41,#REF!,A53-2,0)="*","< 5",VLOOKUP(E$41,#REF!,A53-2,0)) ->  | F53: =VLOOKUP(F$41,#REF!,$A53-2,0) -> 
A54: 13 | C54: Other | D54: =IF(VLOOKUP(D$41,#REF!,A54,0)="*","< 5",VLOOKUP(D$41,#REF!,A54,0)) ->  | E54: =IF(VLOOKUP(E$41,#REF!,A54-2,0)="*","< 5",VLOOKUP(E$41,#REF!,A54-2,0)) ->  | F54: =VLOOKUP(F$41,#REF!,$A54-2,0) -> 
A55: 14 | C55: Not stated Unknown | D55: =IF(VLOOKUP(D$41,#REF!,A55,0)="*","< 5",VLOOKUP(D$41,#REF!,A55,0)) ->  | E55: =IF(VLOOKUP(E$41,#REF!,A55-2,0)="*","< 5",VLOOKUP(E$41,#REF!,A55-2,0)) ->  | F55: =VLOOKUP(F$41,#REF!,$A55-2,0) -> 
A59: Diabetes type | D59: ='Unit list'!$B$1 -> PZ041 | E59: ='Unit list'!$D$1 -> East of England | F59: England and Wales
A60: 15 | C60: Type 1 | D60: =IF(VLOOKUP(D$41,#REF!,A60,0)="*","< 5",VLOOKUP(D$41,#REF!,A60,0)) ->  | E60: =VLOOKUP(E$59,#REF!,$A60-2,0) ->  | F60: =VLOOKUP(F$59,#REF!,$A60-2,0) -> 
A61: 16 | C61: Type 2 | D61: =IF(VLOOKUP(D$41,#REF!,A61,0)="*","< 5",VLOOKUP(D$41,#REF!,A61,0)) ->  | E61: =VLOOKUP(E$59,#REF!,$A61-2,0) ->  | F61: =VLOOKUP(F$59,#REF!,$A61-2,0) -> 
A62: 17 | C62: Other* | D62: =IF(VLOOKUP(D$41,#REF!,A62,0)="*","< 5",VLOOKUP(D$41,#REF!,A62,0)) ->  | E62: =VLOOKUP(E$59,#REF!,$A62-2,0) ->  | F62: =VLOOKUP(F$59,#REF!,$A62-2,0) -> 
A64: Deprivation | D64: ='Unit list'!$B$1 -> PZ041 | E64: ='Unit list'!$D$1 -> East of England | F64: England and Wales | J64: =IFERROR(D64,"<5") -> PZ041 | K64: =IFERROR(E64,"<5") -> East of England | L64: =IFERROR(F64,"<5") -> England and Wales
A65: 18 | C65: Most deprived | D65: =IF(VLOOKUP(D$64,#REF!,A65,0)="*","< 5",VLOOKUP(D$64,#REF!,A65,0)) ->  | E65: =VLOOKUP(E$59,#REF!,$A65-2,0) ->  | F65: =VLOOKUP(F$59,#REF!,$A65-2,0) ->  | I65: =C65 -> Most deprived | J65: =IFERROR(D65,"< 5") -> < 5 | K65: < 5 | L65: < 5
A66: 19 | C66: Second most deprived | D66: =IF(VLOOKUP(D$64,#REF!,A66,0)="*","< 5",VLOOKUP(D$64,#REF!,A66,0)) ->  | E66: =VLOOKUP(E$59,#REF!,$A66-2,0) ->  | F66: =VLOOKUP(F$59,#REF!,$A66-2,0) ->  | I66: =C66 -> Second most deprived | J66: < 5 | K66: < 5 | L66: < 5
A67: 20 | C67: Third least deprived | D67: =IF(VLOOKUP(D$64,#REF!,A67,0)="*","< 5",VLOOKUP(D$64,#REF!,A67,0)) ->  | E67: =VLOOKUP(E$59,#REF!,$A67-2,0) ->  | F67: =VLOOKUP(F$59,#REF!,$A67-2,0) ->  | I67: =C67 -> Third least deprived | J67: < 5 | K67: < 5 | L67: < 5
A68: 21 | C68: Second least deprived | D68: =IF(VLOOKUP(D$64,#REF!,A68,0)="*","< 5",VLOOKUP(D$64,#REF!,A68,0)) ->  | E68: =VLOOKUP(E$59,#REF!,$A68-2,0) ->  | F68: =VLOOKUP(F$59,#REF!,$A68-2,0) ->  | I68: =C68 -> Second least deprived | J68: < 5 | K68: < 5 | L68: < 5
A69: 22 | C69: Least deprived | D69: =IF(VLOOKUP(D$64,#REF!,A69,0)="*","< 5",VLOOKUP(D$64,#REF!,A69,0)) ->  | E69: =VLOOKUP(E$59,#REF!,$A69-2,0) ->  | F69: =VLOOKUP(F$59,#REF!,$A69-2,0) -> 
A72: Care processes
C73: Denominator - All ages | D73: =VLOOKUP($D$77,'Health checks'!$A$3:$H$187,4,0) -> 221 | E73: =IF(D73=0,0,IF(D73<5,"less than 5",D73)) -> 221
C74: Denominator - 12+ | D74: =VLOOKUP($D$77,'Health checks'!$A$3:$H$187,8,0) -> 136 | E74: =IF(D74=0,0,IF(D74<5,"less than 5",D74)) -> 136
D77: ='Unit list'!$B$1 -> PZ041 | E77: ='Unit list'!$D$1 -> East of England | F77: England and Wales | K77: =D77 -> PZ041 | L77: =E77 -> East of England | M77: =F77 -> England and Wales
A78: 5 | C78: HbA1c (all ages) | D78: =IF(VLOOKUP(D$77,'Health checks'!$A$3:$N$189,$A78,0)="*","<5",VLOOKUP(D$77,'Health checks'!$A$3:$N$187,$A78,0)) -> 0.8687782805 | E78: =VLOOKUP(E$77,'Health checks'!$C$174:$N$189,$A78-2,0) -> 0.8990548204 | F78: =VLOOKUP(F$77,'Health checks'!$C$184:$N$189,$A78-2,0) -> 0.9055845555 | I78: All ages | J78: HbA1c | K78: =D78 -> 0.8687782805 | L78: =E78 -> 0.8990548204 | M78: 0.9055845555
A79: 7 | C79: Body mass index (all ages) | D79: =IF(VLOOKUP(D$77,'Health checks'!$A$3:$N$187,$A79,0)="*","<5",VLOOKUP(D$77,'Health checks'!$A$3:$N$187,$A79,0)) -> 0.7918552036 | E79: =VLOOKUP(E$77,'Health checks'!$C$174:$N$189,$A79-2,0) -> 0.6843100189 | F79: =VLOOKUP(F$77,'Health checks'!$C$184:$N$189,$A79-2,0) -> 0.7864777529 | J79: BMI | K79: =D79 -> 0.7918552036 | L79: 0.6843100189 | M79: 0.7864777529
A80: 6 | C80: Thyroid (all ages) | D80: =IF(VLOOKUP(D$77,'Health checks'!$A$3:$N$187,$A80,0)="*","<5",VLOOKUP(D$77,'Health checks'!$A$3:$N$187,$A80,0)) -> 0.1447963801 | E80: =VLOOKUP(E$77,'Health checks'!$C$174:$N$189,$A80-2,0) -> 0.57731569 | F80: =VLOOKUP(F$77,'Health checks'!$C$176:$N$189,$A80-2,0) -> 0.7790620598 | J80: Thyroid | K80: 0.1447963801 | L80: 0.57731569 | M80: 0.7790620598
A81: 9 | C81: Blood pressure (12+) | D81: =IF(VLOOKUP(D$77,'Health checks'!$A$3:$N$187,$A81,0)="*","<5",VLOOKUP(D$77,'Health checks'!$A$3:$N$187,$A81,0)) -> 0.6617647059 | E81: =VLOOKUP(E$77,'Health checks'!$C$174:$N$189,$A81-2,0) -> 0.5823605707 | F81: =VLOOKUP(F$77,'Health checks'!$C$176:$N$189,$A81-2,0) -> 0.7037165202 | I81: Aged 12+ | J81: Blood pressure | K81: 0.6617647059 | L81: 0.5823605707 | M81: 0.7037165202
A82: 10 | C82: Albuminuria (12+) | D82: =IF(VLOOKUP(D$77,'Health checks'!$A$3:$N$187,$A82,0)="*","<5",VLOOKUP(D$77,'Health checks'!$A$3:$N$187,$A82,0)) -> 0.08823529412 | E82: =VLOOKUP(E$77,'Health checks'!$C$174:$N$189,$A82-2,0) -> 0.509079118 | F82: =VLOOKUP(F$77,'Health checks'!$C$176:$N$189,$A82-2,0) -> 0.6435739498 | J82: Albuminuria | K82: 0.08823529412 | L82: 0.509079118 | M82: 0.6435739498
A83: 11 | C83: Eye screening (12+) | D83: =IF(VLOOKUP(D$77,'Health checks'!$A$3:$N$187,$A83,0)="*","<5",VLOOKUP(D$77,'Health checks'!$A$3:$N$187,$A83,0)) -> 0.3014705882 | E83: =VLOOKUP(E$77,'Health checks'!$C$174:$N$189,$A83-2,0) -> 0.2308690013 | F83: =VLOOKUP(F$77,'Health checks'!$C$176:$N$189,$A83-2,0) -> 0.2432694304 | J83: Eye screening | K83: 0.3014705882 | L83: 0.2308690013 | M83: 0.2432694304
A84: 12 | C84: Foot examination (12+) | D84: =IF(VLOOKUP(D$77,'Health checks'!$A$3:$N$187,$A84,0)="*","<5",VLOOKUP(D$77,'Health checks'!$A$3:$N$187,$A84,0)) -> 0.4926470588 | E84: =VLOOKUP(E$77,'Health checks'!$C$174:$N$189,$A84-2,0) -> 0.3981841764 | F84: =VLOOKUP(F$77,'Health checks'!$C$176:$N$189,$A84-2,0) -> 0.570696934 | J84: Foot exam | K84: 0.4926470588 | L84: 0.3981841764 | M84: 0.570696934
A86: 15 | C86: 4+ HbA1c measurements | D86: =IF(VLOOKUP(D$77,'Health checks'!$A$3:$O$187,$A86,0)="*","< 5",VLOOKUP(D$77,'Health checks'!$A$3:$O$187,$A86,0)) -> 0.05429864253 | E86: =VLOOKUP(E$77,'Health checks'!$C$178:$P$189,$A86-2,0) ->  | F86: =VLOOKUP(F$77,'Health checks'!$C$176:$P$189,$A86-2,0) -> 0.1490595741
D88: =D77 -> PZ041 | E88: =E77 -> East of England | F88: =F77 -> England and Wales | K88: =K77 -> PZ041 | L88: =L77 -> East of England | M88: =M77 -> England and Wales
A89: 5 | C89: Offered dietetic appointment | D89: =IF(VLOOKUP(D$88,#REF!,$A89,0)="*","<5",VLOOKUP(D$88,#REF!,$A89,0)) ->  | E89: =VLOOKUP(E$88,#REF!,$A89-2,0) ->  | F89: =VLOOKUP(F$88,#REF!,$A89-2,0) ->  | I89: Dietetic appointment | J89: Appointment offered | K89: =D89 -> 
A90: 6 | C90: Attended dietetic appointment | D90: =IF(VLOOKUP(D$88,#REF!,$A90,0)="*","<5",VLOOKUP(D$88,#REF!,$A90,0)) ->  | E90: =VLOOKUP(E$88,#REF!,$A90-2,0) ->  | F90: =VLOOKUP(F$88,#REF!,$A90-2,0) ->  | J90: Appointment attended
A91: 7 | C91: Assessment for psychological support | D91: =IF(VLOOKUP(D$88,#REF!,$A91,0)="*","<5",VLOOKUP(D$88,#REF!,$A91,0)) ->  | E91: =VLOOKUP(E$88,#REF!,$A91-2,0) ->  | F91: =VLOOKUP(F$88,#REF!,$A91-2,0) ->  | J91: Take-up rate | K91: =IF(K90=0,0,IF(K90="<5",K90,K90/K89)) ->  | L91: =L90/L89 ->  | M91: =M90/M89 -> 
A92: 8 | C92: Flu vaccine recommended | D92: =IF(VLOOKUP(D$88,#REF!,$A92,0)="*","<5",VLOOKUP(D$88,#REF!,$A92,0)) ->  | E92: =VLOOKUP(E$88,#REF!,$A92-2,0) ->  | F92: =VLOOKUP(F$88,#REF!,$A92-2,0) -> 
A93: 9 | C93: 'Sick day rules' advice | D93: =IF(VLOOKUP(D$88,#REF!,$A93,0)="*","<5",VLOOKUP(D$88,#REF!,$A93,0)) ->  | E93: =VLOOKUP(E$88,#REF!,$A93-2,0) ->  | F93: =VLOOKUP(F$88,#REF!,$A93-2,0) ->  | K93: =K77 -> PZ041 | L93: =L77 -> East of England | M93: =M77 -> England and Wales
A94: 10 | C94: Blood ketone testing | D94: =IF(VLOOKUP(D$88,#REF!,$A94,0)="*","<5",VLOOKUP(D$88,#REF!,$A94,0)) ->  | E94: =VLOOKUP(E$88,#REF!,$A94-2,0) ->  | F94: =VLOOKUP(F$88,#REF!,$A94-2,0) ->  | I94: All ages | J94: =C86 -> 4+ HbA1c measurements | K94: =D86 -> 0.05429864253 | L94: =E86 ->  | M94: =F86 -> 0.1490595741
A95: 12 | C95: Smoking status recorded | D95: =IF(VLOOKUP(D$88,#REF!,$A95,0)="*","<5",VLOOKUP(D$88,#REF!,$A95,0)) ->  | E95: =VLOOKUP(E$88,#REF!,$A95-2,0) ->  | F95: =VLOOKUP(F$88,#REF!,$A95-2,0) ->  | J95: =C91 -> Assessment for psychological support | K95: =D91 -> 
J96: =C92 -> Flu vaccine recommended
J97: =C93 -> 'Sick day rules' advice
J98: =C94 -> Blood ketone testing
I99: Aged 12+ | J99: =C95 -> Smoking status recorded
A100: 4 | C100: Denominator- autoimmune screening | D100: =VLOOKUP($D$77,#REF!,A100,0) ->  | E100: =IF(D100=0,0,IF(D100="*","<5","="&D100&"")) -> 
A101: 7 | C101: Denominator- carb counting | D101: =VLOOKUP($D$77,#REF!,A101,0) ->  | E101: =IF(D101=0,0,IF(D101="*","<5","="&D101&"")) -> 
D103: ='Unit list'!$B$1 -> PZ041 | E103: ='Unit list'!$D$1 -> East of England | F103: England and Wales
A104: 5 | C104: Thyroid disease screen | D104: =IF(VLOOKUP($D$77,#REF!,A104,0)="*","< 5",VLOOKUP($D$77,#REF!,A104,0)) ->  | E104: =VLOOKUP(E$77,#REF!,$A104-2,0) ->  | F104: =VLOOKUP(F$77,#REF!,$A104-2,0) -> 
A105: 6 | C105: Coeliac disease screen | D105: =IF(VLOOKUP($D$77,#REF!,A105,0)="*","< 5",VLOOKUP($D$77,#REF!,A105,0)) ->  | E105: =VLOOKUP(E$77,#REF!,$A105-2,0) ->  | F105: =VLOOKUP(F$77,#REF!,$A105-2,0) -> 
A106: 8 | C106: Carb counting | D106: =IF(VLOOKUP($D$77,#REF!,A106,0)="*","< 5",VLOOKUP($D$77,#REF!,A106,0)) ->  | E106: =VLOOKUP(E$77,#REF!,$A106-2,0) ->  | F106: =VLOOKUP(F$77,#REF!,$A106-2,0) -> 
A109: HbA1c
C110: Denominator HbA1c | D110: =VLOOKUP($D$119,'HbA1c-1819'!$A$3:$P$177,4,0) -> 231 | E110: =IF(D110=0,0,IF(D110<5,"less than 5",D110)) -> 231
C111: Denominator Adjusted HbA1c | D111: =VLOOKUP($D$119,'HbA1c-1819'!$A$3:$X$177,14,0) -> 0.2121212121
D112: ='Unit list'!$B$1 -> PZ041 | E112: ='Unit list'!$D$1 -> East of England | F112: England and Wales
C113: 2013/14 | D113: =VLOOKUP(D$112,#REF!,6,0) ->  | E113: =VLOOKUP(E$112,#REF!,4,0) ->  | F113: =VLOOKUP(F$112,#REF!,4,0) -> 
C114: 2014/15 | D114: =VLOOKUP(D$112,#REF!,6,0) ->  | E114: =VLOOKUP(E$112,#REF!,4,0) ->  | F114: =VLOOKUP(F$112,#REF!,4,0) -> 
C115: 2015/16 | D115: =VLOOKUP(D$112,#REF!,6,0) ->  | E115: =VLOOKUP(E$112,#REF!,4,0) ->  | F115: =VLOOKUP(F$112,#REF!,4,0) -> 
C116: 2016/17 | D116: =VLOOKUP(D$112,#REF!,6,0) ->  | E116: =VLOOKUP(E$112,#REF!,4,0) ->  | F116: =VLOOKUP(F$112,#REF!,4,0) -> 
C117: 2017/18 | D117: =VLOOKUP(D$112,'HbA1c-1718'!$A$3:$F$175,6,0) -> 59 | E117: =VLOOKUP(E$112,'HbA1c-1718'!$C$176:$F$187,4,0) -> 63.5 | F117: =VLOOKUP(F$112,'HbA1c-1718'!$C$187:$F$187,4,0) -> 64
C118: 2018/19 | D118: =VLOOKUP(D$112,'HbA1c-1819'!$A$3:$F$177,6,0) -> 60 | E118: =VLOOKUP(E$112,'HbA1c-1819'!$C$178:$F$189,4,0) -> 61.5 | F118: =VLOOKUP(F$112,'HbA1c-1819'!$C$187:$F$189,4,0) -> 62
D119: ='Unit list'!$B$1 -> PZ041 | E119: ='Unit list'!$D$1 -> East of England | F119: England and Wales
A120: 7 | C120: % ≤48 mmol/mol | D120: =IF(VLOOKUP(D$119,'HbA1c-1819'!$A$3:$P$177,$A120,0)="*","<5",VLOOKUP(D$119,'HbA1c-1819'!$A$3:$P$177,$A120,0)) -> 7.639980785 | E120: =VLOOKUP(E$119,'HbA1c-1819'!$C$178:$P$189,$A120-2+3,0) -> 0.1123783965 | F120: =VLOOKUP(F$119,'HbA1c-1819'!$C$176:$P$189,$A120-2,0) -> 7.822980145
A121: 8 | C121: % ≤53 mmol/mol | D121: =IF(VLOOKUP(D$119,'HbA1c-1819'!$A$3:$P$177,$A121,0)="*","<5",VLOOKUP(D$119,'HbA1c-1819'!$A$3:$P$177,$A121+3,0)) -> 0.2424242424 | E121: =VLOOKUP(E$119,'HbA1c-1819'!$C$178:$P$189,$A121-2+3,0) -> 0.2338141563 | F121: =VLOOKUP(F$119,'HbA1c-1819'!$C$176:$P$189,$A121-2+3,0) -> 0.2166598733
A122: 9 | C122: % <58 mmol/mol | D122: =IF(VLOOKUP(D$119,'HbA1c-2021'!$A$3:$P$177,$A122,0)="*","<5",VLOOKUP(D$119,'HbA1c-2021'!$A$3:$P$177,$A122+3,0)) -> 0.4365482234 | E122: =VLOOKUP(E$119,'HbA1c-1819'!$C$178:$P$189,$A122-2+3,0) -> 0.3730291848 | F122: =VLOOKUP(F$119,'HbA1c-1819'!$C$176:$P$189,$A122-2+3,0) -> 0.359506429
A123: 11 | C123: % ≥69 mmol/mol | D123: =IF(VLOOKUP(D$119,'HbA1c-1819'!$A$3:$P$177,$A123,0)="*","<5",VLOOKUP(D$119,'HbA1c-1819'!$A$3:$P$177,$A123,0)) -> 0.2424242424 | E123: =VLOOKUP(E$119,'HbA1c-1819'!$C$178:$P$189,$A123-2,0) -> 0.2338141563 | F123: =VLOOKUP(F$119,'HbA1c-1819'!$C$176:$P$189,$A123-2,0) -> 0.2166598733
A124: 12 | C124: % >75 mmol/mol | D124: =IF(VLOOKUP(D$119,'HbA1c-1819'!$A$3:$P$177,$A124,0)="*","<5",VLOOKUP(D$119,'HbA1c-1819'!$A$3:$P$177,$A124,0)) -> 0.367965368 | E124: =VLOOKUP(E$119,'HbA1c-1819'!$C$178:$P$189,$A124-2,0) -> 0.3730291848 | F124: =VLOOKUP(F$119,'HbA1c-1819'!$C$176:$P$189,$A124-2,0) -> 0.359506429
A125: 13 | C125: % >80 mmol/mol | D125: =IF(VLOOKUP(D$119,'HbA1c-1819'!$A$3:$P$177,$A125,0)="*","<5",VLOOKUP(D$119,'HbA1c-1819'!$A$3:$P$177,$A125,0)) -> 0.5151515152 | E125: =VLOOKUP(E$119,'HbA1c-1819'!$C$178:$P$189,$A125-2,0) -> 0.4817175444 | F125: =VLOOKUP(F$119,'HbA1c-1819'!$C$176:$P$189,$A125-2,0) -> 0.4995738689 | I125: =1-D125 -> 0.4848484848 | J125: =1-E125 -> 0.5182824556 | K125: =1-F125 -> 0.5004261311
B127: <58 mmol/mol | C127: <48 mmol/mol | D127: 48-57 mmol/mol | E127: 58-68 mmol/mol | F127: 69-75 mmol/mol | G127: 76-80 mmol/mol | H127: >80 mmol/mol | I127: >76 mmol/mol | J127: >69 mmol/mol
A128: 2014/15 | B128: =IF(VLOOKUP(D$119,#REF!,7,0)="*",VLOOKUP(D$119,#REF!,9,0),IF(VLOOKUP(D$119,#REF!,9,0)="*",100%-C128-E128-F128-G128-H128,0)) ->  | C128: =IF(VLOOKUP(D$119,#REF!,7,0)="*",0,VLOOKUP(D$119,#REF!,7,0)) ->  | D128: =IF(VLOOKUP(D$119,#REF!,7,0)="*",0,(IF(VLOOKUP(D$119,#REF!,9,0)="*","",VLOOKUP(D$119,#REF!,9,0)))-(IF(VLOOKUP(D$119,#REF!,7,0)="*","",VLOOKUP(D$119,#REF!,7,0)))) ->  | E128: =(1-(IF(VLOOKUP(D$119,#REF!,11,0)="*","<5",VLOOKUP(D$119,#REF!,11,0))))-(IF(VLOOKUP(D$119,#REF!,9,0)="*","<5",VLOOKUP(D$119,#REF!,9,0))) ->  | F128: =(1-(IF(VLOOKUP(D$119,#REF!,12,0)="*","<5",VLOOKUP(D$119,#REF!,12,0))))-(1-(IF(VLOOKUP(D$119,#REF!,11,0)="*","<5",VLOOKUP(D$119,#REF!,11,0)))) ->  | G128: =(1-(IF(VLOOKUP(D$119,#REF!,13,0)="*","<5",VLOOKUP(D$119,#REF!,13,0))))-(1-(IF(VLOOKUP(D$119,#REF!,12,0)="*","<5",VLOOKUP(D$119,#REF!,12,0)))) ->  | H128: =IF(VLOOKUP(D$119,#REF!,13,0)="*",0,VLOOKUP(D$119,#REF!,13,0)) ->  | I128: =IF(VLOOKUP(D$119,#REF!,13,0)="*",100%-B128-C128-D128-E128-F128,0) ->  | J128: =IF(VLOOKUP(D$119,#REF!,12,0)="*",VLOOKUP(D$119,#REF!,11,0),0) -> 
A129: 2015/16 | B129: =IF(VLOOKUP(D$119,#REF!,7,0)="*",VLOOKUP(D$119,#REF!,9,0),IF(VLOOKUP(D$119,#REF!,9,0)="*",100%-C129-E129-F129-G129-H129,0)) ->  | C129: =IF(VLOOKUP(D$119,#REF!,7,0)="*",0,VLOOKUP(D$119,#REF!,7,0)) ->  | D129: =IF(VLOOKUP(D$119,#REF!,7,0)="*",0,(IF(VLOOKUP(D$119,#REF!,9,0)="*","",VLOOKUP(D$119,#REF!,9,0)))-(IF(VLOOKUP(D$119,#REF!,7,0)="*","",VLOOKUP(D$119,#REF!,7,0)))) ->  | E129: =(1-(IF(VLOOKUP(D$119,#REF!,11,0)="*","<5",VLOOKUP(D$119,#REF!,11,0))))-(IF(VLOOKUP(D$119,#REF!,9,0)="*","<5",VLOOKUP(D$119,#REF!,9,0))) ->  | F129: =(1-(IF(VLOOKUP(D$119,#REF!,12,0)="*","<5",VLOOKUP(D$119,#REF!,12,0))))-(1-(IF(VLOOKUP(D$119,#REF!,11,0)="*","<5",VLOOKUP(D$119,#REF!,11,0)))) ->  | G129: =(1-(IF(VLOOKUP(D$119,#REF!,13,0)="*","<5",VLOOKUP(D$119,#REF!,13,0))))-(1-(IF(VLOOKUP(D$119,#REF!,12,0)="*","<5",VLOOKUP(D$119,#REF!,12,0)))) ->  | H129: =IF(VLOOKUP(D$119,#REF!,13,0)="*",0,VLOOKUP(D$119,#REF!,13,0)) ->  | I129: =IF(VLOOKUP(D$119,#REF!,13,0)="*",100%-B129-C129-D129-E129-F129,0) ->  | J129: =IF(VLOOKUP(D$119,#REF!,12,0)="*",VLOOKUP(D$119,#REF!,11,0),0) -> 
A130: 2016/17 | B130: =IF(VLOOKUP(D$119,#REF!,7,0)="*",VLOOKUP(D$119,#REF!,9,0),IF(VLOOKUP(D$119,#REF!,9,0)="*",100%-C130-E130-F130-G130-H130,0)) ->  | C130: =IF(VLOOKUP(D$119,#REF!,7,0)="*",0,VLOOKUP(D$119,#REF!,7,0)) ->  | D130: =IF(VLOOKUP(D$119,#REF!,7,0)="*",0,(IF(VLOOKUP(D$119,#REF!,9,0)="*","",VLOOKUP(D$119,#REF!,9,0)))-(IF(VLOOKUP(D$119,#REF!,7,0)="*","",VLOOKUP(D$119,#REF!,7,0)))) ->  | E130: =(1-(IF(VLOOKUP(D$119,#REF!,11,0)="*","<5",VLOOKUP(D$119,#REF!,11,0))))-(IF(VLOOKUP(D$119,#REF!,9,0)="*","<5",VLOOKUP(D$119,#REF!,9,0))) ->  | F130: =(1-(IF(VLOOKUP(D$119,#REF!,12,0)="*","<5",VLOOKUP(D$119,#REF!,12,0))))-(1-(IF(VLOOKUP(D$119,#REF!,11,0)="*","<5",VLOOKUP(D$119,#REF!,11,0)))) ->  | G130: =(1-(IF(VLOOKUP(D$119,#REF!,13,0)="*","<5",VLOOKUP(D$119,#REF!,13,0))))-(1-(IF(VLOOKUP(D$119,#REF!,12,0)="*","<5",VLOOKUP(D$119,#REF!,12,0)))) ->  | H130: =IF(VLOOKUP(D$119,#REF!,13,0)="*",0,VLOOKUP(D$119,#REF!,13,0)) ->  | I130: =IF(VLOOKUP(D$119,#REF!,13,0)="*",100%-B130-C130-D130-E130-F130,0) ->  | J130: =IF(VLOOKUP(D$119,#REF!,12,0)="*",VLOOKUP(D$119,#REF!,11,0),0) -> 
A131: 2017/18 | B131: =IF(VLOOKUP(D$119,'HbA1c-1718'!$A$3:$P$178,7,0)="*",VLOOKUP(D$119,'HbA1c-1718'!$A$3:$P$178,9,0),IF(VLOOKUP(D$119,'HbA1c-1718'!$A$3:$P$178,9,0)="*",100%-C131-E131-F131-G131-H131,0)) -> 0 | C131: =IF(VLOOKUP(D$119,'HbA1c-1718'!$A$3:$P$178,7,0)="*",0,VLOOKUP(D$119,'HbA1c-1718'!$A$3:$P$178,7,0)) -> 7.548481105 | D131: =IF(VLOOKUP(D$119,'HbA1c-1718'!$A$3:$P$178,7,0)="*",0,(IF(VLOOKUP(D$119,'HbA1c-1718'!$A$3:$P$178,9,0)="*","",VLOOKUP(D$119,'HbA1c-1718'!$A$3:$P$178,9,0)))-(IF(VLOOKUP(D$119,'HbA1c-1718'!$A$3:$P$178,7,0)="*","",VLOOKUP(D$119,'HbA1c-1718'!$A$3:$P$178,7,0)))) ->  | E131: =(1-(IF(VLOOKUP(D$119,'HbA1c-1718'!$A$3:$P$178,11,0)="*","<5",VLOOKUP(D$119,'HbA1c-1718'!$A$3:$P$178,11,0))))-(IF(VLOOKUP(D$119,'HbA1c-1718'!$A$3:$P$178,9,0)="*","<5",VLOOKUP(D$119,'HbA1c-1718'!$A$3:$P$178,9,0))) ->  | F131: =(1-(IF(VLOOKUP(D$119,'HbA1c-1718'!$A$3:$P$178,12,0)="*","<5",VLOOKUP(D$119,'HbA1c-1718'!$A$3:$P$178,12,0))))-(1-(IF(VLOOKUP(D$119,'HbA1c-1718'!$A$3:$P$178,11,0)="*","<5",VLOOKUP(D$119,'HbA1c-1718'!$A$3:$P$178,11,0)))) -> -0.162601626 | G131: =(1-(IF(VLOOKUP(D$119,'HbA1c-1718'!$A$3:$P$178,13,0)="*","<5",VLOOKUP(D$119,'HbA1c-1718'!$A$3:$P$178,13,0))))-(1-(IF(VLOOKUP(D$119,'HbA1c-1718'!$A$3:$P$178,12,0)="*","<5",VLOOKUP(D$119,'HbA1c-1718'!$A$3:$P$178,12,0)))) -> -0.0162601626 | H131: =IF(VLOOKUP(D$119,'HbA1c-1718'!$A$3:$P$178,13,0)="*",0,VLOOKUP(D$119,'HbA1c-1718'!$A$3:$P$178,13,0)) -> 0.4552845528 | I131: =IF(VLOOKUP(D$119,'HbA1c-1718'!$A$3:$P$178,13,0)="*",100%-B131-C131-D131-E131-F131,0) -> 0 | J131: =IF(VLOOKUP(D$119,'HbA1c-1718'!$A$3:$P$178,12,0)="*",VLOOKUP(D$119,'HbA1c-1718'!$A$3:$P$178,11,0),0) -> 0
A132: 2018/19 | B132: =IF(VLOOKUP(D$119,'HbA1c-1819'!$A$3:$P$178,7,0)="*",VLOOKUP(D$119,'HbA1c-1819'!$A$3:$P$178,9,0),IF(VLOOKUP(D$119,'HbA1c-1819'!$A$3:$P$178,9,0)="*",100%-C132-E132-F132-G132-H132,0)) -> 0 | C132: =IF(VLOOKUP(D$119,'HbA1c-1819'!$A$3:$P$178,7,0)="*",0,VLOOKUP(D$119,'HbA1c-1819'!$A$3:$P$178,7,0)) -> 7.639980785 | D132: =IF(VLOOKUP(D$119,'HbA1c-1819'!$A$3:$P$178,7,0)="*",0,(IF(VLOOKUP(D$119,'HbA1c-1819'!$A$3:$P$178,9,0)="*","",VLOOKUP(D$119,'HbA1c-1819'!$A$3:$P$178,9,0)))-(IF(VLOOKUP(D$119,'HbA1c-1819'!$A$3:$P$178,7,0)="*","",VLOOKUP(D$119,'HbA1c-1819'!$A$3:$P$178,7,0)))) ->  | E132: =(1-(IF(VLOOKUP(D$119,'HbA1c-1819'!$A$3:$P$178,11,0)="*","<5",VLOOKUP(D$119,'HbA1c-1819'!$A$3:$P$178,11,0))))-(IF(VLOOKUP(D$119,'HbA1c-1819'!$A$3:$P$178,9,0)="*","<5",VLOOKUP(D$119,'HbA1c-1819'!$A$3:$P$178,9,0))) ->  | F132: =(1-(IF(VLOOKUP(D$119,'HbA1c-1819'!$A$3:$P$178,12,0)="*","<5",VLOOKUP(D$119,'HbA1c-1819'!$A$3:$P$178,12,0))))-(1-(IF(VLOOKUP(D$119,'HbA1c-1819'!$A$3:$P$178,11,0)="*","<5",VLOOKUP(D$119,'HbA1c-1819'!$A$3:$P$178,11,0)))) -> -0.1255411255 | G132: =(1-(IF(VLOOKUP(D$119,'HbA1c-1819'!$A$3:$P$178,13,0)="*","<5",VLOOKUP(D$119,'HbA1c-1819'!$A$3:$P$178,13,0))))-(1-(IF(VLOOKUP(D$119,'HbA1c-1819'!$A$3:$P$178,12,0)="*","<5",VLOOKUP(D$119,'HbA1c-1819'!$A$3:$P$178,12,0)))) -> -0.1471861472 | H132: =IF(VLOOKUP(D$119,'HbA1c-1819'!$A$3:$P$178,13,0)="*",0,VLOOKUP(D$119,'HbA1c-1819'!$A$3:$P$178,13,0)) -> 0.5151515152 | I132: =IF(VLOOKUP(D$119,'HbA1c-1819'!$A$3:$P$178,13,0)="*",100%-B132-C132-D132-E132-F132,0) -> 0 | J132: =IF(VLOOKUP(D$119,'HbA1c-1819'!$A$3:$P$178,12,0)="*",VLOOKUP(D$119,'HbA1c-1819'!$A$3:$P$178,11,0),0) -> 0
A138: Microvascular
A140: 4 | C140: No. CYP-T1-12+ | D140: =VLOOKUP($D$148,#REF!,A140,0) ->  | E140: =IF(D140=0,0,IF(D140<5,"less than 5",D140)) -> 
A141: 6 | C141: Eye-screen known result | D141: =VLOOKUP($D$148,#REF!,A141,0) ->  | E141: =IF(D141=0,0,IF(D141<5,"less than 5",D141)) ->  | F141: =IF(D142=D141, "all of whom had a valid outcome recorded.", " and "&D141&" had a valid outcome recorded.") -> 
A142: 5 | C142: Eye-screen check done | D142: =VLOOKUP($D$148,#REF!,A142,0) ->  | E142: =(D141/D140)*100 ->  | F142: =IF(E142<75,"This result should be interpreted with caution, since less than 75% of young people with Type 1 diabetes were checked and had a valid outcome recorded.", "") -> 
A144: 9 | C144: No. albumin screens | D144: =VLOOKUP($D$148,#REF!,A144,0) ->  | E144: =IF(D144=0,0,IF(D144<5,"less than 5",D144)) -> 
A145: 10 | C145: Denominator - albumin result valid known | D145: =VLOOKUP($D$148,#REF!,A145,0) ->  | E145: =IF(D145=0,0,IF(D145<5,"less than 5",D145)) ->  | F145: =IF(D144=D145,", all of whom had a valid result recorded.", "; "&D145&" of whom had a valid result recorded.") -> 
E146: =(D145/D140)*100 ->  | F146: =IF(E146<75,"This result should be interpreted with caution, since less than 75% of young people with Type 1 diabetes were checked and had a valid outcome recorded.", "") -> 
D148: ='Unit list'!$B$1 -> PZ041 | E148: ='Unit list'!$D$1 -> East of England | F148: England and Wales
A149: 8 | B149: Eye disease | C149: Abnormal eye screening | D149: =IF(VLOOKUP(D$148,#REF!,$A149,0)="*","< 5",VLOOKUP(D$148,#REF!,$A149,0)) ->  | E149: =IF(VLOOKUP(E$148,#REF!,$A149-2,0)="*",#N/A,VLOOKUP(E$148,#REF!,$A149-2,0)) ->  | F149: =IF(VLOOKUP(F$148,#REF!,$A149-2,0)="*",#N/A,VLOOKUP(F$148,#REF!,$A149-2,0)) ->  | G149: =IF(D149="< 5","Of those with a valid result, fewer than five were recorded as having an abnormal result.","Of those with a valid result, "&(ROUND(D149,3)*100)&"% were recorded as having an abnormal result.") -> 
A150: 12 | B150: Kidney disease | C150: Albuminuria | D150: =IF(VLOOKUP(D$148,#REF!,$A150,0)="*","< 5",VLOOKUP(D$148,#REF!,$A150,0)) ->  | E150: =IF(VLOOKUP(E$148,#REF!,$A150-2,0)="*",#N/A,VLOOKUP(E$148,#REF!,$A150-2,0)) ->  | F150: =VLOOKUP(F$148,#REF!,$A150-2,0) ->  | G150: =IF(D150="< 5","Of those with a valid result, fewer than five were recorded as having albuminuria.","Of those with a valid result, "&(ROUND(D150,3)*100)&"% were recorded as having albuminuria.") -> 
A153: Macrovascular
C154: Denominator - blood pressure | D154: =VLOOKUP($D$158,#REF!,4,0) ->  | E154: =IF(D154=0,0,IF(D154<5,"less than 5",D154)) ->  | F154: =(D154/$D$140)*100 ->  | G154: =IF(F154=0,"",IF(F154<75,"Blood pressure data for "&D148&" should be interpreted with caution, since less than 75% of young people with Type 1 diabetes were checked and had a valid outcome recorded.", "")) -> 
C155: Denominator - cholesterol | D155: =VLOOKUP($D$158,#REF!,7,0) ->  | E155: =IF(D155=0,0,IF(D155<5,"less than 5",D155)) ->  | F155: =(D155/$D$140)*100 ->  | G155: =IF(F155=0,"",IF(F155<75,"Cholesterol data for "&D148&" should be interpreted with caution, since less than 75% of young people with Type 1 diabetes were checked and had a valid outcome recorded.", "")) -> 
C156: Denominator - BMI | D156: =VLOOKUP($D$158,#REF!,10,0) ->  | E156: =IF(D156=0,0,IF(D156<5,"less than 5",D156)) ->  | F156: =(D156/(D38*D60))*100 ->  | G156: =IF(F156=0,"",IF(F156<75,"BMI data for "&D148&" should be interpreted with caution, since less than 75% of young people with Type 1 diabetes were checked and have a valid outcome recorded.", "")) -> 
D158: ='Unit list'!$B$1 -> PZ041 | E158: ='Unit list'!$D$1 -> East of England | F158: England and Wales
A159: 5 | B159: Blood pressure | C159: 'High normal' | D159: =IF(VLOOKUP(D$158,#REF!,$A159,0)="*","< 5",VLOOKUP(D$158,#REF!,$A159,0)) ->  | E159: =VLOOKUP(E$148,#REF!,$A159-2,0) ->  | F159: =VLOOKUP(F$148,#REF!,$A159-2,0) -> 
A160: 6 | C160: 'High' | D160: =IF(VLOOKUP(D$158,#REF!,$A160,0)="*","< 5",VLOOKUP(D$158,#REF!,$A160,0)) ->  | E160: =VLOOKUP(E$148,#REF!,$A160-2,0) ->  | F160: =VLOOKUP(F$148,#REF!,$A160-2,0) -> 
A161: 8 | B161: Cholesterol | C161: 4 mmol/l or more | D161: =IF(VLOOKUP(D$158,#REF!,$A161,0)="*","< 5",VLOOKUP(D$158,#REF!,$A161,0)) ->  | E161: =VLOOKUP(E$148,#REF!,$A161-2,0) ->  | F161: =VLOOKUP(F$148,#REF!,$A161-2,0) -> 
A162: 9 | C162: 5 mmol/l or more | D162: =IF(VLOOKUP(D$158,#REF!,$A162,0)="*","< 5",VLOOKUP(D$158,#REF!,$A162,0)) ->  | E162: =VLOOKUP(E$148,#REF!,$A162-2,0) ->  | F162: =VLOOKUP(F$148,#REF!,$A162-2,0) -> 
D164: ='Unit list'!$B$1 -> PZ041 | E164: ='Unit list'!$D$1 -> East of England | F164: England and Wales
A165: 11 | C165: Underweight | D165: =IF(VLOOKUP(D$164,#REF!,$A165,0)="*","< 5",VLOOKUP(D$164,#REF!,$A165,0)) ->  | E165: =VLOOKUP(E$148,#REF!,$A165-2,0) ->  | F165: =VLOOKUP(F$148,#REF!,$A165-2,0) -> 
A166: 12 | C166: Healthy weight | D166: =IF(VLOOKUP(D$164,#REF!,$A166,0)="*","< 5",VLOOKUP(D$164,#REF!,$A166,0)) ->  | E166: =VLOOKUP(E$148,#REF!,$A166-2,0) ->  | F166: =VLOOKUP(F$148,#REF!,$A166-2,0) -> 
A167: 13 | C167: Overweight | D167: =IF(VLOOKUP(D$164,#REF!,$A167,0)="*","< 5",VLOOKUP(D$164,#REF!,$A167,0)) ->  | E167: =VLOOKUP(E$148,#REF!,$A167-2,0) ->  | F167: =VLOOKUP(F$148,#REF!,$A167-2,0) -> 
A168: 14 | C168: Obese | D168: =IF(VLOOKUP(D$164,#REF!,$A168,0)="*","< 5",VLOOKUP(D$164,#REF!,$A168,0)) ->  | E168: =VLOOKUP(E$148,#REF!,$A168-2,0) ->  | F168: =VLOOKUP(F$148,#REF!,$A168-2,0) -> 
A171: Psychological support
A172: 4 | C172: T1_n | D172: =VLOOKUP($D$158,#REF!,A172,0) ->  | E172: =(D173/D172)*100 ->  | F172: =ROUND(E172,1) ->  | G172: =IF(E172=0,"",IF(E172<75%,"The result should be interpreted with caution, since the screening rate for Psychological support is less than 75%.","")) -> 
A173: 5 | C173: Denominator - outcome of assessment known | D173: =VLOOKUP($D$158,#REF!,A173,0) ->  | E173: =IF(D173=0,0,IF(D173<5,"less than 5",D173)) ->  | F173: =IF(D172=D173,", all of whom had a valid outcome recorded.", "; "&D173&" of whom had a valid outcome recorded.") -> 
D175: ='Unit list'!$B$1 -> PZ041 | E175: ='Unit list'!$D$1 -> East of England | F175: England and Wales
A176: 6 | C176: Required additional psychological support | D176: =IF(VLOOKUP(D$158,#REF!,$A176,0)="*","< 5",VLOOKUP(D$158,#REF!,$A176,0)) ->  | E176: =VLOOKUP(E$148,#REF!,$A176-2,0) ->  | F176: =VLOOKUP(F$148,#REF!,$A176-2,0) ->  | G176: =IF(D176="No data","No data is available to interpret results.","Of those, "&(ROUND(D176,3)*100)&"% were recorded as requiring additional psychological support.") -> 
A178: Auto-immune
A179: 4 | C179: Denominator - thyroid | D179: =VLOOKUP($D$181,#REF!,A179,0) ->  | E179: =IF(D179=0,0,IF(D179="*","less than 5",D179)) -> 
D181: ='Unit list'!$B$1 -> PZ041 | E181: ='Unit list'!$D$1 -> East of England | F181: England and Wales
A182: 5 | C182: Thyroid disease | D182: =IF(VLOOKUP(D$181,#REF!,'Chart data'!$A182,0)="*","< 5",VLOOKUP(D$181,#REF!,'Chart data'!$A182,0)) ->  | E182: =VLOOKUP(E$181,#REF!,'Chart data'!$A182-2,0) ->  | F182: =VLOOKUP(F$181,#REF!,'Chart data'!$A182-2,0) -> 
A183: 6 | C183: Coeliac disease | D183: =IF(VLOOKUP(D$181,#REF!,'Chart data'!$A183,0)="*","< 5",VLOOKUP(D$181,#REF!,'Chart data'!$A183,0)) ->  | E183: =VLOOKUP(E$181,#REF!,'Chart data'!$A183-2,0) ->  | F183: =VLOOKUP(F$181,#REF!,'Chart data'!$A183-2,0) -> 
D184: =IF(AND(VLOOKUP(D$181,#REF!,'Chart data'!$A183,0)="*",VLOOKUP(D$181,#REF!,'Chart data'!$A182,0)="*"),"There are fewer than 5 children and young people with thyroid disease and coeliac disease in your unit.",IF(VLOOKUP(D$181,#REF!,'Chart data'!$A183,0)="*","There are fewer than 5 children and young people with coeliac disease in your unit.",IF(VLOOKUP(D$181,#REF!,'Chart data'!$A182,0)="*","There are fewer than 5 children and young people with thyroid disease in your unit.",""))) -> 
A186: Treatment
A187: 4 | C187: Denominator treatment | D187: =VLOOKUP($D$119,#REF!,A187,0) ->  | E187: =IF(D187=0,0,IF(D187<5,"less than 5",D187)) -> 
A188: 12 | C188: Missing or unknown treatment | D188: =VLOOKUP($D$181,#REF!,A188,0) ->  | E188: =IF(D188>25%,"The information below should be interpreted with caution, since less than 75% of children and young people with Type 1 diabetes had a valid/known treatment recorded.","") -> 
D189: ='Unit list'!$B$1 -> PZ041 | E189: ='Unit list'!$D$1 -> East of England | F189: England and Wales
A190: 7 | C190: 1-3 Insulin Injections* | D190: =IF(VLOOKUP(D$189,#REF!,$A190,0)="*","< 5",VLOOKUP(D$189,#REF!,$A190,0)) ->  | E190: =VLOOKUP(E$189,#REF!,$A190-2,0) ->  | F190: =VLOOKUP(F$189,#REF!,$A190-2,0) -> 
A191: 5 | C191: Multiple daily injections* | D191: =IF(VLOOKUP(D$189,#REF!,$A191,0)="*","< 5",VLOOKUP(D$189,#REF!,$A191,0)) ->  | E191: =VLOOKUP(E$189,#REF!,$A191-2,0) ->  | F191: =VLOOKUP(F$189,#REF!,$A191-2,0) -> 
A192: 6 | C192: Insulin pump* | D192: =IF(VLOOKUP(D$189,#REF!,$A192,0)="*","< 5",VLOOKUP(D$189,#REF!,$A192,0)) ->  | E192: =VLOOKUP(E$189,#REF!,$A192-2,0) ->  | F192: =VLOOKUP(F$189,#REF!,$A192-2,0) -> 
A194: 8 | C194: denominator cgm | D194: =IF(VLOOKUP(D$189,#REF!,$A194,0)="*","<5",VLOOKUP(D$189,#REF!,$A194,0)) ->  | E194: =VLOOKUP(E$189,#REF!,$A194-2,0) ->  | F194: =VLOOKUP(F$189,#REF!,$A194-2,0) ->  | G194: =IF(D194="<5","fewer than five",D194) -> 
A195: 9 | C195: Continuous glucose monitoring | D195: =IF(VLOOKUP(D$189,#REF!,$A195,0)="*","< 5",VLOOKUP(D$189,#REF!,$A195,0)) ->  | E195: =VLOOKUP(E$189,#REF!,$A195-2,0) ->  | F195: =VLOOKUP(F$189,#REF!,$A195-2,0) -> 
A196: 10 | C196: Missing or unknown CGM use | D196: =IF(VLOOKUP(D$189,#REF!,$A196,0)="*","< 5",VLOOKUP(D$189,#REF!,$A196,0)) ->  | E196: =IF(D196=100%, "", IF(D196>75%,"This information should be interpreted with caution, since "&(ROUND(D196,3)*100)&"% of children and young people with Type 1 diabetes had a missing or unknown CGM use recorded.","")) -> 
D198: ='Unit list'!$B$1 -> PZ041
D199: Treatment - MDI | E199: Treatment - Pump
A200: 5 | C200: =D198 -> PZ041 | D200: =VLOOKUP(C200,#REF!,5,0) ->  | E200: =VLOOKUP(C200,#REF!,$F200,0) ->  | F200: 9
A201: 4 | C201: =E189 -> East of England | D201: =VLOOKUP(C201,#REF!,4,0) ->  | E201: =VLOOKUP(C201,#REF!,$F201,0) ->  | F201: 8
A202: 4 | C202: =F189 -> England and Wales | D202: =VLOOKUP(C202,#REF!,4,0) ->  | E202: =VLOOKUP(C202,#REF!,$F202,0) ->  | F202: 8
A207: Admission
C208: Denominator - Admission | D208: =VLOOKUP($D$210,#REF!,4,0) -> 
D210: ='Unit list'!$B$1 -> PZ041 | E210: ='Unit list'!$D$1 -> East of England | F210: England and Wales
A211: 5 | C211: Emergency Admission | D211: =IF(VLOOKUP(D$210,#REF!,'Chart data'!A$211,0)="*","< 5",IF(VLOOKUP(D$210,#REF!,'Chart data'!A$211,0)="No data",#N/A,VLOOKUP('Chart data'!D$210,#REF!,'Chart data'!A$211,0))) ->  | E211: =VLOOKUP(E$210,#REF!,'Chart data'!A211-2,0) ->  | F211: =VLOOKUP(F$210,#REF!,'Chart data'!A211-2,0) -> 
C212: Submitted data | D212: =IF(VLOOKUP(D210,#REF!,5,FALSE)="No data submitted","no data was submitted on diabetes-related emeregency admissions.","the percentage of children and young people admitted to hospital as a result of a diabetes-related emergency at least once was "&ROUND(D211,3)*100&"%.") -> 

Sheet Contacts (hidden)
A1: PZ code | B1: Paediatric Unit | C1: Title (clinical lead) | D1: Surname (clinical lead) | F1: Email (clinical lead) | G1: Email (2nd contact) | H1: Email (3rd contact) | I1: Fourth contact | J1: Fifth contact | K1: Network manager
B2: 2 | C2: 3 | D2: 4 | F2: 5 | G2: 6 | H2: 7 | I2: 8 | J2: 9 | K2: 10
A3: =A4 -> PZ041 | B3: =B4 -> Addenbrooke's Hospital | C3: =C4 -> Dr | D3: =D4 -> Williams | F3: =F4 -> rachel.williams@addenbrookes.nhs.uk | G3: =""&G4&";"&H4&";"&I4&";"&J4&";"&K4&"" -> ;ajay.thankamony@addenbrookes.nhs.uk;;;Kate.Wilson@addenbrookes.nhs.uk
A4: ='Unit list'!B1 -> PZ041 | B4: =IF(VLOOKUP($A$4,$A$6:$K$182,B2,0)="","",VLOOKUP($A$4,$A$6:$K$182,B2,0)) -> Addenbrooke's Hospital | C4: Dr | D4: Williams | F4: rachel.williams@addenbrookes.nhs.uk | H4: ajay.thankamony@addenbrookes.nhs.uk | K4: Kate.Wilson@addenbrookes.nhs.uk
A6: PZ code | B6: Paediatric Unit | C6: Title (clinical lead) | D6: Surname (clinical lead) | F6: Email (clinical lead) | G6: Email (2nd contact) | H6: Email (3rd contact) | I6: Fourth contact | J6: Fifth contact | K6: Network manager
A7: PZ001 | B7: Morriston Hospital | C7: Dr | D7: =VLOOKUP(A7,[1]Units!$A$2:$AJ$172,7,0) -> Frost | E7: =VLOOKUP(A7,[1]Units!$A$2:$AJ$172,9,0) -> Katherine.frost@wales.nhs.uk | F7: =VLOOKUP(A7,[1]Units!$A$2:$AJ$172,11,0) -> Christopher.Bidder@wales.nhs.uk | G7: =VLOOKUP(A7,[1]Units!$A$2:$AJ$172,15,0) -> heather.oconnell@wales.nhs.uk | H7: =VLOOKUP(A7,[1]Units!$A$2:$AJ$172,19,0) -> Lisa.Daniels@wales.nhs.uk | J7: =VLOOKUP(A7,[2]Sheet2!$A$2:$C$172, 3, 0) -> Jon.Matthias@wales.nhs.uk
A8: PZ002 | B8: Norfolk and Norwich University Hospital | C8: Dr | D8: =VLOOKUP(A8,[1]Units!$A$2:$AJ$172,7,0) -> Datta | E8: =VLOOKUP(A8,[1]Units!$A$2:$AJ$172,9,0) -> vipan.datta@nnuh.nhs.uk | G8: =VLOOKUP(A8,[1]Units!$A$2:$AJ$172,15,0) -> roberta.kemp@nnuh.nhs.uk | H8: =VLOOKUP(A8,[1]Units!$A$2:$AJ$172,19,0) -> lisa.hunt@nnuh.nhs.uk | I8: =VLOOKUP(A8,[1]Units!$A$2:$AJ$172,22,0) -> Laura.schaffer@nnuh.nhs.uk | J8: =VLOOKUP(A8,[2]Sheet2!$A$2:$C$172, 3, 0) -> Kate.Wilson@addenbrookes.nhs.uk
A9: PZ003 | B9: Pinderfields General Hospital and Pontefract General Infirmary | C9: Dr | D9: =VLOOKUP(A9,[1]Units!$A$2:$AJ$172,7,0) -> Gardiner | E9: =VLOOKUP(A9,[1]Units!$A$2:$AJ$172,9,0) -> susan.gardiner2@nhs.net | F9: =VLOOKUP(A9,[1]Units!$A$2:$AJ$172,11,0) -> julie.thompson19@nhs.net | G9: =VLOOKUP(A9,[1]Units!$A$2:$AJ$172,15,0) -> preya.dey1@nhs.net; Julie.thompson22@midyorks.nhs.uk | H9: =VLOOKUP(A9,[1]Units!$A$2:$AJ$172,19,0) -> nardia.hafeez@nhs.net | J9: =VLOOKUP(A9,[2]Sheet2!$A$2:$C$172, 3, 0) -> emma.savage8@nhs.net
A10: PZ004 | B10: Northampton General Hospital | C10: Dr | D10: =VLOOKUP(A10,[1]Units!$A$2:$AJ$172,7,0) -> Smith | E10: =VLOOKUP(A10,[1]Units!$A$2:$AJ$172,9,0) -> anne.smith@ngh.nhs.uk | F10: =VLOOKUP(A10,[1]Units!$A$2:$AJ$172,11,0) -> Anjum.rafiq@ngh.nhs.uk | G10: =VLOOKUP(A10,[1]Units!$A$2:$AJ$172,15,0) -> Elizabeth.Haase@ngh.nhs.uk | H10: =VLOOKUP(A10,[1]Units!$A$2:$AJ$172,19,0) -> Lucy.whiteside@ngh.nhs.uk | I10: =VLOOKUP(A10,[1]Units!$A$2:$AJ$172,22,0) -> Clinical.audit@ngh.nhs.uk; | J10: =VLOOKUP(A10,[2]Sheet2!$A$2:$C$172, 3, 0) -> asmita.sedhai3@nhs.net
A11: PZ005 | B11: Derbyshire Children's Hospital | C11: Dr | D11: =VLOOKUP(A11,[1]Units!$A$2:$AJ$172,7,0) -> Smith | E11: =VLOOKUP(A11,[1]Units!$A$2:$AJ$172,9,0) -> julie.smith178@nhs.net | F11: =VLOOKUP(A11,[1]Units!$A$2:$AJ$172,11,0) -> jordan.staples1@nhs.net | G11: =VLOOKUP(A11,[1]Units!$A$2:$AJ$172,15,0) -> nicholas.coupland@nhs.net | H11: =VLOOKUP(A11,[1]Units!$A$2:$AJ$172,19,0) -> julie.smith178@nhs.net | J11: =VLOOKUP(A11,[2]Sheet2!$A$2:$C$172, 3, 0) -> asmita.sedhai3@nhs.net
A12: PZ006 | B12: Doncaster Royal Infirmary | C12: Dr | D12: =VLOOKUP(A12,[1]Units!$A$2:$AJ$172,7,0) -> Natarajan | E12: =VLOOKUP(A12,[1]Units!$A$2:$AJ$172,9,0) -> Anuja.natarajan1@nhs.net | G12: =VLOOKUP(A12,[1]Units!$A$2:$AJ$172,15,0) -> Lisa.whinfrey@nhs.net | H12: =VLOOKUP(A12,[1]Units!$A$2:$AJ$172,19,0) -> Razia.petkar@nhs.net | J12: =VLOOKUP(A12,[2]Sheet2!$A$2:$C$172, 3, 0) -> emma.savage8@nhs.net
A13: PZ007 | B13: John Radcliffe Hospital | C13: Dr | D13: =VLOOKUP(A13,[1]Units!$A$2:$AJ$172,7,0) -> Besser | E13: =VLOOKUP(A13,[1]Units!$A$2:$AJ$172,9,0) -> rachel.besser@ouh.nhs.uk | G13: =VLOOKUP(A13,[1]Units!$A$2:$AJ$172,15,0) -> Jane.Haest@ouh.nhs.uk | J13: =VLOOKUP(A13,[2]Sheet2!$A$2:$C$172, 3, 0) -> Myfanwy.Champness@ouh.nhs.uk
A14: PZ009 | B14: Macclesfield District General Hospital | C14: Dr | D14: =VLOOKUP(A14,[1]Units!$A$2:$AJ$172,7,0) -> Chandrasekaran | E14: =VLOOKUP(A14,[1]Units!$A$2:$AJ$172,9,0) -> surendran.chandrasekaran@nhs.net | G14: =VLOOKUP(A14,[1]Units!$A$2:$AJ$172,15,0) -> shelley.morrall@nhs.net | H14: =VLOOKUP(A14,[1]Units!$A$2:$AJ$172,19,0) -> sarah.lynch20@nhs.net | J14: =VLOOKUP(A14,[2]Sheet2!$A$2:$C$172, 3, 0) -> Margotcarson@nhs.net
A15: PZ010 | B15: Luton and Dunstable Hospital | C15: Dr | D15: =VLOOKUP(A15,[1]Units!$A$2:$AJ$172,7,0) -> Misquith | E15: =VLOOKUP(A15,[1]Units!$A$2:$AJ$172,9,0) -> Ronald.Misquith@ldh.nhs.uk | G15: =VLOOKUP(A15,[1]Units!$A$2:$AJ$172,15,0) -> Nisha.Nathwani@ldh.nhs.uk | H15: =VLOOKUP(A15,[1]Units!$A$2:$AJ$172,19,0) -> denise.morrison@ldh.nhs.uk | J15: =VLOOKUP(A15,[2]Sheet2!$A$2:$C$172, 3, 0) -> Kate.Wilson@addenbrookes.nhs.uk
A16: PZ011 | B16: Glan Clwyd District General Hospital | C16: Dr | D16: =VLOOKUP(A16,[1]Units!$A$2:$AJ$172,7,0) -> Moore | E16: =VLOOKUP(A16,[1]Units!$A$2:$AJ$172,9,0) -> helen.moore@wales.nhs.uk | G16: =VLOOKUP(A16,[1]Units!$A$2:$AJ$172,15,0) -> pramod.bhardwaj@wales.nhs.uk | H16: =VLOOKUP(A16,[1]Units!$A$2:$AJ$172,19,0) -> teresa.jones8@wales.nhs.uk | I16: =VLOOKUP(A16,[1]Units!$A$2:$AJ$172,22,0) -> trevor.smith@wales.nhs.uk; Julie.Evans38@wales.nhs.uk | J16: =VLOOKUP(A16,[2]Sheet2!$A$2:$C$172, 3, 0) -> Jon.Matthias@wales.nhs.uk
A17: PZ012 | B17: Barnet General Hospital | C17: Dr | D17: =VLOOKUP(A17,[1]Units!$A$2:$AJ$172,7,0) -> Dublon | E17: =VLOOKUP(A17,[1]Units!$A$2:$AJ$172,9,0) -> Victoria.Dublon@nhs.net | G17: =VLOOKUP(A17,[1]Units!$A$2:$AJ$172,15,0) -> esther.freeman2@nhs.net | H17: =VLOOKUP(A17,[1]Units!$A$2:$AJ$172,19,0) -> m.croitoru1@nhs.net | I17: =VLOOKUP(A17,[1]Units!$A$2:$AJ$172,22,0) -> a.motabar1@nhs.net; sarah.winter2@nhs.net | J17: =VLOOKUP(A17,[2]Sheet2!$A$2:$C$172, 3, 0) -> Usha.Parkash@nhs.net
A18: PZ014 | B18: Chase Farm Hospital | C18: Dr | D18: =VLOOKUP(A18,[1]Units!$A$2:$AJ$172,7,0) -> Dublon | E18: =VLOOKUP(A18,[1]Units!$A$2:$AJ$172,9,0) -> Victoria.Dublon@nhs.net | G18: =VLOOKUP(A18,[1]Units!$A$2:$AJ$172,15,0) -> esther.freeman2@nhs.net | H18: =VLOOKUP(A18,[1]Units!$A$2:$AJ$172,19,0) -> m.croitoru1@nhs.net | I18: =VLOOKUP(A18,[1]Units!$A$2:$AJ$172,22,0) -> a.motabar1@nhs.net | J18: =VLOOKUP(A18,[2]Sheet2!$A$2:$C$172, 3, 0) -> Usha.Parkash@nhs.net
A19: PZ015 | B19: Wythenshawe Hospital | C19: Dr | D19: =VLOOKUP(A19,[1]Units!$A$2:$AJ$172,7,0) -> Riddle | E19: =VLOOKUP(A19,[1]Units!$A$2:$AJ$172,9,0) -> miles.riddle@mft.nhs.uk | H19: =VLOOKUP(A19,[1]Units!$A$2:$AJ$172,19,0) -> louise.turner@mft.nhs.uk | J19: =VLOOKUP(A19,[2]Sheet2!$A$2:$C$172, 3, 0) -> Margotcarson@nhs.net
A20: PZ016 | B20: Bassetlaw District General Hospital | C20: Dr | D20: =VLOOKUP(A20,[1]Units!$A$2:$AJ$172,7,0) -> Joseph | E20: =VLOOKUP(A20,[1]Units!$A$2:$AJ$172,9,0) -> lovlin.joseph@nhs.net | G20: =VLOOKUP(A20,[1]Units!$A$2:$AJ$172,15,0) -> anita.long1@nhs.net | J20: =VLOOKUP(A20,[2]Sheet2!$A$2:$C$172, 3, 0) -> emma.savage8@nhs.net
A21: PZ017 | B21: Dorset County Hospital | C21: Dr | D21: =VLOOKUP(A21,[1]Units!$A$2:$AJ$172,7,0) -> Ward | E21: =VLOOKUP(A21,[1]Units!$A$2:$AJ$172,9,0) -> william.ward@dchft.nhs.uk | G21: =VLOOKUP(A21,[1]Units!$A$2:$AJ$172,15,0) -> Claire.Biswell@dchft.nhs.uk | H21: =VLOOKUP(A21,[1]Units!$A$2:$AJ$172,19,0) -> Samantha.Thornton@dchft.nhs.uk | I21: =VLOOKUP(A21,[1]Units!$A$2:$AJ$172,22,0) -> Kirsty.Lee2@dchft.nhs.uk | J21: =VLOOKUP(A21,[2]Sheet2!$A$2:$C$172, 3, 0) -> Lucy.Powell@hhft.nhs.uk
A22: PZ018 | B22: Worthing Hospital | C22: Dr | D22: =VLOOKUP(A22,[1]Units!$A$2:$AJ$172,7,0) -> Coldwell | E22: =VLOOKUP(A22,[1]Units!$A$2:$AJ$172,9,0) -> sue.coldwell@nhs.net | H22: =VLOOKUP(A22,[1]Units!$A$2:$AJ$172,19,0) -> jackie.mchenry@wsht.nhs.uk | J22: =VLOOKUP(A22,[2]Sheet2!$A$2:$C$172, 3, 0) -> Lucy.Powell@hhft.nhs.uk
A23: PZ019 | B23: Basildon University Hospital | C23: Dr | D23: =VLOOKUP(A23,[1]Units!$A$2:$AJ$172,7,0) -> van Meijgaarden | E23: =VLOOKUP(A23,[1]Units!$A$2:$AJ$172,9,0) -> birgitvanmeijgaarden@nhs.net | F23: =VLOOKUP(A23,[1]Units!$A$2:$AJ$172,11,0) -> sanjay.rawal1@nhs.net; shahida.ahmed@nhs.net | H23: =VLOOKUP(A23,[1]Units!$A$2:$AJ$172,19,0) -> danni.favari@nhs.net | I23: =VLOOKUP(A23,[1]Units!$A$2:$AJ$172,22,0) -> r.francks@nhs.net | J23: =VLOOKUP(A23,[2]Sheet2!$A$2:$C$172, 3, 0) -> Kate.Wilson@addenbrookes.nhs.uk
A24: PZ020 | B24: Diana, Princess of Wales Hospital, Grimsby | C24: Dr | D24: =VLOOKUP(A24,[1]Units!$A$2:$AJ$172,7,0) -> Danda | E24: =VLOOKUP(A24,[1]Units!$A$2:$AJ$172,9,0) -> nandita.danda2@nhs.net | F24: =VLOOKUP(A24,[1]Units!$A$2:$AJ$172,11,0) -> rebecca.bennett10@nhs.net | G24: =VLOOKUP(A24,[1]Units!$A$2:$AJ$172,15,0) -> deborah.kemp3@nhs.net | H24: =VLOOKUP(A24,[1]Units!$A$2:$AJ$172,19,0) -> rachel.stead6@nhs.net | I24: =VLOOKUP(A24,[1]Units!$A$2:$AJ$172,22,0) -> elizabethsykes@nhs.net | J24: =VLOOKUP(A24,[2]Sheet2!$A$2:$C$172, 3, 0) -> emma.savage8@nhs.net
A25: PZ021 | B25: Wexham Park Hospital | C25: Dr | D25: =VLOOKUP(A25,[1]Units!$A$2:$AJ$172,7,0) -> Regan | E25: =VLOOKUP(A25,[1]Units!$A$2:$AJ$172,9,0) -> Fiona.Regan@nhs.net | G25: =VLOOKUP(A25,[1]Units!$A$2:$AJ$172,15,0) -> Sujata.Edate@nhs.net | H25: =VLOOKUP(A25,[1]Units!$A$2:$AJ$172,19,0) -> sharonholt1@nhs.net | J25: =VLOOKUP(A25,[2]Sheet2!$A$2:$C$172, 3, 0) -> Myfanwy.Champness@ouh.nhs.uk
A26: PZ022 | B26: West Cumberland Hospital | C26: Dr | D26: =VLOOKUP(A26,[1]Units!$A$2:$AJ$172,7,0) -> Holt-Davis | E26: =VLOOKUP(A26,[1]Units!$A$2:$AJ$172,9,0) -> Hannah.Holt-Davis@ncic.nhs.uk | G26: =VLOOKUP(A26,[1]Units!$A$2:$AJ$172,15,0) -> kelvin.green@ncuh.nhs.uk | H26: =VLOOKUP(A26,[1]Units!$A$2:$AJ$172,19,0) -> Christine.carruthers@ncuh.nhs.uk | I26: =VLOOKUP(A26,[1]Units!$A$2:$AJ$172,22,0) -> Graeme.Appleton@ncic.nhs.uk | J26: =VLOOKUP(A26,[2]Sheet2!$A$2:$C$172, 3, 0) -> Jenny.foster5@nhs.net
A27: PZ023 | B27: St George's Hospital, London | C27: Dr | D27: =VLOOKUP(A27,[1]Units!$A$2:$AJ$172,7,0) -> Rice | E27: =VLOOKUP(A27,[1]Units!$A$2:$AJ$172,9,0) -> Alan.Rice@stgeorges.nhs.uk | F27: =VLOOKUP(A27,[1]Units!$A$2:$AJ$172,11,0) -> Elena.Monti@stgeorges.nhs.uk | G27: =VLOOKUP(A27,[1]Units!$A$2:$AJ$172,15,0) -> Heather.Hearty@stgeorges.nhs.uk | H27: =VLOOKUP(A27,[1]Units!$A$2:$AJ$172,19,0) -> tasneem.riaz-teeluck@stgeorges.nhs.Uk | I27: =VLOOKUP(A27,[1]Units!$A$2:$AJ$172,22,0) -> Imaan.Valimohamed@stgeorges.nhs.uk; Adam.Lewarne@stgeorges.nhs.uk; Alan.Evans@stgeorges.nhs.uk | J27: =VLOOKUP(A27,[2]Sheet2!$A$2:$C$172, 3, 0) -> Usha.Parkash@nhs.net
A28: PZ024 | B28: East Kent Hospitals University NHS Foundation Trust | C28: Dr | D28: =VLOOKUP(A28,[1]Units!$A$2:$AJ$172,7,0) -> Christian | E28: =VLOOKUP(A28,[1]Units!$A$2:$AJ$172,9,0) -> pchristian@nhs.net | F28: =VLOOKUP(A28,[1]Units!$A$2:$AJ$172,11,0) -> jenniferbrunsdon@nhs.net | G28: =VLOOKUP(A28,[1]Units!$A$2:$AJ$172,15,0) -> samantha.anacker@nhs.net | J28: =VLOOKUP(A28,[2]Sheet2!$A$2:$C$172, 3, 0) -> Usha.Parkash@nhs.net
A29: PZ026 | B29: Hull Royal Infirmary | C29: Dr | D29: =VLOOKUP(A29,[1]Units!$A$2:$AJ$172,7,0) -> Mathew | E29: =VLOOKUP(A29,[1]Units!$A$2:$AJ$172,9,0) -> verghese.mathew@nhs.net | F29: =VLOOKUP(A29,[1]Units!$A$2:$AJ$172,11,0) -> l.pearce4@nhs.net; m.raven@nhs.net | G29: =VLOOKUP(A29,[1]Units!$A$2:$AJ$172,15,0) -> sanjay.gupta2@nhs.net | H29: =VLOOKUP(A29,[1]Units!$A$2:$AJ$172,19,0) -> annabel.taylor5@nhs.net | I29: =VLOOKUP(A29,[1]Units!$A$2:$AJ$172,22,0) -> nick.gregory@nhs.net | J29: =VLOOKUP(A29,[2]Sheet2!$A$2:$C$172, 3, 0) -> emma.savage8@nhs.net
A30: PZ027 | B30: Friarage Hospital | C30: Dr | D30: =VLOOKUP(A30,[1]Units!$A$2:$AJ$172,7,0) -> Dammann | E30: =VLOOKUP(A30,[1]Units!$A$2:$AJ$172,9,0) -> Dieter.dammann@nhs.net | G30: =VLOOKUP(A30,[1]Units!$A$2:$AJ$172,15,0) -> victoria.stevenson6@nhs.net | J30: =VLOOKUP(A30,[2]Sheet2!$A$2:$C$172, 3, 0) -> Jenny.foster5@nhs.net
A31: PZ028 | B31: Stoke Mandeville Hospital | C31: Dr | D31: =VLOOKUP(A31,[1]Units!$A$2:$AJ$172,7,0) -> Dutta | E31: =VLOOKUP(A31,[1]Units!$A$2:$AJ$172,9,0) -> Atanu.dutta@buckshealthcare.nhs.uk | F31: =VLOOKUP(A31,[1]Units!$A$2:$AJ$172,11,0) -> michelle.russell-taylor@nhs.net | G31: =VLOOKUP(A31,[1]Units!$A$2:$AJ$172,15,0) -> lyndaoswald@nhs.net | H31: =VLOOKUP(A31,[1]Units!$A$2:$AJ$172,19,0) -> jinkley@nhs.net | I31: =VLOOKUP(A31,[1]Units!$A$2:$AJ$172,22,0) -> louise.page1@nhs.net | J31: =VLOOKUP(A31,[2]Sheet2!$A$2:$C$172, 3, 0) -> Myfanwy.Champness@ouh.nhs.uk
A32: PZ030 | B32: Leighton Hospital | C32: Dr | D32: =VLOOKUP(A32,[1]Units!$A$2:$AJ$172,7,0) -> Pyper | E32: =VLOOKUP(A32,[1]Units!$A$2:$AJ$172,9,0) -> Sarah.Pyper@mcht.nhs.uk | G32: =VLOOKUP(A32,[1]Units!$A$2:$AJ$172,15,0) -> linda.edge@mcht.nhs.uk | H32: =VLOOKUP(A32,[1]Units!$A$2:$AJ$172,19,0) -> jennifer.carroll@mcht.nhs.uk; Stacey.bourne@mcht.nhs.uk; clinical.audit@mcht.nhs.uk | J32: =VLOOKUP(A32,[2]Sheet2!$A$2:$C$172, 3, 0) -> Margotcarson@nhs.net
A33: PZ031 | B33: St Richard's Hospital | C33: Dr | D33: =VLOOKUP(A33,[1]Units!$A$2:$AJ$172,7,0) -> Irvine | E33: =VLOOKUP(A33,[1]Units!$A$2:$AJ$172,9,0) -> v.irvine@nhs.net | G33: =VLOOKUP(A33,[1]Units!$A$2:$AJ$172,15,0) -> e.arkell@nhs.net | J33: =VLOOKUP(A33,[2]Sheet2!$A$2:$C$172, 3, 0) -> Lucy.Powell@hhft.nhs.uk
A34: PZ032 | B34: Royal Victoria Infirmary, Newcastle Upon Tyne | C34: Dr | D34: =VLOOKUP(A34,[1]Units!$A$2:$AJ$172,7,0) -> Schenk | E34: =VLOOKUP(A34,[1]Units!$A$2:$AJ$172,9,0) -> d.schenk@nhs.net | G34: =VLOOKUP(A34,[1]Units!$A$2:$AJ$172,15,0) -> jgane@nhs.net | H34: =VLOOKUP(A34,[1]Units!$A$2:$AJ$172,19,0) -> clare.bennett1@nhs.net | J34: =VLOOKUP(A34,[2]Sheet2!$A$2:$C$172, 3, 0) -> Jenny.foster5@nhs.net
A35: PZ033 | B35: Queens Hospital, Burton on Trent | C35: Dr | D35: =VLOOKUP(A35,[1]Units!$A$2:$AJ$172,7,0) -> Vasista | E35: =VLOOKUP(A35,[1]Units!$A$2:$AJ$172,9,0) -> p.vasista@nhs.net | F35: =VLOOKUP(A35,[1]Units!$A$2:$AJ$172,11,0) -> jordan.staples1@nhs.net | G35: =VLOOKUP(A35,[1]Units!$A$2:$AJ$172,15,0) -> Jane.Humphries1@nhs.net | H35: =VLOOKUP(A35,[1]Units!$A$2:$AJ$172,19,0) -> helen.ward27@nhs.net | I35: =VLOOKUP(A35,[1]Units!$A$2:$AJ$172,22,0) -> janea.parker@combined.nhs.uk | J35: =VLOOKUP(A35,[2]Sheet2!$A$2:$C$172, 3, 0) -> heather.clark26@nhs.net
A36: PZ034 | B36: Royal Hampshire County Hospital | C36: Dr | D36: =VLOOKUP(A36,[1]Units!$A$2:$AJ$172,7,0) -> Williams | E36: =VLOOKUP(A36,[1]Units!$A$2:$AJ$172,9,0) -> Eleri.Williams@hhft.nhs.uk | G36: =VLOOKUP(A36,[1]Units!$A$2:$AJ$172,15,0) -> Max.Priesemann@hhft.nhs.uk | H36: =VLOOKUP(A36,[1]Units!$A$2:$AJ$172,19,0) -> Eliza.wood@hhft.nhs.uk | I36: =VLOOKUP(A36,[1]Units!$A$2:$AJ$172,22,0) -> Julia.brown@hhft.nhs.uk | J36: =VLOOKUP(A36,[2]Sheet2!$A$2:$C$172, 3, 0) -> Lucy.Powell@hhft.nhs.uk
A37: PZ035 | B37: Royal Berkshire Hospital | C37: Dr | D37: =VLOOKUP(A37,[1]Units!$A$2:$AJ$172,7,0) -> Spinks | E37: =VLOOKUP(A37,[1]Units!$A$2:$AJ$172,9,0) -> jo.spinks@royalberkshire.nhs.uk | H37: =VLOOKUP(A37,[1]Units!$A$2:$AJ$172,19,0) -> andrea.jones@royalberkshire.nhs.uk | J37: =VLOOKUP(A37,[2]Sheet2!$A$2:$C$172, 3, 0) -> Myfanwy.Champness@ouh.nhs.uk
A38: PZ036 | B38: Whipps Cross University Hospital | C38: Dr | D38: =VLOOKUP(A38,[1]Units!$A$2:$AJ$172,7,0) -> Kalaivanan | E38: =VLOOKUP(A38,[1]Units!$A$2:$AJ$172,9,0) -> prabhakaran.kalaivanan@nhs.net | F38: =VLOOKUP(A38,[1]Units!$A$2:$AJ$172,11,0) -> Evelien.gevers@bartshealth.nhs.uk | G38: =VLOOKUP(A38,[1]Units!$A$2:$AJ$172,15,0) -> ruben.willemsen@nhs.net | H38: =VLOOKUP(A38,[1]Units!$A$2:$AJ$172,19,0) -> p.cifelli@nhs.net; julia.miller9@nhs.net | I38: =VLOOKUP(A38,[1]Units!$A$2:$AJ$172,22,0) -> nishal.patel6@nhs.net | J38: =VLOOKUP(A38,[2]Sheet2!$A$2:$C$172, 3, 0) -> Usha.Parkash@nhs.net
A39: PZ038 | B39: Wycombe General Hospital | C39: Dr | D39: =VLOOKUP(A39,[1]Units!$A$2:$AJ$172,7,0) -> Russell-Taylor | E39: =VLOOKUP(A39,[1]Units!$A$2:$AJ$172,9,0) -> Michelle.Russell-Taylor@buckshealthcare.nhs.uk | F39: =VLOOKUP(A39,[1]Units!$A$2:$AJ$172,11,0) -> atanudutta@nhs.net | G39: =VLOOKUP(A39,[1]Units!$A$2:$AJ$172,15,0) -> lyndaoswald@nhs.net | H39: =VLOOKUP(A39,[1]Units!$A$2:$AJ$172,19,0) -> jinkley@nhs.net | I39: =VLOOKUP(A39,[1]Units!$A$2:$AJ$172,22,0) -> louise.page1@nhs.net | J39: =VLOOKUP(A39,[2]Sheet2!$A$2:$C$172, 3, 0) -> Myfanwy.Champness@ouh.nhs.uk
A40: PZ040 | B40: Birmingham Heartlands Hospital | C40: Dr | D40: =VLOOKUP(A40,[1]Units!$A$2:$AJ$172,7,0) -> Karandikar | E40: =VLOOKUP(A40,[1]Units!$A$2:$AJ$172,9,0) -> Swati.Karandikar@heartofengland.nhs.uk | F40: =VLOOKUP(A40,[1]Units!$A$2:$AJ$172,11,0) -> dhaara.iyer@heartofengland.nhs.uk | J40: =VLOOKUP(A40,[2]Sheet2!$A$2:$C$172, 3, 0) -> heather.clark26@nhs.net
A41: PZ041 | B41: Addenbrooke's Hospital | C41: Dr | D41: =VLOOKUP(A41,[1]Units!$A$2:$AJ$172,7,0) -> Williams | E41: =VLOOKUP(A41,[1]Units!$A$2:$AJ$172,9,0) -> rachel.williams@addenbrookes.nhs.uk | G41: =VLOOKUP(A41,[1]Units!$A$2:$AJ$172,15,0) -> ajay.thankamony@addenbrookes.nhs.uk | J41: =VLOOKUP(A41,[2]Sheet2!$A$2:$C$172, 3, 0) -> Kate.Wilson@addenbrookes.nhs.uk
A42: PZ042 | B42: Nottingham Children's Hospital | C42: Dr | D42: =VLOOKUP(A42,[1]Units!$A$2:$AJ$172,7,0) -> Denvir | E42: =VLOOKUP(A42,[1]Units!$A$2:$AJ$172,9,0) -> Louise.denvir@nuh.nhs.uk | G42: =VLOOKUP(A42,[1]Units!$A$2:$AJ$172,15,0) -> Jennifer.morledge-seeds@nuh.nhs.uk | H42: =VLOOKUP(A42,[1]Units!$A$2:$AJ$172,19,0) -> rebecca.hughes@nuh.nhs.uk | I42: =VLOOKUP(A42,[1]Units!$A$2:$AJ$172,22,0) -> auditenquiries@nuh.nhs.uk | J42: =VLOOKUP(A42,[2]Sheet2!$A$2:$C$172, 3, 0) -> asmita.sedhai3@nhs.net
A43: PZ045 | B43: Whittington Hospital, London | C43: Dr | D43: =VLOOKUP(A43,[1]Units!$A$2:$AJ$172,7,0) -> Moyo | E43: =VLOOKUP(A43,[1]Units!$A$2:$AJ$172,9,0) -> y.moyo@nhs.net | F43: =VLOOKUP(A43,[1]Units!$A$2:$AJ$172,11,0) -> mohammadzubair.ahmad@nhs.net | G43: =VLOOKUP(A43,[1]Units!$A$2:$AJ$172,15,0) -> varsha.rajashekar@nhs.net | I43: =VLOOKUP(A43,[1]Units!$A$2:$AJ$172,22,0) -> sue.ellis5@nhs.net | J43: =VLOOKUP(A43,[2]Sheet2!$A$2:$C$172, 3, 0) -> Usha.Parkash@nhs.net
A44: PZ047 | B44: Airedale General Hospital, Keighley | C44: Dr | D44: =VLOOKUP(A44,[1]Units!$A$2:$AJ$172,7,0) -> Lennon | E44: =VLOOKUP(A44,[1]Units!$A$2:$AJ$172,9,0) -> Geraldine.lennon@anhst.nhs.uk | H44: =VLOOKUP(A44,[1]Units!$A$2:$AJ$172,19,0) -> Catherine.Gray@anhst.nhs.uk | J44: =VLOOKUP(A44,[2]Sheet2!$A$2:$C$172, 3, 0) -> emma.savage8@nhs.net
A45: PZ048 | B45: Lincoln County Hospital | C45: Dr | D45: =VLOOKUP(A45,[1]Units!$A$2:$AJ$172,7,0) -> Naydeva-Grigorova | E45: =VLOOKUP(A45,[1]Units!$A$2:$AJ$172,9,0) -> Tanya.Naydeva-Grigorova@ULH.nhs.uk | G45: =VLOOKUP(A45,[1]Units!$A$2:$AJ$172,15,0) -> Caroline.Pearce@ulh.nhs.uk | J45: =VLOOKUP(A45,[2]Sheet2!$A$2:$C$172, 3, 0) -> asmita.sedhai3@nhs.net
A46: PZ049 | B46: Warrington Hospital | C46: Dr | D46: =VLOOKUP(A46,[1]Units!$A$2:$AJ$172,7,0) -> Hulikere | E46: =VLOOKUP(A46,[1]Units!$A$2:$AJ$172,9,0) -> Hulikere.Satish@nhs.net | F46: =VLOOKUP(A46,[1]Units!$A$2:$AJ$172,11,0) -> lucy.unsworth@nhs.net | G46: =VLOOKUP(A46,[1]Units!$A$2:$AJ$172,15,0) -> elaine.holcroft@nhs.net | H46: =VLOOKUP(A46,[1]Units!$A$2:$AJ$172,19,0) -> claire.brookes11@nhs.net | J46: =VLOOKUP(A46,[2]Sheet2!$A$2:$C$172, 3, 0) -> Margotcarson@nhs.net
A47: PZ050 | B47: Epsom & St Helier University Hospitals NHS Trust | C47: Dr | D47: =VLOOKUP(A47,[1]Units!$A$2:$AJ$172,7,0) -> Marr | E47: =VLOOKUP(A47,[1]Units!$A$2:$AJ$172,9,0) -> t.marr@nhs.net | G47: =VLOOKUP(A47,[1]Units!$A$2:$AJ$172,15,0) -> aileen.alston@nhs.net | J47: =VLOOKUP(A47,[2]Sheet2!$A$2:$C$172, 3, 0) -> Usha.Parkash@nhs.net
A48: PZ053 | B48: Scunthorpe General Hospital | C48: Dr | D48: =VLOOKUP(A48,[1]Units!$A$2:$AJ$172,7,0) -> Madhusudhana | E48: =VLOOKUP(A48,[1]Units!$A$2:$AJ$172,9,0) -> m.madhusudhana@nhs.net | G48: =VLOOKUP(A48,[1]Units!$A$2:$AJ$172,15,0) -> hayli.garrod@nhs.net | H48: =VLOOKUP(A48,[1]Units!$A$2:$AJ$172,19,0) -> jane.ogg@nhs.net | J48: =VLOOKUP(A48,[2]Sheet2!$A$2:$C$172, 3, 0) -> emma.savage8@nhs.net
A49: PZ054 | B49: Poole General Hospital | C49: Dr | D49: =VLOOKUP(A49,[1]Units!$A$2:$AJ$172,7,0) -> McAulay | E49: =VLOOKUP(A49,[1]Units!$A$2:$AJ$172,9,0) -> Antoinette.McAulay@uhd.nhs.uk | G49: =VLOOKUP(A49,[1]Units!$A$2:$AJ$172,15,0) -> Victoria.Lowes@uhd.nhs.uk | H49: =VLOOKUP(A49,[1]Units!$A$2:$AJ$172,19,0) -> Elaine.leonard@uhd.nhs.uk | I49: =VLOOKUP(A49,[1]Units!$A$2:$AJ$172,22,0) -> rebecca.shephard@uhd.nhs.uk | J49: =VLOOKUP(A49,[2]Sheet2!$A$2:$C$172, 3, 0) -> Lucy.Powell@hhft.nhs.uk
A50: PZ055 | B50: Leicester Royal Infirmary | C50: Dr | D50: =VLOOKUP(A50,[1]Units!$A$2:$AJ$172,7,0) -> Sundaram | E50: =VLOOKUP(A50,[1]Units!$A$2:$AJ$172,9,0) -> Prem.Sundaram@uhl-tr.nhs.uk | G50: =VLOOKUP(A50,[1]Units!$A$2:$AJ$172,15,0) -> anbezhil.subbarayan@uhl-tr.nhs.uk | J50: =VLOOKUP(A50,[2]Sheet2!$A$2:$C$172, 3, 0) -> asmita.sedhai3@nhs.net
A51: PZ057 | B51: Kingston Hospital | C51: Dr | D51: =VLOOKUP(A51,[1]Units!$A$2:$AJ$172,7,0) -> Pai | E51: =VLOOKUP(A51,[1]Units!$A$2:$AJ$172,9,0) -> vinayak.pai2@nhs.net | F51: =VLOOKUP(A51,[1]Units!$A$2:$AJ$172,11,0) -> emma.stevens-tonks@nhs.net | G51: =VLOOKUP(A51,[1]Units!$A$2:$AJ$172,15,0) -> jgwynne@nhs.net | H51: =VLOOKUP(A51,[1]Units!$A$2:$AJ$172,19,0) -> k.spagnoli@nhs.net | I51: =VLOOKUP(A51,[1]Units!$A$2:$AJ$172,22,0) -> s.calas@nhs.net; v.manoharan@nhs.net | J51: =VLOOKUP(A51,[2]Sheet2!$A$2:$C$172, 3, 0) -> Usha.Parkash@nhs.net
A52: PZ058 | B52: Newham University Hospital | C52: Dr | D52: =VLOOKUP(A52,[1]Units!$A$2:$AJ$172,7,0) -> Sultana | E52: =VLOOKUP(A52,[1]Units!$A$2:$AJ$172,9,0) -> p.sultana@nhs.net | F52: =VLOOKUP(A52,[1]Units!$A$2:$AJ$172,11,0) -> ruben.willemsen@nhs.net | G52: =VLOOKUP(A52,[1]Units!$A$2:$AJ$172,15,0) -> Evelien.gevers@bartshealth.nhs.uk; | H52: =VLOOKUP(A52,[1]Units!$A$2:$AJ$172,19,0) -> julia.miller@bartshealth.nhs.uk; julia.miller9@nhs.net | J52: =VLOOKUP(A52,[2]Sheet2!$A$2:$C$172, 3, 0) -> Usha.Parkash@nhs.net
A53: PZ059 | B53: The Royal London Hospital | C53: Dr | D53: =VLOOKUP(A53,[1]Units!$A$2:$AJ$172,7,0) -> Willemsen | E53: =VLOOKUP(A53,[1]Units!$A$2:$AJ$172,9,0) -> ruben.willemsen@nhs.net | F53: =VLOOKUP(A53,[1]Units!$A$2:$AJ$172,11,0) -> nicky.moor1@nhs.net | G53: =VLOOKUP(A53,[1]Units!$A$2:$AJ$172,15,0) -> julia.miller9@nhs.net | H53: =VLOOKUP(A53,[1]Units!$A$2:$AJ$172,19,0) -> nishal.patel6@nhs.net | I53: =VLOOKUP(A53,[1]Units!$A$2:$AJ$172,22,0) -> Evelien.gevers@bartshealth.nhs.uk; | J53: =VLOOKUP(A53,[2]Sheet2!$A$2:$C$172, 3, 0) -> Usha.Parkash@nhs.net
A54: PZ060 | B54: Royal Devon and Exeter Hospital | C54: Dr | D54: =VLOOKUP(A54,[1]Units!$A$2:$AJ$172,7,0) -> Moudiotis | E54: =VLOOKUP(A54,[1]Units!$A$2:$AJ$172,9,0) -> christopher.moudiotis@nhs.net | G54: =VLOOKUP(A54,[1]Units!$A$2:$AJ$172,15,0) -> heather.fisher@nhs.net | H54: =VLOOKUP(A54,[1]Units!$A$2:$AJ$172,19,0) -> maria.leveridge@nhs.net | J54: =VLOOKUP(A54,[2]Sheet2!$A$2:$C$172, 3, 0) -> Lucyrowe@nhs.net
A55: PZ062 | B55: Croydon University Hospital | C55: Dr | D55: =VLOOKUP(A55,[1]Units!$A$2:$AJ$172,7,0) -> Holloway | E55: =VLOOKUP(A55,[1]Units!$A$2:$AJ$172,9,0) -> edward.holloway@nhs.net | F55: =VLOOKUP(A55,[1]Units!$A$2:$AJ$172,11,0) -> lhudson1@nhs.net | G55: =VLOOKUP(A55,[1]Units!$A$2:$AJ$172,15,0) -> n.sandford@nhs.net | H55: =VLOOKUP(A55,[1]Units!$A$2:$AJ$172,19,0) -> karen.burke10@nhs.net; sonja.allen3@nhs.net | I55: =VLOOKUP(A55,[1]Units!$A$2:$AJ$172,22,0) -> alice.mccann@nhs.net | J55: =VLOOKUP(A55,[2]Sheet2!$A$2:$C$172, 3, 0) -> Usha.Parkash@nhs.net
A56: PZ064 | B56: Chesterfield Royal Hospital | C56: Dr | D56: =VLOOKUP(A56,[1]Units!$A$2:$AJ$172,7,0) -> Mathew | E56: =VLOOKUP(A56,[1]Units!$A$2:$AJ$172,9,0) -> roby.mathew@nhs.net | H56: =VLOOKUP(A56,[1]Units!$A$2:$AJ$172,19,0) -> clairenelson1@nhs.net | I56: =VLOOKUP(A56,[1]Units!$A$2:$AJ$172,22,0) -> gemmabills@nhs.net | J56: =VLOOKUP(A56,[2]Sheet2!$A$2:$C$172, 3, 0) -> asmita.sedhai3@nhs.net
A57: PZ065 | B57: County Hospital Stafford | C57: Dr | D57: =VLOOKUP(A57,[1]Units!$A$2:$AJ$172,7,0) -> Raffeeq | E57: =VLOOKUP(A57,[1]Units!$A$2:$AJ$172,9,0) -> Parakkal.Raffeeq@uhnm.nhs.uk | F57: =VLOOKUP(A57,[1]Units!$A$2:$AJ$172,11,0) -> Emma.Lowe2@uhnm.nhs.uk | G57: =VLOOKUP(A57,[1]Units!$A$2:$AJ$172,15,0) -> nicola.marshall@uhnm.nhs.uk | H57: =VLOOKUP(A57,[1]Units!$A$2:$AJ$172,19,0) -> Mark.Jones@uhnm.nhs.uk | J57: =VLOOKUP(A57,[2]Sheet2!$A$2:$C$172, 3, 0) -> heather.clark26@nhs.net
A58: PZ067 | B58: Royal Cornwall Hospital | C58: Dr | D58: =VLOOKUP(A58,[1]Units!$A$2:$AJ$172,7,0) -> Mallam | E58: =VLOOKUP(A58,[1]Units!$A$2:$AJ$172,9,0) -> k.mallam@nhs.net | G58: =VLOOKUP(A58,[1]Units!$A$2:$AJ$172,15,0) -> julie.kirby3@nhs.net | H58: =VLOOKUP(A58,[1]Units!$A$2:$AJ$172,19,0) -> anita.england@nhs.net | J58: =VLOOKUP(A58,[2]Sheet2!$A$2:$C$172, 3, 0) -> Lucyrowe@nhs.net
A59: PZ068 | B59: Royal United Hospital | C59: Dr | D59: =VLOOKUP(A59,[1]Units!$A$2:$AJ$172,7,0) -> Edmonds | E59: =VLOOKUP(A59,[1]Units!$A$2:$AJ$172,9,0) -> clareedmonds@nhs.net | F59: =VLOOKUP(A59,[1]Units!$A$2:$AJ$172,11,0) -> Karen.bradshaw9@nhs.net | G59: =VLOOKUP(A59,[1]Units!$A$2:$AJ$172,15,0) -> carley.matthews@nhs.net | H59: =VLOOKUP(A59,[1]Units!$A$2:$AJ$172,19,0) -> lynn.diskin@nhs.net | I59: =VLOOKUP(A59,[1]Units!$A$2:$AJ$172,22,0) -> Edward.coxson@nhs.net | J59: =VLOOKUP(A59,[2]Sheet2!$A$2:$C$172, 3, 0) -> Lucyrowe@nhs.net
A60: PZ069 | B60: Stepping Hill Hospital | C60: Dr | D60: =VLOOKUP(A60,[1]Units!$A$2:$AJ$172,7,0) -> Cooper | E60: =VLOOKUP(A60,[1]Units!$A$2:$AJ$172,9,0) -> chris.cooper@stockport.nhs.uk | F60: =VLOOKUP(A60,[1]Units!$A$2:$AJ$172,11,0) -> Jenny.Hurst@stockport.nhs.uk | H60: =VLOOKUP(A60,[1]Units!$A$2:$AJ$172,19,0) -> Katie.beddows@stockport.nhs.uk | I60: =VLOOKUP(A60,[1]Units!$A$2:$AJ$172,22,0) -> Dawn.Welsford@stockport.nhs.uk | J60: =VLOOKUP(A60,[2]Sheet2!$A$2:$C$172, 3, 0) -> Margotcarson@nhs.net
A61: PZ072 | B61: West Suffolk Hospital, Bury St Edmunds | C61: Dr | D61: =VLOOKUP(A61,[1]Units!$A$2:$AJ$172,7,0) -> Anand | E61: =VLOOKUP(A61,[1]Units!$A$2:$AJ$172,9,0) -> binu.anand@wsh.nhs.uk | F61: =VLOOKUP(A61,[1]Units!$A$2:$AJ$172,11,0) -> Tom.Houghton@wsh.nhs.uk | G61: =VLOOKUP(A61,[1]Units!$A$2:$AJ$172,15,0) -> Helen.Handley@wsh.nhs.uk | H61: =VLOOKUP(A61,[1]Units!$A$2:$AJ$172,19,0) -> Julia.Harding@wsh.nhs.uk | I61: =VLOOKUP(A61,[1]Units!$A$2:$AJ$172,22,0) -> Emily.Baker@wsh.nhs.uk | J61: =VLOOKUP(A61,[2]Sheet2!$A$2:$C$172, 3, 0) -> Kate.Wilson@addenbrookes.nhs.uk
A62: PZ073 | B62: Alexandra Hospital | C62: Dr | D62: =VLOOKUP(A62,[1]Units!$A$2:$AJ$172,7,0) -> Ahmad | E62: =VLOOKUP(A62,[1]Units!$A$2:$AJ$172,9,0) -> naeem.ahmad3@nhs.net | F62: =VLOOKUP(A62,[1]Units!$A$2:$AJ$172,11,0) -> jameswest@nhs.net | G62: =VLOOKUP(A62,[1]Units!$A$2:$AJ$172,15,0) -> Susan.cockcroft@nhs.net | H62: =VLOOKUP(A62,[1]Units!$A$2:$AJ$172,19,0) -> dianecluley@nhs.net | I62: =VLOOKUP(A62,[1]Units!$A$2:$AJ$172,22,0) -> Gaynor.richardson@nhs.net | J62: =VLOOKUP(A62,[2]Sheet2!$A$2:$C$172, 3, 0) -> heather.clark26@nhs.net
A63: PZ074 | B63: Alder Hey Childrens Hospital | C63: Dr | D63: =VLOOKUP(A63,[1]Units!$A$2:$AJ$172,7,0) -> Ghatak | E63: =VLOOKUP(A63,[1]Units!$A$2:$AJ$172,9,0) -> atrayee.ghatak@alderhey.nhs.uk | F63: =VLOOKUP(A63,[1]Units!$A$2:$AJ$172,11,0) -> mark.deakin@alderhey.nhs.uk | G63: =VLOOKUP(A63,[1]Units!$A$2:$AJ$172,15,0) -> fulya.mehta@alderhey.nhs.uk | I63: =VLOOKUP(A63,[1]Units!$A$2:$AJ$172,22,0) -> princy.paul@alderhey.nhs.uk; Neil.Olsson-Brown@alderhey.nhs.uk | J63: =VLOOKUP(A63,[2]Sheet2!$A$2:$C$172, 3, 0) -> Margotcarson@nhs.net
A64: PZ075 | B64: St Mary's Hospital, Isle of Wight | C64: Dr | D64: =VLOOKUP(A64,[1]Units!$A$2:$AJ$172,7,0) -> Ogundiya | E64: =VLOOKUP(A64,[1]Units!$A$2:$AJ$172,9,0) -> Akinsola.ogundiya@nhs.net | G64: =VLOOKUP(A64,[1]Units!$A$2:$AJ$172,15,0) -> ashley.rawling@nhs.net | I64: =VLOOKUP(A64,[1]Units!$A$2:$AJ$172,22,0) -> terry.patrick@nhs.net | J64: =VLOOKUP(A64,[2]Sheet2!$A$2:$C$172, 3, 0) -> Lucy.Powell@hhft.nhs.uk
A65: PZ076 | B65: Colchester General Hospital | C65: Dr | D65: =VLOOKUP(A65,[1]Units!$A$2:$AJ$172,7,0) -> Shinkar | E65: =VLOOKUP(A65,[1]Units!$A$2:$AJ$172,9,0) -> rajeev.shinkar@esneft.nhs.uk; rajeevshinkar@nhs.net | F65: =VLOOKUP(A65,[1]Units!$A$2:$AJ$172,11,0) -> hannah.meek@colchesterhospital.nhs.uk | G65: =VLOOKUP(A65,[1]Units!$A$2:$AJ$172,15,0) -> Nicola.Cackett@esneft.nhs.uk | H65: =VLOOKUP(A65,[1]Units!$A$2:$AJ$172,19,0) -> natalie.jordan@colchesterhospital.nhs.uk; Stanislava.Cantwell@colchesterhospital.nhs.uk | I65: =VLOOKUP(A65,[1]Units!$A$2:$AJ$172,22,0) -> NationalAudit@esneft.nhs.uk | J65: =VLOOKUP(A65,[2]Sheet2!$A$2:$C$172, 3, 0) -> Kate.Wilson@addenbrookes.nhs.uk
A66: PZ078 | B66: Royal Stoke University Hospital | C66: Dr | D66: =VLOOKUP(A66,[1]Units!$A$2:$AJ$172,7,0) -> Raffeeq | E66: =VLOOKUP(A66,[1]Units!$A$2:$AJ$172,9,0) -> Parakkal.Raffeeq@uhnm.nhs.uk | F66: =VLOOKUP(A66,[1]Units!$A$2:$AJ$172,11,0) -> Emma.Lowe2@uhnm.nhs.uk | G66: =VLOOKUP(A66,[1]Units!$A$2:$AJ$172,15,0) -> NICOLA.MARSHALL@uhnm.nhs.uk | H66: =VLOOKUP(A66,[1]Units!$A$2:$AJ$172,19,0) -> Mark.Jones@uhnm.nhs.uk | J66: =VLOOKUP(A66,[2]Sheet2!$A$2:$C$172, 3, 0) -> heather.clark26@nhs.net
A67: PZ080 | B67: Sunderland Royal Hospital | C67: Dr | D67: =VLOOKUP(A67,[1]Units!$A$2:$AJ$172,7,0) -> Hopper | E67: =VLOOKUP(A67,[1]Units!$A$2:$AJ$172,9,0) -> neil.hopper@chsft.nhs.uk; n.hopper@nhs.net | F67: =VLOOKUP(A67,[1]Units!$A$2:$AJ$172,11,0) -> Josephine.flowers@chsft.nhs.uk | G67: =VLOOKUP(A67,[1]Units!$A$2:$AJ$172,15,0) -> caroline.robson@nhs.net | H67: =VLOOKUP(A67,[1]Units!$A$2:$AJ$172,19,0) -> gillian.hanratty@nhs.net | J67: =VLOOKUP(A67,[2]Sheet2!$A$2:$C$172, 3, 0) -> Jenny.foster5@nhs.net
A68: PZ082 | B68: Evelina Childrens Hospital | C68: Dr | D68: =VLOOKUP(A68,[1]Units!$A$2:$AJ$172,7,0) -> Ajzensztejn | E68: =VLOOKUP(A68,[1]Units!$A$2:$AJ$172,9,0) -> michal.ajzensztejn@gstt.nhs.uk | F68: =VLOOKUP(A68,[1]Units!$A$2:$AJ$172,11,0) -> sophia.sakka@gstt.nhs.uk | G68: =VLOOKUP(A68,[1]Units!$A$2:$AJ$172,15,0) -> Sophia.Chukwumah@gstt.nhs.uk | H68: =VLOOKUP(A68,[1]Units!$A$2:$AJ$172,19,0) -> PaediatricDiabetesTeam@gstt.nhs.uk | I68: =VLOOKUP(A68,[1]Units!$A$2:$AJ$172,22,0) -> Moira.Cheung@gstt.nhs.uk | J68: =VLOOKUP(A68,[2]Sheet2!$A$2:$C$172, 3, 0) -> Usha.Parkash@nhs.net
A69: PZ084 | B69: Kidderminster Hospital | C69: Dr | D69: =VLOOKUP(A69,[1]Units!$A$2:$AJ$172,7,0) -> West | E69: =VLOOKUP(A69,[1]Units!$A$2:$AJ$172,9,0) -> jameswest@nhs.net | F69: =VLOOKUP(A69,[1]Units!$A$2:$AJ$172,11,0) -> Traceyjones7@nhs.net | G69: =VLOOKUP(A69,[1]Units!$A$2:$AJ$172,15,0) -> susan.cockcroft@nhs.net | H69: =VLOOKUP(A69,[1]Units!$A$2:$AJ$172,19,0) -> Dianecluley@nhs.net | I69: =VLOOKUP(A69,[1]Units!$A$2:$AJ$172,22,0) -> Beverly.darbyshire@nhs.net | J69: =VLOOKUP(A69,[2]Sheet2!$A$2:$C$172, 3, 0) -> heather.clark26@nhs.net
A70: PZ085 | B70: Princess Royal University Hospital | C70: Dr | D70: =VLOOKUP(A70,[1]Units!$A$2:$AJ$172,7,0) -> Abbot | E70: =VLOOKUP(A70,[1]Units!$A$2:$AJ$172,9,0) -> vabbot@nhs.net | G70: =VLOOKUP(A70,[1]Units!$A$2:$AJ$172,15,0) -> julia.phillips6@nhs.net | H70: =VLOOKUP(A70,[1]Units!$A$2:$AJ$172,19,0) -> bernadette.jamboria@nhs.net | I70: =VLOOKUP(A70,[1]Units!$A$2:$AJ$172,22,0) -> j.gnanendran@nhs.net | J70: =VLOOKUP(A70,[2]Sheet2!$A$2:$C$172, 3, 0) -> Usha.Parkash@nhs.net
A71: PZ086 | B71: Hinchingbrooke Hospital | C71: Dr | D71: =VLOOKUP(A71,[1]Units!$A$2:$AJ$172,7,0) -> Goonetilleke | E71: =VLOOKUP(A71,[1]Units!$A$2:$AJ$172,9,0) -> rajiv.goonetilleke@nhs.net | G71: =VLOOKUP(A71,[1]Units!$A$2:$AJ$172,15,0) -> madhu.easwariah@nhs.net | H71: =VLOOKUP(A71,[1]Units!$A$2:$AJ$172,19,0) -> victoriawilliams4@nhs.net | J71: =VLOOKUP(A71,[2]Sheet2!$A$2:$C$172, 3, 0) -> Kate.Wilson@addenbrookes.nhs.uk
A72: PZ088 | B72: Royal Surrey County Hospital | C72: Dr | D72: =VLOOKUP(A72,[1]Units!$A$2:$AJ$172,7,0) -> Sumner | E72: =VLOOKUP(A72,[1]Units!$A$2:$AJ$172,9,0) -> alexander.sumner@nhs.net | F72: =VLOOKUP(A72,[1]Units!$A$2:$AJ$172,11,0) -> emmaestevens@nhs.net | H72: =VLOOKUP(A72,[1]Units!$A$2:$AJ$172,19,0) -> janani.cittambalam@nhs.net | J72: =VLOOKUP(A72,[2]Sheet2!$A$2:$C$172, 3, 0) -> Usha.Parkash@nhs.net
A73: PZ089 | B73: Northwick Park Hospital | C73: Dr | D73: =VLOOKUP(A73,[1]Units!$A$2:$AJ$172,7,0) -> Ali | E73: =VLOOKUP(A73,[1]Units!$A$2:$AJ$172,9,0) -> ashiya.ali@nhs.net | F73: =VLOOKUP(A73,[1]Units!$A$2:$AJ$172,11,0) -> nilanjana.ray@nhs.net | G73: =VLOOKUP(A73,[1]Units!$A$2:$AJ$172,15,0) -> nilanjana.ray@nhs.net | H73: =VLOOKUP(A73,[1]Units!$A$2:$AJ$172,19,0) -> dpoole@nhs.net | J73: =VLOOKUP(A73,[2]Sheet2!$A$2:$C$172, 3, 0) -> Usha.Parkash@nhs.net
A74: PZ091 | B74: Royal Blackburn Hospital | C74: Dr | D74: =VLOOKUP(A74,[1]Units!$A$2:$AJ$172,7,0) -> Gardner | E74: =VLOOKUP(A74,[1]Units!$A$2:$AJ$172,9,0) -> Chris.Gardner@elht.nhs.uk | G74: =VLOOKUP(A74,[1]Units!$A$2:$AJ$172,15,0) -> Janet.Soo@elht.nhs.uk | H74: =VLOOKUP(A74,[1]Units!$A$2:$AJ$172,19,0) -> victoria.phillips@elht.nhs.uk | I74: =VLOOKUP(A74,[1]Units!$A$2:$AJ$172,22,0) -> Beverley.King2@elht.nhs.uk | J74: =VLOOKUP(A74,[2]Sheet2!$A$2:$C$172, 3, 0) -> Margotcarson@nhs.net
A75: PZ092 | B75: Princess of Wales Hospital, Bridgend | C75: Dr | D75: =VLOOKUP(A75,[1]Units!$A$2:$AJ$172,7,0) -> Jain | E75: =VLOOKUP(A75,[1]Units!$A$2:$AJ$172,9,0) -> Shikha.Jain@wales.nhs.uk | G75: =VLOOKUP(A75,[1]Units!$A$2:$AJ$172,15,0) -> Nirupa.D'Souza@wales.nhs.uk | H75: =VLOOKUP(A75,[1]Units!$A$2:$AJ$172,19,0) -> Paul.Leach3@wales.nhs.uk; | J75: =VLOOKUP(A75,[2]Sheet2!$A$2:$C$172, 3, 0) -> Jon.Matthias@wales.nhs.uk
A76: PZ094 | B76: Princess Royal Hospital | C76: Dr | D76: =VLOOKUP(A76,[1]Units!$A$2:$AJ$172,7,0) -> McCrea | E76: =VLOOKUP(A76,[1]Units!$A$2:$AJ$172,9,0) -> k.mccrea@nhs.net | G76: =VLOOKUP(A76,[1]Units!$A$2:$AJ$172,15,0) -> janine.gill1@nhs.net | J76: =VLOOKUP(A76,[2]Sheet2!$A$2:$C$172, 3, 0) -> heather.clark26@nhs.net
A77: PZ096 | B77: Derriford Hospital | C77: Dr | D77: =VLOOKUP(A77,[1]Units!$A$2:$AJ$172,7,0) -> Alins-sahun | E77: =VLOOKUP(A77,[1]Units!$A$2:$AJ$172,9,0) -> yolanda.alins-sahun@nhs.net | G77: =VLOOKUP(A77,[1]Units!$A$2:$AJ$172,15,0) -> georginaselby@nhs.net | J77: =VLOOKUP(A77,[2]Sheet2!$A$2:$C$172, 3, 0) -> Lucyrowe@nhs.net
A78: PZ097 | B78: City Hospital, Birmingham | C78: Dr | D78: =VLOOKUP(A78,[1]Units!$A$2:$AJ$172,7,0) -> Bandhakavi | E78: =VLOOKUP(A78,[1]Units!$A$2:$AJ$172,9,0) -> m.bandhakavi@nhs.net | G78: =VLOOKUP(A78,[1]Units!$A$2:$AJ$172,15,0) -> angela.ruizmorales@nhs.net | J78: =VLOOKUP(A78,[2]Sheet2!$A$2:$C$172, 3, 0) -> heather.clark26@nhs.net
A79: PZ099 | B79: East and North Hertfordshire NHS Trust | C79: Dr | D79: =VLOOKUP(A79,[1]Units!$A$2:$AJ$172,7,0) -> Matei | E79: =VLOOKUP(A79,[1]Units!$A$2:$AJ$172,9,0) -> Cristina.Matei@nhs.net | F79: =VLOOKUP(A79,[1]Units!$A$2:$AJ$172,11,0) -> cbasey@nhs.net | G79: =VLOOKUP(A79,[1]Units!$A$2:$AJ$172,15,0) -> denisechilton@nhs.net | J79: =VLOOKUP(A79,[2]Sheet2!$A$2:$C$172, 3, 0) -> Kate.Wilson@addenbrookes.nhs.uk
A80: PZ100 | B80: North Devon District Hospital | C80: Dr | D80: =VLOOKUP(A80,[1]Units!$A$2:$AJ$172,7,0) -> Davison | E80: =VLOOKUP(A80,[1]Units!$A$2:$AJ$172,9,0) -> s.davison1@nhs.net | G80: =VLOOKUP(A80,[1]Units!$A$2:$AJ$172,15,0) -> ndht.cypdiabetes@nhs.net | H80: =VLOOKUP(A80,[1]Units!$A$2:$AJ$172,19,0) -> sally.jefferies@nhs.net | J80: =VLOOKUP(A80,[2]Sheet2!$A$2:$C$172, 3, 0) -> Lucyrowe@nhs.net
A81: PZ101 | B81: Leeds Childrens' Hospital | C81: Dr | D81: =VLOOKUP(A81,[1]Units!$A$2:$AJ$172,7,0) -> Campbell | E81: =VLOOKUP(A81,[1]Units!$A$2:$AJ$172,9,0) -> fiona.campbell26@nhs.net | G81: =VLOOKUP(A81,[1]Units!$A$2:$AJ$172,15,0) -> libby.adams@nhs.net | H81: =VLOOKUP(A81,[1]Units!$A$2:$AJ$172,19,0) -> franceshanson@nhs.net | J81: =VLOOKUP(A81,[2]Sheet2!$A$2:$C$172, 3, 0) -> emma.savage8@nhs.net
A82: PZ102 | B82: The Hillingdon Hospital | C82: Dr | D82: =VLOOKUP(A82,[1]Units!$A$2:$AJ$172,7,0) -> Ganapathi | E82: =VLOOKUP(A82,[1]Units!$A$2:$AJ$172,9,0) -> jaikumar.ganapathi@nhs.net | F82: =VLOOKUP(A82,[1]Units!$A$2:$AJ$172,11,0) -> sharanjit.cheema@nhs.net | G82: =VLOOKUP(A82,[1]Units!$A$2:$AJ$172,15,0) -> jasjitbhandari@nhs.net | H82: =VLOOKUP(A82,[1]Units!$A$2:$AJ$172,19,0) -> Catherine.tapping@nhs.net | J82: =VLOOKUP(A82,[2]Sheet2!$A$2:$C$172, 3, 0) -> Usha.Parkash@nhs.net
A83: PZ104 | B83: Royal Albert Edward Infirmary | C83: Dr | D83: =VLOOKUP(A83,[1]Units!$A$2:$AJ$172,7,0) -> Robinson | E83: =VLOOKUP(A83,[1]Units!$A$2:$AJ$172,9,0) -> Mark.Robinson@wwl.nhs.uk | G83: =VLOOKUP(A83,[1]Units!$A$2:$AJ$172,15,0) -> vineeta.joshi@wwl.nhs.uk | H83: =VLOOKUP(A83,[1]Units!$A$2:$AJ$172,19,0) -> Leeanne.sumner@wwl.nhs.uk | I83: =VLOOKUP(A83,[1]Units!$A$2:$AJ$172,22,0) -> Lucy.Rutter@wwl.nhs.uk | J83: =VLOOKUP(A83,[2]Sheet2!$A$2:$C$172, 3, 0) -> Margotcarson@nhs.net
A84: PZ105 | B84: St Luke's Hospital | C84: Dr | D84: =VLOOKUP(A84,[1]Units!$A$2:$AJ$172,7,0) -> Gorman | E84: =VLOOKUP(A84,[1]Units!$A$2:$AJ$172,9,0) -> shaun.gorman@bthft.nhs.uk | F84: =VLOOKUP(A84,[1]Units!$A$2:$AJ$172,11,0) -> Mathew.Mathai@bthft.nhs.uk | G84: =VLOOKUP(A84,[1]Units!$A$2:$AJ$172,15,0) -> Sarah.Haigh@bthft.nhs.uk | H84: =VLOOKUP(A84,[1]Units!$A$2:$AJ$172,19,0) -> Alison.Woodhead@bthft.nhs.uk | I84: =VLOOKUP(A84,[1]Units!$A$2:$AJ$172,22,0) -> clinicaleffectiveness@bthft.nhs.uk; donna.ashcroft@bthft.nhs.uk | J84: =VLOOKUP(A84,[2]Sheet2!$A$2:$C$172, 3, 0) -> emma.savage8@nhs.net
A85: PZ106 | B85: Victoria Hospital, Blackpool | C85: Dr | D85: =VLOOKUP(A85,[1]Units!$A$2:$AJ$172,7,0) -> Ahmed | E85: =VLOOKUP(A85,[1]Units!$A$2:$AJ$172,9,0) -> drahmed@nhs.net | F85: =VLOOKUP(A85,[1]Units!$A$2:$AJ$172,11,0) -> ismail.dalal@nhs.net | J85: =VLOOKUP(A85,[2]Sheet2!$A$2:$C$172, 3, 0) -> Margotcarson@nhs.net
A86: PZ107 | B86: Queen Elizabeth Hospital, Gateshead | C86: Dr | D86: =VLOOKUP(A86,[1]Units!$A$2:$AJ$172,7,0) -> Reid | E86: =VLOOKUP(A86,[1]Units!$A$2:$AJ$172,9,0) -> judith.reid4@nhs.net | F86: =VLOOKUP(A86,[1]Units!$A$2:$AJ$172,11,0) -> s.saranga@nhs.net | G86: =VLOOKUP(A86,[1]Units!$A$2:$AJ$172,15,0) -> Judith.reid4@nhs.net | H86: =VLOOKUP(A86,[1]Units!$A$2:$AJ$172,19,0) -> lynsey.kennedy@nhs.net | J86: =VLOOKUP(A86,[2]Sheet2!$A$2:$C$172, 3, 0) -> Jenny.foster5@nhs.net
A87: PZ108 | B87: Birmingham Children's Hospital | C87: Dr | D87: =VLOOKUP(A87,[1]Units!$A$2:$AJ$172,7,0) -> Dias | E87: =VLOOKUP(A87,[1]Units!$A$2:$AJ$172,9,0) -> r.dias1@nhs.net | F87: =VLOOKUP(A87,[1]Units!$A$2:$AJ$172,11,0) -> suma.uday@nhs.net | G87: =VLOOKUP(A87,[1]Units!$A$2:$AJ$172,15,0) -> mariemcelroy@nhs.net | J87: =VLOOKUP(A87,[2]Sheet2!$A$2:$C$172, 3, 0) -> heather.clark26@nhs.net
A88: PZ109 | B88: Southampton Children’s Hospital | C88: Dr | D88: =VLOOKUP(A88,[1]Units!$A$2:$AJ$172,7,0) -> Trevelyan | E88: =VLOOKUP(A88,[1]Units!$A$2:$AJ$172,9,0) -> Nicola.Trevelyan@uhs.nhs.uk | G88: =VLOOKUP(A88,[1]Units!$A$2:$AJ$172,15,0) -> Lucy.Trubacik@uhs.nhs.uk | H88: =VLOOKUP(A88,[1]Units!$A$2:$AJ$172,19,0) -> Lisa.Horton@uhs.nhs.uk | I88: =VLOOKUP(A88,[1]Units!$A$2:$AJ$172,22,0) -> chdf@mrc.soton.ac.uk | J88: =VLOOKUP(A88,[2]Sheet2!$A$2:$C$172, 3, 0) -> Lucy.Powell@hhft.nhs.uk
A89: PZ110 | B89: Ormskirk & District General Hospital | C89: Dr | D89: =VLOOKUP(A89,[1]Units!$A$2:$AJ$172,7,0) -> Ng | E89: =VLOOKUP(A89,[1]Units!$A$2:$AJ$172,9,0) -> may.ng@nhs.net | G89: =VLOOKUP(A89,[1]Units!$A$2:$AJ$172,15,0) -> angela.ashurst@nhs.net | H89: =VLOOKUP(A89,[1]Units!$A$2:$AJ$172,19,0) -> lynnefinnigan@nhs.net | I89: =VLOOKUP(A89,[1]Units!$A$2:$AJ$172,22,0) -> michelle.quinn2@nhs.net | J89: =VLOOKUP(A89,[2]Sheet2!$A$2:$C$172, 3, 0) -> Margotcarson@nhs.net
A90: PZ111 | B90: Hereford County Hospital | C90: Dr | D90: =VLOOKUP(A90,[1]Units!$A$2:$AJ$172,7,0) -> Balehithlu | E90: =VLOOKUP(A90,[1]Units!$A$2:$AJ$172,9,0) -> Hemantha.balehithlu@wvt.nhs.uk | G90: =VLOOKUP(A90,[1]Units!$A$2:$AJ$172,15,0) -> ainsley.rees@wvt.nhs.uk | H90: =VLOOKUP(A90,[1]Units!$A$2:$AJ$172,19,0) -> mark.weston@wvt.nhs.uk | I90: =VLOOKUP(A90,[1]Units!$A$2:$AJ$172,22,0) -> Joanne.Hall@wvt.nhs.uk | J90: =VLOOKUP(A90,[2]Sheet2!$A$2:$C$172, 3, 0) -> heather.clark26@nhs.net
A91: PZ112 | B91: Scarborough General Hospital | C91: Dr | D91: =VLOOKUP(A91,[1]Units!$A$2:$AJ$172,7,0) -> Martin | E91: =VLOOKUP(A91,[1]Units!$A$2:$AJ$172,9,0) -> Sarah.Martin@york.nhs.uk | F91: =VLOOKUP(A91,[1]Units!$A$2:$AJ$172,11,0) -> clinicaleffectivenessteam@york.nhs.uk | G91: =VLOOKUP(A91,[1]Units!$A$2:$AJ$172,15,0) -> suzannewright@nhs.net | I91: =VLOOKUP(A91,[1]Units!$A$2:$AJ$172,22,0) -> kelly.render@nhs.net | J91: =VLOOKUP(A91,[2]Sheet2!$A$2:$C$172, 3, 0) -> emma.savage8@nhs.net
A92: PZ113 | B92: University Hospital of Wales | C92: Dr | D92: =VLOOKUP(A92,[1]Units!$A$2:$AJ$172,7,0) -> Shetty | E92: =VLOOKUP(A92,[1]Units!$A$2:$AJ$172,9,0) -> ambika.shetty@wales.nhs.uk | F92: =VLOOKUP(A92,[1]Units!$A$2:$AJ$172,11,0) -> justin.warner@wales.nhs.uk | G92: =VLOOKUP(A92,[1]Units!$A$2:$AJ$172,15,0) -> rachel.harris3@wales.nhs.uk | H92: =VLOOKUP(A92,[1]Units!$A$2:$AJ$172,19,0) -> Alexandra.Scott2@wales.nhs.uk | I92: =VLOOKUP(A92,[1]Units!$A$2:$AJ$172,22,0) -> rebekah.pryce@wales.nhs.uk | J92: =VLOOKUP(A92,[2]Sheet2!$A$2:$C$172, 3, 0) -> Jon.Matthias@wales.nhs.uk
A93: PZ114 | B93: The York Hospital | C93: Dr | D93: =VLOOKUP(A93,[1]Units!$A$2:$AJ$172,7,0) -> Watts | E93: =VLOOKUP(A93,[1]Units!$A$2:$AJ$172,9,0) -> Wendy.watts@york.nhs.uk | F93: =VLOOKUP(A93,[1]Units!$A$2:$AJ$172,11,0) -> dominic.smith@york.nhs.uk | G93: =VLOOKUP(A93,[1]Units!$A$2:$AJ$172,15,0) -> Angela.Shroder@york.nhs.uk | H93: =VLOOKUP(A93,[1]Units!$A$2:$AJ$172,19,0) -> ruth.kingsley@york.nhs.uk | I93: =VLOOKUP(A93,[1]Units!$A$2:$AJ$172,22,0) -> Ella.Watola@YORK.NHS.UK | J93: =VLOOKUP(A93,[2]Sheet2!$A$2:$C$172, 3, 0) -> emma.savage8@nhs.net
A94: PZ118 | B94: University Hospital Lewisham | C94: Dr | D94: =VLOOKUP(A94,[1]Units!$A$2:$AJ$172,7,0) -> Lawrence | E94: =VLOOKUP(A94,[1]Units!$A$2:$AJ$172,9,0) -> joanna.lawrence@nhs.net | G94: =VLOOKUP(A94,[1]Units!$A$2:$AJ$172,15,0) -> sarah.goreham@nhs.net | J94: =VLOOKUP(A94,[2]Sheet2!$A$2:$C$172, 3, 0) -> Usha.Parkash@nhs.net
A95: PZ119 | B95: Darent Valley Hospital, Dartford | C95: Dr | D95: =VLOOKUP(A95,[1]Units!$A$2:$AJ$172,7,0) -> Gupta | E95: =VLOOKUP(A95,[1]Units!$A$2:$AJ$172,9,0) -> alokgupta@nhs.net | F95: =VLOOKUP(A95,[1]Units!$A$2:$AJ$172,11,0) -> kishaneekiriella@nhs.net | G95: =VLOOKUP(A95,[1]Units!$A$2:$AJ$172,15,0) -> juliehudson@nhs.net | H95: =VLOOKUP(A95,[1]Units!$A$2:$AJ$172,19,0) -> c.ticehurst@nhs.net | I95: =VLOOKUP(A95,[1]Units!$A$2:$AJ$172,22,0) -> sukhvinderkaur@nhs.net; dgn-tr.clinicalaudit@nhs.net | J95: =VLOOKUP(A95,[2]Sheet2!$A$2:$C$172, 3, 0) -> Usha.Parkash@nhs.net
A96: PZ120 | B96: North Tyneside General Hospital | C96: Dr | D96: =VLOOKUP(A96,[1]Units!$A$2:$AJ$172,7,0) -> Bruce | E96: =VLOOKUP(A96,[1]Units!$A$2:$AJ$172,9,0) -> stephen.bruce@nhct.nhs.uk | F96: =VLOOKUP(A96,[1]Units!$A$2:$AJ$172,11,0) -> Fiona.fairlie@nhct.nhs.uk | J96: =VLOOKUP(A96,[2]Sheet2!$A$2:$C$172, 3, 0) -> Jenny.foster5@nhs.net
A97: PZ121 | B97: George Eliot Hospital | C97: Dr | D97: =VLOOKUP(A97,[1]Units!$A$2:$AJ$172,7,0) -> Puttha | E97: =VLOOKUP(A97,[1]Units!$A$2:$AJ$172,9,0) -> radhika.puttha@nhs.net | F97: =VLOOKUP(A97,[1]Units!$A$2:$AJ$172,11,0) -> Olumuyiwa.oso@geh.nhs.uk | H97: =VLOOKUP(A97,[1]Units!$A$2:$AJ$172,19,0) -> Clare.neail@geh.nhs.uk | I97: =VLOOKUP(A97,[1]Units!$A$2:$AJ$172,22,0) -> joanne.webb@geh.nhs.uk; | J97: =VLOOKUP(A97,[2]Sheet2!$A$2:$C$172, 3, 0) -> heather.clark26@nhs.net
A98: PZ122 | B98: University Hospital, Coventry | C98: Dr | D98: =VLOOKUP(A98,[1]Units!$A$2:$AJ$172,7,0) -> Karthikeyan | E98: =VLOOKUP(A98,[1]Units!$A$2:$AJ$172,9,0) -> ambika.karthikeyan@uhcw.nhs.uk | G98: =VLOOKUP(A98,[1]Units!$A$2:$AJ$172,15,0) -> laura.bambrick@uhcw.nhs.uk | H98: =VLOOKUP(A98,[1]Units!$A$2:$AJ$172,19,0) -> uhc-tr.paediatricdiabetes@nhs.net | J98: =VLOOKUP(A98,[2]Sheet2!$A$2:$C$172, 3, 0) -> heather.clark26@nhs.net
A99: PZ125 | B99: Maidstone Hospital | C99: Dr | D99: =VLOOKUP(A99,[1]Units!$A$2:$AJ$172,7,0) -> Khanna | E99: =VLOOKUP(A99,[1]Units!$A$2:$AJ$172,9,0) -> ankit.khanna@nhs.net | F99: =VLOOKUP(A99,[1]Units!$A$2:$AJ$172,11,0) -> kpathy@nhs.net | G99: =VLOOKUP(A99,[1]Units!$A$2:$AJ$172,15,0) -> mlibby@nhs.net | I99: =VLOOKUP(A99,[1]Units!$A$2:$AJ$172,22,0) -> Stephanie.smith29@nhs.net | J99: =VLOOKUP(A99,[2]Sheet2!$A$2:$C$172, 3, 0) -> Usha.Parkash@nhs.net
A100: PZ126 | B100: Medway Maritime Hospital | C100: Dr | D100: =VLOOKUP(A100,[1]Units!$A$2:$AJ$172,7,0) -> Ranasinghe | E100: =VLOOKUP(A100,[1]Units!$A$2:$AJ$172,9,0) -> asankharanasinghe@nhs.net | F100: =VLOOKUP(A100,[1]Units!$A$2:$AJ$172,11,0) -> Nicola.richards1@nhs.net | G100: =VLOOKUP(A100,[1]Units!$A$2:$AJ$172,15,0) -> malathi.kurre@nhs.net | J100: =VLOOKUP(A100,[2]Sheet2!$A$2:$C$172, 3, 0) -> Usha.Parkash@nhs.net
A101: PZ127 | B101: James Paget Hospital | C101: Dr | D101: =VLOOKUP(A101,[1]Units!$A$2:$AJ$172,7,0) -> Gurung | E101: =VLOOKUP(A101,[1]Units!$A$2:$AJ$172,9,0) -> Himal.Gurung@nhs.net | G101: =VLOOKUP(A101,[1]Units!$A$2:$AJ$172,15,0) -> Pauline.Phillips@JPaget.nhs.uk | H101: =VLOOKUP(A101,[1]Units!$A$2:$AJ$172,19,0) -> clinicalaudit@jpaget.nhs.uk | J101: =VLOOKUP(A101,[2]Sheet2!$A$2:$C$172, 3, 0) -> Kate.Wilson@addenbrookes.nhs.uk
A102: PZ128 | B102: Pilgrim Hospital | C102: Dr | D102: =VLOOKUP(A102,[1]Units!$A$2:$AJ$172,7,0) -> Naydeva-Grigorova | E102: =VLOOKUP(A102,[1]Units!$A$2:$AJ$172,9,0) -> Tanya.Naydeva-Grigorova@ULH.nhs.uk | H102: =VLOOKUP(A102,[1]Units!$A$2:$AJ$172,19,0) -> helen.warhurst@ulh.nhs.uk | J102: =VLOOKUP(A102,[2]Sheet2!$A$2:$C$172, 3, 0) -> asmita.sedhai3@nhs.net
A103: PZ129 | B103: Harrogate District Hospital | C103: Dr | D103: =VLOOKUP(A103,[1]Units!$A$2:$AJ$172,7,0) -> Alaber | E103: =VLOOKUP(A103,[1]Units!$A$2:$AJ$172,9,0) -> a.alaber@nhs.net | F103: =VLOOKUP(A103,[1]Units!$A$2:$AJ$172,11,0) -> robert.brown29@nhs.net | G103: =VLOOKUP(A103,[1]Units!$A$2:$AJ$172,15,0) -> m.harvey4@nhs.net | H103: =VLOOKUP(A103,[1]Units!$A$2:$AJ$172,19,0) -> Rebecca.hill66@nhs.net; hdft.clinicalaudit@nhs.net | I103: =VLOOKUP(A103,[1]Units!$A$2:$AJ$172,22,0) -> rebecca.maggs@nhs.net | J103: =VLOOKUP(A103,[2]Sheet2!$A$2:$C$172, 3, 0) -> emma.savage8@nhs.net
A104: PZ130 | B104: Chelsea and Westminster Hospital | C104: Dr | D104: =VLOOKUP(A104,[1]Units!$A$2:$AJ$172,7,0) -> Bridges | E104: =VLOOKUP(A104,[1]Units!$A$2:$AJ$172,9,0) -> nicola.bridges@nhs.net | F104: =VLOOKUP(A104,[1]Units!$A$2:$AJ$172,11,0) -> shivaani.kaushik@nhs.net | G104: =VLOOKUP(A104,[1]Units!$A$2:$AJ$172,15,0) -> s.alexander@nhs.net | H104: =VLOOKUP(A104,[1]Units!$A$2:$AJ$172,19,0) -> neelam.sharma6@nhs.net | I104: =VLOOKUP(A104,[1]Units!$A$2:$AJ$172,22,0) -> hannah.morrow2@nhs.net | J104: =VLOOKUP(A104,[2]Sheet2!$A$2:$C$172, 3, 0) -> Usha.Parkash@nhs.net
A105: PZ131 | B105: Peterborough City Hospital | C105: Dr | D105: =VLOOKUP(A105,[1]Units!$A$2:$AJ$172,7,0) -> Yong | E105: =VLOOKUP(A105,[1]Units!$A$2:$AJ$172,9,0) -> diana.yong@nhs.net | G105: =VLOOKUP(A105,[1]Units!$A$2:$AJ$172,15,0) -> rosemaryjones2@nhs.net; | J105: =VLOOKUP(A105,[2]Sheet2!$A$2:$C$172, 3, 0) -> Kate.Wilson@addenbrookes.nhs.uk
A106: PZ132 | B106: Ysbyty Gwynedd Hospital | C106: Dr | D106: =VLOOKUP(A106,[1]Units!$A$2:$AJ$172,7,0) -> Gangadharan | E106: =VLOOKUP(A106,[1]Units!$A$2:$AJ$172,9,0) -> Arundoss.Gangadharan3@wales.nhs.uk | G106: =VLOOKUP(A106,[1]Units!$A$2:$AJ$172,15,0) -> Angela.clarke4@wales.nhs.uk | H106: =VLOOKUP(A106,[1]Units!$A$2:$AJ$172,19,0) -> carolyn.bowness@wales.nhs.uk | I106: =VLOOKUP(A106,[1]Units!$A$2:$AJ$172,22,0) -> Trevor.Smith@wales.nhs.uk | J106: =VLOOKUP(A106,[2]Sheet2!$A$2:$C$172, 3, 0) -> Jon.Matthias@wales.nhs.uk
A107: PZ133 | B107: James Cook University Hospital | C107: Dr | D107: =VLOOKUP(A107,[1]Units!$A$2:$AJ$172,7,0) -> Burns | E107: =VLOOKUP(A107,[1]Units!$A$2:$AJ$172,9,0) -> mark.burns2@nhs.net | G107: =VLOOKUP(A107,[1]Units!$A$2:$AJ$172,15,0) -> alison.murray22@nhs.net | J107: =VLOOKUP(A107,[2]Sheet2!$A$2:$C$172, 3, 0) -> Jenny.foster5@nhs.net
A108: PZ135 | B108: Royal Alexandra Hospital, Brighton | C108: Dr | D108: =VLOOKUP(A108,[1]Units!$A$2:$AJ$172,7,0) -> Ismail | E108: =VLOOKUP(A108,[1]Units!$A$2:$AJ$172,9,0) -> dunia.ismail@nhs.net | G108: =VLOOKUP(A108,[1]Units!$A$2:$AJ$172,15,0) -> juliette.sacre@nhs.net | J108: =VLOOKUP(A108,[2]Sheet2!$A$2:$C$172, 3, 0) -> Usha.Parkash@nhs.net
A109: PZ136 | B109: Central Manchester University Hospitals NHS Foundation Trust | C109: Dr | D109: =VLOOKUP(A109,[1]Units!$A$2:$AJ$172,7,0) -> Doughty | E109: =VLOOKUP(A109,[1]Units!$A$2:$AJ$172,9,0) -> Ian.Doughty@cmft.nhs.uk | G109: =VLOOKUP(A109,[1]Units!$A$2:$AJ$172,15,0) -> Syed.jilani@cmft.nhs.uk | H109: =VLOOKUP(A109,[1]Units!$A$2:$AJ$172,19,0) -> Susan.Ainsworth@mft.nhs.uk | I109: =VLOOKUP(A109,[1]Units!$A$2:$AJ$172,22,0) -> Carol.Metcalfe@mft.nhs.uk | J109: =VLOOKUP(A109,[2]Sheet2!$A$2:$C$172, 3, 0) -> Margotcarson@nhs.net
A110: PZ137 | B110: Musgrove Park Hospital | C110: Dr | D110: =VLOOKUP(A110,[1]Units!$A$2:$AJ$172,7,0) -> Robin | E110: =VLOOKUP(A110,[1]Units!$A$2:$AJ$172,9,0) -> lucy.robin@tst.nhs.uk | G110: =VLOOKUP(A110,[1]Units!$A$2:$AJ$172,15,0) -> Lisa.Goodman@tst.nhs.uk | H110: =VLOOKUP(A110,[1]Units!$A$2:$AJ$172,19,0) -> Gita.Modgil@tst.nhs.uk | J110: =VLOOKUP(A110,[2]Sheet2!$A$2:$C$172, 3, 0) -> Lucyrowe@nhs.net
A111: PZ138 | B111: Warwick Hospital | C111: Dr | D111: =VLOOKUP(A111,[1]Units!$A$2:$AJ$172,7,0) -> Rengaraju | E111: =VLOOKUP(A111,[1]Units!$A$2:$AJ$172,9,0) -> latha.rengaraju@swft.nhs.uk | F111: =VLOOKUP(A111,[1]Units!$A$2:$AJ$172,11,0) -> gillian.lyder@swft.nhs.uk | G111: =VLOOKUP(A111,[1]Units!$A$2:$AJ$172,15,0) -> gillian.lyder@swft.nhs.uk | H111: =VLOOKUP(A111,[1]Units!$A$2:$AJ$172,19,0) -> catherine.norrish@swft.nhs.uk | J111: =VLOOKUP(A111,[2]Sheet2!$A$2:$C$172, 3, 0) -> heather.clark26@nhs.net
A112: PZ139 | B112: Bristol Royal Hospital for Children | C112: Dr | D112: =VLOOKUP(A112,[1]Units!$A$2:$AJ$172,7,0) -> Barton | E112: =VLOOKUP(A112,[1]Units!$A$2:$AJ$172,9,0) -> john.barton@uhbw.nhs.uk | F112: =VLOOKUP(A112,[1]Units!$A$2:$AJ$172,11,0) -> Toby.Candler@uhbw.nhs.uk | G112: =VLOOKUP(A112,[1]Units!$A$2:$AJ$172,15,0) -> Alison.Spear@uhbw.nhs.uk | J112: =VLOOKUP(A112,[2]Sheet2!$A$2:$C$172, 3, 0) -> Lucyrowe@nhs.net
A113: PZ140 | B113: Tameside General Hospital | C113: Dr | D113: =VLOOKUP(A113,[1]Units!$A$2:$AJ$172,7,0) -> Tatnall | E113: =VLOOKUP(A113,[1]Units!$A$2:$AJ$172,9,0) -> sarah.tatnall@tgh.nhs.uk | F113: =VLOOKUP(A113,[1]Units!$A$2:$AJ$172,11,0) -> Jacqueline.birch@tgh.nhs.uk; Clare.Mellor@tgh.nhs.uk | G113: =VLOOKUP(A113,[1]Units!$A$2:$AJ$172,15,0) -> karen.wright@tgh.nhs.uk; Elke.Brown@tgh.nhs.uk | H113: =VLOOKUP(A113,[1]Units!$A$2:$AJ$172,19,0) -> Clare.Mellor@tgh.nhs.uk | I113: =VLOOKUP(A113,[1]Units!$A$2:$AJ$172,22,0) -> Jade.mcaleer@tgh.nhs.uk | J113: =VLOOKUP(A113,[2]Sheet2!$A$2:$C$172, 3, 0) -> Margotcarson@nhs.net
A114: PZ141 | B114: South Tyneside District Hospital | C114: Dr | D114: =VLOOKUP(A114,[1]Units!$A$2:$AJ$172,7,0) -> Okugbeni | E114: =VLOOKUP(A114,[1]Units!$A$2:$AJ$172,9,0) -> gabriel.okugbeni1@nhs.net | F114: =VLOOKUP(A114,[1]Units!$A$2:$AJ$172,11,0) -> alexandra.jones13@nhs.net | G114: =VLOOKUP(A114,[1]Units!$A$2:$AJ$172,15,0) -> valerie.campbell3@nhs.net | H114: =VLOOKUP(A114,[1]Units!$A$2:$AJ$172,19,0) -> joanne.henderson4@nhs.net | J114: =VLOOKUP(A114,[2]Sheet2!$A$2:$C$172, 3, 0) -> Jenny.foster5@nhs.net
A115: PZ144 | B115: Good Hope Hospital, Sutton Coldfield | C115: Dr | D115: =VLOOKUP(A115,[1]Units!$A$2:$AJ$172,7,0) -> Plunkett | E115: =VLOOKUP(A115,[1]Units!$A$2:$AJ$172,9,0) -> Michael.plunkett@uhb.nhs.uk | F115: =VLOOKUP(A115,[1]Units!$A$2:$AJ$172,11,0) -> Paitra.l.sparkes@heartofengland.nhs.uk | G115: =VLOOKUP(A115,[1]Units!$A$2:$AJ$172,15,0) -> Paitra.l.sparkes@heartofengland.nhs.uk | J115: =VLOOKUP(A115,[2]Sheet2!$A$2:$C$172, 3, 0) -> heather.clark26@nhs.net
A116: PZ145 | B116: Milton Keynes Hospital | C116: Dr | D116: =VLOOKUP(A116,[1]Units!$A$2:$AJ$172,7,0) -> Ali | E116: =VLOOKUP(A116,[1]Units!$A$2:$AJ$172,9,0) -> Keya.ali@mkuh.nhs.uk; karen.coleburt@mkuh.nhs.uk | F116: =VLOOKUP(A116,[1]Units!$A$2:$AJ$172,11,0) -> caroline.simmons@mkuh.nhs.uk | G116: =VLOOKUP(A116,[1]Units!$A$2:$AJ$172,15,0) -> james.bursell@mkhospital.nhs.uk | H116: =VLOOKUP(A116,[1]Units!$A$2:$AJ$172,19,0) -> Jacqueline.higgins@mkuh.nhs.uk | I116: =VLOOKUP(A116,[1]Units!$A$2:$AJ$172,22,0) -> Jacky.Palmer@mkuh.nhs.uk | J116: =VLOOKUP(A116,[2]Sheet2!$A$2:$C$172, 3, 0) -> Myfanwy.Champness@ouh.nhs.uk
A117: PZ146 | B117: Southend University Hospital | C117: Dr | D117: =VLOOKUP(A117,[1]Units!$A$2:$AJ$172,7,0) -> Awadalla | E117: =VLOOKUP(A117,[1]Units!$A$2:$AJ$172,9,0) -> fathel.awadalla@southend.nhs.uk | G117: =VLOOKUP(A117,[1]Units!$A$2:$AJ$172,15,0) -> jpowathil@nhs.net | J117: =VLOOKUP(A117,[2]Sheet2!$A$2:$C$172, 3, 0) -> Kate.Wilson@addenbrookes.nhs.uk
A118: PZ149 | B118: Barnsley Hospital | C118: Dr | D118: =VLOOKUP(A118,[1]Units!$A$2:$AJ$172,7,0) -> Bhimsaria | E118: =VLOOKUP(A118,[1]Units!$A$2:$AJ$172,9,0) -> sunilbhimsaria@nhs.net | G118: =VLOOKUP(A118,[1]Units!$A$2:$AJ$172,15,0) -> kate.pattison@nhs.net | H118: =VLOOKUP(A118,[1]Units!$A$2:$AJ$172,19,0) -> denise.gibson@nhs.net | J118: =VLOOKUP(A118,[2]Sheet2!$A$2:$C$172, 3, 0) -> emma.savage8@nhs.net
A119: PZ150 | B119: Cumberland Infirmary | C119: Dr | D119: =VLOOKUP(A119,[1]Units!$A$2:$AJ$172,7,0) -> Holt-Davis | E119: =VLOOKUP(A119,[1]Units!$A$2:$AJ$172,9,0) -> Hannah.Holt-Davis@ncic.nhs.uk | G119: =VLOOKUP(A119,[1]Units!$A$2:$AJ$172,15,0) -> Christine.carruthers@ncuh.nhs.uk | H119: =VLOOKUP(A119,[1]Units!$A$2:$AJ$172,19,0) -> Kelvin.green@ncuh.nhs.uk | I119: =VLOOKUP(A119,[1]Units!$A$2:$AJ$172,22,0) -> Julie.Edge@ncic.nhs.uk | J119: =VLOOKUP(A119,[2]Sheet2!$A$2:$C$172, 3, 0) -> Jenny.foster5@nhs.net
A120: PZ151 | B120: Queen Elizabeth Hospital, Woolwich | C120: Dr | D120: =VLOOKUP(A120,[1]Units!$A$2:$AJ$172,7,0) -> Raj | E120: =VLOOKUP(A120,[1]Units!$A$2:$AJ$172,9,0) -> meena.raj1@nhs.net | F120: =VLOOKUP(A120,[1]Units!$A$2:$AJ$172,11,0) -> jacob.eyers@nhs.net | G120: =VLOOKUP(A120,[1]Units!$A$2:$AJ$172,15,0) -> louise.barham@nhs.net; d.swanscott@nhs.net; anne.kelly5@nhs.net | H120: =VLOOKUP(A120,[1]Units!$A$2:$AJ$172,19,0) -> liz.bell@nhs.net; | I120: =VLOOKUP(A120,[1]Units!$A$2:$AJ$172,22,0) -> sally.edwards1@nhs.net; sean.jones@nhs.net | J120: =VLOOKUP(A120,[2]Sheet2!$A$2:$C$172, 3, 0) -> Usha.Parkash@nhs.net
A121: PZ152 | B121: Torbay Hospital | C121: Dr | D121: =VLOOKUP(A121,[1]Units!$A$2:$AJ$172,7,0) -> Reilly | E121: =VLOOKUP(A121,[1]Units!$A$2:$AJ$172,9,0) -> Philip.reilly@nhs.net | G121: =VLOOKUP(A121,[1]Units!$A$2:$AJ$172,15,0) -> lauracoley@nhs.net | J121: =VLOOKUP(A121,[2]Sheet2!$A$2:$C$172, 3, 0) -> Lucyrowe@nhs.net
A122: PZ153 | B122: Whiston Hospital | C122: Dr | D122: =VLOOKUP(A122,[1]Units!$A$2:$AJ$172,7,0) -> Ahmad | E122: =VLOOKUP(A122,[1]Units!$A$2:$AJ$172,9,0) -> Ijaz.ahmad@sthk.nhs.uk | G122: =VLOOKUP(A122,[1]Units!$A$2:$AJ$172,15,0) -> Victoria.Peers@sthk.nhs.uk | H122: =VLOOKUP(A122,[1]Units!$A$2:$AJ$172,19,0) -> Fiona.healey@sthk.nhs.uk | I122: =VLOOKUP(A122,[1]Units!$A$2:$AJ$172,22,0) -> Swathi.Upadrasta2@sthk.nhs.uk | J122: =VLOOKUP(A122,[2]Sheet2!$A$2:$C$172, 3, 0) -> Margotcarson@nhs.net
A123: PZ156 | B123: Queen Elizabeth Hospital, Kings Lynn | C123: Dr | D123: =VLOOKUP(A123,[1]Units!$A$2:$AJ$172,7,0) -> Piel | E123: =VLOOKUP(A123,[1]Units!$A$2:$AJ$172,9,0) -> Barbara.Piel@qehkl.nhs.uk | F123: =VLOOKUP(A123,[1]Units!$A$2:$AJ$172,11,0) -> matt.williams@qehkl.nhs.uk | J123: =VLOOKUP(A123,[2]Sheet2!$A$2:$C$172, 3, 0) -> Kate.Wilson@addenbrookes.nhs.uk
A124: PZ157 | B124: Royal Free Hospital | C124: Dr | D124: =VLOOKUP(A124,[1]Units!$A$2:$AJ$172,7,0) -> Dublon | E124: =VLOOKUP(A124,[1]Units!$A$2:$AJ$172,9,0) -> Victoria.Dublon@nhs.net | G124: =VLOOKUP(A124,[1]Units!$A$2:$AJ$172,15,0) -> m.nuur@nhs.net | H124: =VLOOKUP(A124,[1]Units!$A$2:$AJ$172,19,0) -> sue.hempstead@nhs.net | I124: =VLOOKUP(A124,[1]Units!$A$2:$AJ$172,22,0) -> a.motabar1@nhs.net | J124: =VLOOKUP(A124,[2]Sheet2!$A$2:$C$172, 3, 0) -> Usha.Parkash@nhs.net
A125: PZ159 | B125: Basingstoke and North Hampshire Hospital | C125: Dr | D125: =VLOOKUP(A125,[1]Units!$A$2:$AJ$172,7,0) -> Hind | E125: =VLOOKUP(A125,[1]Units!$A$2:$AJ$172,9,0) -> Edward.Hind@hhft.nhs.uk | G125: =VLOOKUP(A125,[1]Units!$A$2:$AJ$172,15,0) -> andrea.malone@hhft.nhs.uk | H125: =VLOOKUP(A125,[1]Units!$A$2:$AJ$172,19,0) -> Julia.brown@hhft.nhs.uk | J125: =VLOOKUP(A125,[2]Sheet2!$A$2:$C$172, 3, 0) -> Lucy.Powell@hhft.nhs.uk
A126: PZ160 | B126: Bishop Auckland Hospital | C126: Dr | D126: =VLOOKUP(A126,[1]Units!$A$2:$AJ$172,7,0) -> Lamb | E126: =VLOOKUP(A126,[1]Units!$A$2:$AJ$172,9,0) -> william.lamb@nhs.net | F126: =VLOOKUP(A126,[1]Units!$A$2:$AJ$172,11,0) -> william.lamb@nhs.net | G126: =VLOOKUP(A126,[1]Units!$A$2:$AJ$172,15,0) -> kevin.graham@nhs.net | J126: =VLOOKUP(A126,[2]Sheet2!$A$2:$C$172, 3, 0) -> Jenny.foster5@nhs.net
A127: PZ161 | B127: Darlington Memorial Hospital | C127: Dr | D127: =VLOOKUP(A127,[1]Units!$A$2:$AJ$172,7,0) -> Palombella | E127: =VLOOKUP(A127,[1]Units!$A$2:$AJ$172,9,0) -> j.palombella@nhs.net | F127: =VLOOKUP(A127,[1]Units!$A$2:$AJ$172,11,0) -> m.kambalimath@nhs.net | G127: =VLOOKUP(A127,[1]Units!$A$2:$AJ$172,15,0) -> kevin.graham@nhs.net | H127: =VLOOKUP(A127,[1]Units!$A$2:$AJ$172,19,0) -> swathy.sarangapani@nhs.net | J127: =VLOOKUP(A127,[2]Sheet2!$A$2:$C$172, 3, 0) -> Jenny.foster5@nhs.net
A128: PZ162 | B128: University Hospital of North Durham | C128: Dr | D128: =VLOOKUP(A128,[1]Units!$A$2:$AJ$172,7,0) -> Palombella | E128: =VLOOKUP(A128,[1]Units!$A$2:$AJ$172,9,0) -> j.palombella@nhs.net | G128: =VLOOKUP(A128,[1]Units!$A$2:$AJ$172,15,0) -> s.el-kholy@nhs.net | H128: =VLOOKUP(A128,[1]Units!$A$2:$AJ$172,19,0) -> kevin.graham@nhs.net | J128: =VLOOKUP(A128,[2]Sheet2!$A$2:$C$172, 3, 0) -> Jenny.foster5@nhs.net
A129: PZ163 | B129: University Hospital of North Tees and University Hospital of Hartlepool | C129: Dr | D129: =VLOOKUP(A129,[1]Units!$A$2:$AJ$172,7,0) -> Sajjanraj | E129: =VLOOKUP(A129,[1]Units!$A$2:$AJ$172,9,0) -> kishoresajjanraj@nhs.net | G129: =VLOOKUP(A129,[1]Units!$A$2:$AJ$172,15,0) -> anna.milner@nhs.net | H129: =VLOOKUP(A129,[1]Units!$A$2:$AJ$172,19,0) -> james.andrew2@nhs.net | J129: =VLOOKUP(A129,[2]Sheet2!$A$2:$C$172, 3, 0) -> Jenny.foster5@nhs.net
A130: PZ164 | B130: Rotherham Hospital | C130: Dr | D130: =VLOOKUP(A130,[1]Units!$A$2:$AJ$172,7,0) -> Bashir | E130: =VLOOKUP(A130,[1]Units!$A$2:$AJ$172,9,0) -> imran.bashir@nhs.net | G130: =VLOOKUP(A130,[1]Units!$A$2:$AJ$172,15,0) -> katy.campbell2@nhs.net​ | H130: =VLOOKUP(A130,[1]Units!$A$2:$AJ$172,19,0) -> terrye.cartwright@nhs.net | J130: =VLOOKUP(A130,[2]Sheet2!$A$2:$C$172, 3, 0) -> emma.savage8@nhs.net
A131: PZ167 | B131: University Hospitals of Morecambe Bay NHS Foundation Trust | C131: Dr | D131: =VLOOKUP(A131,[1]Units!$A$2:$AJ$172,7,0) -> Peace | E131: =VLOOKUP(A131,[1]Units!$A$2:$AJ$172,9,0) -> Helen.Peace@mbht.nhs.uk | G131: =VLOOKUP(A131,[1]Units!$A$2:$AJ$172,15,0) -> Glenys.mckay@mbht.nhs.uk | H131: =VLOOKUP(A131,[1]Units!$A$2:$AJ$172,19,0) -> Suzanne.Jackson@mbht.nhs.uk | J131: =VLOOKUP(A131,[2]Sheet2!$A$2:$C$172, 3, 0) -> Margotcarson@nhs.net
A132: PZ168 | B132: Grantham and District Hospital | C132: Dr | D132: =VLOOKUP(A132,[1]Units!$A$2:$AJ$172,7,0) -> Naydeva-Grigorova | E132: =VLOOKUP(A132,[1]Units!$A$2:$AJ$172,9,0) -> Tanya.Naydeva-Grigorova@ULH.nhs.uk | G132: =VLOOKUP(A132,[1]Units!$A$2:$AJ$172,15,0) -> Rebecca.Cummings@ulh.nhs.uk | J132: =VLOOKUP(A132,[2]Sheet2!$A$2:$C$172, 3, 0) -> asmita.sedhai3@nhs.net
A133: PZ169 | B133: Salisbury District Hospital | C133: Dr | D133: =VLOOKUP(A133,[1]Units!$A$2:$AJ$172,7,0) -> Anderson | E133: =VLOOKUP(A133,[1]Units!$A$2:$AJ$172,9,0) -> chris.anderson1@nhs.net | G133: =VLOOKUP(A133,[1]Units!$A$2:$AJ$172,15,0) -> Sally.madgwick@nhs.net | H133: =VLOOKUP(A133,[1]Units!$A$2:$AJ$172,19,0) -> carly.ackland@nhs.net | J133: =VLOOKUP(A133,[2]Sheet2!$A$2:$C$172, 3, 0) -> Lucy.Powell@hhft.nhs.uk
A134: PZ170 | B134: Arrowe Park Hospital | C134: Dr | D134: =VLOOKUP(A134,[1]Units!$A$2:$AJ$172,7,0) -> Bhowmik | E134: =VLOOKUP(A134,[1]Units!$A$2:$AJ$172,9,0) -> sudeshna.bhowmik@nhs.net | G134: =VLOOKUP(A134,[1]Units!$A$2:$AJ$172,15,0) -> beverley.sanders@nhs.net | H134: =VLOOKUP(A134,[1]Units!$A$2:$AJ$172,19,0) -> ronacookson@nhs.net | J134: =VLOOKUP(A134,[2]Sheet2!$A$2:$C$172, 3, 0) -> Margotcarson@nhs.net
A135: PZ171 | B135: Broomfield Hospital | C135: Dr | D135: =VLOOKUP(A135,[1]Units!$A$2:$AJ$172,7,0) -> Lim | E135: =VLOOKUP(A135,[1]Units!$A$2:$AJ$172,9,0) -> Sharon.Lim@meht.nhs.uk | F135: =VLOOKUP(A135,[1]Units!$A$2:$AJ$172,11,0) -> Harnom.Zubairu@nhs.net | G135: =VLOOKUP(A135,[1]Units!$A$2:$AJ$172,15,0) -> sharmila.nambiar@meht.nhs.uk | H135: =VLOOKUP(A135,[1]Units!$A$2:$AJ$172,19,0) -> mehtpaediatricssecretaries@meht.nhs.uk | I135: =VLOOKUP(A135,[1]Units!$A$2:$AJ$172,22,0) -> Paul.Hawkins@meht.nhs.uk | J135: =VLOOKUP(A135,[2]Sheet2!$A$2:$C$172, 3, 0) -> Kate.Wilson@addenbrookes.nhs.uk
A136: PZ172 | B136: West Hertfordshire Hospitals NHS Trust | C136: Dr | D136: =VLOOKUP(A136,[1]Units!$A$2:$AJ$172,7,0) -> Mitchell | E136: =VLOOKUP(A136,[1]Units!$A$2:$AJ$172,9,0) -> heather.mitchell@nhs.net | J136: =VLOOKUP(A136,[2]Sheet2!$A$2:$C$172, 3, 0) -> Kate.Wilson@addenbrookes.nhs.uk
A137: PZ173 | B137: Yeovil District Hospital | C137: Dr | D137: =VLOOKUP(A137,[1]Units!$A$2:$AJ$172,7,0) -> Vaina | E137: =VLOOKUP(A137,[1]Units!$A$2:$AJ$172,9,0) -> Camelia.Vaina@YDH.NHS.UK | F137: =VLOOKUP(A137,[1]Units!$A$2:$AJ$172,11,0) -> Tamsyn.nicole@ydh.nhs.uk | G137: =VLOOKUP(A137,[1]Units!$A$2:$AJ$172,15,0) -> Bethany.McNiven@YDH.NHS.UK | H137: =VLOOKUP(A137,[1]Units!$A$2:$AJ$172,19,0) -> Julie.bond@ydh.nhs.uk | I137: =VLOOKUP(A137,[1]Units!$A$2:$AJ$172,22,0) -> michelle.smith@ydh.nhs.uk | J137: =VLOOKUP(A137,[2]Sheet2!$A$2:$C$172, 3, 0) -> Lucyrowe@nhs.net
A138: PZ174 | B138: Kettering General Hospital | C138: Dr | D138: =VLOOKUP(A138,[1]Units!$A$2:$AJ$172,7,0) -> Govier | E138: =VLOOKUP(A138,[1]Units!$A$2:$AJ$172,9,0) -> Katie.govier@nhs.net | F138: =VLOOKUP(A138,[1]Units!$A$2:$AJ$172,11,0) -> gmargabanthu@nhs.net | H138: =VLOOKUP(A138,[1]Units!$A$2:$AJ$172,19,0) -> Kathryn.exton@nhft.nhs.uk | J138: =VLOOKUP(A138,[2]Sheet2!$A$2:$C$172, 3, 0) -> asmita.sedhai3@nhs.net
A139: PZ176 | B139: St Peter's Hospital | C139: Dr | D139: =VLOOKUP(A139,[1]Units!$A$2:$AJ$172,7,0) -> Bahl | E139: =VLOOKUP(A139,[1]Units!$A$2:$AJ$172,9,0) -> s.bahl@nhs.net | G139: =VLOOKUP(A139,[1]Units!$A$2:$AJ$172,15,0) -> michaelhooker@nhs.net | H139: =VLOOKUP(A139,[1]Units!$A$2:$AJ$172,19,0) -> asp-tr.generalpaeddiabetes@nhs.net | I139: =VLOOKUP(A139,[1]Units!$A$2:$AJ$172,22,0) -> claire.berriman@nhs.net | J139: =VLOOKUP(A139,[2]Sheet2!$A$2:$C$172, 3, 0) -> Usha.Parkash@nhs.net
A140: PZ177 | B140: Royal Bolton Hospital | C140: Dr | D140: =VLOOKUP(A140,[1]Units!$A$2:$AJ$172,7,0) -> McKinnon | E140: =VLOOKUP(A140,[1]Units!$A$2:$AJ$172,9,0) -> James.McKinnon@boltonft.nhs.uk | F140: =VLOOKUP(A140,[1]Units!$A$2:$AJ$172,11,0) -> Kay.Cowpe@boltonft.nhs.uk | G140: =VLOOKUP(A140,[1]Units!$A$2:$AJ$172,15,0) -> Deborah.Cropper@boltonft.nhs.uk | J140: =VLOOKUP(A140,[2]Sheet2!$A$2:$C$172, 3, 0) -> Margotcarson@nhs.net
A141: PZ178 | B141: Manor Hospital, Walsall | C141: Dr | D141: =VLOOKUP(A141,[1]Units!$A$2:$AJ$172,7,0) -> Javed | E141: =VLOOKUP(A141,[1]Units!$A$2:$AJ$172,9,0) -> muhammad.javed@walsallhealthcare.nhs.uk | F141: =VLOOKUP(A141,[1]Units!$A$2:$AJ$172,11,0) -> Deborah.mccausland@walsallhealthcare.nhs.uk | G141: =VLOOKUP(A141,[1]Units!$A$2:$AJ$172,15,0) -> becky.wood@walsallhealthcare.nhs.uk | H141: =VLOOKUP(A141,[1]Units!$A$2:$AJ$172,19,0) -> debbie.coates@walsallhospitals.nhs.uk | I141: =VLOOKUP(A141,[1]Units!$A$2:$AJ$172,22,0) -> Annette.Killops@walsall.nhs.uk | J141: =VLOOKUP(A141,[2]Sheet2!$A$2:$C$172, 3, 0) -> heather.clark26@nhs.net
A142: PZ179 | B142: Countess of Chester Hospital NHS Trust | C142: Dr | D142: =VLOOKUP(A142,[1]Units!$A$2:$AJ$172,7,0) -> Timmis | E142: =VLOOKUP(A142,[1]Units!$A$2:$AJ$172,9,0) -> alison.timmis@nhs.net | G142: =VLOOKUP(A142,[1]Units!$A$2:$AJ$172,15,0) -> Helen.dodd9@nhs.net | H142: =VLOOKUP(A142,[1]Units!$A$2:$AJ$172,19,0) -> michaelmcguigan@nhs.net | J142: =VLOOKUP(A142,[2]Sheet2!$A$2:$C$172, 3, 0) -> Margotcarson@nhs.net
A143: PZ180 | B143: Kings Mill Hospital | C143: Dr | D143: =VLOOKUP(A143,[1]Units!$A$2:$AJ$172,7,0) -> Ngwu | E143: =VLOOKUP(A143,[1]Units!$A$2:$AJ$172,9,0) -> Ursula.Ngwu@nhs.net | G143: =VLOOKUP(A143,[1]Units!$A$2:$AJ$172,15,0) -> sanjayrathi1@nhs.net | J143: =VLOOKUP(A143,[2]Sheet2!$A$2:$C$172, 3, 0) -> asmita.sedhai3@nhs.net
A144: PZ181 | B144: Ipswich Hospital | C144: Dr | D144: =VLOOKUP(A144,[1]Units!$A$2:$AJ$172,7,0) -> Buck | E144: =VLOOKUP(A144,[1]Units!$A$2:$AJ$172,9,0) -> Jackie.Buck@ipswichhospital.nhs.uk | F144: =VLOOKUP(A144,[1]Units!$A$2:$AJ$172,11,0) -> Emma.Perkins@esneft.nhs.uk; Hannah.Sebborn@esneft.nhs.uk | G144: =VLOOKUP(A144,[1]Units!$A$2:$AJ$172,15,0) -> Kerry.Denholm@esneft.nhs.uk | H144: =VLOOKUP(A144,[1]Units!$A$2:$AJ$172,19,0) -> Heidi.Fulcher@esneft.nhs.uk | I144: =VLOOKUP(A144,[1]Units!$A$2:$AJ$172,22,0) -> nationalaudit@esneft.nhs.uk;Jodie.borley@ipswichhospital.nhs.uk;nicola.moles@esneft.nhs.uk | J144: =VLOOKUP(A144,[2]Sheet2!$A$2:$C$172, 3, 0) -> Kate.Wilson@addenbrookes.nhs.uk
A145: PZ182 | B145: West Middlesex University Hospital | C145: Dr | D145: =VLOOKUP(A145,[1]Units!$A$2:$AJ$172,7,0) -> Rangasami | E145: =VLOOKUP(A145,[1]Units!$A$2:$AJ$172,9,0) -> jayanti.rangasami@nhs.net | G145: =VLOOKUP(A145,[1]Units!$A$2:$AJ$172,15,0) -> archana.kshirsagar1@nhs.net | H145: =VLOOKUP(A145,[1]Units!$A$2:$AJ$172,19,0) -> sara.kelly10@nhs.net; neelam.sharma6@nhs.net | J145: =VLOOKUP(A145,[2]Sheet2!$A$2:$C$172, 3, 0) -> Usha.Parkash@nhs.net
A146: PZ183 | B146: Royal Preston Hospital | C146: Dr | D146: =VLOOKUP(A146,[1]Units!$A$2:$AJ$172,7,0) -> Ayoola | E146: =VLOOKUP(A146,[1]Units!$A$2:$AJ$172,9,0) -> Omolola.ayoola@lthtr.nhs.uk | G146: =VLOOKUP(A146,[1]Units!$A$2:$AJ$172,15,0) -> kate.orme@lthtr.nhs.uk | H146: =VLOOKUP(A146,[1]Units!$A$2:$AJ$172,19,0) -> Deborah.kendall@lthtr.nhs.uk | J146: =VLOOKUP(A146,[2]Sheet2!$A$2:$C$172, 3, 0) -> Margotcarson@nhs.net
A147: PZ186 | B147: Calderdale & Huddersfield NHS Foundation Trust | C147: Dr | D147: =VLOOKUP(A147,[1]Units!$A$2:$AJ$172,7,0) -> How Yaw | E147: =VLOOKUP(A147,[1]Units!$A$2:$AJ$172,9,0) -> Stephanie.How-Yaw@cht.nhs.uk | F147: =VLOOKUP(A147,[1]Units!$A$2:$AJ$172,11,0) -> lynne.terrett2@cht.nhs.uk | G147: =VLOOKUP(A147,[1]Units!$A$2:$AJ$172,15,0) -> Sarah.schorah@cht.nhs.uk | H147: =VLOOKUP(A147,[1]Units!$A$2:$AJ$172,19,0) -> Alison.oversby@cht.nhs.uk | I147: =VLOOKUP(A147,[1]Units!$A$2:$AJ$172,22,0) -> amanda.grayson@cht.nhs.uk | J147: =VLOOKUP(A147,[2]Sheet2!$A$2:$C$172, 3, 0) -> emma.savage8@nhs.net
A148: PZ187 | B148: Wrexham Maelor Hospital | C148: Dr | D148: =VLOOKUP(A148,[1]Units!$A$2:$AJ$172,7,0) -> Weerasinghe | E148: =VLOOKUP(A148,[1]Units!$A$2:$AJ$172,9,0) -> kamal.weerasinghe@wales.nhs.uk | F148: =VLOOKUP(A148,[1]Units!$A$2:$AJ$172,11,0) -> ravi.palakurthi@wales.nhs.uk | G148: =VLOOKUP(A148,[1]Units!$A$2:$AJ$172,15,0) -> karen.czerniak@wales.nhs.uk | I148: =VLOOKUP(A148,[1]Units!$A$2:$AJ$172,22,0) -> Trevor.Smith@wales.nhs.uk | J148: =VLOOKUP(A148,[2]Sheet2!$A$2:$C$172, 3, 0) -> Jon.Matthias@wales.nhs.uk
A149: PZ189 | B149: Royal Glamorgan Hospital | C149: Dr | D149: =VLOOKUP(A149,[1]Units!$A$2:$AJ$172,7,0) -> Millar-Jones | E149: =VLOOKUP(A149,[1]Units!$A$2:$AJ$172,9,0) -> Lynne.millar-jones@wales.nhs.uk | G149: =VLOOKUP(A149,[1]Units!$A$2:$AJ$172,15,0) -> julie.haycox@wales.nhs.uk | H149: =VLOOKUP(A149,[1]Units!$A$2:$AJ$172,19,0) -> Joanne.lloyd-jones@wales.nhs.uk | I149: =VLOOKUP(A149,[1]Units!$A$2:$AJ$172,22,0) -> matthew.ward@wales.nhs.uk;dom.hurford@wales.nhs.uk | J149: =VLOOKUP(A149,[2]Sheet2!$A$2:$C$172, 3, 0) -> Jon.Matthias@wales.nhs.uk
A150: PZ191 | B150: Ealing Hospital | C150: Dr | D150: =VLOOKUP(A150,[1]Units!$A$2:$AJ$172,7,0) -> Kumar | E150: =VLOOKUP(A150,[1]Units!$A$2:$AJ$172,9,0) -> priya.kumar3@nhs.net | F150: =VLOOKUP(A150,[1]Units!$A$2:$AJ$172,11,0) -> gillian.adams2@nhs.net | G150: =VLOOKUP(A150,[1]Units!$A$2:$AJ$172,15,0) -> ewalichtarowicz-krynska@nhs.net | J150: =VLOOKUP(A150,[2]Sheet2!$A$2:$C$172, 3, 0) -> Usha.Parkash@nhs.net
A151: PZ193 | B151: Neath Port Talbot Hospital | C151: Dr | D151: =VLOOKUP(A151,[1]Units!$A$2:$AJ$172,7,0) -> Ryan | E151: =VLOOKUP(A151,[1]Units!$A$2:$AJ$172,9,0) -> Matthew.Ryan@wales.nhs.uk | F151: =VLOOKUP(A151,[1]Units!$A$2:$AJ$172,11,0) -> Christopher.bidder@wales.nhs.uk | H151: =VLOOKUP(A151,[1]Units!$A$2:$AJ$172,19,0) -> lesley.whitehorn@wales.nhs.uk | I151: =VLOOKUP(A151,[1]Units!$A$2:$AJ$172,22,0) -> Sharon.E.Ragbetli@wales.nhs.uk; karen.lewis1c4154@wales.nhs.uk | J151: =VLOOKUP(A151,[2]Sheet2!$A$2:$C$172, 3, 0) -> Jon.Matthias@wales.nhs.uk
A152: PZ196 | B152: Great Ormond Street Hospital | C152: Dr | D152: =VLOOKUP(A152,[1]Units!$A$2:$AJ$172,7,0) -> Peters | E152: =VLOOKUP(A152,[1]Units!$A$2:$AJ$172,9,0) -> catherine.peters@gosh.nhs.uk | F152: =VLOOKUP(A152,[1]Units!$A$2:$AJ$172,11,0) -> Kelly.Turner@gosh.nhs.uk | G152: =VLOOKUP(A152,[1]Units!$A$2:$AJ$172,15,0) -> Samantha.Drew@gosh.nhs.uk | H152: =VLOOKUP(A152,[1]Units!$A$2:$AJ$172,19,0) -> Andrew.Pearson@gosh.nhs.uk | J152: =VLOOKUP(A152,[2]Sheet2!$A$2:$C$172, 3, 0) -> Usha.Parkash@nhs.net
A153: PZ199 | B153: North Middlesex University Hospital | C153: Dr | D153: =VLOOKUP(A153,[1]Units!$A$2:$AJ$172,7,0) -> Kapila | E153: =VLOOKUP(A153,[1]Units!$A$2:$AJ$172,9,0) -> piyusha.kapila@nhs.net | G153: =VLOOKUP(A153,[1]Units!$A$2:$AJ$172,15,0) -> Fionnghuala.fuller@nhs.net | J153: =VLOOKUP(A153,[2]Sheet2!$A$2:$C$172, 3, 0) -> Usha.Parkash@nhs.net
A154: PZ200 | B154: Princess Alexandra Hospital, Harlow (inc Rectory Lane Health Center, Essex) | C154: Dr | D154: =VLOOKUP(A154,[1]Units!$A$2:$AJ$172,7,0) -> Nuti | E154: =VLOOKUP(A154,[1]Units!$A$2:$AJ$172,9,0) -> amith.nuti2@nhs.net | G154: =VLOOKUP(A154,[1]Units!$A$2:$AJ$172,15,0) -> thulasibalakumar@nhs.net | H154: =VLOOKUP(A154,[1]Units!$A$2:$AJ$172,19,0) -> naomi.staines@nhs.net | J154: =VLOOKUP(A154,[2]Sheet2!$A$2:$C$172, 3, 0) -> Kate.Wilson@addenbrookes.nhs.uk
A155: PZ202 | B155: St Marys Hospital, Imperial College, London | C155: Dr | D155: =VLOOKUP(A155,[1]Units!$A$2:$AJ$172,7,0) -> Wassouf | E155: =VLOOKUP(A155,[1]Units!$A$2:$AJ$172,9,0) -> samir.wassouf@nhs.net | F155: =VLOOKUP(A155,[1]Units!$A$2:$AJ$172,11,0) -> mando.watson@nhs.net | G155: =VLOOKUP(A155,[1]Units!$A$2:$AJ$172,15,0) -> christopher.bound@nhs.net | H155: =VLOOKUP(A155,[1]Units!$A$2:$AJ$172,19,0) -> soraia.vieira@nhs.net | I155: =VLOOKUP(A155,[1]Units!$A$2:$AJ$172,22,0) -> karen.logan3@nhs.net | J155: =VLOOKUP(A155,[2]Sheet2!$A$2:$C$172, 3, 0) -> Usha.Parkash@nhs.net
A156: PZ203 | B156: University College London Hospital | C156: Prof | D156: =VLOOKUP(A156,[1]Units!$A$2:$AJ$172,7,0) -> Hindmarsh | E156: =VLOOKUP(A156,[1]Units!$A$2:$AJ$172,9,0) -> p.hindmarsh@ucl.ac.uk | F156: =VLOOKUP(A156,[1]Units!$A$2:$AJ$172,11,0) -> Francesca.Annan@nhs.net | G156: =VLOOKUP(A156,[1]Units!$A$2:$AJ$172,15,0) -> Thayavathi.Subramaniam@nhs.net | H156: =VLOOKUP(A156,[1]Units!$A$2:$AJ$172,19,0) -> billy.white@nhs.net;rebecca.martin4@nhs.net | I156: =VLOOKUP(A156,[1]Units!$A$2:$AJ$172,22,0) -> halina.flannery@nhs.net | J156: =VLOOKUP(A156,[2]Sheet2!$A$2:$C$172, 3, 0) -> Usha.Parkash@nhs.net
A157: PZ206 | B157: The Pennine Acute Hospitals NHS Trust | C157: Dr | D157: =VLOOKUP(A157,[1]Units!$A$2:$AJ$172,7,0) -> Bagewadi | E157: =VLOOKUP(A157,[1]Units!$A$2:$AJ$172,9,0) -> sunil.bagewadi@pat.nhs.uk | F157: =VLOOKUP(A157,[1]Units!$A$2:$AJ$172,11,0) -> paul.carr@pat.nhs.uk | G157: =VLOOKUP(A157,[1]Units!$A$2:$AJ$172,15,0) -> Stephanie.Tarpey@pat.nhs.uk | H157: =VLOOKUP(A157,[1]Units!$A$2:$AJ$172,19,0) -> Peter.Doyle@pat.nhs.uk | I157: =VLOOKUP(A157,[1]Units!$A$2:$AJ$172,22,0) -> EmilyMaria.Faulkner@pat.nhs.uk | J157: =VLOOKUP(A157,[2]Sheet2!$A$2:$C$172, 3, 0) -> Margotcarson@nhs.net
A158: PZ213 | B158: East Surrey Hospital | C158: Dr | D158: =VLOOKUP(A158,[1]Units!$A$2:$AJ$172,7,0) -> Jain | E158: =VLOOKUP(A158,[1]Units!$A$2:$AJ$172,9,0) -> Neemisha.Jain@nhs.net | G158: =VLOOKUP(A158,[1]Units!$A$2:$AJ$172,15,0) -> O.Lipova@nhs.net | H158: =VLOOKUP(A158,[1]Units!$A$2:$AJ$172,19,0) -> nicola.streatfield@nhs.net | J158: =VLOOKUP(A158,[2]Sheet2!$A$2:$C$172, 3, 0) -> Usha.Parkash@nhs.net
A159: PZ215 | B159: Kings College Hospital, London | C159: Dr | D159: =VLOOKUP(A159,[1]Units!$A$2:$AJ$172,7,0) -> Ford-Adams | E159: =VLOOKUP(A159,[1]Units!$A$2:$AJ$172,9,0) -> martha.ford-adams@nhs.net | G159: =VLOOKUP(A159,[1]Units!$A$2:$AJ$172,15,0) -> p.deshmukh@nhs.net | H159: =VLOOKUP(A159,[1]Units!$A$2:$AJ$172,19,0) -> j.gnanendran@nhs.net | J159: =VLOOKUP(A159,[2]Sheet2!$A$2:$C$172, 3, 0) -> Usha.Parkash@nhs.net
A160: PZ216 | B160: Tunbridge Wells Hospital | C160: Dr | D160: =VLOOKUP(A160,[1]Units!$A$2:$AJ$172,7,0) -> Khanna | E160: =VLOOKUP(A160,[1]Units!$A$2:$AJ$172,9,0) -> ankit.khanna@nhs.net | F160: =VLOOKUP(A160,[1]Units!$A$2:$AJ$172,11,0) -> kpathy@nhs.net | G160: =VLOOKUP(A160,[1]Units!$A$2:$AJ$172,15,0) -> mlibby@nhs.net | H160: =VLOOKUP(A160,[1]Units!$A$2:$AJ$172,19,0) -> cpatankar@nhs.net; laura.halpin1@nhs.net; ankit.khanna@nhs.net | I160: =VLOOKUP(A160,[1]Units!$A$2:$AJ$172,22,0) -> Stephanie.smith29@nhs.net | J160: =VLOOKUP(A160,[2]Sheet2!$A$2:$C$172, 3, 0) -> Usha.Parkash@nhs.net
A161: PZ218 | B161: Frimley Park Hospital | C161: Dr | D161: =VLOOKUP(A161,[1]Units!$A$2:$AJ$172,7,0) -> Goturu | E161: =VLOOKUP(A161,[1]Units!$A$2:$AJ$172,9,0) -> Aruna.Goturu@nhs.net; elizabeth.george9@nhs.net | F161: =VLOOKUP(A161,[1]Units!$A$2:$AJ$172,11,0) -> rekha.sanghavi@nhs.net | G161: =VLOOKUP(A161,[1]Units!$A$2:$AJ$172,15,0) -> elizabeth.george9@nhs.net | H161: =VLOOKUP(A161,[1]Units!$A$2:$AJ$172,19,0) -> g.smith53@nhs.net; joana.carmo@nhs.net; paula.betenson@nhs.net | I161: =VLOOKUP(A161,[1]Units!$A$2:$AJ$172,22,0) -> gemma.bryce@nhs.net; sarah.bond21@nhs.net | J161: =VLOOKUP(A161,[2]Sheet2!$A$2:$C$172, 3, 0) -> Usha.Parkash@nhs.net
A162: PZ219 | B162: Sheffield Childrens Hospital | C162: Dr | D162: =VLOOKUP(A162,[1]Units!$A$2:$AJ$172,7,0) -> Wright | E162: =VLOOKUP(A162,[1]Units!$A$2:$AJ$172,9,0) -> neil.wright1@nhs.net | G162: =VLOOKUP(A162,[1]Units!$A$2:$AJ$172,15,0) -> a.darby@nhs.net | H162: =VLOOKUP(A162,[1]Units!$A$2:$AJ$172,19,0) -> a.soni1@nhs.net | I162: =VLOOKUP(A162,[1]Units!$A$2:$AJ$172,22,0) -> nivedita.aswani1@nhs.net | J162: =VLOOKUP(A162,[2]Sheet2!$A$2:$C$172, 3, 0) -> emma.savage8@nhs.net
A163: PZ220 | B163: Bedford Hospital | C163: Dr | D163: =VLOOKUP(A163,[1]Units!$A$2:$AJ$172,7,0) -> Khetriwal | E163: =VLOOKUP(A163,[1]Units!$A$2:$AJ$172,9,0) -> babita.khetriwal@bedfordhospital.nhs.uk | F163: =VLOOKUP(A163,[1]Units!$A$2:$AJ$172,11,0) -> Maureen.Walton@ldh.nhs.uk | G163: =VLOOKUP(A163,[1]Units!$A$2:$AJ$172,15,0) -> kalika.shah-enderby@bedfordhospital.nhs.uk | J163: =VLOOKUP(A163,[2]Sheet2!$A$2:$C$172, 3, 0) -> Kate.Wilson@addenbrookes.nhs.uk
A164: PZ221 | B164: Great Western Hospital | C164: Dr | D164: =VLOOKUP(A164,[1]Units!$A$2:$AJ$172,7,0) -> West | E164: =VLOOKUP(A164,[1]Units!$A$2:$AJ$172,9,0) -> nicol.west1@nhs.net | F164: =VLOOKUP(A164,[1]Units!$A$2:$AJ$172,11,0) -> sandra.rudman@nhs.net | J164: =VLOOKUP(A164,[2]Sheet2!$A$2:$C$172, 3, 0) -> Lucyrowe@nhs.net
A165: PZ222 | B165: New Cross Hospital, Wolverhampton | C165: Dr | D165: =VLOOKUP(A165,[1]Units!$A$2:$AJ$172,7,0) -> Pargass | E165: =VLOOKUP(A165,[1]Units!$A$2:$AJ$172,9,0) -> Nisha.Pargass@nhs.net | F165: =VLOOKUP(A165,[1]Units!$A$2:$AJ$172,11,0) -> sammie.bissell@nhs.net | G165: =VLOOKUP(A165,[1]Units!$A$2:$AJ$172,15,0) -> d.deakin@nhs.net | H165: =VLOOKUP(A165,[1]Units!$A$2:$AJ$172,19,0) -> s.uppal@nhs.net | I165: =VLOOKUP(A165,[1]Units!$A$2:$AJ$172,22,0) -> r.jayaraman@nhs.net | J165: =VLOOKUP(A165,[2]Sheet2!$A$2:$C$172, 3, 0) -> heather.clark26@nhs.net
A166: PZ223 | B166: Sandwell General Hospital | C166: Dr | D166: =VLOOKUP(A166,[1]Units!$A$2:$AJ$172,7,0) -> Chizo Agwu | E166: =VLOOKUP(A166,[1]Units!$A$2:$AJ$172,9,0) -> chizo.agwu@nhs.net | G166: =VLOOKUP(A166,[1]Units!$A$2:$AJ$172,15,0) -> Julie.oliver1@nhs.net | J166: =VLOOKUP(A166,[2]Sheet2!$A$2:$C$172, 3, 0) -> heather.clark26@nhs.net
A167: PZ225 | B167: Worcestershire Royal Hospital | C167: Dr | D167: =VLOOKUP(A167,[1]Units!$A$2:$AJ$172,7,0) -> West | E167: =VLOOKUP(A167,[1]Units!$A$2:$AJ$172,9,0) -> jameswest@nhs.net | H167: =VLOOKUP(A167,[1]Units!$A$2:$AJ$172,19,0) -> dianecluley@nhs.net | I167: =VLOOKUP(A167,[1]Units!$A$2:$AJ$172,22,0) -> sarah.phillips21@nhs.net | J167: =VLOOKUP(A167,[2]Sheet2!$A$2:$C$172, 3, 0) -> heather.clark26@nhs.net
A168: PZ226 | B168: Dewsbury & District Hospital | C168: Dr | D168: =VLOOKUP(A168,[1]Units!$A$2:$AJ$172,7,0) -> Allagoa | E168: =VLOOKUP(A168,[1]Units!$A$2:$AJ$172,9,0) -> brigid.allagoa@midyorks.nhs.uk | G168: =VLOOKUP(A168,[1]Units!$A$2:$AJ$172,15,0) -> Kate.scott@locala.org.uk | J168: =VLOOKUP(A168,[2]Sheet2!$A$2:$C$172, 3, 0) -> emma.savage8@nhs.net
A169: PZ228 | B169: Prince Charles Hospital | C169: Dr | D169: =VLOOKUP(A169,[1]Units!$A$2:$AJ$172,7,0) -> Okuonghae | E169: =VLOOKUP(A169,[1]Units!$A$2:$AJ$172,9,0) -> humphrey.okuonghae@wales.nhs.uk | G169: =VLOOKUP(A169,[1]Units!$A$2:$AJ$172,15,0) -> lucy.collins@wales.nhs.uk | H169: =VLOOKUP(A169,[1]Units!$A$2:$AJ$172,19,0) -> Heather.Oconnell@wales.nhs.uk | I169: =VLOOKUP(A169,[1]Units!$A$2:$AJ$172,22,0) -> Arlene.shenkorov@wales.nhs.uk | J169: =VLOOKUP(A169,[2]Sheet2!$A$2:$C$172, 3, 0) -> Jon.Matthias@wales.nhs.uk
A170: PZ230 | B170: East Sussex Healthcare NHS Trust_Conquest Hospital | C170: Dr | D170: =VLOOKUP(A170,[1]Units!$A$2:$AJ$172,7,0) -> Gill | E170: =VLOOKUP(A170,[1]Units!$A$2:$AJ$172,9,0) -> stephanie.gill@nhs.net | G170: =VLOOKUP(A170,[1]Units!$A$2:$AJ$172,15,0) -> nadia.muhi-iddin1@nhs.net | H170: =VLOOKUP(A170,[1]Units!$A$2:$AJ$172,19,0) -> ellen.blay@nhs.net | J170: =VLOOKUP(A170,[2]Sheet2!$A$2:$C$172, 3, 0) -> Usha.Parkash@nhs.net
A171: PZ231 | B171: Salford Royal Foundation Trust | C171: Dr | D171: =VLOOKUP(A171,[1]Units!$A$2:$AJ$172,7,0) -> Rahman | E171: =VLOOKUP(A171,[1]Units!$A$2:$AJ$172,9,0) -> shahera.rahman@srft.nhs.uk | F171: =VLOOKUP(A171,[1]Units!$A$2:$AJ$172,11,0) -> DawnL.Anderson@srft.nhs.uk | G171: =VLOOKUP(A171,[1]Units!$A$2:$AJ$172,15,0) -> Rachael.Bowker@srft.nhs.uk | J171: =VLOOKUP(A171,[2]Sheet2!$A$2:$C$172, 3, 0) -> Margotcarson@nhs.net
A172: PZ232 | B172: BHR University Hospitals NHS Trust | C172: Dr | D172: =VLOOKUP(A172,[1]Units!$A$2:$AJ$172,7,0) -> Banerjee | E172: =VLOOKUP(A172,[1]Units!$A$2:$AJ$172,9,0) -> kausikbanerjee@nhs.net | F172: =VLOOKUP(A172,[1]Units!$A$2:$AJ$172,11,0) -> andrea.donald2@nhs.net | J172: =VLOOKUP(A172,[2]Sheet2!$A$2:$C$172, 3, 0) -> Usha.Parkash@nhs.net
A173: PZ238 | B173: Queen Alexandra Hospital, Portsmouth | C173: Dr | D173: =VLOOKUP(A173,[1]Units!$A$2:$AJ$172,7,0) -> Davis | E173: =VLOOKUP(A173,[1]Units!$A$2:$AJ$172,9,0) -> Emma.Davis@porthosp.nhs.uk | F173: =VLOOKUP(A173,[1]Units!$A$2:$AJ$172,11,0) -> vinodh.vijayakumaran@porthosp.nhs.uk | G173: =VLOOKUP(A173,[1]Units!$A$2:$AJ$172,15,0) -> Deena.Alsheikh@porthosp.nhs.uk | H173: =VLOOKUP(A173,[1]Units!$A$2:$AJ$172,19,0) -> Heather.Carmichael@porthosp.nhs.uk | I173: =VLOOKUP(A173,[1]Units!$A$2:$AJ$172,22,0) -> victoria.maclellan@porthosp.nhs.uk | J173: =VLOOKUP(A173,[2]Sheet2!$A$2:$C$172, 3, 0) -> Lucy.Powell@hhft.nhs.uk
A174: PZ240 | B174: Russells Hall Hospital | C174: Dr | D174: =VLOOKUP(A174,[1]Units!$A$2:$AJ$172,7,0) -> Petkar | E174: =VLOOKUP(A174,[1]Units!$A$2:$AJ$172,9,0) -> anjali.petkar@nhs.net | J174: =VLOOKUP(A174,[2]Sheet2!$A$2:$C$172, 3, 0) -> heather.clark26@nhs.net
A175: PZ242 | B175: Gloucestershire Royal Hospital | C175: Dr | D175: =VLOOKUP(A175,[1]Units!$A$2:$AJ$172,7,0) -> AbithaKujambal | E175: =VLOOKUP(A175,[1]Units!$A$2:$AJ$172,9,0) -> Vellore.AbithaKujambal@nhs.net | F175: =VLOOKUP(A175,[1]Units!$A$2:$AJ$172,11,0) -> debbie.harris12@nhs.net | J175: =VLOOKUP(A175,[2]Sheet2!$A$2:$C$172, 3, 0) -> Lucyrowe@nhs.net
A176: PZ244 | B176: Hywel Dda University Health Board | C176: Dr | D176: =VLOOKUP(A176,[1]Units!$A$2:$AJ$172,7,0) -> Fountain-Polley | E176: =VLOOKUP(A176,[1]Units!$A$2:$AJ$172,9,0) -> simon.fountain-polley@wales.nhs.uk | F176: =VLOOKUP(A176,[1]Units!$A$2:$AJ$172,11,0) -> Yvonne.Davies2@wales.nhs.uk | G176: =VLOOKUP(A176,[1]Units!$A$2:$AJ$172,15,0) -> Sian.southgate@wales.nhs.uk | H176: =VLOOKUP(A176,[1]Units!$A$2:$AJ$172,19,0) -> Laura.Gingell@wales.nhs.uk | I176: =VLOOKUP(A176,[1]Units!$A$2:$AJ$172,22,0) -> Ian.bebb@wales.nhs.uk; Swe.Lynn@wales.nhs.uk; Kim.Crossman@wales.nhs.uk; Heather.Oconnell@wales.nhs.uk | J176: =VLOOKUP(A176,[2]Sheet2!$A$2:$C$172, 3, 0) -> Jon.Matthias@wales.nhs.uk
A177: PZ245 | B177: The Grange University Hospital | C177: Dr | D177: =VLOOKUP(A177,[1]Units!$A$2:$AJ$172,7,0) -> Hawkes | E177: =VLOOKUP(A177,[1]Units!$A$2:$AJ$172,9,0) -> Davida.Hawkes@wales.nhs.uk | F177: =VLOOKUP(A177,[1]Units!$A$2:$AJ$172,11,0) -> Ramya.Venkataramakrishnan@wales.nhs.uk | G177: =VLOOKUP(A177,[1]Units!$A$2:$AJ$172,15,0) -> Heather.Oconnell@wales.nhs.uk | H177: =VLOOKUP(A177,[1]Units!$A$2:$AJ$172,19,0) -> suzanne.hackling@wales.nhs.uk | I177: =VLOOKUP(A177,[1]Units!$A$2:$AJ$172,22,0) -> Kate.Hooton@wales.nhs.uk; | J177: =VLOOKUP(A177,[2]Sheet2!$A$2:$C$172, 3, 0) -> Jon.Matthias@wales.nhs.uk

Sheet Report (hidden)
A4: National Paediatric Diabetes Audit 2018/19
A6: ="Summary results for "&'Unit list'!C1&" (code "&'Unit list'!B1&") in the "&'Unit list'!D1&" region" -> Summary results for Addenbrooke's Hospital (code PZ041) in the East of England region
A8: CONFIDENTIAL - NOT FOR ONWARD CIRCULATION UNTIL RELEASE OF NPDA 2018/19 NATIONAL REPORT
A9: 1. Introduction
A10: ="This report has been prepared for paediatric diabetes units (PDUs) who participated in the 2018/19 National Paediatric Diabetes Audit."& " " & "It contains unit level summary data and is shared in advance of publication of the national report and the update of NPDA Results Online so that PDUs can access their results as soon as possible."& " " & "Results are reported for children and young people with Type 1 diabetes only, apart from section 2, which reports patient characteristics for children and young people with all types of diabetes. "&"Most indicators were calculated using the information of children and young people whose last recorded PDU in the audit year was "&'Unit list'!$C$1&"; with the exception of 'Care at diagnosis', where care was attributed to "&'Unit list'!$C$1&" if this was the first recorded at diagnosis within the audit year. "&"In accordance with information governance rules, any demographic data based on a number less than five has been suppressed and is shown as '< 5' in the charts below." -> This report has been prepared for paediatric diabetes units (PDUs) who participated in the 2018/19 National Paediatric Diabetes Audit. It contains unit level summary data and is shared in advance of publication of the national report and the update of NPDA Results Online so that PDUs can access their results as soon as possible. Results are reported for children and young people with Type 1 diabetes only, apart from section 2, which reports patient characteristics for children and young people with all types of diabetes. Most indicators were calculated using the information of children and young people whose last recorded PDU in the audit year was Addenbrooke's Hospital; with the exception of 'Care at diagnosis', where care was attributed to Addenbrooke's Hospital if this was the first recorded at diagnosis within the audit year. In accordance with information governance rules, any demographic data based on a number less than five has been suppressed and is shown as '< 5' in the charts below.
A11: 1.1 Overall unit summary
A12: This section is intended to provide you with an 'at a glance' view of how your unit is performing. The first two radar plots show the health check completion rate, the percentage of children and young people receiving each of the seven essential health checks, and the percentage of children and young people with an unadjusted HbA1c below 58 mmol/mol. Figure 1 illustrates how your unit is performing compared to local regional and national results and Figure 2 illustrates how your unit is performing compared to the previous audit year. Figure 3 shows how your unit is performing compared to local regional and national results on six additional recommended health checks.
A14: Interpreting the plot:
A15: ="The blue line represents your unit's performance, the orange dashed line represents regional performance and the dark-grey dotted line represents national performance. "&" The outer thick mid-grey line represents what every unit should be aiming to achieve i.e. 100% on each measure. "&"In Figures 1 and 3, if the blue line is outside of the dashed or dotted line, this means that your unit has a better result compared to the overall regional and national results, respectively - and vice versa. For example, in Figure 1, "&'Chart data'!D16&" "&"In Figure 2, if the solid line is outside of the dashed line, this means that your unit has"&" a better result compared to the previous audit year." -> The blue line represents your unit's performance, the orange dashed line represents regional performance and the dark-grey dotted line represents national performance. The outer thick mid-grey line represents what every unit should be aiming to achieve i.e. 100% on each measure. In Figures 1 and 3, if the blue line is outside of the dashed or dotted line, this means that your unit has a better result compared to the overall regional and national results, respectively - and vice versa. For example, in Figure 1, the proportion of CYP recorded as receiving an eye screen in your unit is higher than the overall regional result. In Figure 2, if the solid line is outside of the dashed line, this means that your unit has a better result compared to the previous audit year.
A16: Figure 1: Radar plot showing unit, region and national performance on the seven essential health checks, % achieving an HbA1c of below 58 mmol/mol and % achieving an HbA1c of below 80 mmol/mol
A26: Figure 2: Radar plot showing unit performance in 2017/18 and 2018/19 on the seven key health checks, % achieving an HbA1c of below 58 mmol/mol and % achieving an HbA1c of below 80 mmol/mol
A36: *The health check completion rate is calculated by dividing the total number of health checks completed in each unit by the total expected number of health checks (which is equal to the number of children and young people with Type 1 diabetes aged 12 or older who completed a full year of care multiplied by 7; 7 is the recommended number of health checks each patients should receive.)
A37: Figure 3: Radar plot showing unit, region and national performance on additional health checks
A49: 2. Clinic characteristics
A50: ="A total of "&'Chart data'!$E$38&" children and young people with diabetes who received treatment at "&'Unit list'!$C$1&" were included in the 2018/19 audit. A small number of CYP for whom data was provided may not be included in the audit if they did not meet the audit criteria or did not have the minimum demographic data required." -> 
A51: 2.1. Age
A52: Figure 4: Age of children and young people by unit, region and overall
A63: 2.2. Ethnicity category by unit, region and overall
A64: Figure 5: Percentage of children and young people within each ethnic category by unit, region and overall
A80: 2.3 Diabetes type by unit, region and overall
A81: Figure 6: Percentage of children and young people according to diabetes type by unit, region and overall
A91: *Includes other types or unspecified
A92: 2.4 Patient deprivation profile by unit, region and overall
A93: Figure 7: Percentage of children and young people within each deprivation quintile by unit, region and overall
A106: *Calculated using Indices of Multiple Deprivation based on patient postcode
A107: 3. Completion of health checks (care processes)
A108: ="The NPDA collects data on the health checks (care processes) recommended by NICE. "&"Guidelines specify a starting age of 12 years for commencing all checks except for HbA1c and measurement of height and weight, which should be recorded in all ages of children and young people with Type 1 diabetes, and thyroid screening, "&"which should be performed at diagnosis and annually thereafter. "&"The criteria for inclusion in the denominator are having a complete year of care (i.e. children and young people who were not diagnosed, did not transition or die within the audit period) and being aged 12 or older on"&" the first day of the audit (apart from HbA1c, BMI and Thyroid health checks, which are for all ages). "&"The denominator for unit "&'Unit list'!B1&" for the HbA1c, BMI and Thyroid health checks is "&'Chart data'!E73&". The denominator for all other health checks and the health check completion rate is "&'Chart data'!E74&". This means that there were "&'Chart data'!E73&" children and young people within your unit who completed a full year of care, and of those, "&'Chart data'!E74&" were aged 12 and above." -> The NPDA collects data on the health checks (care processes) recommended by NICE. Guidelines specify a starting age of 12 years for commencing all checks except for HbA1c and measurement of height and weight, which should be recorded in all ages of children and young people with Type 1 diabetes, and thyroid screening, which should be performed at diagnosis and annually thereafter. The criteria for inclusion in the denominator are having a complete year of care (i.e. children and young people who were not diagnosed, did not transition or die within the audit period) and being aged 12 or older on the first day of the audit (apart from HbA1c, BMI and Thyroid health checks, which are for all ages). The denominator for unit PZ041 for the HbA1c, BMI and Thyroid health checks is 221. The denominator for all other health checks and the health check completion rate is 136. This means that there were 221 children and young people within your unit who completed a full year of care, and of those, 136 were aged 12 and above.
A109: 3.1 Key health check completion rates
A110: Figure 8: Percentage of children and young people with Type 1 diabetes who received each of the seven key health checks
A124: 3.2. Overall health check completion rate
A125: ="The overall health check completion rate for unit "&'Unit list'!B1&" is "&#REF!&", compared to "&ROUND(#REF!,3)*100&"% for England and Wales. "&#REF!&" " -> 
A126: The health check completion rate is calculated by dividing the total number of health checks received by young people aged 12 and above with Type 1 diabetes who completed a full year of care by the total expected number of health checks. The expected number of health checks is equal to the number of young people aged 12 and above with Type 1 diabetes who completed a full year of care, multiplied by seven (seven is the number of key health checks each young person should receive). The NPDA uses this measure in its formal outlier identification and reporting process, in addition to the adjusted HbA1c metric (see section 4.1.1).
A127: Interpreting the funnel plot:
A128: The funnel plot shows variation in the health check completion rate between units. The horizontal navy line shows the mean completion rate for England and Wales (combined), and the dotted lines indicate units whose results are within two standard deviations (dashes) or three standard deviations (dots) of the mean. The NPDA defines services with a result below two standard deviations of the expected value on this metric as an 'alert', and below three standard deviations as an ‘alarm’, which confers negative outlier status in accordance with HQIP guidance (2017). In Figure 9, PDUs below the bottom dotted line (3SD) are considered ‘alarm’ outliers as their completion rate is significantly lower than others in England and Wales. Conversely, services with results above three standard deviations above the expected value are considered 'positive outliers' on this metric.
A129: ="The outlier status of "&'Unit list'!$C$1&", on the performance indicator for health check completion rate for 2018/19 is: "&#REF!&"." -> 
A130: Figure 9: Health check completion rate for children and young people with Type 1 diabetes aged 12 or older who completed a full year of care
A144: 3.3. Percentage receiving all seven essential health checks
A145: ="In unit "&'Unit list'!B1&", "&'7procesess'!$E$179&" young people aged 12 years and older received all seven key health checks within the audit year, compared to "&ROUND('7procesess'!E181,3)*100&"% across England and Wales. "&'7procesess'!F192&"" -> In unit PZ041, 58.7% of young people aged 12 years and older received all seven key health checks within the audit year, compared to 55.7% across England and Wales. This result is similar to the national mean.
A146: Interpreting the funnel plot:
A147: The funnel plot shows variation in the proportion of young people aged 12 and above who received all seven health checks within the audit year. The horizontal navy line shows the mean percentage for England and Wales (combined), and the dotted lines indicate units whose results are within two standard deviations (dashes) or three standard deviations (dots) of the mean. In Figure 10, PDUs below the bottom dotted line (>3SD) have significantly lower completion rates for all seven checks than others in England and Wales, and those above the top line have significantly higher rates.
A148: Figure 10: Percentage of young people aged 12 years and above who received all seven health checks
O149: 3SD
A159: 3.4. Additional health checks
A160: This section includes a summary of the additional recommended health check data collected by the NPDA.
A161: Figure 11: Percentage of children and young people with Type 1 diabetes with a complete year of care who received additional health checks
A173: Figure 12: Percentage of children and young people with Type 1 diabetes with a complete year of care who were offered an additional dietetic appointment, who attended an additional dietetic appointment, and the proportion who were offered and subsequently attended an appointment (take-up rate)
A184: Figure 13: Percentage of children and young people with Type 1 diabetes with a complete year of care receiving recommended advice/training
A195: 4. Care at diagnosis
A196: 4.1 Screening for autoimmune disease
A197: ="NICE recommends that children and young people with Type 1 diabetes are screened for thyroid and coeliac disease at diagnosis. "&"The denominator for this measure is the number of children and young people diagnosed more than 90 days before the end of the audit year (n"&'Chart data'!E100&"). The numerator is the number screened within 90 days from diagnosis." -> 
A199: Figure 14: Percentage of children and young people with Type 1 diabetes who received screening within 90 days of diagnosis
A211: ="NICE also recommends offering level 3 carbohydrate-counting education to children and young people with Type 1 diabetes from diagnosis. "&"The denominator for this measure is the number of children and young people diagnosed more than 14 days before the end of the audit year (n"&'Chart data'!E101&"). The numerator is the number commencing carbohydrate counting within 14 days of diagnosis." -> 
A213: Figure 15: Percentage of children and young people with Type 1 diabetes who received Level 3 carbohydrate-counting education within 14 days of diagnosis
K219: c
A223: 4. Outcomes of care
A224: The collection of outcome measures is an important part of monitoring diabetes control and care. Treatment targets can be viewed as part of the process of care or as an ‘intermediate outcome’ i.e. an intermediary step between a health check and a ‘hard’ endpoint, such as, the development of a complication. This section not only covers HbA1c measurements which are recommended as the best indicator of long-term diabetes control, but also covers other indicators of microvascular disease and macrovascular risk factors.
A225: 4.1 HbA1c
A226: ="HbA1c is a measure of overall diabetes control and can be used as an intermediate outcome for people with diabetes. All the data presented below on HbA1c relates to the results for the "&'Chart data'!E110&" children and young people with Type 1 diabetes who had one or more valid HbA1c measurements in the audit period. "&" This may differ from the number of children and young people included in the denominator for HbA1c as a health check as it includes those who have had a valid HbA1c at least 90 days after "&"diagnosis irrespective of whether they had a complete year of care. "&"Where more than one valid HbA1c was recorded during the year per child or young person, the median value was used." -> HbA1c is a measure of overall diabetes control and can be used as an intermediate outcome for people with diabetes. All the data presented below on HbA1c relates to the results for the 231 children and young people with Type 1 diabetes who had one or more valid HbA1c measurements in the audit period. This may differ from the number of children and young people included in the denominator for HbA1c as a health check as it includes those who have had a valid HbA1c at least 90 days after diagnosis irrespective of whether they had a complete year of care. Where more than one valid HbA1c was recorded during the year per child or young person, the median value was used.
A227: The NPDA recommends using the unit median to compare your year on year progress towards lower average HbA1c, as the median is less affected by extreme results than the mean, and the case-mix of most units is unlikely to vary much between audit years. The case-mix adjusted mean takes into account the differences in HbA1c outcomes associated with case-mix, which can provide fairer comparison between units (see Figure 19).
A228: Where historic HbA1c data has not been published for the unit, #N/A will be shown on the chart.
A229: Figure 16: Median HbA1c for children and young people with Type 1 diabetes
A239: Figure 17: Percentage of children and young people with Type 1 diabetes meeting HbA1c targets
A249: Figure 18 shows the percentages of children and young people with Type 1 diabetes who achieved each of the NICE (2004, 2015) treatment targets from 2014/15 to 2018/19. The percentages were masked wherever a target was achieved by less than 5 children and young people; for that reason, some years will not add up to 100%.
A250: Figure 18: Percentage of children and young people with Type 1 diabetes meeting HbA1c targets, by audit year
A260: 4.1.1 Adjusting HbA1c outcomes for case-mix and demographic characteristics of patients
A261: Given the variations in HbA1c associated with different demographic and social characteristics, it is appropriate to adjust HbA1c figures to take account of the characteristics of their patients or case-mix to allow for equitable benchmarking of individual PDU performance. The case-mix adjustments applied to the 2018/19 data consider the effects of age, sex, ethnicity, duration of diabetes and deprivation on mean HbA1c and the expected proportion of children and young people achieving HbA1c targets of below 58 mmol/mol and above 80 mmol/mol. A summary of the output of the regression models used to construct the case-mix adjusted measures will be available on the NPDA website following publication of the national report.
A262: The formula used in the calculation of the adjusted mean HbA1c is:
A264: Where "actual mean HbA1c" is the unadjusted figure; "expected mean HbA1c" is derived from the case-mix regression model (the mean value expected according to the unit demographic characteristics); and "overall mean HbA1c" is the adjusted mean for England and Wales.
A265: If the PDU actual mean HbA1c is higher than expected according to the unit demographic characteristics, then the adjusted mean HbA1c will be higher than the overall mean.
A266: Interpreting the funnel plot:
A267: The funnel plot shows the case-mix adjusted mean HbA1c for each unit in England and Wales. The horizontal navy line shows the mean HbA1c for England and Wales (combined), and the dotted lines indicate units whose results are within two standard deviations (dashes) or three standard deviations (dots) of the mean. The NPDA defines services with a result above two standard deviations of the expected value on this metric as an 'alert', and above three standard deviations as an ‘alarm’, which confers negative outlier status in accordance with HQIP guidance (2017). In Figure 19, PDUs above the top dotted line (3SD) are considered ‘alarm’ outliers as their adjusted mean HbA1c is significantly higher than the overall mean in England and Wales. Conversely, services with results below three standard deviations are considered positive outliers on this metric.
A269: ="At "&'Unit list'!$B$1&", the mean HbA1c for children and young people with Type 1 diabetes was "&ROUND(VLOOKUP('Unit list'!$A$1,'HbA1c-1819'!A3:E177,5,0),1)&" mmol/mol. The adjusted mean was "&ROUND(VLOOKUP('Unit list'!$A$1,'Mean HbA1c adjusted'!A3:E175,4,0),1)&" mmol/mol which"&'Mean HbA1c adjusted'!E190&"" -> At PZ041, the mean HbA1c for children and young people with Type 1 diabetes was 63 mmol/mol. The adjusted mean was 64.7 mmol/mol which is similar to the national figure for England and Wales.
A270: ="The outlier status of "&'Unit list'!$C$1&", on the performance indicator Adjusted Mean HbA1c for 2018/19 is: "&'Mean HbA1c adjusted'!E191&"." -> 
A271: Figure 19: Adjusted mean HbA1c
A282: Interpreting the funnel plot:
A283: The funnel plot shows the case-mix adjusted proportion of children and young people with a HbA1c of less than 58 mmol/mol for each unit in England and Wales. The horizontal navy line shows the mean percentage for England and Wales (combined), and the dotted lines indicate units whose results are within two standard deviations (dashes) or three standard deviations (dots) of the mean. In Figure 20, PDUs above the top dotted and dashed lines have a significantly higher case-mix adjusted percentage of children and young people with an HbA1c of less than 58 mmol/mol compared to others in England and Wales, with those below the bottom lines having a significantly lower percentage.
A285: ="The case-mix adjusted percentage of children and young people with Type 1 diabetes with a HbA1c of less than 58 mmol/mol in unit "&'Unit list'!$B$1&" is "&ROUND(VLOOKUP('Unit list'!$A$1,#REF!,5,0)*100,1)&"% which"&#REF!&"." -> 
A286: Figure 20: Adjusted percentage of children and young people with a HbA1c of less than 58 mmol/mol
A297: Interpreting the funnel plot:
A298: The funnel plot shows the case-mix adjusted proportion of children and young people with a HbA1c of above 80 mmol/mol for each unit in England and Wales. The horizontal navy line shows the mean percentage for England and Wales (combined), and the dotted lines indicate units whose results are within two standard deviations (dashes) or three standard deviations (dots) of the mean. In Figure 21, PDUs below the bottom dotted and dashed lines have a significantly lower case-mix adjusted percentage of children and young people with an HbA1c of more than 80 mmol/mol compared to others in England and Wales, with those above the top lines having a significantly higher percentage.
A300: ="The case-mix adjusted percentage of children and young people with Type 1 diabetes with a HbA1c of above 80mmol/mol in unit "&'Unit list'!$B$1&" is "&ROUND(VLOOKUP('Unit list'!$A$1,#REF!,5,0)*100,1)&"% which"&#REF!&"." -> 
A301: Figure 21: Adjusted percentage of children and young people with a HbA1c of above 80 mmol/mol
A311: 4.2 Microvascular disease
A312: People with diabetes are at increased risk of microvascular disease including retinopathy and kidney disease.
A313: =IF('Chart data'!D140<5,"In "&'Unit list'!$B$1&" eye-screen outcomes cannot be reported according to small numbers policy.","In "&'Unit list'!$B$1&", from "&'Chart data'!D140&" young people with Type 1 diabetes aged 12 years and above, "&'Chart data'!D142&" were recorded as receiving an eye-screen during the audit period, "&'Chart data'!F141&" "&'Chart data'!G149&" "&'Chart data'!F142&"") -> 
A314: =IF('Chart data'!D140<5,"At "&'Unit list'!$B$1&" kidney-disease outcomes cannot be reported according to small numbers policy.","With respect to kidney disease, "&'Chart data'!D144&" young people with Type 1 diabetes aged 12 years and above were recorded as receiving an albuminuria screen during the audit period"&'Chart data'!F145&" "&'Chart data'!G150&" "&'Chart data'!F146&"") -> 
A315: Figure 22: Percentage of people with microvascular disease aged 12 years and older and Type 1 diabetes
A324: 4.3 Macrovascular disease risk factors
A325: =IF('Chart data'!D140<5,"At "&'Unit list'!$B$1&" Blood Pressure and cholesterol outcomes cannot be reported according to small numbers policy.","People with diabetes are at an increased risk of cardiovascular disease, secondary to macrovascular risk factors including high blood pressure, abnormal lipid levels and high body mass index. "&"The chart below includes all young people aged 12 years and older where there was a valid blood pressure reading recorded and where the results of a lipid profile were recorded. The denominator for blood pressure is "&'Chart data'!E154&" and for lipids (cholesterol) is "&'Chart data'!E155&". "&'Chart data'!G154&" "&'Chart data'!G155&"") -> 
A326: 'High normal' blood pressure is defined as a systolic and/or a diastolic blood pressure between the 91st and 98th centile adjusted for age and sex. 'High' blood pressure is defined as a systolic and/or diastolic blood pressure above the 98th centile adjusted for age and sex. Total cholesterol should be below 4 mmol/l.
A327: Figure 23: Blood pressure and cholesterol outcomes for young people aged 12 years and older and with Type 1 diabetes
A337: ="Information on body mass index below relates to "&'Chart data'!E156&" children and young people of all ages with Type 1 diabetes where a valid height and weight were measured on the same day. "&"Categories are calculated based on the UK 1990 reference population. Underweight is defined as below the 2nd centile, healthy weight as 2nd to 85th centile, overweight as 85th to 95th centile and obese over 95th centile." -> 
A338: ='Chart data'!G156 -> 
A339: Figure 24: Body mass index categories for children and young people with Type 1 diabetes
A349: 5. Assessment for need of psychological support
A351: NICE guidance recommends that psychological assessment is undertaken by multidisciplinary teams for children and young people with diabetes’ emotional and behavioural needs. Timely intervention is important to prevent or manage co-morbid psychological disorders known to be associated with diabetes such as depression, anxiety and eating disorders.
A352: =IF('Chart data'!D173<5,"At "&'Unit list'!$B$1&" Psychological outcomes cannot be reported according to small numbers policy.","At "&'Unit list'!$C$1&", "&'Chart data'!F172&"% (n = "&'Chart data'!D173&") of children and young people with Type 1 diabetes were recorded as having a psychological screening assessment during the audit period, with a valid known result. "&'Chart data'!G176&" "&" "&'Chart data'!G172&"") -> 
A353: Figure 25: Percentage of children and young people with Type 1 diabetes assessed as requiring additional psychological support
A362: 6. Thyroid and coeliac disease
A363: ="Thyroid and coeliac disease screening for children and young people with Type 1 diabetes is important because the risk of developing these is increased amongst those with a pre-existing autoimmune condition"&". The data presented below includes all "&'Chart data'!E179&" children and young people with Type 1 diabetes in unit "&'Unit list'!$B$1&". " & "Recommendation of a gluten-free diet was taken to indicate the presence of coeliac disease, while being treated for thyroid disease was taken as indicative of the presence of such disease." -> 
A364: Figure 26: Percentage of children and young people with Type 1 diabetes with thyroid and coeliac disease
A374: 7. Treatment regimen and diabetes monitoring
A375: 7.1. Treatment regimen
A376: ="The data presented below is for the "&'Chart data'!E187&" children and young people with Type 1 diabetes in "&'Unit list'!$B$1&" who had a valid treatment regimen recorded. "&" "&" "&'Chart data'!E188&"" -> 
A377: Figure 27: Treatment regimen of children and young people with Type 1 diabetes
A386: * Includes children and young people who combine injections/pump with other blood glucose lowering medication.
A389: Figure 28 shows the median HbA1c by treatment regimen, at PDU level, region and overall. These data do not account for the influence of deprivation, age, duration of diabetes or other factors which may influence the choice of insulin regimen, and have also been shown to impact HbA1c levels.
A390: Figure 28: Median HbA1c (mmol/mol), by treatment regimen
A409: 7.2 Continuous glucose monitoring
A410: =IF('Chart data'!D196=100%,"No data was reported to the audit.","In "&'Unit list'!$B$1&", "&'Chart data'!G194&" children and young people with Type 1 diabetes had a negative or positive indication of use of continuous glucose monitoring (CGM) with alarms reported within the audit period. "&"The proportion recorded as using CGM is reported below.") -> 
A411: ='Chart data'!E196 -> 
A412: Figure 29: Percentage of children and young people using a CGM with alarms.
A434: 8. Emergency hospital admissions
A435: ="In 2018/19, 168 out of 175 units submitted admission data to the audit. "&" Diabetes-related emergency hospital admission rates include children and young people with Type 1 diabetes who were admitted as a result of; "&"(i) DKA not at diagnosis, (ii) ketosis without acidosis, (iii) hypoglycaemia, and (iv) stabilisation of diabetes not associated with diagnosis. "&"In unit "&'Unit list'!$B$1&", "&'Chart data'!D212&"" -> 
A436: Please note, these figures should be interpreted with caution as the data have not yet been triangulated with HES/PEDW data.
A437: Figure 30: Percentage of children and young people with Type 1 diabetes who had at least one emergency hospital admission
A447: 9. Conclusion
A448: This PDU level summary provides useful information for clinical staff, healthcare managers, commissioners, children and young people with diabetes and their families. It should be used in conjunction with data presented in the national report 2018/19 when published. Data should be scrutinised and utilised to drive up quality and standards of care. This can be achieved by benchmarking and adopting practices of care where high levels of performance have been found. The data contained in this report will be used to update NPDA Results Online (subject to the validation of the results), following the release of the 2018/19 national report. NPDA Results Online is a valuable resource for understanding and comparing local performance, and once data has been made available, we recommend undertaking benchmarking against other units, regions and CCGs/Health Boards for all measures. Network working and quality assurance (peer review) based on the findings will be essential to achieving quality improvement.
A458: Further information
A459: If you have any queries or questions, please feel free to contact the NPDA team at npda@rcpch.ac.uk or 020 7092 6167.
A460: For further information about the audit, please visit the RCPCH website - | H460: www.rcpch.ac.uk/npda
A461: Or, follow us on Twitter - | D461: @NPDA_RCPCH

Sheet HbA1c-2021 (hidden)
A1: Unit code | B1: Unit name | C1: Region | E1: Unadjusted HbA1c figures (Type 1 diabetes only) | R1: Adjusted HbA1c figures (Type 1 diabetes only)
D2: Denominator | E2: Mean | F2: Median | G2: DCCT | H2: Full text | J2: % ≤48 mmol/mol | K2: % ≤53 mmol/mol | L2: % <58 mmol/mol | M2: % 58-80mmol/mol | N2: % ≥69mmol/mol | O2: % >75mmol/mol | P2: % >80mmol/mol | Q2: < 80 | R2: Mean | S2: % <58mmol/mol | T2: % >80mmol/mol | U2: % < 80 | Y2: mmol/mol
A3: PZ001 | B3: Morriston Hospital | C3: Wales | D3: 121 | E3: 67.83470917 | F3: 64 | G3: =(F3/10.929)+2.15 -> 8.005979504 | H3: =(ROUND(F3,1)&$Y$2&$Y$3&(ROUND(G3,1)&$Y$4&$Y$5)) -> 64 mmol/mol (8%) | I3: 64 mmol/mol (8%) | J3: 0.06611570248 | K3: 0.132231405 | L3: 0.2396694215 | M3: 0.6115702479 | N3: 0.3553719008 | O3: 0.2231404959 | P3: 0.1487603306 | Q3: 0.8512396694 | R3: 67.72502899 | S3: 0.2421820611 | T3: 0.1531867832 | Y3: (
A4: PZ002 | B4: Norfolk and Norwich University Hospital | C4: East of England | D4: 293 | E4: 61.10239029 | F4: 59 | G4: =(F4/10.929)+2.15 -> 7.548481105 | H4: =(ROUND(F4,1)&$Y$2&$Y$3&(ROUND(G4,1)&$Y$4&$Y$5)) -> 59 mmol/mol (7.5%) | I4: 59 mmol/mol (7.5%) | J4: 0.1058020478 | K4: 0.2423208191 | L4: 0.4436860068 | M4: 0.4948805461 | N4: 0.1877133106 | O4: 0.1023890785 | P4: 0.0614334471 | Q4: 0.9385665529 | R4: 61.54362869 | S4: 0.4341478646 | T4: 0.06628086418 | Y4: %
A5: PZ003 | B5: Pinderfields General Hospital and Pontefract General Infirmary | C5: Yorkshire and Humber | D5: 198 | E5: 68.83081055 | F5: 64.25 | G5: =(F5/10.929)+2.15 -> 8.028854424 | H5: 64.3 mmol/mol (8%) | I5: 64.3 mmol/mol (8%) | J5: 0.07070707071 | K5: 0.1717171717 | L5: 0.3181818182 | M5: 0.4949494949 | N5: 0.3636363636 | O5: 0.2575757576 | P5: 0.1868686869 | Q5: 0.8131313131 | R5: 67.50739288 | S5: 0.3427379727 | T5: 0.1568368226 | Y5: )
A6: PZ004 | B6: Northampton General Hospital | C6: East Midlands | D6: 200 | E6: 65.29985809 | F6: 63 | G6: =(F6/10.929)+2.15 -> 7.914479824 | H6: 63 mmol/mol (7.9%) | I6: 63 mmol/mol (7.9%) | J6: 0.09 | K6: 0.165 | L6: 0.285 | M6: 0.6 | N6: 0.315 | O6: 0.18 | P6: 0.115 | Q6: 0.885 | R6: 66.12343597 | S6: 0.2708185911 | T6: 0.1294601113
A7: PZ005 | B7: Derbyshire Children's Hospital | C7: East Midlands | D7: 229 | E7: 59.66812134 | F7: 57 | G7: =(F7/10.929)+2.15 -> 7.365481746 | H7: 57 mmol/mol (7.4%) | I7: 57 mmol/mol (7.4%) | J7: 0.1441048035 | K7: 0.3362445415 | L7: 0.5371179039 | M7: 0.3930131004 | N7: 0.1877729258 | O7: 0.096069869 | P7: 0.06986899563 | Q7: 0.9301310044 | R7: 60.30657578 | S7: 0.5117225051 | T7: 0.07599946111
A8: PZ006 | B8: Doncaster Royal Infirmary | C8: Yorkshire and Humber | D8: 166 | E8: 61.3704834 | F8: 58 | G8: =(F8/10.929)+2.15 -> 7.456981426 | H8: 58 mmol/mol (7.5%) | I8: 58 mmol/mol (7.5%) | J8: 0.09036144578 | K8: 0.2710843373 | L8: 0.4939759036 | M8: 0.4096385542 | N8: 0.2228915663 | O8: 0.1325301205 | P8: 0.09638554217 | Q8: 0.9036144578 | R8: 60.16968918 | S8: 0.5288482904 | T8: 0.08049231768
A9: PZ007 | B9: John Radcliffe Hospital | C9: South Central | D9: 326 | E9: 59.61709595 | F9: 58 | G9: 7.456981426 | H9: 58 mmol/mol (7.5%) | I9: 58 mmol/mol (7.5%) | J9: 0.1963190184 | K9: 0.3466257669 | L9: 0.4877300613 | M9: 0.4171779141 | N9: 0.1963190184 | O9: 0.1257668712 | P9: 0.09509202454 | Q9: 0.9049079755 | R9: 61.23696899 | S9: 0.4402958155 | T9: 0.1181796715
A10: PZ009 | B10: Macclesfield District General Hospital | C10: North West | D10: 81 | E10: 61.97530746 | F10: 60 | G10: 7.639980785 | H10: 60 mmol/mol (7.6%) | I10: 60 mmol/mol (7.6%) | J10: 0.08641975309 | K10: 0.1358024691 | L10: 0.3333333333 | M10: 0.6049382716 | N10: 0.2222222222 | O10: 0.08641975309 | P10: 0.06172839506 | Q10: 0.9382716049 | R10: 63.33388901 | S10: 0.3072913587 | T10: 0.0763657093
A11: PZ010 | B11: Luton and Dunstable Hospital | C11: East of England | D11: 137 | E11: 68.08914185 | F11: 65.03300476 | G11: 8.100499109 | H11: 65 mmol/mol (8.1%) | I11: 65 mmol/mol (8.1%) | J11: 0.05839416058 | K11: 0.08759124088 | L11: 0.2262773723 | M11: 0.6058394161 | N11: 0.4233576642 | O11: 0.2554744526 | P11: 0.1678832117 | Q11: 0.8321167883 | R11: 67.92629242 | S11: 0.234526366 | T11: 0.1819674075
A12: PZ011 | B12: Glan Clwyd District General Hospital | C12: Wales | D12: 124 | E12: 66.42742157 | F12: 61.5 | G12: 7.777230305 | H12: 61.5 mmol/mol (7.8%) | I12: 61.5 mmol/mol (7.8%) | J12: 0.07258064516 | K12: 0.185483871 | L12: 0.3709677419 | M12: 0.4919354839 | N12: 0.3467741935 | O12: 0.2177419355 | P12: 0.1370967742 | Q12: 0.8629032258 | R12: 67.18338013 | S12: 0.3569107354 | T12: 0.1567310691
A13: PZ012 | B13: Barnet General Hospital | C13: London and South East | D13: 84 | E13: 61.34523773 | F13: 61 | G13: 7.731480465 | H13: 61 mmol/mol (7.7%) | I13: 61 mmol/mol (7.7%) | J13: 0.1547619048 | K13: 0.2738095238 | L13: 0.380952381 | M13: 0.5476190476 | N13: 0.2380952381 | O13: 0.119047619 | P13: 0.07142857143 | Q13: 0.9285714286 | R13: 61.24637222 | S13: 0.381603986 | T13: 0.07481148094
A14: PZ014 | B14: Chase Farm Hospital | C14: London and South East | D14: 52 | E14: 68.47115326 | F14: 64 | G14: 8.005979504 | H14: 64 mmol/mol (8%) | I14: 64 mmol/mol (8%) | J14: 0.05769230769 | K14: 0.1923076923 | L14: 0.25 | M14: 0.5769230769 | N14: 0.3653846154 | O14: 0.2307692308 | P14: 0.1730769231 | Q14: 0.8269230769 | R14: 68.38078308 | S14: 0.2480864227 | T14: 0.1691139936
A15: PZ015 | B15: Wythenshawe Hospital | C15: North West | D15: 107 | E15: 64.42990875 | F15: 60.5 | G15: 7.685730625 | H15: 60.5 mmol/mol (7.7%) | I15: 60.5 mmol/mol (7.7%) | J15: 0.1121495327 | K15: 0.214953271 | L15: 0.3738317757 | M15: 0.4859813084 | N15: 0.2897196262 | O15: 0.214953271 | P15: 0.1401869159 | Q15: 0.8598130841 | R15: 65.26574707 | S15: 0.3718806207 | T15: 0.1573453695
A16: PZ016 | B16: Bassetlaw District General Hospital | C16: Yorkshire and Humber | D16: 74 | E16: 60.45946121 | F16: 55.5 | G16: 7.228232226 | H16: 55.5 mmol/mol (7.2%) | I16: 55.5 mmol/mol (7.2%) | J16: 0.1351351351 | K16: 0.3648648649 | L16: 0.5810810811 | M16: 0.3243243243 | N16: 0.2027027027 | O16: 0.1081081081 | P16: 0.09459459459 | Q16: 0.9054054054 | R16: 60.01535797 | S16: 0.5986052752 | T16: 0.08939188719
A17: PZ017 | B17: Dorset County Hospital | C17: South Central | D17: 88 | E17: 65.53408813 | F17: 63 | G17: 7.914479824 | H17: 63 mmol/mol (7.9%) | I17: 63 mmol/mol (7.9%) | J17: 0.04545454545 | K17: 0.1477272727 | L17: 0.2613636364 | M17: 0.6022727273 | N17: 0.3181818182 | O17: 0.1704545455 | P17: 0.1363636364 | Q17: 0.8636363636 | R17: 65.26905823 | S17: 0.2631291449 | T17: 0.1304489523
A18: PZ018 | B18: Worthing Hospital | C18: South Central | D18: 125 | E18: 68.49124908 | F18: 67.21899414 | G18: 8.300516437 | H18: 67.2 mmol/mol (8.3%) | I18: 67.2 mmol/mol (8.3%) | J18: 0.048 | K18: 0.112 | L18: 0.256 | M18: 0.568 | N18: 0.4 | O18: 0.232 | P18: 0.176 | Q18: 0.824 | R18: 69.47734833 | S18: 0.239188835 | T18: 0.1897118092
A19: PZ019 | B19: Basildon University Hospital | C19: East of England | D19: 82 | E19: 58.68902588 | F19: 57 | G19: 7.365481746 | H19: 57 mmol/mol (7.4%) | I19: 57 mmol/mol (7.4%) | J19: 0.2804878049 | K19: 0.4024390244 | L19: 0.5609756098 | M19: 0.3414634146 | N19: 0.2073170732 | O19: 0.1463414634 | P19: 0.09756097561 | Q19: 0.9024390244 | R19: 58.88806915 | S19: 0.5714168549 | T19: 0.1059966683
A20: PZ020 | B20: Diana, Princess of Wales Hospital, Grimsby | C20: Yorkshire and Humber | D20: 114 | E20: 58.30263138 | F20: 57 | G20: 7.365481746 | H20: 57 mmol/mol (7.4%) | I20: 57 mmol/mol (7.4%) | J20: 0.1403508772 | K20: 0.3333333333 | L20: 0.5263157895 | M20: 0.4385964912 | N20: 0.1315789474 | O20: 0.05263157895 | P20: 0.0350877193 | Q20: 0.9649122807 | R20: 58.66446686 | S20: 0.5190649629 | T20: 0.03746063635
A21: PZ021 | B21: Wexham Park Hospital | C21: South Central | D21: 179 | E21: 58.5810051 | F21: 56.5 | G21: 7.319731906 | H21: 56.5 mmol/mol (7.3%) | I21: 56.5 mmol/mol (7.3%) | J21: 0.1899441341 | K21: 0.3966480447 | L21: 0.5474860335 | M21: 0.4134078212 | N21: 0.1620111732 | O21: 0.1005586592 | P21: 0.03910614525 | Q21: 0.9608938547 | R21: 59.43148041 | S21: 0.5224820375 | T21: 0.04414666072
A22: PZ022 | B22: West Cumberland Hospital | C22: North East and North Cumbria | D22: 51 | E22: 63.50980377 | F22: 59.5 | G22: 7.594230945 | H22: 59.5 mmol/mol (7.6%) | I22: 59.5 mmol/mol (7.6%) | J22: 0.1960784314 | K22: 0.2941176471 | L22: 0.4509803922 | M22: 0.3921568627 | N22: 0.2941176471 | O22: 0.2352941176 | P22: 0.1568627451 | Q22: 0.8431372549 | R22: 63.47528839 | S22: 0.451056987 | T22: 0.1618489772
A23: PZ023 | B23: St George's Hospital, London | C23: London and South East | D23: 125 | E23: 67.43199921 | F23: 64 | G23: 8.005979504 | H23: 64 mmol/mol (8%) | I23: 64 mmol/mol (8%) | J23: 0.104 | K23: 0.184 | L23: 0.296 | M23: 0.536 | N23: 0.392 | O23: 0.256 | P23: 0.168 | Q23: 0.832 | R23: 66.56148529 | S23: 0.3049100637 | T23: 0.1416584253
A24: PZ024 | B24: East Kent Hospitals University NHS Foundation Trust | C24: London and South East | D24: 248 | E24: 68.07661438 | F24: 64 | G24: 8.005979504 | H24: 64 mmol/mol (8%) | I24: 64 mmol/mol (8%) | J24: 0.09274193548 | K24: 0.2016129032 | L24: 0.310483871 | M24: 0.5241935484 | N24: 0.3870967742 | O24: 0.2217741935 | P24: 0.1653225806 | Q24: 0.8346774194 | R24: 67.55015564 | S24: 0.318513006 | T24: 0.1514345407
A25: PZ026 | B25: Hull Royal Infirmary | C25: Yorkshire and Humber | D25: 199 | E25: 68.76633453 | F25: 66 | G25: 8.188978864 | H25: 66 mmol/mol (8.2%) | I25: 66 mmol/mol (8.2%) | J25: 0.09045226131 | K25: 0.175879397 | L25: 0.3015075377 | M25: 0.5226130653 | N25: 0.4221105528 | O25: 0.2613065327 | P25: 0.175879397 | Q25: 0.824120603 | R25: 69.05635834 | S25: 0.2984916568 | T25: 0.1850393414
A26: PZ027 | B26: Friarage Hospital | C26: North East and North Cumbria | D26: 47 | E26: 62 | F26: 58.5 | G26: 7.502731265 | H26: 58.5 mmol/mol (7.5%) | I26: 58.5 mmol/mol (7.5%) | J26: 0.1276595745 | K26: 0.2765957447 | L26: 0.4255319149 | M26: 0.5106382979 | N26: 0.2340425532 | O26: 0.08510638298 | P26: 0.06382978723 | Q26: 0.9361702128 | R26: 63.55569458 | S26: 0.3931306303 | T26: 0.07868883759
A27: PZ028 | B27: Stoke Mandeville Hospital | C27: South Central | D27: 87 | E27: 58.77586365 | F27: 57 | G27: 7.365481746 | H27: 57 mmol/mol (7.4%) | I27: 57 mmol/mol (7.4%) | J27: 0.1609195402 | K27: 0.3563218391 | L27: 0.5057471264 | M27: 0.4252873563 | N27: 0.1494252874 | O27: 0.08045977011 | P27: 0.06896551724 | Q27: 0.9310344828 | R27: 62.01398087 | S27: 0.4232011139 | T27: 0.1124412268
A28: PZ030 | B28: Leighton Hospital | C28: North West | D28: 90 | E28: 66.47222137 | F28: 63 | G28: 7.914479824 | H28: 63 mmol/mol (7.9%) | I28: 63 mmol/mol (7.9%) | J28: 0.04444444444 | K28: 0.1777777778 | L28: 0.2666666667 | M28: 0.5777777778 | N28: 0.3222222222 | O28: 0.2222222222 | P28: 0.1555555556 | Q28: 0.8444444444 | R28: 68.6824646 | S28: 0.2404425591 | T28: 0.2175922096
A29: PZ031 | B29: St Richard's Hospital | C29: South Central | D29: 121 | E29: 65.49273682 | F29: 62.84700012 | G29: 7.900480384 | H29: 62.8 mmol/mol (7.9%) | I29: 62.8 mmol/mol (7.9%) | J29: 0.05785123967 | K29: 0.132231405 | L29: 0.2892561983 | M29: 0.6115702479 | N29: 0.305785124 | O29: 0.132231405 | P29: 0.09917355372 | Q29: 0.9008264463 | R29: 66.72668457 | S29: 0.2729495466 | T29: 0.1128215641
A30: PZ032 | B30: Royal Victoria Infirmary, Newcastle Upon Tyne | C30: North East and North Cumbria | D30: 255 | E30: 64.46666718 | F30: 62 | G30: 7.822980145 | H30: 62 mmol/mol (7.8%) | I30: 62 mmol/mol (7.8%) | J30: 0.1725490196 | K30: 0.2549019608 | L30: 0.3882352941 | M30: 0.4549019608 | N30: 0.3294117647 | O30: 0.2196078431 | P30: 0.1568627451 | Q30: 0.8431372549 | R30: 63.36681747 | S30: 0.4163770378 | T30: 0.1378634721
A31: PZ033 | B31: Queens Hospital, Burton on Trent | C31: West Midlands | D31: 138 | E31: 59.25724792 | F31: 56.75 | G31: 7.342606826 | H31: 56.8 mmol/mol (7.3%) | I31: 56.8 mmol/mol (7.3%) | J31: 0.1884057971 | K31: 0.3623188406 | L31: 0.5434782609 | M31: 0.384057971 | N31: 0.1811594203 | O31: 0.1014492754 | P31: 0.07246376812 | Q31: 0.9275362319 | R31: 59.8305397 | S31: 0.5182002783 | T31: 0.07625667751
A32: PZ034 | B32: Royal Hampshire County Hospital | C32: South Central | D32: 116 | E32: 61.70689774 | F32: 58.25 | G32: 7.479856346 | H32: 58.3 mmol/mol (7.5%) | I32: 58.3 mmol/mol (7.5%) | J32: 0.1379310345 | K32: 0.3275862069 | L32: 0.4655172414 | M32: 0.3965517241 | N32: 0.2413793103 | O32: 0.1724137931 | P32: 0.1379310345 | Q32: 0.8620689655 | R32: 63.04767227 | S32: 0.4226045609 | T32: 0.162069574
A33: PZ035 | B33: Royal Berkshire Hospital | C33: South Central | D33: 217 | E33: 60.36175156 | F33: 59 | G33: 7.548481105 | H33: 59 mmol/mol (7.5%) | I33: 59 mmol/mol (7.5%) | J33: 0.1520737327 | K33: 0.2764976959 | L33: 0.4470046083 | M33: 0.4792626728 | N33: 0.1797235023 | O33: 0.08755760369 | P33: 0.07373271889 | Q33: 0.9262672811 | R33: 61.98371124 | S33: 0.4043644965 | T33: 0.09223059565
A34: PZ036 | B34: Whipps Cross University Hospital | C34: London and South East | D34: 105 | E34: 63.70095062 | F34: 60 | G34: 7.639980785 | H34: 60 mmol/mol (7.6%) | I34: 60 mmol/mol (7.6%) | J34: 0.1428571429 | K34: 0.2761904762 | L34: 0.4380952381 | M34: 0.419047619 | N34: 0.3047619048 | O34: 0.2380952381 | P34: 0.1428571429 | Q34: 0.8571428571 | R34: 63.05262375 | S34: 0.4535236955 | T34: 0.1321712285
A35: PZ038 | B35: Wycombe General Hospital | C35: South Central | D35: 93 | E35: 54.6182785 | F35: 54.5 | G35: 7.136732546 | H35: 54.5 mmol/mol (7.1%) | I35: 54.5 mmol/mol (7.1%) | J35: 0.1935483871 | K35: 0.3978494624 | L35: 0.6774193548 | M35: 0.3225806452 | N35: 0.06451612903 | O35: 0.01075268817 | P35: 0 | Q35: 1 | R35: 57.91440201 | S35: 0.5688930154 | T35: 0
A36: PZ040 | B36: Birmingham Heartlands Hospital | C36: West Midlands | D36: 194 | E36: 66.36315155 | F36: 64 | G36: 8.005979504 | H36: 64 mmol/mol (8%) | I36: 64 mmol/mol (8%) | J36: 0.09793814433 | K36: 0.1958762887 | L36: 0.3350515464 | M36: 0.5051546392 | N36: 0.381443299 | O36: 0.2319587629 | P36: 0.1597938144 | Q36: 0.8402061856 | R36: 64.91527557 | S36: 0.377872318 | T36: 0.1402710378
A37: PZ041 | B37: Addenbrooke's Hospital | C37: East of England | D37: 197 | E37: 61.74619293 | F37: 59 | G37: 7.548481105 | H37: 59 mmol/mol (7.5%) | I37: 59 mmol/mol (7.5%) | J37: 0.152284264 | K37: 0.2842639594 | L37: 0.4365482234 | M37: 0.4314720812 | N37: 0.2436548223 | O37: 0.1472081218 | P37: 0.1319796954 | Q37: 0.8680203046 | R37: 63.43629456 | S37: 0.4018908739 | T37: 0.1772006303
A38: PZ042 | B38: Nottingham Children's Hospital | C38: East Midlands | D38: 344 | E38: 57.6362648 | F38: 57.25 | G38: 7.388356666 | H38: 57.3 mmol/mol (7.4%) | I38: 57.3 mmol/mol (7.4%) | J38: 0.2063953488 | K38: 0.351744186 | L38: 0.5029069767 | M38: 0.4651162791 | N38: 0.125 | O38: 0.04941860465 | P38: 0.03197674419 | Q38: 0.9680232558 | R38: 57.84418106 | S38: 0.4970167279 | T38: 0.03302300721
A39: PZ045 | B39: Whittington Hospital, London | C39: London and South East | D39: 78 | E39: 69.13973999 | F39: 68.25 | G39: 8.394853143 | H39: 68.3 mmol/mol (8.4%) | I39: 68.3 mmol/mol (8.4%) | J39: 0.1153846154 | K39: 0.1923076923 | L39: 0.2948717949 | M39: 0.5256410256 | N39: 0.5 | O39: 0.3205128205 | P39: 0.1794871795 | Q39: 0.8205128205 | R39: 66.33818054 | S39: 0.3479254246 | T39: 0.1334526837
A40: PZ047 | B40: Airedale General Hospital, Keighley | C40: Yorkshire and Humber | D40: 97 | E40: 65.98969269 | F40: 62 | G40: 7.822980145 | H40: 62 mmol/mol (7.8%) | I40: 62 mmol/mol (7.8%) | J40: 0.07216494845 | K40: 0.1443298969 | L40: 0.3298969072 | M40: 0.5463917526 | N40: 0.3298969072 | O40: 0.2164948454 | P40: 0.1237113402 | Q40: 0.8762886598 | R40: 65.59425354 | S40: 0.3280979097 | T40: 0.1096577272
A41: PZ048 | B41: Lincoln County Hospital | C41: East Midlands | D41: 141 | E41: 66.35425568 | F41: 64 | G41: 8.005979504 | H41: 64 mmol/mol (8%) | I41: 64 mmol/mol (8%) | J41: 0.09929078014 | K41: 0.1985815603 | L41: 0.2836879433 | M41: 0.5531914894 | N41: 0.3758865248 | O41: 0.2553191489 | P41: 0.1631205674 | Q41: 0.8368794326 | R41: 66.03099823 | S41: 0.2846644223 | T41: 0.1483274996
A42: PZ049 | B42: Warrington Hospital | C42: North West | D42: 113 | E42: 64.15044403 | F42: 61 | G42: 7.731480465 | H42: 61 mmol/mol (7.7%) | I42: 61 mmol/mol (7.7%) | J42: 0.08849557522 | K42: 0.2212389381 | L42: 0.389380531 | M42: 0.4867256637 | N42: 0.2566371681 | O42: 0.1681415929 | P42: 0.1238938053 | Q42: 0.8761061947 | R42: 64.75395966 | S42: 0.3827461302 | T42: 0.1422759295
A43: PZ050 | B43: Epsom & St Helier University Hospitals NHS Trust | C43: London and South East | D43: 166 | E43: 63.13855362 | F43: 60 | G43: 7.639980785 | H43: 60 mmol/mol (7.6%) | I43: 60 mmol/mol (7.6%) | J43: 0.1807228916 | K43: 0.2831325301 | L43: 0.4156626506 | M43: 0.4518072289 | N43: 0.3072289157 | O43: 0.1807228916 | P43: 0.1325301205 | Q43: 0.8674698795 | R43: 64.77981567 | S43: 0.3766503036 | T43: 0.160599798
A44: PZ053 | B44: Scunthorpe General Hospital | C44: Yorkshire and Humber | D44: 103 | E44: 67.25727844 | F44: 64 | G44: 8.005979504 | H44: 64 mmol/mol (8%) | I44: 64 mmol/mol (8%) | J44: 0.05825242718 | K44: 0.2038834951 | L44: 0.3300970874 | M44: 0.5339805825 | N44: 0.3786407767 | O44: 0.2427184466 | P44: 0.1359223301 | Q44: 0.8640776699 | R44: 66.74967957 | S44: 0.3418229222 | T44: 0.1288631707
A45: PZ054 | B45: Poole General Hospital | C45: South Central | D45: 202 | E45: 61.33910751 | F45: 58.75 | G45: 7.525606185 | H45: 58.8 mmol/mol (7.5%) | I45: 58.8 mmol/mol (7.5%) | J45: 0.1188118812 | K45: 0.2920792079 | L45: 0.4455445545 | M45: 0.4603960396 | N45: 0.198019802 | O45: 0.1188118812 | P45: 0.09405940594 | Q45: 0.9059405941 | R45: 63.0639801 | S45: 0.410155654 | T45: 0.1312030703
A46: PZ055 | B46: Leicester Royal Infirmary | C46: East Midlands | D46: 308 | E46: 61.18993378 | F46: 59.75 | G46: 7.617105865 | H46: 59.8 mmol/mol (7.6%) | I46: 59.8 mmol/mol (7.6%) | J46: 0.1201298701 | K46: 0.2954545455 | L46: 0.4155844156 | M46: 0.5227272727 | N46: 0.2337662338 | O46: 0.1266233766 | P46: 0.06168831169 | Q46: 0.9383116883 | R46: 62.6040535 | S46: 0.3943851888 | T46: 0.08291766047
A47: PZ057 | B47: Kingston Hospital | C47: London and South East | D47: 123 | E47: 61.56415558 | F47: 60 | G47: 7.639980785 | H47: 60 mmol/mol (7.6%) | I47: 60 mmol/mol (7.6%) | J47: 0.05691056911 | K47: 0.1788617886 | L47: 0.3739837398 | M47: 0.5691056911 | N47: 0.2032520325 | O47: 0.1056910569 | P47: 0.05691056911 | Q47: 0.9430894309 | R47: 63.36059189 | S47: 0.3368138671 | T47: 0.07683214545
A48: PZ058 | B48: Newham University Hospital | C48: London and South East | D48: 81 | E48: 65.74897766 | F48: 62 | G48: 7.822980145 | H48: 62 mmol/mol (7.8%) | I48: 62 mmol/mol (7.8%) | J48: 0.1481481481 | K48: 0.3456790123 | L48: 0.4074074074 | M48: 0.4074074074 | N48: 0.3703703704 | O48: 0.2716049383 | P48: 0.1851851852 | Q48: 0.8148148148 | R48: 62.73796463 | S48: 0.4961349964 | T48: 0.1304529011
A49: PZ059 | B49: The Royal London Hospital | C49: London and South East | D49: 229 | E49: 62.59825516 | F49: 59 | G49: 7.548481105 | H49: 59 mmol/mol (7.5%) | I49: 59 mmol/mol (7.5%) | J49: 0.1484716157 | K49: 0.288209607 | L49: 0.4323144105 | M49: 0.4541484716 | N49: 0.2489082969 | O49: 0.1484716157 | P49: 0.1135371179 | Q49: 0.8864628821 | R49: 59.59526443 | S49: 0.5358132124 | T49: 0.08025940508
A50: PZ060 | B50: Royal Devon and Exeter Hospital | C50: South West | D50: 175 | E50: 68.65142822 | F50: 67 | G50: 8.280478543 | H50: 67 mmol/mol (8.3%) | I50: 67 mmol/mol (8.3%) | J50: 0.05142857143 | K50: 0.1657142857 | L50: 0.2628571429 | M50: 0.5657142857 | N50: 0.3942857143 | O50: 0.2171428571 | P50: 0.1714285714 | Q50: 0.8285714286 | R50: 69.80168152 | S50: 0.2418229133 | T50: 0.1829858571
A51: PZ062 | B51: Croydon University Hospital | C51: London and South East | D51: 133 | E51: 65.383461 | F51: 62 | G51: 7.822980145 | H51: 62 mmol/mol (7.8%) | I51: 62 mmol/mol (7.8%) | J51: 0.1278195489 | K51: 0.2706766917 | L51: 0.3684210526 | M51: 0.4661654135 | N51: 0.3458646617 | O51: 0.2105263158 | P51: 0.1654135338 | Q51: 0.8345864662 | R51: 63.5015564 | S51: 0.4067306519 | T51: 0.1273052096
A52: PZ064 | B52: Chesterfield Royal Hospital | C52: East Midlands | D52: 165 | E52: 60.37412262 | F52: 59 | G52: 7.548481105 | H52: 59 mmol/mol (7.5%) | I52: 59 mmol/mol (7.5%) | J52: 0.1818181818 | K52: 0.2606060606 | L52: 0.4787878788 | M52: 0.4484848485 | N52: 0.1939393939 | O52: 0.09696969697 | P52: 0.07272727273 | Q52: 0.9272727273 | R52: 59.70648575 | S52: 0.4922164083 | T52: 0.06322683394
A53: PZ065 | B53: County Hospital Stafford | C53: West Midlands | D53: 79 | E53: 61.13291168 | F53: 59 | G53: 7.548481105 | H53: 59 mmol/mol (7.5%) | I53: 59 mmol/mol (7.5%) | J53: 0.1012658228 | K53: 0.2405063291 | L53: 0.4303797468 | M53: 0.4810126582 | N53: 0.1898734177 | O53: 0.1265822785 | P53: 0.08860759494 | Q53: 0.9113924051 | R53: 61.71339035 | S53: 0.4155314863 | T53: 0.09617584199
A54: PZ067 | B54: Royal Cornwall Hospital | C54: South West | D54: 218 | E54: 59.75229263 | F54: 58 | G54: 7.456981426 | H54: 58 mmol/mol (7.5%) | I54: 58 mmol/mol (7.5%) | J54: 0.1100917431 | K54: 0.2614678899 | L54: 0.4770642202 | M54: 0.4816513761 | N54: 0.1605504587 | O54: 0.0871559633 | P54: 0.04128440367 | Q54: 0.9587155963 | R54: 60.13542938 | S54: 0.4695056379 | T54: 0.04580584913
A55: PZ068 | B55: Royal United Hospital | C55: South West | D55: 179 | E55: 64.44692993 | F55: 60 | G55: 7.639980785 | H55: 60 mmol/mol (7.6%) | I55: 60 mmol/mol (7.6%) | J55: 0.05586592179 | K55: 0.2011173184 | L55: 0.3798882682 | M55: 0.5083798883 | N55: 0.2849162011 | O55: 0.1675977654 | P55: 0.1117318436 | Q55: 0.8882681564 | R55: 65.75691986 | S55: 0.3533543944 | T55: 0.1393626034
A56: PZ069 | B56: Stepping Hill Hospital | C56: North West | D56: 177 | E56: 61.73728943 | F56: 60 | G56: 7.639980785 | H56: 60 mmol/mol (7.6%) | I56: 60 mmol/mol (7.6%) | J56: 0.1355932203 | K56: 0.2711864407 | L56: 0.4293785311 | M56: 0.4971751412 | N56: 0.2485875706 | O56: 0.1581920904 | P56: 0.07344632768 | Q56: 0.9265536723 | R56: 62.61855316 | S56: 0.4003623724 | T56: 0.07948921621
A57: PZ072 | B57: West Suffolk Hospital, Bury St Edmunds | C57: East of England | D57: 112 | E57: 67.54911041 | F57: 62.75 | G57: 7.891604904 | H57: 62.8 mmol/mol (7.9%) | I57: 62.8 mmol/mol (7.9%) | J57: 0.08035714286 | K57: 0.1964285714 | L57: 0.3214285714 | M57: 0.4910714286 | N57: 0.3125 | O57: 0.2232142857 | P57: 0.1875 | Q57: 0.8125 | R57: 68.49766541 | S57: 0.3048963249 | T57: 0.2101673335
A58: PZ073 | B58: Alexandra Hospital | C58: West Midlands | D58: 81 | E58: 69.56790161 | F58: 65 | G58: 8.097479184 | H58: 65 mmol/mol (8.1%) | I58: 65 mmol/mol (8.1%) | J58: 0.07407407407 | K58: 0.1604938272 | L58: 0.2839506173 | M58: 0.4938271605 | N58: 0.3827160494 | O58: 0.2592592593 | P58: 0.2222222222 | Q58: 0.7777777778 | R58: 69.80406189 | S58: 0.2802314758 | T58: 0.232039094
A59: PZ074 | B59: Alder Hey Childrens Hospital | C59: North West | D59: 312 | E59: 63.40384674 | F59: 60 | G59: 7.639980785 | H59: 60 mmol/mol (7.6%) | I59: 60 mmol/mol (7.6%) | J59: 0.141025641 | K59: 0.2788461538 | L59: 0.4134615385 | M59: 0.4583333333 | N59: 0.3044871795 | O59: 0.1730769231 | P59: 0.1282051282 | Q59: 0.8717948718 | R59: 61.02423859 | S59: 0.4850963652 | T59: 0.09724303335
A60: PZ075 | B60: St Mary's Hospital, Isle of Wight | C60: South Central | D60: 77 | E60: 69.94155884 | F60: 69 | G60: 8.463477903 | H60: 69 mmol/mol (8.5%) | I60: 69 mmol/mol (8.5%) | J60: 0.06493506494 | K60: 0.1558441558 | L60: 0.2337662338 | M60: 0.5324675325 | N60: 0.5064935065 | O60: 0.3246753247 | P60: 0.2337662338 | Q60: 0.7662337662 | R60: 70.72122192 | S60: 0.2314643413 | T60: 0.2814241946
A61: PZ076 | B61: Colchester General Hospital | C61: East of England | D61: 195 | E61: 69.06407166 | F61: 65 | G61: 8.097479184 | H61: 65 mmol/mol (8.1%) | I61: 65 mmol/mol (8.1%) | J61: 0.06666666667 | K61: 0.1897435897 | L61: 0.2974358974 | M61: 0.4717948718 | N61: 0.4461538462 | O61: 0.2923076923 | P61: 0.2307692308 | Q61: 0.7692307692 | R61: 68.76396179 | S61: 0.3027631938 | T61: 0.2216175497
A62: PZ078 | B62: Royal Stoke University Hospital | C62: West Midlands | D62: 210 | E62: 61.98571396 | F62: 60 | G62: 7.639980785 | H62: 60 mmol/mol (7.6%) | I62: 60 mmol/mol (7.6%) | J62: 0.07142857143 | K62: 0.219047619 | L62: 0.3857142857 | M62: 0.5476190476 | N62: 0.2 | O62: 0.1095238095 | P62: 0.06666666667 | Q62: 0.9333333333 | R62: 61.61738968 | S62: 0.3985490203 | T62: 0.06731142849
A63: PZ080 | B63: Sunderland Royal Hospital | C63: North East and North Cumbria | D63: 198 | E63: 60.19949341 | F63: 58 | G63: 7.456981426 | H63: 58 mmol/mol (7.5%) | I63: 58 mmol/mol (7.5%) | J63: 0.1919191919 | K63: 0.3484848485 | L63: 0.4848484848 | M63: 0.4242424242 | N63: 0.196969697 | O63: 0.1111111111 | P63: 0.09090909091 | Q63: 0.9090909091 | R63: 59.27015305 | S63: 0.5121766329 | T63: 0.07718732953
A64: PZ082 | B64: Evelina Childrens Hospital | C64: London and South East | D64: 91 | E64: 65.72527313 | F64: 61 | G64: 7.731480465 | H64: 61 mmol/mol (7.7%) | I64: 61 mmol/mol (7.7%) | J64: 0.0989010989 | K64: 0.2417582418 | L64: 0.3956043956 | M64: 0.4065934066 | N64: 0.3076923077 | O64: 0.2197802198 | P64: 0.1978021978 | Q64: 0.8021978022 | R64: 63.54538727 | S64: 0.4597140849 | T64: 0.165378198
A65: PZ084 | B65: Kidderminster Hospital | C65: West Midlands | D65: 45 | E65: 68.3777771 | F65: 66 | G65: 8.188978864 | H65: 66 mmol/mol (8.2%) | I65: 66 mmol/mol (8.2%) | J65: 0.02222222222 | K65: 0.06666666667 | L65: 0.1777777778 | M65: 0.6666666667 | N65: 0.4222222222 | O65: 0.2666666667 | P65: 0.1555555556 | Q65: 0.8444444444 | R65: 67.51094818 | S65: 0.1902576387 | T65: 0.1451714933
A66: PZ085 | B66: Princess Royal University Hospital | C66: London and South East | D66: 141 | E66: 65.92552948 | F66: 61.5 | G66: 7.777230305 | H66: 61.5 mmol/mol (7.8%) | I66: 61.5 mmol/mol (7.8%) | J66: 0.09219858156 | K66: 0.2127659574 | L66: 0.4042553191 | M66: 0.4397163121 | N66: 0.3120567376 | O66: 0.2340425532 | P66: 0.1560283688 | Q66: 0.8439716312 | R66: 66.80764008 | S66: 0.3772273362 | T66: 0.167142421
A67: PZ086 | B67: Hinchingbrooke Hospital | C67: East of England | D67: 92 | E67: 61.89673996 | F67: 58 | G67: 7.456981426 | H67: 58 mmol/mol (7.5%) | I67: 58 mmol/mol (7.5%) | J67: 0.1739130435 | K67: 0.3043478261 | L67: 0.4782608696 | M67: 0.347826087 | N67: 0.2826086957 | O67: 0.2065217391 | P67: 0.1739130435 | Q67: 0.8260869565 | R67: 62.36819839 | S67: 0.4597178102 | T67: 0.1757829785
A68: PZ088 | B68: Royal Surrey County Hospital | C68: London and South East | D68: 148 | E68: 60.97056198 | F68: 58 | G68: =(F68/10.929)+2.15 -> 7.456981426 | H68: =(ROUND(F68,1)&$Y$2&$Y$3&(ROUND(G68,1)&$Y$4&$Y$5)) -> 58 mmol/mol (7.5%) | I68: 58 mmol/mol (7.5%) | J68: 0.1486486486 | K68: 0.3310810811 | L68: 0.4459459459 | M68: 0.4527027027 | N68: 0.2162162162 | O68: 0.1283783784 | P68: 0.1013513514 | Q68: 0.8986486486 | R68: 62.29320145 | S68: 0.4057299793 | T68: 0.1183674708
A69: PZ089 | B69: Northwick Park Hospital | C69: London and South East | D69: 141 | E69: 69.29432678 | F69: 65 | G69: 8.097479184 | H69: 65 mmol/mol (8.1%) | I69: 65 mmol/mol (8.1%) | J69: 0.06382978723 | K69: 0.1205673759 | L69: 0.2269503546 | M69: 0.5390070922 | N69: 0.4255319149 | O69: 0.2836879433 | P69: 0.2340425532 | Q69: 0.7659574468 | R69: 68.09994507 | S69: 0.2403458059 | T69: 0.214479506
A70: PZ091 | B70: Royal Blackburn Hospital | C70: North West | D70: 249 | E70: 67.79518127 | F70: 66 | G70: 8.188978864 | H70: 66 mmol/mol (8.2%) | I70: 66 mmol/mol (8.2%) | J70: 0.09638554217 | K70: 0.1606425703 | L70: 0.2771084337 | M70: 0.5180722892 | N70: 0.4016064257 | O70: 0.2489959839 | P70: 0.2048192771 | Q70: 0.7951807229 | R70: 66.3394928 | S70: 0.3072796464 | T70: 0.1774222851
A71: PZ092 | B71: Princess of Wales Hospital, Bridgend | C71: Wales | D71: 74 | E71: 63.24324417 | F71: 60.25 | G71: 7.662855705 | H71: 60.3 mmol/mol (7.7%) | I71: 60.3 mmol/mol (7.7%) | J71: 0.09459459459 | K71: 0.2972972973 | L71: 0.4594594595 | M71: 0.4459459459 | N71: 0.2702702703 | O71: 0.1351351351 | P71: 0.09459459459 | Q71: 0.9054054054 | R71: 64.73395538 | S71: 0.4212633967 | T71: 0.1151128039
A72: PZ094 | B72: Princess Royal Hospital | C72: West Midlands | D72: 226 | E72: 64.52212524 | F72: 62 | G72: 7.822980145 | H72: 62 mmol/mol (7.8%) | I72: 62 mmol/mol (7.8%) | J72: 0.06194690265 | K72: 0.1946902655 | L72: 0.3230088496 | M72: 0.5796460177 | N72: 0.2610619469 | O72: 0.1327433628 | P72: 0.09734513274 | Q72: 0.9026548673 | R72: 64.33208466 | S72: 0.3265867233 | T72: 0.09155069292
A73: PZ096 | B73: Derriford Hospital | C73: South West | D73: 203 | E73: 60.74709702 | F73: 59 | G73: 7.548481105 | H73: 59 mmol/mol (7.5%) | I73: 59 mmol/mol (7.5%) | J73: 0.1527093596 | K73: 0.275862069 | L73: 0.4532019704 | M73: 0.4729064039 | N73: 0.2413793103 | O73: 0.09359605911 | P73: 0.07389162562 | Q73: 0.9261083744 | R73: 61.16730118 | S73: 0.4457396269 | T73: 0.08114566654
A74: PZ097 | B74: City Hospital, Birmingham | C74: West Midlands | D74: 74 | E74: 70.9594574 | F74: 68 | G74: 8.371978223 | H74: 68 mmol/mol (8.4%) | I74: 68 mmol/mol (8.4%) | J74: 0.1486486486 | K74: 0.1756756757 | L74: 0.2702702703 | M74: 0.5 | N74: 0.4864864865 | O74: 0.3513513514 | P74: 0.2297297297 | Q74: 0.7702702703 | R74: 66.04595184 | S74: 0.3629954159 | T74: 0.1331108958
A75: PZ099 | B75: East and North Hertfordshire NHS Trust | C75: East of England | D75: 247 | E75: 65.06963348 | F75: 61.5 | G75: 7.777230305 | H75: 61.5 mmol/mol (7.8%) | I75: 61.5 mmol/mol (7.8%) | J75: 0.1376518219 | K75: 0.2591093117 | L75: 0.3967611336 | M75: 0.4736842105 | N75: 0.3198380567 | O75: 0.2024291498 | P75: 0.1295546559 | Q75: 0.8704453441 | R75: 66.34783936 | S75: 0.3669933677 | T75: 0.1452094316
A76: PZ100 | B76: North Devon District Hospital | C76: South West | D76: 70 | E76: 61.25 | F76: 58 | G76: 7.456981426 | H76: 58 mmol/mol (7.5%) | I76: 58 mmol/mol (7.5%) | J76: 0.1142857143 | K76: 0.2142857143 | L76: 0.4714285714 | M76: 0.4285714286 | N76: 0.1428571429 | O76: 0.1 | P76: 0.1 | Q76: 0.9 | R76: 62.29706192 | S76: 0.4497044086 | T76: 0.116669625
A77: PZ101 | B77: Leeds Childrens' Hospital | C77: Yorkshire and Humber | D77: 400 | E77: 64.65875244 | F77: 60 | G77: 7.639980785 | H77: 60 mmol/mol (7.6%) | I77: 60 mmol/mol (7.6%) | J77: 0.15 | K77: 0.2925 | L77: 0.43 | M77: 0.425 | N77: 0.325 | O77: 0.2075 | P77: 0.145 | Q77: 0.855 | R77: 63.62742615 | S77: 0.4487083852 | T77: 0.1201089248
A78: PZ102 | B78: The Hillingdon Hospital | C78: London and South East | D78: 137 | E78: 58.53284836 | F78: 56 | G78: 7.273982066 | H78: 56 mmol/mol (7.3%) | I78: 56 mmol/mol (7.3%) | J78: 0.2481751825 | K78: 0.3868613139 | L78: 0.5547445255 | M78: 0.3649635036 | N78: 0.1605839416 | O78: 0.09489051095 | P78: 0.0802919708 | Q78: 0.9197080292 | R78: 58.08815384 | S78: 0.558760643 | T78: 0.07161381096
A79: PZ104 | B79: Royal Albert Edward Infirmary | C79: North West | D79: 155 | E79: 67.37677765 | F79: 62.5 | G79: 7.868729984 | H79: 62.5 mmol/mol (7.9%) | I79: 62.5 mmol/mol (7.9%) | J79: 0.09032258065 | K79: 0.1677419355 | L79: 0.3096774194 | M79: 0.4387096774 | N79: 0.3677419355 | O79: 0.2838709677 | P79: 0.2516129032 | Q79: 0.7483870968 | R79: 67.05553436 | S79: 0.3166995049 | T79: 0.2517062724
A80: PZ105 | B80: St Luke's Hospital | C80: Yorkshire and Humber | D80: 156 | E80: 67.07691956 | F80: 65 | G80: 8.097479184 | H80: 65 mmol/mol (8.1%) | I80: 65 mmol/mol (8.1%) | J80: 0.05128205128 | K80: 0.108974359 | L80: 0.2820512821 | M80: 0.5705128205 | N80: 0.4038461538 | O80: 0.2115384615 | P80: 0.1474358974 | Q80: 0.8525641026 | R80: 65.29821014 | S80: 0.3321882188 | T80: 0.135754168
A81: PZ106 | B81: Victoria Hospital, Blackpool | C81: North West | D81: 100 | E81: 65.69999695 | F81: 62.75 | G81: 7.891604904 | H81: 62.8 mmol/mol (7.9%) | I81: 62.8 mmol/mol (7.9%) | J81: 0.09 | K81: 0.27 | L81: 0.35 | M81: 0.52 | N81: 0.33 | O81: 0.18 | P81: 0.13 | Q81: 0.87 | R81: 66.06555176 | S81: 0.3427504897 | T81: 0.1395112723
A82: PZ107 | B82: Queen Elizabeth Hospital, Gateshead | C82: North East and North Cumbria | D82: 111 | E82: 67.6891861 | F82: 64 | G82: 8.005979504 | H82: 64 mmol/mol (8%) | I82: 64 mmol/mol (8%) | J82: 0.07207207207 | K82: 0.1531531532 | L82: 0.3153153153 | M82: 0.5225225225 | N82: 0.3693693694 | O82: 0.2612612613 | P82: 0.1621621622 | Q82: 0.8378378378 | R82: 66.43714142 | S82: 0.3387687802 | T82: 0.139463678
A83: PZ108 | B83: Birmingham Children's Hospital | C83: West Midlands | D83: 213 | E83: 62.73658371 | F83: 61 | G83: 7.731480465 | H83: 61 mmol/mol (7.7%) | I83: 61 mmol/mol (7.7%) | J83: 0.103286385 | K83: 0.2018779343 | L83: 0.3474178404 | M83: 0.5962441315 | N83: 0.2535211268 | O83: 0.1126760563 | P83: 0.05633802817 | Q83: 0.9436619718 | R83: 60.703125 | S83: 0.4127849936 | T83: 0.0485683009
A84: PZ109 | B84: Southampton Children’s Hospital | C84: South Central | D84: 225 | E84: 65.16889191 | F84: 62.5 | G84: 7.868729984 | H84: 62.5 mmol/mol (7.9%) | I84: 62.5 mmol/mol (7.9%) | J84: 0.09777777778 | K84: 0.2266666667 | L84: 0.3644444444 | M84: 0.5022222222 | N84: 0.3244444444 | O84: 0.2177777778 | P84: 0.1333333333 | Q84: 0.8666666667 | R84: 65.58488464 | S84: 0.3570359647 | T84: 0.1408789754
A85: PZ110 | B85: Ormskirk & District General Hospital | C85: North West | D85: 124 | E85: 63.42628479 | F85: 62.25 | G85: 7.845855065 | H85: 62.3 mmol/mol (7.8%) | I85: 62.3 mmol/mol (7.8%) | J85: 0.0564516129 | K85: 0.1532258065 | L85: 0.3225806452 | M85: 0.6129032258 | N85: 0.2661290323 | O85: 0.1209677419 | P85: 0.06451612903 | Q85: 0.935483871 | R85: 64.24723816 | S85: 0.2940789759 | T85: 0.07022498548
A86: PZ111 | B86: Hereford County Hospital | C86: West Midlands | D86: 79 | E86: 61.14556885 | F86: 60 | G86: 7.639980785 | H86: 60 mmol/mol (7.6%) | I86: 60 mmol/mol (7.6%) | J86: 0.1518987342 | K86: 0.3291139241 | L86: 0.417721519 | M86: 0.5063291139 | N86: 0.2784810127 | O86: 0.1012658228 | P86: 0.07594936709 | Q86: 0.9240506329 | R86: 62.02713394 | S86: 0.4018374979 | T86: 0.09133338183
A87: PZ112 | B87: Scarborough General Hospital | C87: Yorkshire and Humber | D87: 78 | E87: 61.10918427 | F87: 60.25 | G87: 7.662855705 | H87: 60.3 mmol/mol (7.7%) | I87: 60.3 mmol/mol (7.7%) | J87: 0.07692307692 | K87: 0.1794871795 | L87: 0.4102564103 | M87: 0.5384615385 | N87: 0.1794871795 | O87: 0.08974358974 | P87: 0.05128205128 | Q87: 0.9487179487 | R87: 60.85884857 | S87: 0.4208387434 | T87: 0.05183381587
A88: PZ113 | B88: University Hospital of Wales | C88: Wales | D88: 188 | E88: 65.48936462 | F88: 62.5 | G88: 7.868729984 | H88: 62.5 mmol/mol (7.9%) | I88: 62.5 mmol/mol (7.9%) | J88: 0.1063829787 | K88: 0.1968085106 | L88: 0.3191489362 | M88: 0.5159574468 | N88: 0.3191489362 | O88: 0.2287234043 | P88: 0.164893617 | Q88: 0.835106383 | R88: 65.60666656 | S88: 0.3179123402 | T88: 0.1678537726
A89: PZ114 | B89: The York Hospital | C89: Yorkshire and Humber | D89: 125 | E89: 62.91600037 | F89: 60.5 | G89: 7.685730625 | H89: 60.5 mmol/mol (7.7%) | I89: 60.5 mmol/mol (7.7%) | J89: 0.168 | K89: 0.256 | L89: 0.392 | M89: 0.472 | N89: 0.272 | O89: 0.16 | P89: 0.136 | Q89: 0.864 | R89: 64.72019958 | S89: 0.3507826924 | T89: 0.1741535813
A90: PZ118 | B90: University Hospital Lewisham | C90: London and South East | D90: 110 | E90: 67.95454407 | F90: 63 | G90: 7.914479824 | H90: 63 mmol/mol (7.9%) | I90: 63 mmol/mol (7.9%) | J90: 0.1272727273 | K90: 0.2363636364 | L90: 0.3363636364 | M90: 0.4636363636 | N90: 0.4272727273 | O90: 0.3363636364 | P90: 0.2 | Q90: 0.8 | R90: 65.14299011 | S90: 0.3864114583 | T90: 0.1405629069
A91: PZ119 | B91: Darent Valley Hospital, Dartford | C91: London and South East | D91: 143 | E91: 67.44031525 | F91: 64 | G91: 8.005979504 | H91: 64 mmol/mol (8%) | I91: 64 mmol/mol (8%) | J91: 0.05594405594 | K91: 0.1328671329 | L91: 0.2587412587 | M91: 0.5804195804 | N91: 0.3846153846 | O91: 0.2377622378 | P91: 0.1608391608 | Q91: 0.8391608392 | R91: 68.55157471 | S91: 0.2524014711 | T91: 0.2056218684
A92: PZ120 | B92: North Tyneside General Hospital | C92: North East and North Cumbria | D92: 147 | E92: 60.27550888 | F92: 59 | G92: 7.548481105 | H92: 59 mmol/mol (7.5%) | I92: 59 mmol/mol (7.5%) | J92: 0.1360544218 | K92: 0.2993197279 | L92: 0.462585034 | M92: 0.4965986395 | N92: 0.231292517 | O92: 0.08843537415 | P92: 0.04081632653 | Q92: 0.9591836735 | R92: 60.99513245 | S92: 0.4430805147 | T92: 0.04514925182
A93: PZ121 | B93: George Eliot Hospital | C93: West Midlands | D93: 88 | E93: 65.44659424 | F93: 64 | G93: 8.005979504 | H93: 64 mmol/mol (8%) | I93: 64 mmol/mol (8%) | J93: 0.06818181818 | K93: 0.1818181818 | L93: 0.25 | M93: 0.6363636364 | N93: 0.3522727273 | O93: 0.2272727273 | P93: 0.1136363636 | Q93: 0.8863636364 | R93: 65.03364563 | S93: 0.2544810474 | T93: 0.1087514684
A94: PZ122 | B94: University Hospital, Coventry | C94: West Midlands | D94: 199 | E94: 68.52010345 | F94: 65 | G94: 8.097479184 | H94: 65 mmol/mol (8.1%) | I94: 65 mmol/mol (8.1%) | J94: 0.05527638191 | K94: 0.1859296482 | L94: 0.3216080402 | M94: 0.4824120603 | N94: 0.4170854271 | O94: 0.2512562814 | P94: 0.1959798995 | Q94: 0.8040201005 | R94: 68.00209045 | S94: 0.3284292817 | T94: 0.1804581583
A95: PZ125 | B95: Maidstone Hospital | C95: London and South East | D95: 119 | E95: 63.54621887 | F95: 61.5 | G95: 7.777230305 | H95: 61.5 mmol/mol (7.8%) | I95: 61.5 mmol/mol (7.8%) | J95: 0.09243697479 | K95: 0.1680672269 | L95: 0.3529411765 | M95: 0.5546218487 | N95: 0.243697479 | O95: 0.1428571429 | P95: 0.09243697479 | Q95: 0.9075630252 | R95: 64.89829254 | S95: 0.3308824897 | T95: 0.1145132929
A96: PZ126 | B96: Medway Maritime Hospital | C96: London and South East | D96: 250 | E96: 65.61286163 | F96: 62.30049896 | G96: 7.850475703 | H96: 62.3 mmol/mol (7.9%) | I96: 62.3 mmol/mol (7.9%) | J96: 0.124 | K96: 0.212 | L96: 0.352 | M96: 0.5 | N96: 0.324 | O96: 0.22 | P96: 0.148 | Q96: 0.852 | R96: 65.22039795 | S96: 0.3610449433 | T96: 0.1407936513
A97: PZ127 | B97: James Paget Hospital | C97: East of England | D97: 119 | E97: 72.47479248 | F97: 66 | G97: 8.188978864 | H97: 66 mmol/mol (8.2%) | I97: 66 mmol/mol (8.2%) | J97: 0.05042016807 | K97: 0.1596638655 | L97: 0.243697479 | M97: 0.4621848739 | N97: 0.4621848739 | O97: 0.3865546218 | P97: 0.2941176471 | Q97: 0.7058823529 | R97: 71.27752686 | S97: 0.2577569783 | T97: 0.2568258643
A98: PZ128 | B98: Pilgrim Hospital | C98: East Midlands | D98: 95 | E98: 66.13736725 | F98: 65 | G98: 8.097479184 | H98: 65 mmol/mol (8.1%) | I98: 65 mmol/mol (8.1%) | J98: 0.1263157895 | K98: 0.2105263158 | L98: 0.3157894737 | M98: 0.5263157895 | N98: 0.4105263158 | O98: 0.1894736842 | P98: 0.1578947368 | Q98: 0.8421052632 | R98: 65.45186615 | S98: 0.3292159438 | T98: 0.1482247114
A99: PZ129 | B99: Harrogate District Hospital | C99: Yorkshire and Humber | D99: 72 | E99: 67 | F99: 62 | G99: 7.822980145 | H99: 62 mmol/mol (7.8%) | I99: 62 mmol/mol (7.8%) | J99: 0.125 | K99: 0.1805555556 | L99: 0.3194444444 | M99: 0.5 | N99: 0.3472222222 | O99: 0.25 | P99: 0.1805555556 | Q99: 0.8194444444 | R99: 67.9115448 | S99: 0.2915555835 | T99: 0.1808977872
A100: PZ130 | B100: Chelsea and Westminster Hospital | C100: London and South East | D100: 126 | E100: 69.67675781 | F100: 67.10949707 | G100: 8.29049749 | H100: 67.1 mmol/mol (8.3%) | I100: 67.1 mmol/mol (8.3%) | J100: 0.1111111111 | K100: 0.1666666667 | L100: 0.2698412698 | M100: 0.5 | N100: 0.4523809524 | O100: 0.2857142857 | P100: 0.2301587302 | Q100: 0.7698412698 | R100: 68.58055115 | S100: 0.2845876217 | T100: 0.2129158974
A101: PZ131 | B101: Peterborough City Hospital | C101: East of England | D101: 191 | E101: 66.9083786 | F101: 63 | G101: 7.914479824 | H101: 63 mmol/mol (7.9%) | I101: 63 mmol/mol (7.9%) | J101: 0.09947643979 | K101: 0.2094240838 | L101: 0.335078534 | M101: 0.4921465969 | N101: 0.3664921466 | O101: 0.2303664921 | P101: 0.1727748691 | Q101: 0.8272251309 | R101: 67.227005 | S101: 0.3354773819 | T101: 0.1876453012
A102: PZ132 | B102: Ysbyty Gwynedd Hospital | C102: Wales | D102: 91 | E102: 60.21318817 | F102: 59 | G102: 7.548481105 | H102: 59 mmol/mol (7.5%) | I102: 59 mmol/mol (7.5%) | J102: 0.1868131868 | K102: 0.3406593407 | L102: 0.4395604396 | M102: 0.4615384615 | N102: 0.2527472527 | O102: 0.1318681319 | P102: 0.0989010989 | Q102: 0.9010989011 | R102: 61.7754097 | S102: 0.4032551646 | T102: 0.1285671443
A103: PZ133 | B103: James Cook University Hospital | C103: North East and North Cumbria | D103: 142 | E103: 61.60563278 | F103: 60 | G103: 7.639980785 | H103: 60 mmol/mol (7.6%) | I103: 60 mmol/mol (7.6%) | J103: 0.1549295775 | K103: 0.2746478873 | L103: 0.4577464789 | M103: 0.4647887324 | N103: 0.2746478873 | O103: 0.1338028169 | P103: 0.07746478873 | Q103: 0.9225352113 | R103: 62.320858 | S103: 0.4528599977 | T103: 0.09364985675
A104: PZ135 | B104: Royal Alexandra Hospital, Brighton | C104: London and South East | D104: 182 | E104: 63.96154022 | F104: 61 | G104: 7.731480465 | H104: 61 mmol/mol (7.7%) | I104: 61 mmol/mol (7.7%) | J104: 0.08241758242 | K104: 0.2307692308 | L104: 0.4065934066 | M104: 0.4725274725 | N104: 0.2967032967 | O104: 0.1648351648 | P104: 0.1208791209 | Q104: 0.8791208791 | R104: 65.4559021 | S104: 0.3715038002 | T104: 0.1458126903
A105: PZ136 | B105: Central Manchester University Hospitals NHS Foundation Trust | C105: North West | D105: 266 | E105: 66.85713959 | F105: 63.5 | G105: 7.960229664 | H105: 63.5 mmol/mol (8%) | I105: 63.5 mmol/mol (8%) | J105: 0.1015037594 | K105: 0.1842105263 | L105: 0.3195488722 | M105: 0.515037594 | N105: 0.3834586466 | O105: 0.2481203008 | P105: 0.1654135338 | Q105: 0.8345864662 | R105: 63.84508514 | S105: 0.388119936 | T105: 0.1142892092
A106: PZ137 | B106: Musgrove Park Hospital | C106: South West | D106: 193 | E106: 68.55958557 | F106: 64 | G106: 8.005979504 | H106: 64 mmol/mol (8%) | I106: 64 mmol/mol (8%) | J106: 0.0932642487 | K106: 0.2020725389 | L106: 0.2642487047 | M106: 0.5388601036 | N106: 0.378238342 | O106: 0.2590673575 | P106: 0.1968911917 | Q106: 0.8031088083 | R106: 68.89103699 | S106: 0.2623595893 | T106: 0.2005254924
A107: PZ138 | B107: Warwick Hospital | C107: West Midlands | D107: 108 | E107: 62.68055725 | F107: 59.5 | G107: 7.594230945 | H107: 59.5 mmol/mol (7.6%) | I107: 59.5 mmol/mol (7.6%) | J107: 0.1851851852 | K107: 0.2314814815 | L107: 0.4259259259 | M107: 0.4351851852 | N107: 0.2685185185 | O107: 0.1574074074 | P107: 0.1388888889 | Q107: 0.8611111111 | R107: 65.37763214 | S107: 0.3644028902 | T107: 0.1958647519
A108: PZ139 | B108: Bristol Royal Hospital for Children | C108: South West | D108: 440 | E108: 63.18068314 | F108: 60.5 | G108: 7.685730625 | H108: 60.5 mmol/mol (7.7%) | I108: 60.5 mmol/mol (7.7%) | J108: 0.1409090909 | K108: 0.2613636364 | L108: 0.3931818182 | M108: 0.4909090909 | N108: 0.2772727273 | O108: 0.1636363636 | P108: 0.1159090909 | Q108: 0.8840909091 | R108: 63.34870529 | S108: 0.3881971836 | T108: 0.1163316593
A109: PZ140 | B109: Tameside General Hospital | C109: North West | D109: 86 | E109: 68.27906799 | F109: 65.5 | G109: 8.143229024 | H109: 65.5 mmol/mol (8.1%) | I109: 65.5 mmol/mol (8.1%) | J109: 0.06976744186 | K109: 0.1860465116 | L109: 0.2209302326 | M109: 0.5581395349 | N109: 0.4534883721 | O109: 0.2674418605 | P109: 0.2209302326 | Q109: 0.7790697674 | R109: 67.22880554 | S109: 0.2367046028 | T109: 0.2111086845
A110: PZ141 | B110: South Tyneside District Hospital | C110: North East and North Cumbria | D110: 64 | E110: 57.51804733 | F110: 57 | G110: 7.365481746 | H110: 57 mmol/mol (7.4%) | I110: 57 mmol/mol (7.4%) | J110: 0.140625 | K110: 0.390625 | L110: 0.5625 | M110: 0.40625 | N110: 0.140625 | O110: 0.03125 | P110: 0.03125 | Q110: 0.96875 | R110: 57.17663193 | S110: 0.5777131915 | T110: 0.03041958064
A111: PZ144 | B111: Good Hope Hospital, Sutton Coldfield | C111: West Midlands | D111: 102 | E111: 60.05882263 | F111: 60 | G111: 7.639980785 | H111: 60 mmol/mol (7.6%) | I111: 60 mmol/mol (7.6%) | J111: 0.2352941176 | K111: 0.3333333333 | L111: 0.4509803922 | M111: 0.4705882353 | N111: 0.2254901961 | O111: 0.1176470588 | P111: 0.07843137255 | Q111: 0.9215686275 | R111: 59.89545059 | S111: 0.4536083937 | T111: 0.07749408484
A112: PZ145 | B112: Milton Keynes Hospital | C112: South Central | D112: 129 | E112: 57.78682327 | F112: 56 | G112: 7.273982066 | H112: 56 mmol/mol (7.3%) | I112: 56 mmol/mol (7.3%) | J112: 0.1627906977 | K112: 0.3875968992 | L112: 0.5271317829 | M112: 0.4573643411 | N112: 0.1705426357 | O112: 0.06201550388 | P112: 0.01550387597 | Q112: 0.984496124 | R112: 59.24629211 | S112: 0.48719877 | T112: 0.0201577954
A113: PZ146 | B113: Southend University Hospital | C113: East of England | D113: 173 | E113: 59.31502914 | F113: 57.5 | G113: 7.411231586 | H113: 57.5 mmol/mol (7.4%) | I113: 57.5 mmol/mol (7.4%) | J113: 0.1791907514 | K113: 0.3410404624 | L113: 0.5086705202 | M113: 0.4277456647 | N113: 0.1791907514 | O113: 0.1040462428 | P113: 0.06358381503 | Q113: 0.936416185 | R113: 60.29292297 | S113: 0.4825995266 | T113: 0.07117322087
A114: PZ149 | B114: Barnsley Hospital | C114: Yorkshire and Humber | D114: 120 | E114: 64.14583588 | F114: 60.75 | G114: 7.708605545 | H114: 60.8 mmol/mol (7.7%) | I114: 60.8 mmol/mol (7.7%) | J114: 0.1083333333 | K114: 0.175 | L114: 0.3333333333 | M114: 0.5833333333 | N114: 0.3333333333 | O114: 0.1833333333 | P114: 0.08333333333 | Q114: 0.9166666667 | R114: 62.74987411 | S114: 0.360018611 | T114: 0.06873576343
A115: PZ150 | B115: Cumberland Infirmary | C115: North East and North Cumbria | D115: 92 | E115: 60.08751678 | F115: 56 | G115: 7.273982066 | H115: 56 mmol/mol (7.3%) | I115: 56 mmol/mol (7.3%) | J115: 0.1630434783 | K115: 0.402173913 | L115: 0.5434782609 | M115: 0.3804347826 | N115: 0.1847826087 | O115: 0.1195652174 | P115: 0.07608695652 | Q115: 0.9239130435 | R115: 60.35078812 | S115: 0.5278201699 | T115: 0.07644089311
A116: PZ151 | B116: Queen Elizabeth Hospital, Woolwich | C116: London and South East | D116: 190 | E116: 69.0489502 | F116: 66 | G116: 8.188978864 | H116: 66 mmol/mol (8.2%) | I116: 66 mmol/mol (8.2%) | J116: 0.07368421053 | K116: 0.1526315789 | L116: 0.2526315789 | M116: 0.5368421053 | N116: 0.4315789474 | O116: 0.2789473684 | P116: 0.2105263158 | Q116: 0.7894736842 | R116: 67.97283936 | S116: 0.2656180561 | T116: 0.1845519394
A117: PZ152 | B117: Torbay Hospital | C117: South West | D117: 94 | E117: 65.59042358 | F117: 62.75 | G117: 7.891604904 | H117: 62.8 mmol/mol (7.9%) | I117: 62.8 mmol/mol (7.9%) | J117: 0.1063829787 | K117: 0.2340425532 | L117: 0.3085106383 | M117: 0.5212765957 | N117: 0.3085106383 | O117: 0.2340425532 | P117: 0.170212766 | Q117: 0.829787234 | R117: 65.53742981 | S117: 0.3086442649 | T117: 0.1661275327
A118: PZ153 | B118: Whiston Hospital | C118: North West | D118: 81 | E118: 65.99190521 | F118: 63 | G118: 7.914479824 | H118: 63 mmol/mol (7.9%) | I118: 63 mmol/mol (7.9%) | J118: 0.07407407407 | K118: 0.2222222222 | L118: 0.4074074074 | M118: 0.4320987654 | N118: 0.3209876543 | O118: 0.2222222222 | P118: 0.1604938272 | Q118: 0.8395061728 | R118: 64.85058594 | S118: 0.4378519654 | T118: 0.1439927518
A119: PZ156 | B119: Queen Elizabeth Hospital, Kings Lynn | C119: East of England | D119: 126 | E119: 71.41666412 | F119: 67 | G119: 8.280478543 | H119: 67 mmol/mol (8.3%) | I119: 67 mmol/mol (8.3%) | J119: 0.02380952381 | K119: 0.09523809524 | L119: 0.1904761905 | M119: 0.5793650794 | N119: 0.4523809524 | O119: 0.3174603175 | P119: 0.2301587302 | Q119: 0.7698412698 | R119: 69.97638702 | S119: 0.2046147436 | T119: 0.1830455661
A120: PZ157 | B120: Royal Free Hospital | C120: London and South East | D120: 42 | E120: 60.0357132 | F120: 56 | G120: 7.273982066 | H120: 56 mmol/mol (7.3%) | I120: 56 mmol/mol (7.3%) | J120: 0.1904761905 | K120: 0.4523809524 | L120: 0.5476190476 | M120: 0.3333333333 | N120: 0.2380952381 | O120: 0.1428571429 | P120: 0.119047619 | Q120: 0.880952381 | R120: 59.12065125 | S120: 0.5623957515 | T120: 0.1062866077
A121: PZ159 | B121: Basingstoke and North Hampshire Hospital | C121: South Central | D121: 138 | E121: 63.15217209 | F121: 59.75 | G121: 7.617105865 | H121: 59.8 mmol/mol (7.6%) | I121: 59.8 mmol/mol (7.6%) | J121: 0.1304347826 | K121: 0.2753623188 | L121: 0.4275362319 | M121: 0.4637681159 | N121: 0.2753623188 | O121: 0.1811594203 | P121: 0.1086956522 | Q121: 0.8913043478 | R121: 64.99048615 | S121: 0.3885164857 | T121: 0.1404322684
A122: PZ160 | B122: Bishop Auckland Hospital | C122: North East and North Cumbria | D122: 78 | E122: 62.00640869 | F122: 60 | G122: 7.639980785 | H122: 60 mmol/mol (7.6%) | I122: 60 mmol/mol (7.6%) | J122: 0.2307692308 | K122: 0.3205128205 | L122: 0.4487179487 | M122: 0.4615384615 | N122: 0.2820512821 | O122: 0.2051282051 | P122: 0.08974358974 | Q122: 0.9102564103 | R122: 60.81514359 | S122: 0.4811255932 | T122: 0.07444928586
A123: PZ161 | B123: Darlington Memorial Hospital | C123: North East and North Cumbria | D123: 67 | E123: 64.17163849 | F123: 61 | G123: 7.731480465 | H123: 61 mmol/mol (7.7%) | I123: 61 mmol/mol (7.7%) | J123: 0.1492537313 | K123: 0.2388059701 | L123: 0.2835820896 | M123: 0.5970149254 | N123: 0.3432835821 | O123: 0.1791044776 | P123: 0.1194029851 | Q123: 0.8805970149 | R123: 64.29834747 | S123: 0.2725820839 | T123: 0.1091739163
A124: PZ162 | B124: University Hospital of North Durham | C124: North East and North Cumbria | D124: 100 | E124: 61.95000076 | F124: 59.5 | G124: 7.594230945 | H124: 59.5 mmol/mol (7.6%) | I124: 59.5 mmol/mol (7.6%) | J124: 0.1 | K124: 0.27 | L124: 0.44 | M124: 0.49 | N124: 0.24 | O124: 0.13 | P124: 0.07 | Q124: 0.93 | R124: 61.94280243 | S124: 0.4409720898 | T124: 0.07354152948
A125: PZ163 | B125: University Hospital of North Tees and University Hospital of Hartlepool | C125: North East and North Cumbria | D125: 161 | E125: 64.51242065 | F125: 62 | G125: 7.822980145 | H125: 62 mmol/mol (7.8%) | I125: 62 mmol/mol (7.8%) | J125: 0.1180124224 | K125: 0.198757764 | L125: 0.347826087 | M125: 0.5279503106 | N125: 0.3167701863 | O125: 0.1801242236 | P125: 0.1242236025 | Q125: 0.8757763975 | R125: 62.96554947 | S125: 0.3785106242 | T125: 0.1010029465
A126: PZ164 | B126: Rotherham Hospital | C126: Yorkshire and Humber | D126: 106 | E126: 63.759552 | F126: 60.6609993 | G126: 7.700462009 | H126: 60.7 mmol/mol (7.7%) | I126: 60.7 mmol/mol (7.7%) | J126: 0.07547169811 | K126: 0.1886792453 | L126: 0.3962264151 | M126: 0.5 | N126: 0.2264150943 | O126: 0.1320754717 | P126: 0.1037735849 | Q126: 0.8962264151 | R126: 62.4344368 | S126: 0.4267269075 | T126: 0.08421655744
A127: PZ167 | B127: University Hospitals of Morecambe Bay NHS Foundation Trust | C127: North West | D127: 184 | E127: 64.75543213 | F127: 61.5 | G127: 7.777230305 | H127: 61.5 mmol/mol (7.8%) | I127: 61.5 mmol/mol (7.8%) | J127: 0.07608695652 | K127: 0.2065217391 | L127: 0.3423913043 | M127: 0.5380434783 | N127: 0.277173913 | O127: 0.1956521739 | P127: 0.1195652174 | Q127: 0.8804347826 | R127: 64.15493011 | S127: 0.3534198105 | T127: 0.112842679
A128: PZ168 | B128: Grantham and District Hospital | C128: East Midlands | D128: 54 | E128: 60.88888931 | F128: 61 | G128: 7.731480465 | H128: 61 mmol/mol (7.7%) | I128: 61 mmol/mol (7.7%) | J128: 0.1851851852 | K128: 0.2777777778 | L128: 0.4444444444 | M128: 0.4259259259 | N128: 0.2592592593 | O128: 0.1666666667 | P128: 0.1296296296 | Q128: 0.8703703704 | R128: 63.01662064 | S128: 0.390851438 | T128: 0.1702593565
A129: PZ169 | B129: Salisbury District Hospital | C129: South Central | D129: 131 | E129: 63.82442856 | F129: 61 | G129: 7.731480465 | H129: 61 mmol/mol (7.7%) | I129: 61 mmol/mol (7.7%) | J129: 0.1526717557 | K129: 0.2442748092 | L129: 0.3816793893 | M129: 0.4809160305 | N129: 0.2824427481 | O129: 0.1679389313 | P129: 0.1374045802 | Q129: 0.8625954198 | R129: 65.59745026 | S129: 0.3452577889 | T129: 0.1678809375
A130: PZ170 | B130: Arrowe Park Hospital | C130: North West | D130: 144 | E130: 65.43402863 | F130: 62.75 | G130: 7.891604904 | H130: 62.8 mmol/mol (7.9%) | I130: 62.8 mmol/mol (7.9%) | J130: 0.08333333333 | K130: 0.2083333333 | L130: 0.3125 | M130: 0.5347222222 | N130: 0.3333333333 | O130: 0.2083333333 | P130: 0.1527777778 | Q130: 0.8472222222 | R130: 64.81771851 | S130: 0.3310847282 | T130: 0.1494001299
A131: PZ171 | B131: Broomfield Hospital | C131: East of England | D131: 162 | E131: 58.43968582 | F131: 56.75 | G131: 7.342606826 | H131: 56.8 mmol/mol (7.3%) | I131: 56.8 mmol/mol (7.3%) | J131: 0.1481481481 | K131: 0.3148148148 | L131: 0.5432098765 | M131: 0.4135802469 | N131: 0.1604938272 | O131: 0.08641975309 | P131: 0.04320987654 | Q131: 0.9567901235 | R131: 60.5466423 | S131: 0.4867867231 | T131: 0.06096346304
A132: PZ172 | B132: West Hertfordshire Hospitals NHS Trust | C132: East of England | D132: 182 | E132: 65.39949799 | F132: 62.75 | G132: =(F132/10.929)+2.15 -> 7.891604904 | H132: =(ROUND(F132,1)&$Y$2&$Y$3&(ROUND(G132,1)&$Y$4&$Y$5)) -> 62.8 mmol/mol (7.9%) | I132: 62.8 mmol/mol (7.9%) | J132: 0.1043956044 | K132: 0.1923076923 | L132: 0.3076923077 | M132: 0.5549450549 | N132: 0.3516483516 | O132: 0.2032967033 | P132: 0.1373626374 | Q132: 0.8626373626 | R132: 66.96095276 | S132: 0.2838152945 | T132: 0.1658349186
A133: PZ173 | B133: Yeovil District Hospital | C133: South West | D133: 98 | E133: 62.7143364 | F133: 61 | G133: 7.731480465 | H133: 61 mmol/mol (7.7%) | I133: 61 mmol/mol (7.7%) | J133: 0.1530612245 | K133: 0.2755102041 | L133: 0.4081632653 | M133: 0.4897959184 | N133: 0.2448979592 | O133: 0.1530612245 | P133: 0.1020408163 | Q133: 0.8979591837 | R133: 62.54179382 | S133: 0.4017024636 | T133: 0.09292763472
A134: PZ174 | B134: Kettering General Hospital | C134: East Midlands | D134: 178 | E134: 68.03347778 | F134: 63.75 | G134: 7.983104584 | H134: 63.8 mmol/mol (8%) | I134: 63.8 mmol/mol (8%) | J134: 0.1348314607 | K134: 0.2415730337 | L134: 0.3595505618 | M134: 0.4438202247 | N134: 0.3820224719 | O134: 0.2640449438 | P134: 0.1966292135 | Q134: 0.8033707865 | R134: 67.93191528 | S134: 0.3538483381 | T134: 0.1822867692
A135: PZ176 | B135: St Peter's Hospital | C135: London and South East | D135: 173 | E135: 65.65895844 | F135: 63.5 | G135: 7.960229664 | H135: 63.5 mmol/mol (8%) | I135: 63.5 mmol/mol (8%) | J135: 0.08092485549 | K135: 0.1676300578 | L135: 0.2832369942 | M135: 0.5895953757 | N135: 0.3410404624 | O135: 0.1849710983 | P135: 0.1271676301 | Q135: 0.8728323699 | R135: 67.4174881 | S135: 0.2585640252 | T135: 0.1594753265
A136: PZ177 | B136: Royal Bolton Hospital | C136: North West | D136: 115 | E136: 62.76086807 | F136: 62 | G136: 7.822980145 | H136: 62 mmol/mol (7.8%) | I136: 62 mmol/mol (7.8%) | J136: 0.07826086957 | K136: 0.1739130435 | L136: 0.3565217391 | M136: 0.5739130435 | N136: 0.2695652174 | O136: 0.1217391304 | P136: 0.06956521739 | Q136: 0.9304347826 | R136: 62.60942459 | S136: 0.3720598519 | T136: 0.07585313171
A137: PZ178 | B137: Manor Hospital, Walsall | C137: West Midlands | D137: 112 | E137: 64.45982361 | F137: 63 | G137: 7.914479824 | H137: 63 mmol/mol (7.9%) | I137: 63 mmol/mol (7.9%) | J137: 0.1428571429 | K137: 0.2589285714 | L137: 0.4017857143 | M137: 0.4732142857 | N137: 0.3125 | O137: 0.1785714286 | P137: 0.125 | Q137: 0.875 | R137: 62.44075394 | S137: 0.4586002529 | T137: 0.09998717159
A138: PZ179 | B138: Countess of Chester Hospital NHS Trust | C138: North West | D138: 125 | E138: 66.53199768 | F138: 63 | G138: 7.914479824 | H138: 63 mmol/mol (7.9%) | I138: 63 mmol/mol (7.9%) | J138: 0.104 | K138: 0.2 | L138: 0.352 | M138: 0.48 | N138: 0.328 | O138: 0.216 | P138: 0.168 | Q138: 0.832 | R138: 67.72510529 | S138: 0.3302034438 | T138: 0.190161556
A139: PZ180 | B139: Kings Mill Hospital | C139: East Midlands | D139: 163 | E139: 58.15883636 | F139: 56.28900146 | G139: 7.300425608 | H139: 56.3 mmol/mol (7.3%) | I139: 56.3 mmol/mol (7.3%) | J139: 0.1349693252 | K139: 0.3128834356 | L139: 0.5705521472 | M139: 0.3742331288 | N139: 0.1411042945 | O139: 0.06748466258 | P139: 0.05521472393 | Q139: 0.9447852761 | R139: 57.73073578 | S139: 0.5818648338 | T139: 0.05171446502
A140: PZ181 | B140: Ipswich Hospital | C140: East of England | D140: 204 | E140: 68.46250153 | F140: 63.375 | G140: 7.948792204 | H140: 63.4 mmol/mol (7.9%) | I140: 63.4 mmol/mol (7.9%) | J140: 0.1176470588 | K140: 0.1617647059 | L140: 0.3039215686 | M140: 0.5098039216 | N140: 0.3676470588 | O140: 0.2254901961 | P140: 0.1862745098 | Q140: 0.8137254902 | R140: 69.09320068 | S140: 0.2923374176 | T140: 0.1945107877
A141: PZ182 | B141: West Middlesex University Hospital | C141: London and South East | D141: 159 | E141: 63.44119644 | F141: 61 | G141: 7.731480465 | H141: 61 mmol/mol (7.7%) | I141: 61 mmol/mol (7.7%) | J141: 0.106918239 | K141: 0.2075471698 | L141: 0.3899371069 | M141: 0.5157232704 | N141: 0.3333333333 | O141: 0.1761006289 | P141: 0.09433962264 | Q141: 0.9056603774 | R141: 62.54588699 | S141: 0.4082184136 | T141: 0.08337582648
A142: PZ183 | B142: Royal Preston Hospital | C142: North West | D142: 194 | E142: 65.29639435 | F142: 62.25 | G142: 7.845855065 | H142: 62.3 mmol/mol (7.8%) | I142: 62.3 mmol/mol (7.8%) | J142: 0.09793814433 | K142: 0.2010309278 | L142: 0.3195876289 | M142: 0.5515463918 | N142: 0.3298969072 | O142: 0.1958762887 | P142: 0.1288659794 | Q142: 0.8711340206 | R142: 65.33043671 | S142: 0.3173390031 | T142: 0.1318601817
A143: PZ186 | B143: Calderdale & Huddersfield NHS Foundation Trust | C143: Yorkshire and Humber | D143: 174 | E143: 69.18965149 | F143: 64.5 | G143: 8.051729344 | H143: 64.5 mmol/mol (8.1%) | I143: 64.5 mmol/mol (8.1%) | J143: 0.06896551724 | K143: 0.183908046 | L143: 0.2643678161 | M143: 0.5 | N143: 0.3908045977 | O143: 0.275862069 | P143: 0.2356321839 | Q143: 0.7643678161 | R143: 68.06647491 | S143: 0.2851712406 | T143: 0.2205867767
A144: PZ187 | B144: Wrexham Maelor Hospital | C144: Wales | D144: 96 | E144: 60.08333206 | F144: 58.25 | G144: 7.479856346 | H144: 58.3 mmol/mol (7.5%) | I144: 58.3 mmol/mol (7.5%) | J144: 0.1666666667 | K144: 0.3333333333 | L144: 0.4791666667 | M144: 0.4583333333 | N144: 0.2291666667 | O144: 0.1145833333 | P144: 0.0625 | Q144: 0.9375 | R144: 61.96709442 | S144: 0.4320736825 | T144: 0.0854780823
A145: PZ189 | B145: Royal Glamorgan Hospital | C145: Wales | D145: 73 | E145: 66.69863129 | F145: 63.5 | G145: 7.960229664 | H145: 63.5 mmol/mol (8%) | I145: 63.5 mmol/mol (8%) | J145: 0.1232876712 | K145: 0.2191780822 | L145: 0.3150684932 | M145: 0.5616438356 | N145: 0.3561643836 | O145: 0.2465753425 | P145: 0.1232876712 | Q145: 0.8767123288 | R145: 66.22848511 | S145: 0.3297882378 | T145: 0.1234281063
A146: PZ191 | B146: Ealing Hospital | C146: London and South East | D146: 91 | E146: 71.76373291 | F146: 66.5 | G146: 8.234728703 | H146: 66.5 mmol/mol (8.2%) | I146: 66.5 mmol/mol (8.2%) | J146: 0.06593406593 | K146: 0.1208791209 | L146: 0.2417582418 | M146: 0.4725274725 | N146: 0.4065934066 | O146: 0.3296703297 | P146: 0.2857142857 | Q146: 0.7142857143 | R146: 67.87111664 | S146: 0.2980019748 | T146: 0.1897345632
A147: PZ193 | B147: Neath Port Talbot Hospital | C147: Wales | D147: 53 | E147: 69.179245 | F147: 66.5 | G147: 8.234728703 | H147: 66.5 mmol/mol (8.2%) | I147: 66.5 mmol/mol (8.2%) | J147: 0.03773584906 | K147: 0.09433962264 | L147: 0.2641509434 | M147: 0.5471698113 | N147: 0.4150943396 | O147: 0.2264150943 | P147: 0.1886792453 | Q147: 0.8113207547 | R147: 69.20825195 | S147: 0.2653368413 | T147: 0.2017867267
A148: PZ196 | B148: Great Ormond Street Hospital | C148: London and South East | D148: 10 | E148: 59.39035034 | F148: 57 | G148: 7.365481746 | H148: 57 mmol/mol (7.4%) | I148: 57 mmol/mol (7.4%) | J148: 0.2 | K148: 0.2 | L148: 0.6 | M148: 0.4 | N148: 0.2 | O148: 0 | P148: 0 | Q148: 1 | R148: 60.19591522 | S148: 0.6089122891 | T148: 0
A149: PZ199 | B149: North Middlesex University Hospital | C149: London and South East | D149: 162 | E149: 61.42284012 | F149: 58.25 | G149: 7.479856346 | H149: 58.3 mmol/mol (7.5%) | I149: 58.3 mmol/mol (7.5%) | J149: 0.1604938272 | K149: 0.3456790123 | L149: 0.4691358025 | M149: 0.4444444444 | N149: 0.2098765432 | O149: 0.1358024691 | P149: 0.08641975309 | Q149: 0.9135802469 | R149: 58.75928497 | S149: 0.5546619892 | T149: 0.06214878336
A150: PZ200 | B150: Princess Alexandra Hospital, Harlow (inc Rectory Lane Health Center, Essex) | C150: East of England | D150: 105 | E150: 59.59999847 | F150: 58 | G150: 7.456981426 | H150: 58 mmol/mol (7.5%) | I150: 58 mmol/mol (7.5%) | J150: 0.2285714286 | K150: 0.3714285714 | L150: 0.4952380952 | M150: 0.4 | N150: 0.2095238095 | O150: 0.1428571429 | P150: 0.1047619048 | Q150: 0.8952380952 | R150: 60.48600006 | S150: 0.4591214359 | T150: 0.1095541716
A151: PZ202 | B151: St Marys Hospital, Imperial College, London | C151: London and South East | D151: 130 | E151: 66.82691956 | F151: 64 | G151: 8.005979504 | H151: 64 mmol/mol (8%) | I151: 64 mmol/mol (8%) | J151: 0.1 | K151: 0.1461538462 | L151: 0.2615384615 | M151: 0.5769230769 | N151: 0.3461538462 | O151: 0.2461538462 | P151: 0.1615384615 | Q151: 0.8384615385 | R151: 64.58695221 | S151: 0.2987715602 | T151: 0.1241009757
A152: PZ203 | B152: University College London Hospital | C152: London and South East | D152: 50 | E152: 65.09159088 | F152: 62.30049896 | G152: 7.850475703 | H152: 62.3 mmol/mol (7.9%) | I152: 62.3 mmol/mol (7.9%) | J152: 0.16 | K152: 0.3 | L152: 0.44 | M152: 0.44 | N152: 0.28 | O152: 0.18 | P152: 0.12 | Q152: 0.88 | R152: 64.87942505 | S152: 0.4582308233 | T152: 0.120989643
A153: PZ206 | B153: The Pennine Acute Hospitals NHS Trust | C153: North West | D153: 259 | E153: 69.77733612 | F153: 67 | G153: 8.280478543 | H153: 67 mmol/mol (8.3%) | I153: 67 mmol/mol (8.3%) | J153: 0.09266409266 | K153: 0.1621621622 | L153: 0.277992278 | M153: 0.4980694981 | N153: 0.4517374517 | O153: 0.305019305 | P153: 0.2239382239 | Q153: 0.7760617761 | R153: 68.86946106 | S153: 0.2949694693 | T153: 0.214982152
A154: PZ213 | B154: East Surrey Hospital | C154: London and South East | D154: 222 | E154: 66.16822052 | F154: 63.70000076 | G154: 7.97852967 | H154: 63.7 mmol/mol (8%) | I154: 63.7 mmol/mol (8%) | J154: 0.09009009009 | K154: 0.1801801802 | L154: 0.2882882883 | M154: 0.5720720721 | N154: 0.3378378378 | O154: 0.2027027027 | P154: 0.1396396396 | Q154: 0.8603603604 | R154: 67.24887848 | S154: 0.2685977519 | T154: 0.1582596451
A155: PZ215 | B155: Kings College Hospital, London | C155: London and South East | D155: 119 | E155: 68.80793762 | F155: 64 | G155: 8.005979504 | H155: 64 mmol/mol (8%) | I155: 64 mmol/mol (8%) | J155: 0.0756302521 | K155: 0.1680672269 | L155: 0.3193277311 | M155: 0.4621848739 | N155: 0.3949579832 | O155: 0.268907563 | P155: 0.218487395 | Q155: 0.781512605 | R155: 65.93302155 | S155: 0.365095824 | T155: 0.1458462477
A156: PZ216 | B156: Tunbridge Wells Hospital | C156: London and South East | D156: 94 | E156: 63.10638428 | F156: 62 | G156: 7.822980145 | H156: 62 mmol/mol (7.8%) | I156: 62 mmol/mol (7.8%) | J156: 0.09574468085 | K156: 0.2021276596 | L156: 0.3510638298 | M156: 0.5425531915 | N156: 0.2872340426 | O156: 0.1382978723 | P156: 0.1063829787 | Q156: 0.8936170213 | R156: 65.98493958 | S156: 0.3030707538 | T156: 0.1631522477
A157: PZ218 | B157: Frimley Park Hospital | C157: London and South East | D157: 209 | E157: 64.99521637 | F157: 61 | G157: 7.731480465 | H157: 61 mmol/mol (7.7%) | I157: 61 mmol/mol (7.7%) | J157: 0.08133971292 | K157: 0.1770334928 | L157: 0.3492822967 | M157: 0.5406698565 | N157: 0.2822966507 | O157: 0.1674641148 | P157: 0.1100478469 | Q157: 0.8899521531 | R157: 67.76100922 | S157: 0.2982418537 | T157: 0.1582755297
A158: PZ219 | B158: Sheffield Childrens Hospital | C158: Yorkshire and Humber | D158: 245 | E158: 58.80816269 | F158: 56 | G158: 7.273982066 | H158: 56 mmol/mol (7.3%) | I158: 56 mmol/mol (7.3%) | J158: 0.2367346939 | K158: 0.3918367347 | L158: 0.5632653061 | M158: 0.3428571429 | N158: 0.1918367347 | O158: 0.1224489796 | P158: 0.09387755102 | Q158: 0.906122449 | R158: 58.11053085 | S158: 0.5932695866 | T158: 0.08922176063
A159: PZ220 | B159: Bedford Hospital | C159: East of England | D159: 77 | E159: 62.40259552 | F159: 60 | G159: 7.639980785 | H159: 60 mmol/mol (7.6%) | I159: 60 mmol/mol (7.6%) | J159: 0.1428571429 | K159: 0.2337662338 | L159: 0.3766233766 | M159: 0.5194805195 | N159: 0.2857142857 | O159: 0.1298701299 | P159: 0.1038961039 | Q159: 0.8961038961 | R159: 64.244133 | S159: 0.3455260992 | T159: 0.1373515278
A160: PZ221 | B160: Great Western Hospital | C160: South West | D160: 158 | E160: 62.10443115 | F160: 61 | G160: 7.731480465 | H160: 61 mmol/mol (7.7%) | I160: 61 mmol/mol (7.7%) | J160: 0.1455696203 | K160: 0.2405063291 | L160: 0.417721519 | M160: 0.4683544304 | N160: 0.2594936709 | O160: 0.164556962 | P160: 0.1139240506 | Q160: 0.8860759494 | R160: 62.73254013 | S160: 0.4048634768 | T160: 0.1282316744
A161: PZ222 | B161: New Cross Hospital, Wolverhampton | C161: West Midlands | D161: 153 | E161: 66.90021515 | F161: 65 | G161: 8.097479184 | H161: 65 mmol/mol (8.1%) | I161: 65 mmol/mol (8.1%) | J161: 0.1241830065 | K161: 0.2026143791 | L161: 0.3071895425 | M161: 0.5555555556 | N161: 0.3529411765 | O161: 0.1895424837 | P161: 0.137254902 | Q161: 0.862745098 | R161: 66.2636261 | S161: 0.3305351436 | T161: 0.1313873678
A162: PZ223 | B162: Sandwell General Hospital | C162: West Midlands | D162: 143 | E162: 64.87412262 | F162: 62.5 | G162: 7.868729984 | H162: 62.5 mmol/mol (7.9%) | I162: 62.5 mmol/mol (7.9%) | J162: 0.1048951049 | K162: 0.2797202797 | L162: 0.3636363636 | M162: 0.4755244755 | N162: 0.3076923077 | O162: 0.2027972028 | P162: 0.1608391608 | Q162: 0.8391608392 | R162: 62.81564713 | S162: 0.422829181 | T162: 0.1288956404
A163: PZ225 | B163: Worcestershire Royal Hospital | C163: West Midlands | D163: 121 | E163: 64.95041656 | F163: 62 | G163: 7.822980145 | H163: 62 mmol/mol (7.8%) | I163: 62 mmol/mol (7.8%) | J163: 0.0826446281 | K163: 0.1818181818 | L163: 0.3305785124 | M163: 0.5537190083 | N163: 0.2396694215 | O163: 0.1570247934 | P163: 0.1157024793 | Q163: 0.8842975207 | R163: 65.94792175 | S163: 0.3093456328 | T163: 0.1263665557
A164: PZ226 | B164: Dewsbury & District Hospital | C164: Yorkshire and Humber | D164: 99 | E164: 66.95454407 | F164: 62.5 | G164: 7.868729984 | H164: 62.5 mmol/mol (7.9%) | I164: 62.5 mmol/mol (7.9%) | J164: 0.07070707071 | K164: 0.1717171717 | L164: 0.303030303 | M164: 0.5252525253 | N164: 0.2929292929 | O164: 0.1919191919 | P164: 0.1717171717 | Q164: 0.8282828283 | R164: 65.42839813 | S164: 0.3485976458 | T164: 0.155294314
A165: PZ228 | B165: Prince Charles Hospital | C165: Wales | D165: 94 | E165: 65.48403931 | F165: 62 | G165: 7.822980145 | H165: 62 mmol/mol (7.8%) | I165: 62 mmol/mol (7.8%) | J165: 0.1063829787 | K165: 0.2021276596 | L165: 0.3404255319 | M165: 0.5319148936 | N165: 0.3191489362 | O165: 0.1808510638 | P165: 0.1276595745 | Q165: 0.8723404255 | R165: 64.12026978 | S165: 0.3656658232 | T165: 0.1081080139
A166: PZ230 | B166: East Sussex Healthcare NHS Trust/Conquest Hospital | C166: London and South East | D166: 135 | E166: 66.2444458 | F166: 63 | G166: 7.914479824 | H166: 63 mmol/mol (7.9%) | I166: 63 mmol/mol (7.9%) | J166: 0.1407407407 | K166: 0.2592592593 | L166: 0.3555555556 | M166: 0.4666666667 | N166: 0.3703703704 | O166: 0.2296296296 | P166: 0.1777777778 | Q166: 0.8222222222 | R166: 67.23784637 | S166: 0.3433403075 | T166: 0.2092337757
A167: PZ231 | B167: Salford Royal Foundation Trust | C167: North West | D167: 115 | E167: 66.34347534 | F167: 61 | G167: 7.731480465 | H167: 61 mmol/mol (7.7%) | I167: 61 mmol/mol (7.7%) | J167: 0.1391304348 | K167: 0.2695652174 | L167: 0.3739130435 | M167: 0.4695652174 | N167: 0.2782608696 | O167: 0.1913043478 | P167: 0.1565217391 | Q167: 0.8434782609 | R167: 64.7774353 | S167: 0.4086580575 | T167: 0.1294446737
A168: PZ232 | B168: BHR University Hospitals NHS Trust | C168: London and South East | D168: 141 | E168: 69.24822998 | F168: 65 | G168: 8.097479184 | H168: 65 mmol/mol (8.1%) | I168: 65 mmol/mol (8.1%) | J168: 0.1134751773 | K168: 0.1985815603 | L168: 0.2978723404 | M168: 0.4964539007 | N168: 0.390070922 | O168: 0.2482269504 | P168: 0.2056737589 | Q168: 0.7943262411 | R168: 69.14162445 | S168: 0.300005585 | T168: 0.2095185369
A169: PZ238 | B169: Queen Alexandra Hospital, Portsmouth | C169: South Central | D169: 264 | E169: 65.03787994 | F169: 62.5 | G169: 7.868729984 | H169: 62.5 mmol/mol (7.9%) | I169: 62.5 mmol/mol (7.9%) | J169: 0.06818181818 | K169: 0.2045454545 | L169: 0.3333333333 | M169: 0.5303030303 | N169: 0.303030303 | O169: 0.1704545455 | P169: 0.1363636364 | Q169: 0.8636363636 | R169: 65.49382019 | S169: 0.3235452473 | T169: 0.1429342628
A170: PZ240 | B170: Russells Hall Hospital | C170: West Midlands | D170: 144 | E170: 62.41796494 | F170: 61 | G170: 7.731480465 | H170: 61 mmol/mol (7.7%) | I170: 61 mmol/mol (7.7%) | J170: 0.1319444444 | K170: 0.2638888889 | L170: 0.3541666667 | M170: 0.5555555556 | N170: 0.2430555556 | O170: 0.125 | P170: 0.09027777778 | Q170: 0.9097222222 | R170: 62.41138458 | S170: 0.3545516729 | T170: 0.09245299548
A171: PZ242 | B171: Gloucestershire Royal Hospital | C171: South West | D171: 212 | E171: 60.36556625 | F171: 58 | G171: 7.456981426 | H171: 58 mmol/mol (7.5%) | I171: 58 mmol/mol (7.5%) | J171: 0.1698113208 | K171: 0.2924528302 | L171: 0.4858490566 | M171: 0.4528301887 | N171: 0.1981132075 | O171: 0.1273584906 | P171: 0.06132075472 | Q171: 0.9386792453 | R171: 62.29730606 | S171: 0.4387516677 | T171: 0.0822134316
A172: PZ244 | B172: Hywel Dda University Health Board | C172: Wales | D172: 169 | E172: 59.94674683 | F172: 57 | G172: 7.365481746 | H172: 57 mmol/mol (7.4%) | I172: 57 mmol/mol (7.4%) | J172: 0.224852071 | K172: 0.3727810651 | L172: 0.5088757396 | M172: 0.4142011834 | N172: 0.1834319527 | O172: 0.100591716 | P172: 0.07692307692 | Q172: 0.9230769231 | R172: 60.26187134 | S172: 0.4992426932 | T172: 0.08332370967
A173: PZ245 | B173: The Grange University Hospital | C173: Wales | D173: 210 | E173: 69.40000153 | F173: 67 | G173: 8.280478543 | H173: 67 mmol/mol (8.3%) | I173: 67 mmol/mol (8.3%) | J173: 0.05714285714 | K173: 0.119047619 | L173: 0.2333333333 | M173: 0.5523809524 | N173: 0.4619047619 | O173: 0.2857142857 | P173: 0.2142857143 | Q173: 0.7857142857 | R173: 69.39593506 | S173: 0.237945497 | T173: 0.2244577706
C174: East Midlands | D174: 1877 | E174: 61.73464203 | F174: 59.5 | G174: 7.594230945 | H174: 59.5 mmol/mol (7.6%) | I174: 59.5 mmol/mol (7.6%) | J174: 0.1443793287 | K174: 0.2781033564 | L174: 0.432072456 | M174: 0.4773574853 | N174: 0.2397442728 | O174: 0.1337240277 | P174: 0.0905700586 | Q174: 0.9094299414 | R174: 62.0606842 | S174: 0.4230114818 | T174: 0.09425399452
C175: East of England | D175: 2694 | E175: 64.61421204 | F175: 61 | G175: 7.731480465 | H175: 61 mmol/mol (7.7%) | I175: 61 mmol/mol (7.7%) | J175: 0.1206384558 | K175: 0.2334818114 | L175: 0.3789903489 | M175: 0.4777282851 | N175: 0.3069784707 | O175: 0.1956198961 | P175: 0.143281366 | Q175: 0.856718634 | R175: 65.30460358 | S175: 0.3658209145 | T175: 0.1556923389
C176: London and South East | D176: 4939 | E176: 65.46174622 | F176: 62 | G176: 7.822980145 | H176: 62 mmol/mol (7.8%) | I176: 62 mmol/mol (7.8%) | J176: 0.1121684552 | K176: 0.2212998583 | L176: 0.3529054464 | M176: 0.4986839441 | N176: 0.32840656 | O176: 0.2071269488 | P176: 0.1484106094 | Q176: 0.8515893906 | R176: 65.11162567 | S176: 0.3577958643 | T176: 0.1408350319
C177: North East and North Cumbria | D177: 1513 | E177: 62.49848557 | F177: 60 | G177: 7.639980785 | H177: 60 mmol/mol (7.6%) | I177: 60 mmol/mol (7.6%) | J177: 0.151354924 | K177: 0.2802379379 | L177: 0.4269662921 | M177: 0.4705882353 | N177: 0.2703238599 | O177: 0.1573033708 | P177: 0.1024454726 | Q177: 0.8975545274 | R177: 62.07065964 | S177: 0.4380224645 | T177: 0.09654865414
C178: North West | D178: 3077 | E178: 65.60169983 | F178: 62.5 | G178: 7.868729984 | H178: 62.5 mmol/mol (7.9%) | I178: 62.5 mmol/mol (7.9%) | J178: 0.09782255444 | K178: 0.2047448814 | L178: 0.3376665583 | M178: 0.5121871953 | N178: 0.3314917127 | O178: 0.2089697758 | P178: 0.1501462463 | Q178: 0.8498537537 | R178: 64.9839859 | S178: 0.3515119851 | T178: 0.1412950158
C179: South Central | D179: 2518 | E179: 62.25703049 | F179: 60 | G179: 7.639980785 | H179: 60 mmol/mol (7.6%) | I179: 60 mmol/mol (7.6%) | J179: 0.1286735504 | K179: 0.273629865 | L179: 0.420969023 | M179: 0.4757744241 | N179: 0.2474185862 | O179: 0.1445591739 | P179: 0.1032565528 | Q179: 0.8967434472 | R179: 63.59961319 | S179: 0.3902975023 | T179: 0.1237921193
C180: South West | D180: 2040 | E180: 63.30792618 | F180: 60.5 | G180: 7.685730625 | H180: 60.5 mmol/mol (7.7%) | I180: 60.5 mmol/mol (7.7%) | J180: 0.1205882353 | K180: 0.2431372549 | L180: 0.3946078431 | M180: 0.4941176471 | N180: 0.2671568627 | O180: 0.1593137255 | P180: 0.1112745098 | Q180: 0.8887254902 | R180: 63.93783188 | S180: 0.3810462356 | T180: 0.1208017245
C181: Wales | D181: 1293 | E181: 65.0273819 | F181: 62 | G181: 7.822980145 | H181: 62 mmol/mol (7.8%) | I181: 62 mmol/mol (7.8%) | J181: 0.1144624903 | K181: 0.2235112142 | L181: 0.3549883991 | M181: 0.5081206497 | N181: 0.3225058005 | O181: 0.1964423821 | P181: 0.1368909513 | Q181: 0.8631090487 | R181: 65.35093689 | S181: 0.3503032029 | T181: 0.1470121294
C182: West Midlands | D182: 2509 | E182: 64.37088776 | F182: 62 | G182: 7.822980145 | H182: 62 mmol/mol (7.8%) | I182: 62 mmol/mol (7.8%) | J182: 0.1092068553 | K182: 0.2259864488 | L182: 0.3583100837 | M182: 0.5217218015 | N182: 0.2949382224 | O182: 0.1701873256 | P182: 0.1199681148 | Q182: 0.8800318852 | R182: 63.81244659 | S182: 0.3728196621 | T182: 0.113282986
C183: Yorkshire and Humber | D183: 2526 | E183: 64.63322449 | F183: 61 | G183: 7.731480465 | H183: 61 mmol/mol (7.7%) | I183: 61 mmol/mol (7.7%) | J183: 0.1140142518 | K183: 0.2347585115 | L183: 0.3919239905 | M183: 0.4726840855 | N183: 0.3040380048 | O183: 0.1896278702 | P183: 0.135391924 | Q183: 0.864608076 | R183: 63.94660187 | S183: 0.4082165956 | T183: 0.124129422
C184: England | D184: 23693 | E184: 64.16917419 | F184: 61 | G184: 7.731480465 | H184: 61 mmol/mol (7.7%) | I184: 61 mmol/mol (7.7%) | J184: 0.1186848436 | K184: 0.2381716119 | L184: 0.3804499219 | M184: 0.4914109653 | N184: 0.2956147385 | O184: 0.1805174524 | P184: 0.1281391128 | Q184: 0.8718608872 | R184: 64.15924835 | S184: 0.3807400465 | T184: 0.1278138608
C185: Wales | D185: 1293 | E185: 65.0273819 | F185: 62 | G185: 7.822980145 | H185: 62 mmol/mol (7.8%) | I185: 62 mmol/mol (7.8%) | J185: 0.1144624903 | K185: 0.2235112142 | L185: 0.3549883991 | M185: 0.5081206497 | N185: 0.3225058005 | O185: 0.1964423821 | P185: 0.1368909513 | Q185: 0.8631090487 | R185: 65.35093689 | S185: 0.3503032029 | T185: 0.1470121294
C186: England and Wales | D186: 24986 | E186: 64.2135849 | F186: 61 | G186: 7.731480465 | H186: 61 mmol/mol (7.7%) | I186: 61 mmol/mol (7.7%) | J186: 0.1184663412 | K186: 0.2374129513 | L186: 0.3791323141 | M186: 0.4922756744 | N186: 0.2970063235 | O186: 0.1813415513 | P186: 0.1285920115 | Q186: 0.8714079885 | R186: 64.22036743 | S186: 0.3791470826 | T186: 0.1287359148

Sheet HbA1c-1920 (hidden)
A1: Unit code | B1: Unit name | C1: Region | E1: Unadjusted HbA1c figures (Type 1 diabetes only) | R1: Adjusted HbA1c figures (Type 1 diabetes only)
D2: Denominator | E2: Mean | F2: Median | G2: DCCT | H2: Full text | J2: % ≤48 mmol/mol | K2: % ≤53 mmol/mol | L2: % <58 mmol/mol | M2: % 58-80mmol/mol | N2: % ≥69mmol/mol | O2: % >75mmol/mol | P2: % >80mmol/mol | Q2: < 80 | R2: Mean | S2: % <58mmol/mol | T2: % >80mmol/mol | U2: % < 80 | Y2: mmol/mol
A3: PZ001 | B3: Morriston Hospital | C3: Wales | D3: 123 | E3: 68.02845764 | F3: 64.5 | G3: =(F3/10.929)+2.15 -> 8.051729344 | H3: =(ROUND(F3,1)&$Y$2&$Y$3&(ROUND(G3,1)&$Y$4&$Y$5)) -> 64.5 mmol/mol (8.1%) | I3: 64.5 mmol/mol (8.1%) | J3: 0.08943089431 | K3: 0.2032520325 | L3: 0.3008130081 | M3: 0.5609756098 | N3: 0.3983739837 | O3: 0.1788617886 | P3: 0.1382113821 | Q3: 0.8617886179 | R3: 67.85070801 | S3: 0.3102009892 | T3: 0.1530625969 | U3: 0.8469374031 | Y3: (
A4: PZ002 | B4: Norfolk and Norwich University Hospital | C4: East of England | D4: 292 | E4: 61.87071991 | F4: 60 | G4: =(F4/10.929)+2.15 -> 7.639980785 | H4: =(ROUND(F4,1)&$Y$2&$Y$3&(ROUND(G4,1)&$Y$4&$Y$5)) -> 60 mmol/mol (7.6%) | I4: 60 mmol/mol (7.6%) | J4: 0.09931506849 | K4: 0.2397260274 | L4: 0.3801369863 | M4: 0.5479452055 | N4: 0.2191780822 | O4: 0.09589041096 | P4: 0.07191780822 | Q4: 0.9280821918 | R4: 62.16686249 | S4: 0.3737489581 | T4: 0.07759613544 | U4: 0.9224038646 | Y4: %
A5: PZ003 | B5: Pinderfields General Hospital and Pontefract General Infirmary | C5: Yorkshire and Humber | D5: 197 | E5: 69.06852722 | F5: 65 | G5: 8.097479184 | H5: 65 mmol/mol (8.1%) | I5: 65 mmol/mol (8.1%) | J5: 0.06598984772 | K5: 0.1472081218 | L5: 0.2588832487 | M5: 0.5532994924 | N5: 0.3705583756 | O5: 0.2436548223 | P5: 0.1878172589 | Q5: 0.8121827411 | R5: 68.17635345 | S5: 0.2729205191 | T5: 0.1663565338 | U5: 0.8336434662 | Y5: )
A6: PZ004 | B6: Northampton General Hospital | C6: East Midlands | D6: 196 | E6: 66.21683502 | F6: 65.25 | G6: 8.120354104 | H6: 65.3 mmol/mol (8.1%) | I6: 65.3 mmol/mol (8.1%) | J6: 0.09183673469 | K6: 0.193877551 | L6: 0.2755102041 | M6: 0.5816326531 | N6: 0.3418367347 | O6: 0.2193877551 | P6: 0.1428571429 | Q6: 0.8571428571 | R6: 66.98972321 | S6: 0.26330024 | T6: 0.1632241607 | U6: 0.8367758393
A7: PZ005 | B7: Derbyshire Children's Hospital | C7: East Midlands | D7: 246 | E7: 61.93699265 | F7: 58 | G7: 7.456981426 | H7: 58 mmol/mol (7.5%) | I7: 58 mmol/mol (7.5%) | J7: 0.1300813008 | K7: 0.2845528455 | L7: 0.4796747967 | M7: 0.3943089431 | N7: 0.2154471545 | O7: 0.1422764228 | P7: 0.1260162602 | Q7: 0.8739837398 | R7: 62.62219238 | S7: 0.4545927644 | T7: 0.1375357509 | U7: 0.8624642491
A8: PZ006 | B8: Doncaster Royal Infirmary | C8: Yorkshire and Humber | D8: 165 | E8: 64.56060791 | F8: 61 | G8: 7.731480465 | H8: 61 mmol/mol (7.7%) | I8: 61 mmol/mol (7.7%) | J8: 0.07878787879 | K8: 0.1878787879 | L8: 0.3878787879 | M8: 0.4787878788 | N8: 0.2606060606 | O8: 0.1757575758 | P8: 0.1333333333 | Q8: 0.8666666667 | R8: 63.55637741 | S8: 0.4084995985 | T8: 0.1147999913 | U8: 0.8852000087
A9: PZ007 | B9: John Radcliffe Hospital | C9: South Central | D9: 322 | E9: 60.49534225 | F9: 58.75 | G9: 7.525606185 | H9: 58.8 mmol/mol (7.5%) | I9: 58.8 mmol/mol (7.5%) | J9: 0.2049689441 | K9: 0.3540372671 | L9: 0.4627329193 | M9: 0.4472049689 | N9: 0.2173913043 | O9: 0.1304347826 | P9: 0.0900621118 | Q9: 0.9099378882 | R9: 61.38991165 | S9: 0.4254803658 | T9: 0.09772919863 | U9: 0.9022708014
A10: PZ009 | B10: Macclesfield District General Hospital | C10: North West | D10: 99 | E10: 61.34343338 | F10: 59 | G10: 7.548481105 | H10: 59 mmol/mol (7.5%) | I10: 59 mmol/mol (7.5%) | J10: 0.101010101 | K10: 0.2424242424 | L10: 0.4444444444 | M10: 0.4747474747 | N10: 0.2626262626 | O10: 0.1414141414 | P10: 0.08080808081 | Q10: 0.9191919192 | R10: 62.82408905 | S10: 0.4068885744 | T10: 0.1032911837 | U10: 0.8967088163
A11: PZ010 | B11: Luton and Dunstable Hospital | C11: East of England | D11: 163 | E11: 66.68557739 | F11: 66.12599945 | G11: 8.200507773 | H11: 66.1 mmol/mol (8.2%) | I11: 66.1 mmol/mol (8.2%) | J11: 0.0490797546 | K11: 0.1165644172 | L11: 0.282208589 | M11: 0.6134969325 | N11: 0.4171779141 | O11: 0.245398773 | P11: 0.1042944785 | Q11: 0.8957055215 | R11: 66.27033997 | S11: 0.2960569859 | T11: 0.1091838107 | U11: 0.8908161893
A12: PZ011 | B12: Glan Clwyd District General Hospital | C12: Wales | D12: 114 | E12: 65.5 | F12: 61 | G12: 7.731480465 | H12: 61 mmol/mol (7.7%) | I12: 61 mmol/mol (7.7%) | J12: 0.08771929825 | K12: 0.1929824561 | L12: 0.3596491228 | M12: 0.4912280702 | N12: 0.3245614035 | O12: 0.2105263158 | P12: 0.149122807 | Q12: 0.850877193 | R12: 66.13118744 | S12: 0.3491437435 | T12: 0.168442741 | U12: 0.831557259
A13: PZ012 | B13: Barnet General Hospital | C13: London and South East | D13: 93 | E13: 65.04174042 | F13: 62 | G13: 7.822980145 | H13: 62 mmol/mol (7.8%) | I13: 62 mmol/mol (7.8%) | J13: 0.1505376344 | K13: 0.2903225806 | L13: 0.4193548387 | M13: 0.4301075269 | N13: 0.3225806452 | O13: 0.2365591398 | P13: 0.1505376344 | Q13: 0.8494623656 | R13: 65.48743439 | S13: 0.3966861963 | T13: 0.1603094488 | U13: 0.8396905512
A14: PZ014 | B14: Chase Farm Hospital | C14: London and South East | D14: 52 | E14: 69.125 | F14: 66 | G14: 8.188978864 | H14: 66 mmol/mol (8.2%) | I14: 66 mmol/mol (8.2%) | J14: 0.07692307692 | K14: 0.1730769231 | L14: 0.3076923077 | M14: 0.4423076923 | N14: 0.4230769231 | O14: 0.3461538462 | P14: 0.25 | Q14: 0.75 | R14: 69.03421783 | S14: 0.3033104539 | T14: 0.2465029359 | U14: 0.7534970641
A15: PZ015 | B15: Wythenshawe Hospital | C15: North West | D15: 114 | E15: 63.95175552 | F15: 59 | G15: 7.548481105 | H15: 59 mmol/mol (7.5%) | I15: 59 mmol/mol (7.5%) | J15: 0.1754385965 | K15: 0.350877193 | L15: 0.4736842105 | M15: 0.3333333333 | N15: 0.3070175439 | O15: 0.2192982456 | P15: 0.1929824561 | Q15: 0.8070175439 | R15: 65.0200882 | S15: 0.4597971141 | T15: 0.2185274214 | U15: 0.7814725786
A16: PZ016 | B16: Bassetlaw District General Hospital | C16: Yorkshire and Humber | D16: 75 | E16: 63.04666519 | F16: 59.5 | G16: 7.594230945 | H16: 59.5 mmol/mol (7.6%) | I16: 59.5 mmol/mol (7.6%) | J16: 0.1466666667 | K16: 0.28 | L16: 0.4 | M16: 0.4933333333 | N16: 0.28 | O16: 0.16 | P16: 0.1066666667 | Q16: 0.8933333333 | R16: 63.04937363 | S16: 0.4020613432 | T16: 0.1049463674 | U16: 0.8950536326
A17: PZ017 | B17: Dorset County Hospital | C17: South Central | D17: 95 | E17: 67.23470306 | F17: 62.30050278 | G17: 7.850476052 | H17: 62.3 mmol/mol (7.9%) | I17: 62.3 mmol/mol (7.9%) | J17: 0.06315789474 | K17: 0.1368421053 | L17: 0.3052631579 | M17: 0.5684210526 | N17: 0.3052631579 | O17: 0.2105263158 | P17: 0.1263157895 | Q17: 0.8736842105 | R17: 66.57525635 | S17: 0.308650285 | T17: 0.1107148975 | U17: 0.8892851025
A18: PZ018 | B18: Worthing Hospital | C18: South Central | D18: 119 | E18: 68.14414978 | F18: 65.57949829 | G18: 8.150503092 | H18: 65.6 mmol/mol (8.2%) | I18: 65.6 mmol/mol (8.2%) | J18: 0.05042016807 | K18: 0.1176470588 | L18: 0.2605042017 | M18: 0.5630252101 | N18: 0.4201680672 | O18: 0.2521008403 | P18: 0.1764705882 | Q18: 0.8235294118 | R18: 69.43784332 | S18: 0.2389884591 | T18: 0.2020411044 | U18: 0.7979588956
A19: PZ019 | B19: Basildon University Hospital | C19: East of England | D19: 196 | E19: 62.93191147 | F19: 59 | G19: 7.548481105 | H19: 59 mmol/mol (7.5%) | I19: 59 mmol/mol (7.5%) | J19: 0.1683673469 | K19: 0.2755102041 | L19: 0.4336734694 | M19: 0.4234693878 | N19: 0.2857142857 | O19: 0.2040816327 | P19: 0.1428571429 | Q19: 0.8571428571 | R19: 62.84480286 | S19: 0.4341467917 | T19: 0.1430197805 | U19: 0.8569802195
A20: PZ020 | B20: Diana, Princess of Wales Hospital, Grimsby | C20: Yorkshire and Humber | D20: 103 | E20: 58.91747665 | F20: 56.5 | G20: 7.319731906 | H20: 56.5 mmol/mol (7.3%) | I20: 56.5 mmol/mol (7.3%) | J20: 0.1262135922 | K20: 0.3106796117 | L20: 0.5436893204 | M20: 0.427184466 | N20: 0.1262135922 | O20: 0.07766990291 | P20: 0.02912621359 | Q20: 0.9708737864 | R20: 60.336586 | S20: 0.5081798434 | T20: 0.03641059622 | U20: 0.9635894038
A21: PZ021 | B21: Wexham Park Hospital | C21: South Central | D21: 170 | E21: 61.90588379 | F21: 60 | G21: 7.639980785 | H21: 60 mmol/mol (7.6%) | I21: 60 mmol/mol (7.6%) | J21: 0.1117647059 | K21: 0.2705882353 | L21: 0.4235294118 | M21: 0.4941176471 | N21: 0.2176470588 | O21: 0.1294117647 | P21: 0.08235294118 | Q21: 0.9176470588 | R21: 62.47478867 | S21: 0.4092489481 | T21: 0.08895026147 | U21: 0.9110497385
A22: PZ022 | B22: West Cumberland Hospital | C22: North East and North Cumbria | D22: 59 | E22: 63.27965927 | F22: 60 | G22: 7.639980785 | H22: 60 mmol/mol (7.6%) | I22: 60 mmol/mol (7.6%) | J22: 0.2372881356 | K22: 0.3728813559 | L22: 0.4745762712 | M22: 0.3728813559 | N22: 0.2881355932 | O22: 0.1525423729 | P22: 0.1525423729 | Q22: 0.8474576271 | R22: 63.16257095 | S22: 0.4755371809 | T22: 0.1506693214 | U22: 0.8493306786
A23: PZ023 | B23: St George's Hospital, London | C23: London and South East | D23: 136 | E23: 65.65567017 | F23: 62.5 | G23: 7.868729984 | H23: 62.5 mmol/mol (7.9%) | I23: 62.5 mmol/mol (7.9%) | J23: 0.1176470588 | K23: 0.2352941176 | L23: 0.3970588235 | M23: 0.4558823529 | N23: 0.3161764706 | O23: 0.1911764706 | P23: 0.1470588235 | Q23: 0.8529411765 | R23: 65.08003235 | S23: 0.4060158134 | T23: 0.132764101 | U23: 0.867235899
A24: PZ024 | B24: East Kent Hospitals University NHS Foundation Trust | C24: London and South East | D24: 348 | E24: 64.39942169 | F24: 60.5 | G24: 7.685730625 | H24: 60.5 mmol/mol (7.7%) | I24: 60.5 mmol/mol (7.7%) | J24: 0.1149425287 | K24: 0.2528735632 | L24: 0.4051724138 | M24: 0.4798850575 | N24: 0.2902298851 | O24: 0.1637931034 | P24: 0.1149425287 | Q24: 0.8850574713 | R24: 64.00858307 | S24: 0.4093336761 | T24: 0.1074906364 | U24: 0.8925093636
A25: PZ026 | B25: Hull Royal Infirmary | C25: Yorkshire and Humber | D25: 229 | E25: 68.61572266 | F25: 64 | G25: 8.005979504 | H25: 64 mmol/mol (8%) | I25: 64 mmol/mol (8%) | J25: 0.07860262009 | K25: 0.1528384279 | L25: 0.2794759825 | M25: 0.5502183406 | N25: 0.3799126638 | O25: 0.2270742358 | P25: 0.1703056769 | Q25: 0.8296943231 | R25: 68.82880402 | S25: 0.2742488384 | T25: 0.1757733226 | U25: 0.8242266774
A26: PZ027 | B26: Friarage Hospital | C26: North East and North Cumbria | D26: 48 | E26: 61.375 | F26: 56.5 | G26: 7.319731906 | H26: 56.5 mmol/mol (7.3%) | I26: 56.5 mmol/mol (7.3%) | J26: 0.1666666667 | K26: 0.3958333333 | L26: 0.5625 | M26: 0.3333333333 | N26: 0.2083333333 | O26: 0.125 | P26: 0.1041666667 | Q26: 0.8958333333 | R26: 63.61485291 | S26: 0.5049121976 | T26: 0.1408244073 | U26: 0.8591755927
A27: PZ028 | B27: Stoke Mandeville Hospital | C27: South Central | D27: 85 | E27: 59.65882492 | F27: 59 | G27: 7.548481105 | H27: 59 mmol/mol (7.5%) | I27: 59 mmol/mol (7.5%) | J27: 0.1529411765 | K27: 0.3411764706 | L27: 0.4705882353 | M27: 0.4823529412 | N27: 0.1647058824 | O27: 0.08235294118 | P27: 0.04705882353 | Q27: 0.9529411765 | R27: 62.87134933 | S27: 0.3909558058 | T27: 0.07499575615 | U27: 0.9250042439
A28: PZ031 | B28: St Richard's Hospital | C28: South Central | D28: 102 | E28: 62.13725662 | F28: 61 | G28: 7.731480465 | H28: 61 mmol/mol (7.7%) | I28: 61 mmol/mol (7.7%) | J28: 0.1078431373 | K28: 0.2156862745 | L28: 0.3333333333 | M28: 0.5882352941 | N28: 0.2352941176 | O28: 0.1078431373 | P28: 0.07843137255 | Q28: 0.9215686275 | R28: 63.28078842 | S28: 0.3135932684 | T28: 0.09340971708 | U28: 0.9065902829
A29: PZ032 | B29: Royal Victoria Infirmary, Newcastle Upon Tyne | C29: North East and North Cumbria | D29: 267 | E29: 65.48501587 | F29: 62.5 | G29: 7.868729984 | H29: 62.5 mmol/mol (7.9%) | I29: 62.5 mmol/mol (7.9%) | J29: 0.0861423221 | K29: 0.191011236 | L29: 0.34082397 | M29: 0.5131086142 | N29: 0.3558052434 | O29: 0.2247191011 | P29: 0.1460674157 | Q29: 0.8539325843 | R29: 65.20397186 | S29: 0.3344578445 | T29: 0.130354166 | U29: 0.869645834
A30: PZ033 | B30: Queens Hospital, Burton on Trent | C30: West Midlands | D30: 136 | E30: 61.86397171 | F30: 56.25 | G30: 7.296856986 | H30: 56.3 mmol/mol (7.3%) | I30: 56.3 mmol/mol (7.3%) | J30: 0.1617647059 | K30: 0.3676470588 | L30: 0.5367647059 | M30: 0.3308823529 | N30: 0.2205882353 | O30: 0.1397058824 | P30: 0.1323529412 | Q30: 0.8676470588 | R30: 61.57320404 | S30: 0.5163900256 | T30: 0.1200497672 | U30: 0.8799502328
A31: PZ034 | B31: Royal Hampshire County Hospital | C31: South Central | D31: 120 | E31: 63.65000153 | F31: 59.5 | G31: 7.594230945 | H31: 59.5 mmol/mol (7.6%) | I31: 59.5 mmol/mol (7.6%) | J31: 0.1583333333 | K31: 0.2666666667 | L31: 0.4583333333 | M31: 0.4083333333 | N31: 0.2583333333 | O31: 0.1583333333 | P31: 0.1333333333 | Q31: 0.8666666667 | R31: 64.45431519 | S31: 0.4194296598 | T31: 0.1444388926 | U31: 0.8555611074
A32: PZ035 | B32: Royal Berkshire Hospital | C32: South Central | D32: 223 | E32: 62.60089874 | F32: 60 | G32: 7.639980785 | H32: 60 mmol/mol (7.6%) | I32: 60 mmol/mol (7.6%) | J32: 0.1165919283 | K32: 0.2242152466 | L32: 0.4080717489 | M32: 0.4887892377 | N32: 0.2421524664 | O32: 0.1434977578 | P32: 0.1031390135 | Q32: 0.8968609865 | R32: 64.19248199 | S32: 0.3666141033 | T32: 0.1263603568 | U32: 0.8736396432
A33: PZ036 | B33: Whipps Cross University Hospital | C33: London and South East | D33: 148 | E33: 63.30405426 | F33: 59 | G33: 7.548481105 | H33: 59 mmol/mol (7.5%) | I33: 59 mmol/mol (7.5%) | J33: 0.1081081081 | K33: 0.277027027 | L33: 0.4391891892 | M33: 0.4662162162 | N33: 0.2364864865 | O33: 0.1418918919 | P33: 0.09459459459 | Q33: 0.9054054054 | R33: 62.90056229 | S33: 0.4461265802 | T33: 0.0889845863 | U33: 0.9110154137
A34: PZ038 | B34: Wycombe General Hospital | C34: South Central | D34: 87 | E34: 57.29310226 | F34: 57 | G34: 7.365481746 | H34: 57 mmol/mol (7.4%) | I34: 57 mmol/mol (7.4%) | J34: 0.1034482759 | K34: 0.3448275862 | L34: 0.5632183908 | M34: 0.4367816092 | N34: 0.1264367816 | O34: 0.03448275862 | P34: 0 | Q34: 1 | R34: 61.19763947 | S34: 0.4633803964 | T34: 0 | U34: 1
A35: PZ040 | B35: Birmingham Heartlands Hospital | C35: West Midlands | D35: 261 | E35: 70.94061279 | F35: 70 | G35: 8.554977583 | H35: 70 mmol/mol (8.6%) | I35: 70 mmol/mol (8.6%) | J35: 0.02681992337 | K35: 0.08429118774 | L35: 0.1570881226 | M35: 0.6168582375 | N35: 0.5287356322 | O35: 0.337164751 | P35: 0.2260536398 | Q35: 0.7739463602 | R35: 68.44652557 | S35: 0.1853377074 | T35: 0.1727782786 | U35: 0.8272217214
A36: PZ042 | B36: Nottingham Children's Hospital | C36: East Midlands | D36: 318 | E36: 57.54716873 | F36: 57 | G36: 7.365481746 | H36: 57 mmol/mol (7.4%) | I36: 57 mmol/mol (7.4%) | J36: 0.1823899371 | K36: 0.3710691824 | L36: 0.5503144654 | M36: 0.427672956 | N36: 0.1383647799 | O36: 0.04716981132 | P36: 0.02201257862 | Q36: 0.9779874214 | R36: 57.73302841 | S36: 0.5491488576 | T36: 0.02298498526 | U36: 0.9770150147
A37: PZ045 | B37: Whittington Hospital, London | C37: London and South East | D37: 84 | E37: 69.01190186 | F37: 66.25 | G37: 8.211853784 | H37: 66.3 mmol/mol (8.2%) | I37: 66.3 mmol/mol (8.2%) | J37: 0.07142857143 | K37: 0.1904761905 | L37: 0.2976190476 | M37: 0.5119047619 | N37: 0.4642857143 | O37: 0.2738095238 | P37: 0.1904761905 | Q37: 0.8095238095 | R37: 66.65850067 | S37: 0.3378233314 | T37: 0.1447893381 | U37: 0.8552106619
A38: PZ048 | B38: Lincoln County Hospital | C38: East Midlands | D38: 135 | E38: 69.59999847 | F38: 66.5 | G38: 8.234728703 | H38: 66.5 mmol/mol (8.2%) | I38: 66.5 mmol/mol (8.2%) | J38: 0.06666666667 | K38: 0.1703703704 | L38: 0.2962962963 | M38: 0.4740740741 | N38: 0.4518518519 | O38: 0.3481481481 | P38: 0.2296296296 | Q38: 0.7703703704 | R38: 69.36534882 | S38: 0.2985727191 | T38: 0.2197621465 | U38: 0.7802378535
A39: PZ049 | B39: Warrington Hospital | C39: North West | D39: 123 | E39: 63.96747971 | F39: 61 | G39: 7.731480465 | H39: 61 mmol/mol (7.7%) | I39: 61 mmol/mol (7.7%) | J39: 0.08943089431 | K39: 0.2113821138 | L39: 0.3739837398 | M39: 0.4959349593 | N39: 0.2682926829 | O39: 0.1788617886 | P39: 0.1300813008 | Q39: 0.8699186992 | R39: 64.86654663 | S39: 0.3603673279 | T39: 0.1489185393 | U39: 0.8510814607
A40: PZ050 | B40: Epsom & St Helier University Hospitals NHS Trust | C40: London and South East | D40: 182 | E40: 66.45879364 | F40: 64 | G40: 8.005979504 | H40: 64 mmol/mol (8%) | I40: 64 mmol/mol (8%) | J40: 0.1208791209 | K40: 0.2087912088 | L40: 0.3351648352 | M40: 0.5054945055 | N40: 0.3461538462 | O40: 0.2142857143 | P40: 0.1593406593 | Q40: 0.8406593407 | R40: 67.25408936 | S40: 0.3157676458 | T40: 0.1714504957 | U40: 0.8285495043
A41: PZ052 | C41: Wales | D41: 74 | E41: 70.4797287 | F41: 68 | G41: 8.371978223 | H41: 68 mmol/mol (8.4%) | I41: 68 mmol/mol (8.4%) | J41: 0.01351351351 | K41: 0.06756756757 | L41: 0.1891891892 | M41: 0.5945945946 | N41: 0.4594594595 | O41: 0.3378378378 | P41: 0.2162162162 | Q41: 0.7837837838 | R41: 70.47385406 | S41: 0.187121287 | T41: 0.2250548154 | U41: 0.7749451846
A42: PZ053 | B42: Scunthorpe General Hospital | C42: Yorkshire and Humber | D42: 111 | E42: 65.63513184 | F42: 61 | G42: 7.731480465 | H42: 61 mmol/mol (7.7%) | I42: 61 mmol/mol (7.7%) | J42: 0.08108108108 | K42: 0.2252252252 | L42: 0.3783783784 | M42: 0.4774774775 | N42: 0.3153153153 | O42: 0.2072072072 | P42: 0.1441441441 | Q42: 0.8558558559 | R42: 65.36645508 | S42: 0.3849103749 | T42: 0.1411940157 | U42: 0.8588059843
A43: PZ054 | B43: Poole General Hospital | C43: South Central | D43: 202 | E43: 63.00263977 | F43: 61 | G43: 7.731480465 | H43: 61 mmol/mol (7.7%) | I43: 61 mmol/mol (7.7%) | J43: 0.08415841584 | K43: 0.202970297 | L43: 0.3465346535 | M43: 0.5742574257 | N43: 0.2623762376 | O43: 0.1584158416 | P43: 0.07920792079 | Q43: 0.9207920792 | R43: 65.34555817 | S43: 0.3103414476 | T43: 0.1235810667 | U43: 0.8764189333
A44: PZ055 | B44: Leicester Royal Infirmary | C44: East Midlands | D44: 291 | E44: 62.1243515 | F44: 61 | G44: 7.731480465 | H44: 61 mmol/mol (7.7%) | I44: 61 mmol/mol (7.7%) | J44: 0.09621993127 | K44: 0.2405498282 | L44: 0.3986254296 | M44: 0.529209622 | N44: 0.2542955326 | O44: 0.1134020619 | P44: 0.07216494845 | Q44: 0.9278350515 | R44: 64.30204773 | S44: 0.3687551022 | T44: 0.1160758361 | U44: 0.8839241639
A45: PZ057 | B45: Kingston Hospital | C45: London and South East | D45: 154 | E45: 60.05194855 | F45: 60 | G45: 7.639980785 | H45: 60 mmol/mol (7.6%) | I45: 60 mmol/mol (7.6%) | J45: 0.1428571429 | K45: 0.2597402597 | L45: 0.4480519481 | M45: 0.4805194805 | N45: 0.1753246753 | O45: 0.09090909091 | P45: 0.07142857143 | Q45: 0.9285714286 | R45: 61.40024185 | S45: 0.4066404998 | T45: 0.0847935006 | U45: 0.9152064994
A46: PZ058 | B46: Newham University Hospital | C46: London and South East | D46: 115 | E46: 64.55217743 | F46: 63 | G46: 7.914479824 | H46: 63 mmol/mol (7.9%) | I46: 63 mmol/mol (7.9%) | J46: 0.147826087 | K46: 0.2608695652 | L46: 0.4086956522 | M46: 0.4434782609 | N46: 0.3652173913 | O46: 0.2173913043 | P46: 0.147826087 | Q46: 0.852173913 | R46: 61.68060303 | S46: 0.5149636865 | T46: 0.1139736176 | U46: 0.8860263824
A47: PZ059 | B47: The Royal London Hospital | C47: London and South East | D47: 242 | E47: 63.85123825 | F47: 60 | G47: 7.639980785 | H47: 60 mmol/mol (7.6%) | I47: 60 mmol/mol (7.6%) | J47: 0.09917355372 | K47: 0.2355371901 | L47: 0.3842975207 | M47: 0.5165289256 | N47: 0.2561983471 | O47: 0.1280991736 | P47: 0.09917355372 | Q47: 0.9008264463 | R47: 60.59122086 | S47: 0.4904634058 | T47: 0.06904702634 | U47: 0.9309529737
A48: PZ060 | B48: Royal Devon and Exeter Hospital | C48: South West | D48: 203 | E48: 69.40148163 | F48: 66 | G48: 8.188978864 | H48: 66 mmol/mol (8.2%) | I48: 66 mmol/mol (8.2%) | J48: 0.07881773399 | K48: 0.1674876847 | L48: 0.3054187192 | M48: 0.4975369458 | N48: 0.3891625616 | O48: 0.2512315271 | P48: 0.197044335 | Q48: 0.802955665 | R48: 70.00260925 | S48: 0.286192745 | T48: 0.1965965629 | U48: 0.8034034371
A49: PZ062 | B49: Croydon University Hospital | C49: London and South East | D49: 130 | E49: 70.30384827 | F49: 64.75 | G49: 8.074604264 | H49: 64.8 mmol/mol (8.1%) | I49: 64.8 mmol/mol (8.1%) | J49: 0.08461538462 | K49: 0.1538461538 | L49: 0.2692307692 | M49: 0.4923076923 | N49: 0.3923076923 | O49: 0.2846153846 | P49: 0.2384615385 | Q49: 0.7615384615 | R49: 68.77490997 | S49: 0.2926142216 | T49: 0.1963993907 | U49: 0.8036006093
A50: PZ064 | B50: Chesterfield Royal Hospital | C50: East Midlands | D50: 160 | E50: 62.90000153 | F50: 60 | G50: 7.639980785 | H50: 60 mmol/mol (7.6%) | I50: 60 mmol/mol (7.6%) | J50: 0.10625 | K50: 0.2625 | L50: 0.40625 | M50: 0.4625 | N50: 0.25625 | O50: 0.16875 | P50: 0.13125 | Q50: 0.86875 | R50: 62.26364899 | S50: 0.4159573615 | T50: 0.1159860417 | U50: 0.8840139583
A51: PZ065 | B51: County Hospital Stafford | C51: West Midlands | D51: 81 | E51: 64.46295929 | F51: 62 | G51: 7.822980145 | H51: 62 mmol/mol (7.8%) | I51: 62 mmol/mol (7.8%) | J51: 0.03703703704 | K51: 0.1358024691 | L51: 0.2592592593 | M51: 0.6790123457 | N51: 0.3333333333 | O51: 0.1728395062 | P51: 0.06172839506 | Q51: 0.9382716049 | R51: 65.10784912 | S51: 0.2477605641 | T51: 0.06836598366 | U51: 0.9316340163
A52: PZ067 | B52: Royal Cornwall Hospital | C52: South West | D52: 204 | E52: 60.54019547 | F52: 58.5 | G52: 7.502731265 | H52: 58.5 mmol/mol (7.5%) | I52: 58.5 mmol/mol (7.5%) | J52: 0.1323529412 | K52: 0.2794117647 | L52: 0.4607843137 | M52: 0.4607843137 | N52: 0.1764705882 | O52: 0.1078431373 | P52: 0.07843137255 | Q52: 0.9215686275 | R52: 61.27943039 | S52: 0.4477660656 | T52: 0.0950615257 | U52: 0.9049384743
A53: PZ068 | B53: Royal United Hospital | C53: South West | D53: 185 | E53: 65.84324646 | F53: 62.5 | G53: 7.868729984 | H53: 62.5 mmol/mol (7.9%) | I53: 62.5 mmol/mol (7.9%) | J53: 0.06486486486 | K53: 0.1351351351 | L53: 0.3135135135 | M53: 0.5405405405 | N53: 0.2972972973 | O53: 0.1783783784 | P53: 0.1459459459 | Q53: 0.8540540541 | R53: 67.76560211 | S53: 0.2806020379 | T53: 0.2031842023 | U53: 0.7968157977
A54: PZ069 | B54: Stepping Hill Hospital | C54: North West | D54: 172 | E54: 62.2412796 | F54: 57 | G54: 7.365481746 | H54: 57 mmol/mol (7.4%) | I54: 57 mmol/mol (7.4%) | J54: 0.1279069767 | K54: 0.2965116279 | L54: 0.511627907 | M54: 0.3895348837 | N54: 0.238372093 | O54: 0.1569767442 | P54: 0.0988372093 | Q54: 0.9011627907 | R54: 62.64284897 | S54: 0.4903951883 | T54: 0.1001862362 | U54: 0.8998137638
A55: PZ072 | B55: West Suffolk Hospital, Bury St Edmunds | C55: East of England | D55: 139 | E55: 64.21460724 | F55: 58 | G55: 7.456981426 | H55: 58 mmol/mol (7.5%) | I55: 58 mmol/mol (7.5%) | J55: 0.1223021583 | K55: 0.309352518 | L55: 0.4964028777 | M55: 0.3741007194 | N55: 0.2374100719 | O55: 0.1582733813 | P55: 0.1294964029 | Q55: 0.8705035971 | R55: 64.91043091 | S55: 0.4730594754 | T55: 0.1349765211 | U55: 0.8650234789
A56: PZ073 | B56: Alexandra Hospital | C56: West Midlands | D56: 86 | E56: 67.66278839 | F56: 63.75 | G56: 7.983104584 | H56: 63.8 mmol/mol (8%) | I56: 63.8 mmol/mol (8%) | J56: 0.05813953488 | K56: 0.1627906977 | L56: 0.3023255814 | M56: 0.488372093 | N56: 0.3604651163 | O56: 0.2790697674 | P56: 0.2093023256 | Q56: 0.7906976744 | R56: 68.35518646 | S56: 0.2884937227 | T56: 0.2350319326 | U56: 0.7649680674
A57: PZ074 | B57: Alder Hey Childrens Hospital | C57: North West | D57: 399 | E57: 64.43232727 | F57: 60.5 | G57: 7.685730625 | H57: 60.5 mmol/mol (7.7%) | I57: 60.5 mmol/mol (7.7%) | J57: 0.1303258145 | K57: 0.2380952381 | L57: 0.3634085213 | M57: 0.4962406015 | N57: 0.2857142857 | O57: 0.1729323308 | P57: 0.1403508772 | Q57: 0.8596491228 | R57: 62.53879166 | S57: 0.4138838053 | T57: 0.111418955 | U57: 0.888581045
A58: PZ075 | B58: St Mary's Hospital, Isle of Wight | C58: South Central | D58: 73 | E58: 67.10273743 | F58: 63 | G58: 7.914479824 | H58: 63 mmol/mol (7.9%) | I58: 63 mmol/mol (7.9%) | J58: 0.06849315068 | K58: 0.2054794521 | L58: 0.3150684932 | M58: 0.4931506849 | N58: 0.3561643836 | O58: 0.2465753425 | P58: 0.1917808219 | Q58: 0.8082191781 | R58: 68.65645599 | S58: 0.2959820926 | T58: 0.2441238314 | U58: 0.7558761686
A59: PZ076 | B59: Colchester General Hospital | C59: East of England | D59: 202 | E59: 66.4135437 | F59: 62 | G59: 7.822980145 | H59: 62 mmol/mol (7.8%) | I59: 62 mmol/mol (7.8%) | J59: 0.1386138614 | K59: 0.2524752475 | L59: 0.3613861386 | M59: 0.4851485149 | N59: 0.3514851485 | O59: 0.2524752475 | P59: 0.1534653465 | Q59: 0.8465346535 | R59: 66.5042038 | S59: 0.358174324 | T59: 0.1510127932 | U59: 0.8489872068
A60: PZ078 | B60: Royal Stoke University Hospital | C60: West Midlands | D60: 220 | E60: 65.14772797 | F60: 62 | G60: 7.822980145 | H60: 62 mmol/mol (7.8%) | I60: 62 mmol/mol (7.8%) | J60: 0.05 | K60: 0.1545454545 | L60: 0.3090909091 | M60: 0.5772727273 | N60: 0.2909090909 | O60: 0.1954545455 | P60: 0.1136363636 | Q60: 0.8863636364 | R60: 65.15460205 | S60: 0.3138774335 | T60: 0.1201913878 | U60: 0.8798086122
A61: PZ080 | B61: Sunderland Royal Hospital | C61: North East and North Cumbria | D61: 187 | E61: 63.47326279 | F61: 60 | G61: 7.639980785 | H61: 60 mmol/mol (7.6%) | I61: 60 mmol/mol (7.6%) | J61: 0.1176470588 | K61: 0.2245989305 | L61: 0.4010695187 | M61: 0.4652406417 | N61: 0.2459893048 | O61: 0.1764705882 | P61: 0.1336898396 | Q61: 0.8663101604 | R61: 62.51761627 | S61: 0.4241545498 | T61: 0.1127330959 | U61: 0.8872669041
A62: PZ082 | B62: Evelina Childrens Hospital | C62: London and South East | D62: 88 | E62: 66.1875 | F62: 63.5 | G62: 7.960229664 | H62: 63.5 mmol/mol (8%) | I62: 63.5 mmol/mol (8%) | J62: 0.1136363636 | K62: 0.1931818182 | L62: 0.3295454545 | M62: 0.5227272727 | N62: 0.3409090909 | O62: 0.2045454545 | P62: 0.1477272727 | Q62: 0.8522727273 | R62: 65.14842224 | S62: 0.3677845597 | T62: 0.158334285 | U62: 0.841665715
A63: PZ084 | B63: Kidderminster Hospital | C63: West Midlands | D63: 52 | E63: 68.79808044 | F63: 66 | G63: 8.188978864 | H63: 66 mmol/mol (8.2%) | I63: 66 mmol/mol (8.2%) | J63: 0.05769230769 | K63: 0.1346153846 | L63: 0.1923076923 | M63: 0.6538461538 | N63: 0.3653846154 | O63: 0.1923076923 | P63: 0.1538461538 | Q63: 0.8461538462 | R63: 68.85656738 | S63: 0.1937857568 | T63: 0.1612746418 | U63: 0.8387253582
A64: PZ085 | B64: Princess Royal University Hospital | C64: London and South East | D64: 148 | E64: 66.54392242 | F64: 62.5 | G64: 7.868729984 | H64: 62.5 mmol/mol (7.9%) | I64: 62.5 mmol/mol (7.9%) | J64: 0.07432432432 | K64: 0.1891891892 | L64: 0.2972972973 | M64: 0.5405405405 | N64: 0.3378378378 | O64: 0.2162162162 | P64: 0.1621621622 | Q64: 0.8378378378 | R64: 67.23210907 | S64: 0.2785917521 | T64: 0.1681854278 | U64: 0.8318145722
A65: PZ086 | B65: Hinchingbrooke Hospital | C65: East of England | D65: 96 | E65: 67.25 | F65: 64 | G65: 8.005979504 | H65: 64 mmol/mol (8%) | I65: 64 mmol/mol (8%) | J65: 0.1041666667 | K65: 0.1770833333 | L65: 0.2916666667 | M65: 0.5208333333 | N65: 0.4270833333 | O65: 0.28125 | P65: 0.1875 | Q65: 0.8125 | R65: 67.44366455 | S65: 0.2838255167 | T65: 0.1814455986 | U65: 0.8185544014
A66: PZ088 | B66: Royal Surrey County Hospital | C66: London and South East | D66: 144 | E66: 62.35069275 | F66: 60.75 | G66: 7.708605545 | H66: 60.8 mmol/mol (7.7%) | I66: 60.8 mmol/mol (7.7%) | J66: 0.06944444444 | K66: 0.2222222222 | L66: 0.3402777778 | M66: 0.5833333333 | N66: 0.2013888889 | O66: 0.125 | P66: 0.07638888889 | Q66: 0.9236111111 | R66: 63.86632156 | S66: 0.3039401174 | T66: 0.09180852026 | U66: 0.9081914797
A67: PZ091 | B67: Royal Blackburn Hospital | C67: North West | D67: 258 | E67: 68.11240387 | F67: 65 | G67: 8.097479184 | H67: 65 mmol/mol (8.1%) | I67: 65 mmol/mol (8.1%) | J67: 0.09689922481 | K67: 0.1744186047 | L67: 0.2906976744 | M67: 0.5387596899 | N67: 0.3565891473 | O67: 0.2248062016 | P67: 0.1705426357 | Q67: 0.8294573643 | R67: 66.71875763 | S67: 0.3238033652 | T67: 0.1471893936 | U67: 0.8528106064
A68: PZ092 | B68: Princess of Wales Hospital, Bridgend | C68: Wales | D68: 75 | E68: 64.73999786 | F68: 64 | G68: =(F68/10.929)+2.15 -> 8.005979504 | H68: =(ROUND(F68,1)&$Y$2&$Y$3&(ROUND(G68,1)&$Y$4&$Y$5)) -> 64 mmol/mol (8%) | I68: 64 mmol/mol (8%) | J68: 0.1066666667 | K68: 0.24 | L68: 0.3466666667 | M68: 0.52 | N68: 0.28 | O68: 0.1733333333 | P68: 0.1333333333 | Q68: 0.8666666667 | R68: 66.00753021 | S68: 0.3205633759 | T68: 0.1641480476 | U68: 0.8358519524
A69: PZ094 | B69: Princess Royal Hospital | C69: West Midlands | D69: 265 | E69: 66.09999847 | F69: 63 | G69: 7.914479824 | H69: 63 mmol/mol (7.9%) | I69: 63 mmol/mol (7.9%) | J69: 0.06037735849 | K69: 0.1320754717 | L69: 0.2943396226 | M69: 0.5962264151 | N69: 0.320754717 | O69: 0.1698113208 | P69: 0.1094339623 | Q69: 0.8905660377 | R69: 66.30473328 | S69: 0.2891042531 | T69: 0.107262902 | U69: 0.892737098
A70: PZ097 | B70: City Hospital, Birmingham | C70: West Midlands | D70: 77 | E70: 75.25325012 | F70: 70 | G70: 8.554977583 | H70: 70 mmol/mol (8.6%) | I70: 70 mmol/mol (8.6%) | J70: 0.09090909091 | K70: 0.1298701299 | L70: 0.1948051948 | M70: 0.4675324675 | N70: 0.5324675325 | O70: 0.4155844156 | P70: 0.3376623377 | Q70: 0.6623376623 | R70: 70.12653351 | S70: 0.2665064335 | T70: 0.2003062814 | U70: 0.7996937186
A71: PZ099 | B71: East and North Hertfordshire NHS Trust | C71: East of England | D71: 266 | E71: 65.25300598 | F71: 61 | G71: 7.731480465 | H71: 61 mmol/mol (7.7%) | I71: 61 mmol/mol (7.7%) | J71: 0.1240601504 | K71: 0.2631578947 | L71: 0.3571428571 | M71: 0.477443609 | N71: 0.2819548872 | O71: 0.1954887218 | P71: 0.1654135338 | Q71: 0.8345864662 | R71: 66.43138123 | S71: 0.3303462565 | T71: 0.1857772321 | U71: 0.8142227679
A72: PZ100 | B72: North Devon District Hospital | C72: South West | D72: 79 | E72: 65.2531662 | F72: 62 | G72: 7.822980145 | H72: 62 mmol/mol (7.8%) | I72: 62 mmol/mol (7.8%) | J72: 0.1139240506 | K72: 0.2151898734 | L72: 0.3544303797 | M72: 0.5063291139 | N72: 0.2658227848 | O72: 0.164556962 | P72: 0.1392405063 | Q72: 0.8607594937 | R72: 65.58818817 | S72: 0.342723012 | T72: 0.1331945658 | U72: 0.8668054342
A73: PZ101 | B73: Leeds Childrens' Hospital | C73: Yorkshire and Humber | D73: 420 | E73: 65.15476227 | F73: 61 | G73: 7.731480465 | H73: 61 mmol/mol (7.7%) | I73: 61 mmol/mol (7.7%) | J73: 0.1380952381 | K73: 0.2547619048 | L73: 0.3952380952 | M73: 0.4523809524 | N73: 0.3095238095 | O73: 0.2071428571 | P73: 0.1523809524 | Q73: 0.8476190476 | R73: 63.88349152 | S73: 0.4195249379 | T73: 0.1229358017 | U73: 0.8770641983
A74: PZ102 | B74: The Hillingdon Hospital | C74: London and South East | D74: 180 | E74: 64.46389008 | F74: 61 | G74: 7.731480465 | H74: 61 mmol/mol (7.7%) | I74: 61 mmol/mol (7.7%) | J74: 0.07777777778 | K74: 0.2277777778 | L74: 0.4222222222 | M74: 0.4166666667 | N74: 0.2833333333 | O74: 0.1888888889 | P74: 0.1611111111 | Q74: 0.8388888889 | R74: 64.10251617 | S74: 0.4375036955 | T74: 0.1574076712 | U74: 0.8425923288
A75: PZ104 | B75: Royal Albert Edward Infirmary | C75: North West | D75: 142 | E75: 68.69366455 | F75: 63 | G75: 7.914479824 | H75: 63 mmol/mol (7.9%) | I75: 63 mmol/mol (7.9%) | J75: 0.09154929577 | K75: 0.1690140845 | L75: 0.3028169014 | M75: 0.4788732394 | N75: 0.3802816901 | O75: 0.2746478873 | P75: 0.2183098592 | Q75: 0.7816901408 | R75: 69.2230072 | S75: 0.2943019569 | T75: 0.24079597 | U75: 0.75920403
A76: PZ105 | B76: St Luke's Hospital | C76: Yorkshire and Humber | D76: 166 | E76: 66.77138519 | F76: 63.75 | G76: 7.983104584 | H76: 63.8 mmol/mol (8%) | I76: 63.8 mmol/mol (8%) | J76: 0.06626506024 | K76: 0.1265060241 | L76: 0.2469879518 | M76: 0.6445783133 | N76: 0.3373493976 | O76: 0.1686746988 | P76: 0.1084337349 | Q76: 0.8915662651 | R76: 65.42610168 | S76: 0.2932927608 | T76: 0.1041371748 | U76: 0.8958628252
A77: PZ106 | B77: Victoria Hospital, Blackpool | C77: North West | D77: 105 | E77: 70.35237885 | F77: 65 | G77: 8.097479184 | H77: 65 mmol/mol (8.1%) | I77: 65 mmol/mol (8.1%) | J77: 0.04761904762 | K77: 0.1523809524 | L77: 0.2666666667 | M77: 0.5047619048 | N77: 0.4285714286 | O77: 0.2857142857 | P77: 0.2285714286 | Q77: 0.7714285714 | R77: 70.79892731 | S77: 0.2624177337 | T77: 0.2471173555 | U77: 0.7528826445
A78: PZ107 | B78: Queen Elizabeth Hospital, Gateshead | C78: North East and North Cumbria | D78: 113 | E78: 68.5 | F78: 64 | G78: 8.005979504 | H78: 64 mmol/mol (8%) | I78: 64 mmol/mol (8%) | J78: 0.06194690265 | K78: 0.1415929204 | L78: 0.3185840708 | M78: 0.4955752212 | N78: 0.3628318584 | O78: 0.2300884956 | P78: 0.185840708 | Q78: 0.814159292 | R78: 67.28417206 | S78: 0.3392598927 | T78: 0.153722316 | U78: 0.846277684
A79: PZ108 | B79: Birmingham Children's Hospital | C79: West Midlands | D79: 265 | E79: 62.74245071 | F79: 60 | G79: 7.639980785 | H79: 60 mmol/mol (7.6%) | I79: 60 mmol/mol (7.6%) | J79: 0.1018867925 | K79: 0.2528301887 | L79: 0.4113207547 | M79: 0.4754716981 | N79: 0.2150943396 | O79: 0.1320754717 | P79: 0.1132075472 | Q79: 0.8867924528 | R79: 61.10012054 | S79: 0.4818160236 | T79: 0.09817491472 | U79: 0.9018250853
A80: PZ109 | B80: Southampton Children’s Hospital | C80: South Central | D80: 237 | E80: 65.91561127 | F80: 63 | G80: 7.914479824 | H80: 63 mmol/mol (7.9%) | I80: 63 mmol/mol (7.9%) | J80: 0.1223628692 | K80: 0.223628692 | L80: 0.3375527426 | M80: 0.4936708861 | N80: 0.3375527426 | O80: 0.2194092827 | P80: 0.1687763713 | Q80: 0.8312236287 | R80: 66.72681427 | S80: 0.3219340742 | T80: 0.1819331348 | U80: 0.8180668652
A81: PZ110 | B81: Ormskirk & District General Hospital | C81: North West | D81: 123 | E81: 64.07570648 | F81: 62 | G81: 7.822980145 | H81: 62 mmol/mol (7.8%) | I81: 62 mmol/mol (7.8%) | J81: 0.0487804878 | K81: 0.09756097561 | L81: 0.3495934959 | M81: 0.5853658537 | N81: 0.2926829268 | O81: 0.1300813008 | P81: 0.06504065041 | Q81: 0.9349593496 | R81: 64.90087128 | S81: 0.3221105337 | T81: 0.0645288676 | U81: 0.9354711324
A82: PZ111 | B82: Hereford County Hospital | C82: West Midlands | D82: 79 | E82: 61.11392593 | F82: 59 | G82: 7.548481105 | H82: 59 mmol/mol (7.5%) | I82: 59 mmol/mol (7.5%) | J82: 0.1265822785 | K82: 0.2784810127 | L82: 0.417721519 | M82: 0.4556962025 | N82: 0.2151898734 | O82: 0.1392405063 | P82: 0.1265822785 | Q82: 0.8734177215 | R82: 62.55274963 | S82: 0.3877231181 | T82: 0.1718378365 | U82: 0.8281621635
A83: PZ112 | B83: Scarborough General Hospital | C83: Yorkshire and Humber | D83: 81 | E83: 63.09279633 | F83: 61 | G83: 7.731480465 | H83: 61 mmol/mol (7.7%) | I83: 61 mmol/mol (7.7%) | J83: 0.08641975309 | K83: 0.2098765432 | L83: 0.2962962963 | M83: 0.6296296296 | N83: 0.2469135802 | O83: 0.1358024691 | P83: 0.07407407407 | Q83: 0.9259259259 | R83: 62.86616516 | S83: 0.3036766946 | T83: 0.0732229948 | U83: 0.9267770052
A84: PZ113 | B84: University Hospital of Wales | C84: Wales | D84: 178 | E84: 63.87078476 | F84: 61 | G84: 7.731480465 | H84: 61 mmol/mol (7.7%) | I84: 61 mmol/mol (7.7%) | J84: 0.106741573 | K84: 0.2134831461 | L84: 0.3820224719 | M84: 0.5 | N84: 0.2752808989 | O84: 0.1853932584 | P84: 0.1179775281 | Q84: 0.8820224719 | R84: 64.94429016 | S84: 0.3618145883 | T84: 0.1408336461 | U84: 0.8591663539
A85: PZ114 | B85: The York Hospital | C85: Yorkshire and Humber | D85: 142 | E85: 70.4683075 | F85: 66.75 | G85: 8.257603623 | H85: 66.8 mmol/mol (8.3%) | I85: 66.8 mmol/mol (8.3%) | J85: 0.06338028169 | K85: 0.1478873239 | L85: 0.1901408451 | M85: 0.5704225352 | N85: 0.4507042254 | O85: 0.2887323944 | P85: 0.2394366197 | Q85: 0.7605633803 | R85: 72.16844177 | S85: 0.1721239686 | T85: 0.3008808196 | U85: 0.6991191804
A86: PZ118 | B86: University Hospital Lewisham | C86: London and South East | D86: 110 | E86: 67.39090729 | F86: 63.25 | G86: 7.937354744 | H86: 63.3 mmol/mol (7.9%) | I86: 63.3 mmol/mol (7.9%) | J86: 0.1363636364 | K86: 0.2363636364 | L86: 0.3636363636 | M86: 0.4181818182 | N86: 0.4 | O86: 0.2909090909 | P86: 0.2181818182 | Q86: 0.7818181818 | R86: 64.71085358 | S86: 0.4192881286 | T86: 0.1631848663 | U86: 0.8368151337
A87: PZ119 | B87: Darent Valley Hospital, Dartford | C87: London and South East | D87: 145 | E87: 69.42758179 | F87: 67.21900177 | G87: 8.300517135 | H87: 67.2 mmol/mol (8.3%) | I87: 67.2 mmol/mol (8.3%) | J87: 0.06206896552 | K87: 0.1310344828 | L87: 0.2620689655 | M87: 0.5103448276 | N87: 0.4344827586 | O87: 0.3103448276 | P87: 0.2275862069 | Q87: 0.7724137931 | R87: 71.78551483 | S87: 0.2424620986 | T87: 0.3487011194 | U87: 0.6512988806
A88: PZ120 | B88: North Tyneside General Hospital | C88: North East and North Cumbria | D88: 140 | E88: 59.76071548 | F88: 59 | G88: 7.548481105 | H88: 59 mmol/mol (7.5%) | I88: 59 mmol/mol (7.5%) | J88: 0.15 | K88: 0.3142857143 | L88: 0.4428571429 | M88: 0.4928571429 | N88: 0.2071428571 | O88: 0.07857142857 | P88: 0.06428571429 | Q88: 0.9357142857 | R88: 60.53261948 | S88: 0.4229764938 | T88: 0.07312011719 | U88: 0.9268798828
A89: PZ121 | B89: George Eliot Hospital | C89: West Midlands | D89: 92 | E89: 67.59075928 | F89: 64.5 | G89: 8.051729344 | H89: 64.5 mmol/mol (8.1%) | I89: 64.5 mmol/mol (8.1%) | J89: 0.03260869565 | K89: 0.1086956522 | L89: 0.2173913043 | M89: 0.6413043478 | N89: 0.2934782609 | O89: 0.1847826087 | P89: 0.1413043478 | Q89: 0.8586956522 | R89: 66.93856812 | S89: 0.2234163731 | T89: 0.1297929436 | U89: 0.8702070564
A90: PZ122 | B90: University Hospital, Coventry | C90: West Midlands | D90: 195 | E90: 69.5 | F90: 64.5 | G90: 8.051729344 | H90: 64.5 mmol/mol (8.1%) | I90: 64.5 mmol/mol (8.1%) | J90: 0.07692307692 | K90: 0.158974359 | L90: 0.2769230769 | M90: 0.4923076923 | N90: 0.3538461538 | O90: 0.2717948718 | P90: 0.2307692308 | Q90: 0.7692307692 | R90: 68.64245605 | S90: 0.289583385 | T90: 0.2107140124 | U90: 0.7892859876
A91: PZ125 | B91: Maidstone Hospital | C91: London and South East | D91: 120 | E91: 63.54999924 | F91: 61.25 | G91: 7.754355385 | H91: 61.3 mmol/mol (7.8%) | I91: 61.3 mmol/mol (7.8%) | J91: 0.075 | K91: 0.2083333333 | L91: 0.3416666667 | M91: 0.5833333333 | N91: 0.2666666667 | O91: 0.125 | P91: 0.075 | Q91: 0.925 | R91: 65.1945343 | S91: 0.3146377802 | T91: 0.09850747883 | U91: 0.9014925212
A92: PZ126 | B92: Medway Maritime Hospital | C92: London and South East | D92: 251 | E92: 67.59302521 | F92: 63 | G92: 7.914479824 | H92: 63 mmol/mol (7.9%) | I92: 63 mmol/mol (7.9%) | J92: 0.08366533865 | K92: 0.1752988048 | L92: 0.3027888446 | M92: 0.5338645418 | N92: 0.3505976096 | O92: 0.2390438247 | P92: 0.1633466135 | Q92: 0.8366533865 | R92: 67.03201294 | S92: 0.3124057353 | T92: 0.1507101208 | U92: 0.8492898792
A93: PZ127 | B93: James Paget Hospital | C93: East of England | D93: 142 | E93: 67.8345108 | F93: 65 | G93: 8.097479184 | H93: 65 mmol/mol (8.1%) | I93: 65 mmol/mol (8.1%) | J93: 0.08450704225 | K93: 0.1690140845 | L93: 0.3098591549 | M93: 0.5070422535 | N93: 0.4225352113 | O93: 0.2464788732 | P93: 0.1830985915 | Q93: 0.8169014085 | R93: 66.17341614 | S93: 0.3339346647 | T93: 0.1482055932 | U93: 0.8517944068
A94: PZ128 | B94: Pilgrim Hospital | C94: East Midlands | D94: 90 | E94: 65.66666412 | F94: 66 | G94: 8.188978864 | H94: 66 mmol/mol (8.2%) | I94: 66 mmol/mol (8.2%) | J94: 0.1111111111 | K94: 0.2111111111 | L94: 0.3111111111 | M94: 0.5555555556 | N94: 0.3888888889 | O94: 0.1666666667 | P94: 0.1333333333 | Q94: 0.8666666667 | R94: 65.51865387 | S94: 0.3171043396 | T94: 0.1342711151 | U94: 0.8657288849
A95: PZ131 | B95: Peterborough City Hospital | C95: East of England | D95: 220 | E95: 66.62727356 | F95: 62 | G95: 7.822980145 | H95: 62 mmol/mol (7.8%) | I95: 62 mmol/mol (7.8%) | J95: 0.1090909091 | K95: 0.2272727273 | L95: 0.35 | M95: 0.4590909091 | N95: 0.3227272727 | O95: 0.2409090909 | P95: 0.1909090909 | Q95: 0.8090909091 | R95: 67.0508728 | S95: 0.3476739824 | T95: 0.2055592835 | U95: 0.7944407165
A96: PZ132 | B96: Ysbyty Gwynedd Hospital | C96: Wales | D96: 93 | E96: 59.79032135 | F96: 57 | G96: 7.365481746 | H96: 57 mmol/mol (7.4%) | I96: 57 mmol/mol (7.4%) | J96: 0.2580645161 | K96: 0.4086021505 | L96: 0.5268817204 | M96: 0.3548387097 | N96: 0.1827956989 | O96: 0.1397849462 | P96: 0.1182795699 | Q96: 0.8817204301 | R96: 61.24906921 | S96: 0.4813854992 | T96: 0.1491261423 | U96: 0.8508738577
A97: PZ133 | B97: James Cook University Hospital | C97: North East and North Cumbria | D97: 130 | E97: 63.73461533 | F97: 63 | G97: 7.914479824 | H97: 63 mmol/mol (7.9%) | I97: 63 mmol/mol (7.9%) | J97: 0.09230769231 | K97: 0.2538461538 | L97: 0.3615384615 | M97: 0.5461538462 | N97: 0.2923076923 | O97: 0.1615384615 | P97: 0.09230769231 | Q97: 0.9076923077 | R97: 65.04646301 | S97: 0.343316257 | T97: 0.1140039563 | U97: 0.8859960437
A98: PZ135 | B98: Royal Alexandra Hospital, Brighton | C98: London and South East | D98: 191 | E98: 63.45026016 | F98: 62 | G98: 7.822980145 | H98: 62 mmol/mol (7.8%) | I98: 62 mmol/mol (7.8%) | J98: 0.0942408377 | K98: 0.2303664921 | L98: 0.3821989529 | M98: 0.5183246073 | N98: 0.2879581152 | O98: 0.1570680628 | P98: 0.09947643979 | Q98: 0.9005235602 | R98: 64.3522644 | S98: 0.3545370102 | T98: 0.1043907478 | U98: 0.8956092522
A99: PZ136 | B99: Central Manchester University Hospitals NHS Foundation Trust | C99: North West | D99: 271 | E99: 67.31549835 | F99: 64 | G99: 8.005979504 | H99: 64 mmol/mol (8%) | I99: 64 mmol/mol (8%) | J99: 0.07380073801 | K99: 0.1771217712 | L99: 0.2841328413 | M99: 0.5276752768 | N99: 0.3616236162 | O99: 0.2509225092 | P99: 0.1881918819 | Q99: 0.8118081181 | R99: 64.18049622 | S99: 0.3514562845 | T99: 0.1289600581 | U99: 0.8710399419
A100: PZ137 | B100: Musgrove Park Hospital | C100: South West | D100: 195 | E100: 65.98204803 | F100: 63.5 | G100: 7.960229664 | H100: 63.5 mmol/mol (8%) | I100: 63.5 mmol/mol (8%) | J100: 0.1025641026 | K100: 0.2 | L100: 0.3230769231 | M100: 0.5076923077 | N100: 0.3538461538 | O100: 0.2153846154 | P100: 0.1692307692 | Q100: 0.8307692308 | R100: 66.81000519 | S100: 0.30734092 | T100: 0.1842651665 | U100: 0.8157348335
A101: PZ138 | B101: Warwick Hospital | C101: West Midlands | D101: 105 | E101: 63.63809586 | F101: 62 | G101: 7.822980145 | H101: 62 mmol/mol (7.8%) | I101: 62 mmol/mol (7.8%) | J101: 0.1523809524 | K101: 0.2952380952 | L101: 0.3904761905 | M101: 0.4857142857 | N101: 0.3142857143 | O101: 0.219047619 | P101: 0.1238095238 | Q101: 0.8761904762 | R101: 66.77159119 | S101: 0.3233700395 | T101: 0.1768341213 | U101: 0.8231658787
A102: PZ139 | B102: Bristol Royal Hospital for Children | C102: South West | D102: 428 | E102: 63.02569962 | F102: 61 | G102: 7.731480465 | H102: 61 mmol/mol (7.7%) | I102: 61 mmol/mol (7.7%) | J102: 0.1331775701 | K102: 0.2686915888 | L102: 0.4112149533 | M102: 0.4602803738 | N102: 0.2920560748 | O102: 0.1728971963 | P102: 0.1285046729 | Q102: 0.8714953271 | R102: 63.46096039 | S102: 0.3999434114 | T102: 0.1347356886 | U102: 0.8652643114
A103: PZ140 | B103: Tameside General Hospital | C103: North West | D103: 89 | E103: 68.47190857 | F103: 65 | G103: 8.097479184 | H103: 65 mmol/mol (8.1%) | I103: 65 mmol/mol (8.1%) | J103: 0.08988764045 | K103: 0.1348314607 | L103: 0.202247191 | M103: 0.606741573 | N103: 0.3820224719 | O103: 0.2808988764 | P103: 0.191011236 | Q103: 0.808988764 | R103: 67.91928101 | S103: 0.2129109502 | T103: 0.1953683048 | U103: 0.8046316952
A104: PZ141 | B104: South Tyneside District Hospital | C104: North East and North Cumbria | D104: 55 | E104: 59.31818008 | F104: 58 | G104: 7.456981426 | H104: 58 mmol/mol (7.5%) | I104: 58 mmol/mol (7.5%) | J104: 0.07272727273 | K104: 0.2727272727 | L104: 0.4909090909 | M104: 0.4909090909 | N104: 0.1454545455 | O104: 0.03636363636 | P104: 0.01818181818 | Q104: 0.9818181818 | R104: 59.76145935 | S104: 0.4872956276 | T104: 0.02053244784 | U104: 0.9794675522
A105: PZ144 | B105: Good Hope Hospital, Sutton Coldfield | C105: West Midlands | D105: 133 | E105: 64.5 | F105: 63.5 | G105: 7.960229664 | H105: 63.5 mmol/mol (8%) | I105: 63.5 mmol/mol (8%) | J105: 0.09022556391 | K105: 0.2030075188 | L105: 0.3007518797 | M105: 0.5789473684 | N105: 0.3233082707 | O105: 0.2105263158 | P105: 0.1203007519 | Q105: 0.8796992481 | R105: 63.19561386 | S105: 0.3221375942 | T105: 0.09845093638 | U105: 0.9015490636
A106: PZ145 | B106: Milton Keynes Hospital | C106: South Central | D106: 126 | E106: 62.03174591 | F106: 58.75 | G106: 7.525606185 | H106: 58.8 mmol/mol (7.5%) | I106: 58.8 mmol/mol (7.5%) | J106: 0.1349206349 | K106: 0.2063492063 | L106: 0.4285714286 | M106: 0.4920634921 | N106: 0.2301587302 | O106: 0.126984127 | P106: 0.07936507937 | Q106: 0.9206349206 | R106: 64.05579376 | S106: 0.3862972856 | T106: 0.1153229624 | U106: 0.8846770376
A107: PZ146 | B107: Southend University Hospital | C107: East of England | D107: 171 | E107: 60.58187103 | F107: 60 | G107: 7.639980785 | H107: 60 mmol/mol (7.6%) | I107: 60 mmol/mol (7.6%) | J107: 0.1286549708 | K107: 0.2748538012 | L107: 0.4678362573 | M107: 0.4795321637 | N107: 0.2046783626 | O107: 0.09941520468 | P107: 0.05263157895 | Q107: 0.9473684211 | R107: 61.51094818 | S107: 0.4375105798 | T107: 0.05653220788 | U107: 0.9434677921
A108: PZ149 | B108: Barnsley Hospital | C108: Yorkshire and Humber | D108: 126 | E108: 65.05555725 | F108: 62 | G108: 7.822980145 | H108: 62 mmol/mol (7.8%) | I108: 62 mmol/mol (7.8%) | J108: 0.03174603175 | K108: 0.119047619 | L108: 0.2857142857 | M108: 0.5952380952 | N108: 0.246031746 | O108: 0.1904761905 | P108: 0.119047619 | Q108: 0.880952381 | R108: 63.63123322 | S108: 0.3070829213 | T108: 0.09693244845 | U108: 0.9030675516
A109: PZ150 | B109: Cumberland Infirmary | C109: North East and North Cumbria | D109: 99 | E109: 62.50984955 | F109: 59 | G109: 7.548481105 | H109: 59 mmol/mol (7.5%) | I109: 59 mmol/mol (7.5%) | J109: 0.1616161616 | K109: 0.2828282828 | L109: 0.4646464646 | M109: 0.404040404 | N109: 0.2323232323 | O109: 0.1717171717 | P109: 0.1313131313 | Q109: 0.8686868687 | R109: 62.4414444 | S109: 0.4592678249 | T109: 0.1293320656 | U109: 0.8706679344
A110: PZ151 | B110: Queen Elizabeth Hospital, Woolwich | C110: London and South East | D110: 101 | E110: 71.95049286 | F110: 70 | G110: 8.554977583 | H110: 70 mmol/mol (8.6%) | I110: 70 mmol/mol (8.6%) | J110: 0.06930693069 | K110: 0.1287128713 | L110: 0.2178217822 | M110: 0.5544554455 | N110: 0.5346534653 | O110: 0.3168316832 | P110: 0.2277227723 | Q110: 0.7722772277 | R110: 69.9204483 | S110: 0.2430915534 | T110: 0.1819560826 | U110: 0.8180439174
A111: PZ152 | B111: Torbay Hospital | C111: South West | D111: 137 | E111: 70.56204224 | F111: 69 | G111: 8.463477903 | H111: 69 mmol/mol (8.5%) | I111: 69 mmol/mol (8.5%) | J111: 0.07299270073 | K111: 0.1167883212 | L111: 0.2335766423 | M111: 0.5182481752 | N111: 0.5328467153 | O111: 0.3503649635 | P111: 0.2481751825 | Q111: 0.7518248175 | R111: 69.48790741 | S111: 0.2431747615 | T111: 0.206983 | U111: 0.793017
A112: PZ153 | B112: Whiston Hospital | C112: North West | D112: 142 | E112: 59.33719254 | F112: 56 | G112: 7.273982066 | H112: 56 mmol/mol (7.3%) | I112: 56 mmol/mol (7.3%) | J112: 0.176056338 | K112: 0.3873239437 | L112: 0.5563380282 | M112: 0.3732394366 | N112: 0.1690140845 | O112: 0.1267605634 | P112: 0.07042253521 | Q112: 0.9295774648 | R112: 58.84983444 | S112: 0.5807692409 | T112: 0.06925010681 | U112: 0.9307498932
A113: PZ156 | B113: Queen Elizabeth Hospital, Kings Lynn | C113: East of England | D113: 130 | E113: 72.01153564 | F113: 66.25 | G113: 8.211853784 | H113: 66.3 mmol/mol (8.2%) | I113: 66.3 mmol/mol (8.2%) | J113: 0.07692307692 | K113: 0.1307692308 | L113: 0.2153846154 | M113: 0.5461538462 | N113: 0.4153846154 | O113: 0.3 | P113: 0.2384615385 | Q113: 0.7615384615 | R113: 70.1576767 | S113: 0.2341356426 | T113: 0.1816906184 | U113: 0.8183093816
A114: PZ157 | B114: Royal Free Hospital | C114: London and South East | D114: 47 | E114: 63.90425491 | F114: 59 | G114: 7.548481105 | H114: 59 mmol/mol (7.5%) | I114: 59 mmol/mol (7.5%) | J114: 0.1489361702 | K114: 0.2553191489 | L114: 0.4255319149 | M114: 0.4255319149 | N114: 0.2978723404 | O114: 0.1914893617 | P114: 0.1489361702 | Q114: 0.8510638298 | R114: 63.24785233 | S114: 0.4292327464 | T114: 0.133441329 | U114: 0.866558671
A115: PZ159 | B115: Basingstoke and North Hampshire Hospital | C115: South Central | D115: 137 | E115: 64.04014587 | F115: 60 | G115: 7.639980785 | H115: 60 mmol/mol (7.6%) | I115: 60 mmol/mol (7.6%) | J115: 0.08759124088 | K115: 0.2408759124 | L115: 0.4379562044 | M115: 0.4233576642 | N115: 0.2700729927 | O115: 0.1751824818 | P115: 0.1386861314 | Q115: 0.8613138686 | R115: 66.00778198 | S115: 0.392721355 | T115: 0.179302752 | U115: 0.820697248
A116: PZ160 | B116: Bishop Auckland Hospital | C116: North East and North Cumbria | D116: 78 | E116: 63.7243576 | F116: 61 | G116: 7.731480465 | H116: 61 mmol/mol (7.7%) | I116: 61 mmol/mol (7.7%) | J116: 0.141025641 | K116: 0.2435897436 | L116: 0.3717948718 | M116: 0.4871794872 | N116: 0.2820512821 | O116: 0.1666666667 | P116: 0.141025641 | Q116: 0.858974359 | R116: 62.22118759 | S116: 0.4075504541 | T116: 0.1093240604 | U116: 0.8906759396
A117: PZ161 | B117: Darlington Memorial Hospital | C117: North East and North Cumbria | D117: 71 | E117: 67.61045074 | F117: 66 | G117: 8.188978864 | H117: 66 mmol/mol (8.2%) | I117: 66 mmol/mol (8.2%) | J117: 0.08450704225 | K117: 0.1971830986 | L117: 0.2957746479 | M117: 0.5352112676 | N117: 0.3943661972 | O117: 0.2676056338 | P117: 0.1690140845 | Q117: 0.8309859155 | R117: 67.4046936 | S117: 0.2879130542 | T117: 0.1513258219 | U117: 0.8486741781
A118: PZ162 | B118: University Hospital of North Durham | C118: North East and North Cumbria | D118: 114 | E118: 65.65789795 | F118: 64 | G118: 8.005979504 | H118: 64 mmol/mol (8%) | I118: 64 mmol/mol (8%) | J118: 0.09649122807 | K118: 0.1842105263 | L118: 0.3070175439 | M118: 0.5614035088 | N118: 0.3421052632 | O118: 0.1842105263 | P118: 0.1315789474 | Q118: 0.8684210526 | R118: 65.15550232 | S118: 0.313808322 | T118: 0.1226039082 | U118: 0.8773960918
A119: PZ163 | B119: University Hospital of North Tees and University Hospital of Hartlepool | C119: North East and North Cumbria | D119: 170 | E119: 67.44117737 | F119: 64 | G119: 8.005979504 | H119: 64 mmol/mol (8%) | I119: 64 mmol/mol (8%) | J119: 0.05294117647 | K119: 0.1352941176 | L119: 0.2058823529 | M119: 0.6411764706 | N119: 0.3823529412 | O119: 0.2529411765 | P119: 0.1529411765 | Q119: 0.8470588235 | R119: 65.61377716 | S119: 0.2278374135 | T119: 0.1207431629 | U119: 0.8792568371
A120: PZ164 | B120: Rotherham Hospital | C120: Yorkshire and Humber | D120: 106 | E120: 66.52159119 | F120: 62.57374954 | G120: 7.875478044 | H120: 62.6 mmol/mol (7.9%) | I120: 62.6 mmol/mol (7.9%) | J120: 0.08490566038 | K120: 0.1603773585 | L120: 0.3490566038 | M120: 0.4905660377 | N120: 0.3018867925 | O120: 0.1981132075 | P120: 0.1603773585 | Q120: 0.8396226415 | R120: 64.66079712 | S120: 0.388628453 | T120: 0.1225098595 | U120: 0.8774901405
A121: PZ167 | B121: University Hospitals of Morecambe Bay NHS Foundation Trust | C121: North West | D121: 190 | E121: 66.56052399 | F121: 62 | G121: 7.822980145 | H121: 62 mmol/mol (7.8%) | I121: 62 mmol/mol (7.8%) | J121: 0.05789473684 | K121: 0.1578947368 | L121: 0.3052631579 | M121: 0.5526315789 | N121: 0.3052631579 | O121: 0.2 | P121: 0.1421052632 | Q121: 0.8578947368 | R121: 65.87099457 | S121: 0.3139188886 | T121: 0.1340052933 | U121: 0.8659947067
A122: PZ168 | B122: Grantham and District Hospital | C122: East Midlands | D122: 49 | E122: 58.63265228 | F122: 57 | G122: 7.365481746 | H122: 57 mmol/mol (7.4%) | I122: 57 mmol/mol (7.4%) | J122: 0.2040816327 | K122: 0.3673469388 | L122: 0.5102040816 | M122: 0.4489795918 | N122: 0.2244897959 | O122: 0.08163265306 | P122: 0.04081632653 | Q122: 0.9591836735 | R122: 60.73656845 | S122: 0.4458301067 | T122: 0.05601574108 | U122: 0.9439842589
A123: PZ169 | B123: Salisbury District Hospital | C123: South Central | D123: 126 | E123: 62.94841385 | F123: 59.75 | G123: 7.617105865 | H123: 59.8 mmol/mol (7.6%) | I123: 59.8 mmol/mol (7.6%) | J123: 0.1428571429 | K123: 0.2936507937 | L123: 0.4126984127 | M123: 0.4761904762 | N123: 0.2857142857 | O123: 0.1666666667 | P123: 0.1111111111 | Q123: 0.8888888889 | R123: 64.60569763 | S123: 0.3701544702 | T123: 0.1364796609 | U123: 0.8635203391
A124: PZ170 | B124: Arrowe Park Hospital | C124: North West | D124: 140 | E124: 66.61785889 | F124: 63.5 | G124: 7.960229664 | H124: 63.5 mmol/mol (8%) | I124: 63.5 mmol/mol (8%) | J124: 0.05714285714 | K124: 0.1357142857 | L124: 0.3 | M124: 0.5428571429 | N124: 0.3285714286 | O124: 0.2071428571 | P124: 0.1571428571 | Q124: 0.8428571429 | R124: 66.1900177 | S124: 0.310526967 | T124: 0.1561827064 | U124: 0.8438172936
A125: PZ171 | B125: Broomfield Hospital | C125: East of England | D125: 166 | E125: 59.61451721 | F125: 58 | G125: 7.456981426 | H125: 58 mmol/mol (7.5%) | I125: 58 mmol/mol (7.5%) | J125: 0.156626506 | K125: 0.3072289157 | L125: 0.4819277108 | M125: 0.4578313253 | N125: 0.1506024096 | O125: 0.07228915663 | P125: 0.06024096386 | Q125: 0.9397590361 | R125: 62.19035721 | S125: 0.4187704027 | T125: 0.08781953156 | U125: 0.9121804684
A126: PZ172 | B126: West Hertfordshire Hospitals NHS Trust | C126: East of England | D126: 176 | E126: 68.35340881 | F126: 65 | G126: 8.097479184 | H126: 65 mmol/mol (8.1%) | I126: 65 mmol/mol (8.1%) | J126: 0.06818181818 | K126: 0.1647727273 | L126: 0.2897727273 | M126: 0.5170454545 | N126: 0.3920454545 | O126: 0.25 | P126: 0.1931818182 | Q126: 0.8068181818 | R126: 69.67713928 | S126: 0.2717556059 | T126: 0.2309763432 | U126: 0.7690236568
A127: PZ173 | B127: Yeovil District Hospital | C127: South West | D127: 90 | E127: 66.41666412 | F127: 63.75 | G127: 7.983104584 | H127: 63.8 mmol/mol (8%) | I127: 63.8 mmol/mol (8%) | J127: 0.1111111111 | K127: 0.2 | L127: 0.3111111111 | M127: 0.5444444444 | N127: 0.3555555556 | O127: 0.2222222222 | P127: 0.1444444444 | Q127: 0.8555555556 | R127: 65.63659668 | S127: 0.3174618185 | T127: 0.1296981871 | U127: 0.8703018129
A128: PZ174 | B128: Kettering General Hospital | C128: East Midlands | D128: 178 | E128: 65.80618286 | F128: 61.75 | G128: 7.800105225 | H128: 61.8 mmol/mol (7.8%) | I128: 61.8 mmol/mol (7.8%) | J128: 0.1348314607 | K128: 0.2528089888 | L128: 0.393258427 | M128: 0.4550561798 | N128: 0.3314606742 | O128: 0.191011236 | P128: 0.1516853933 | Q128: 0.8483146067 | R128: 65.7149353 | S128: 0.3887636364 | T128: 0.1414719671 | U128: 0.8585280329
A129: PZ175 | B129: Queen Mary's Hospital, Sidcup | C129: London and South East | D129: 89 | E129: 66.30336761 | F129: 63 | G129: 7.914479824 | H129: 63 mmol/mol (7.9%) | I129: 63 mmol/mol (7.9%) | J129: 0.07865168539 | K129: 0.1460674157 | L129: 0.3370786517 | M129: 0.5056179775 | N129: 0.3146067416 | O129: 0.2134831461 | P129: 0.1573033708 | Q129: 0.8426966292 | R129: 65.90946198 | S129: 0.3389699459 | T129: 0.1441733986 | U129: 0.8558266014
A130: PZ176 | B130: St Peter's Hospital | C130: London and South East | D130: 186 | E130: 64.52687836 | F130: 62.25 | G130: 7.845855065 | H130: 62.3 mmol/mol (7.8%) | I130: 62.3 mmol/mol (7.8%) | J130: 0.08602150538 | K130: 0.2043010753 | L130: 0.3440860215 | M130: 0.5752688172 | N130: 0.2795698925 | O130: 0.1451612903 | P130: 0.08064516129 | Q130: 0.9193548387 | R130: 66.21305847 | S130: 0.3130384088 | T130: 0.09896760434 | U130: 0.9010323957
A131: PZ177 | B131: Royal Bolton Hospital | C131: North West | D131: 116 | E131: 64.07758331 | F131: 62 | G131: 7.822980145 | H131: 62 mmol/mol (7.8%) | I131: 62 mmol/mol (7.8%) | J131: 0.1034482759 | K131: 0.1810344828 | L131: 0.2844827586 | M131: 0.6034482759 | N131: 0.2672413793 | O131: 0.1637931034 | P131: 0.1120689655 | Q131: 0.8879310345 | R131: 64.18704224 | S131: 0.2987013161 | T131: 0.127730459 | U131: 0.872269541
A132: PZ178 | B132: Manor Hospital, Walsall | C132: West Midlands | D132: 138 | E132: 64.36340332 | F132: 62.75 | G132: =(F132/10.929)+2.15 -> 7.891604904 | H132: =(ROUND(F132,1)&$Y$2&$Y$3&(ROUND(G132,1)&$Y$4&$Y$5)) -> 62.8 mmol/mol (7.9%) | I132: 62.8 mmol/mol (7.9%) | J132: 0.1086956522 | K132: 0.2028985507 | L132: 0.347826087 | M132: 0.5434782609 | N132: 0.3043478261 | O132: 0.1666666667 | P132: 0.1086956522 | Q132: 0.8913043478 | R132: 62.75075912 | S132: 0.3885577321 | T132: 0.08838559687 | U132: 0.9116144031
A133: PZ179 | B133: Countess of Chester Hospital NHS Trust | C133: North West | D133: 153 | E133: 68.34313965 | F133: 63 | G133: 7.914479824 | H133: 63 mmol/mol (7.9%) | I133: 63 mmol/mol (7.9%) | J133: 0.137254902 | K133: 0.2156862745 | L133: 0.3660130719 | M133: 0.4183006536 | N133: 0.3921568627 | O133: 0.3006535948 | P133: 0.2156862745 | Q133: 0.7843137255 | R133: 68.6364975 | S133: 0.3508073688 | T133: 0.2009521723 | U133: 0.7990478277
